Workbook

Sheet Controllo_UPLOAD (hidden)
A1: ID_ATO | B1: ID_Aeeg_Gestore | D1: SONO PRESENTI ATO E GESTORE ? | E1: il file può essere caricato ?
A2: =idato -> 0 | B2: =Codice_ARERA -> 0 | D2: =IF(A2*B2>0,"SI","NO") -> NO | E2: SI
D3: PRECOMPILATO
D4: 0
D5: 1 = precompilato; 0 = deve fornire tutti i dati
D7: Tipo_file
D8: RDT
D10: SI
D13: Versione_file
D14: Tool

Sheet Menu
B1: RACCOLTA DATI TARIFFARI | F1: Per la compilazione seguire l'ordine dei fogli | K1: RACCOLTA DATI "Qualità tecnica e contrattuale, PdI e POS"
B2: ATO | E2: GESTORE
B3: ID_ATO | C3: ATO | D3: campo_vuoto | E3: ID_Aeeg_Gestore | F3: Gestore | H3: DATA CALCOLO
H4: Preview_RDT2026
F6: Indicare la natura dei dati forniti per l'anno 2025
B8: Sono presenti Errori | C8: elenco schede: | G8: foglio | I8: nomi delle tabelle | K8: Sono presenti Errori | L8: elenco schede: | P8: foglio | R8: nomi delle tabelle
C9: Dati tecnici | G9: Dati_tecnici | H9: scrittura | L9: QT-Acquedotto | P9: QT-Acquedotto | Q9: lettura/scrittura
C10: Affidamento | G10: Affidamento | H10: scrittura | L10: QT-Fognatura | P10: QT-Fognatura | Q10: lettura/scrittura
C11: Dati di conto economico | G11: Dati_conto_economico | H11: scrittura | L11: QT-Depurazione | P11: QT-Depurazione | Q11: lettura/scrittura
C12: Altri dati economico finanziari | G12: Altri_dati_eco_fin | H12: scrittura | L12: QT-Altri dati | P12: QT-Altri dati | Q12: lettura/scrittura
C13: Finanziamenti | G13: finanziamenti | H13: scrittura | I13: finanziamenti | L13: QT-Resilienza | P13: QT-Resilienza | Q13: lettura/scrittura
C14: Elenco soggetti proprietari | G14: soggetti_proprietari | H14: lettura/scrittura | I14: Elenco_Proprietari | L14: Riepilogo RQTI | P14: Riepilogo_RQTI | Q14: lettura/scrittura
C15: Corrispettivi su infrastrutture di terzi | G15: Corrispettivi_proprietari | H15: lettura/scrittura | I15: Corrispettivi_Proprietari | L15: Programma degli Interventi: legenda | P15: PdI-legenda | Q15: lettura
C16: Servizi all'ingrosso: soggetti | G16: Soggetti_Scambio | H16: scrittura | I16: Soggetti_Elenco | L16: Programma degli Interventi: cronoprogramma_investimenti | P16: PdI-crono_inv | Q16: lettura/scrittura | R16: crono_investimenti
C17: Servizi all'ingrosso: vendita | G17: Vendita_Servizi_ingrosso | H17: scrittura | I17: Vendita_Servizi | L17: Programma degli Interventi: POS - Piano Opere Strategiche | P17: POS-Piano_Opere_Strategiche | Q17: lettura/scrittura | R17: crono_pos
C18: Servizi all'ingrosso: acquisto | G18: Acquisto_Servizi_ingrosso | H18: scrittura | I18: Acquisto_Servizi | L18: Programma degli Interventi: cronoprogramma_gestionale | P18: PdI-crono_ges | Q18: lettura/scrittura | R18: crono_gestionale
C19: Nuovi investimenti | G19: Nuovi_Investimenti | H19: scrittura | I19: Nuovi_Investimenti | L19: Programma degli Interventi: riepilogo | P19: PdI-riepilogo | Q19: lettura/scrittura
C20: Dismissioni | G20: Dismissioni | H20: scrittura | I20: Dismissioni | L20: Riepilogo RQSII | P20: Riepilogo_RQSII | Q20: lettura/scrittura
C21: Ammortamento finanziario | G21: Ammortamento_Finanziario | H21: lettura/scrittura | I21: AmmortamentoFinanziario
C22: Informazioni su aggregazioni (anche ai fini dello schema di convergenza) | G22: Info_eventuali_aggregazioni | H22: scrittura | I22: Info_Soggetti_Aggregati
C23: Elenco Bacini Tariffari | G23: Elenco_Bacini_Tariffari | H23: scrittura | I23: BaciniTariffariElenco
C24: Bacini Tariffari e Comuni per Bacino Tariffario | G24: Bacini_Tariffari_Comuni | H24: scrittura | I24: Bacini_Tariffari_Comuni
C25: Struttura dei corrispettivi | G25: Struttura_corrispettivi | H25: scrittura
C26: TIMSII - Consapevolezza nei consumi per utenze raggruppate | G26: Titolo 6 TIMSII ut_raggruppate | H26: scrittura
C27: Ricavi tariffari - Collettamento e depurazione reflui industriali | G27: Ricavi_Coll_Dep | H27: lettura/scrittura
C28: Ricavi tariffari totali per Bacino Tariffario | G28: Ricavi_bacini_tariffari | H28: lettura/scrittura | I28: Bacini_Tariffari_Ricavi
C29: Informazioni per completamento proposta tariffaria | G29: Input_per_calcoli_finali | H29: lettura/scrittura
C30: Vincolo riconosciuto ai ricavi del gestore: riepilogo | G30: VRG_riepilogo | H30: lettura/scrittura
C31: Dati anni precedenti | G31: Dati_Anni_precedenti | H31: lettura
C32: Immobilizzazioni storiche | G32: IMN_cespiti_anni_precedenti | H32: lettura | I32: IMN_cespiti_anni_prec
C33: Conferma investimenti preconsuntivi | G33: Conferma_investimenti | H33: lettura/scrittura | I33: ConfermaInvestimenti
C34: Immobilizzazioni dei proprietari | G34: IMN_Proprietari | H34: lettura | I34: cespiti_proprietari
C35: Storico Piano Tariffario | G35: Storico_Piano_Tariffario | H35: lettura
C36: DCUIT | G36: dcuit | H36: calcolo
C37: Ricostruzione immobilizzazioni del gestore | G37: IMN_consolidamento | H37: lettura
C38: Calcolo IMN gestore | G38: IMN_gestore | H38: lettura
C39: FRAMEWORK SCHEMI | G39: framework_schemi | H39: calcolo
C40: VRG TETA | G40: vrg_teta | H40: calcolo
C41: CAPEX | G41: capex | H41: calcolo
C42: FoNI | G42: FoNI | H42: calcolo
C43: OPEX | G43: opex | H43: calcolo
C44: ERC | G44: erc | H44: calcolo
C45: RC | G45: rc | H45: calcolo
C46: Schema di convergenza | G46: Schema di convergenza | H46: calcolo
C47: PEF - Piano tariffario | G47: piano_tariffario | H47: lettura/scrittura
C48: PEF - Conto economico | G48: conto_economico | H48: scrittura
C49: PEF - Stato patrimoniale | G49: Stato_patrimoniale | H49: scrittura
C50: PEF - Rendiconto finanziario | G50: rendiconto_finanziario | H50: scrittura
C51: Elenco Gestori | G51: TT_Gestori | H51: fogli di supporto
C52: Tabelle di supporto anagrafica territorio | G52: TT_Comuni_ATO | H52: fogli di supporto
C53: Tabelle di riferimento (per i menu) | G53: TT_Tabelle_Riferimento | H53: fogli di supporto
C54: Parametri | G54: TT_parametri | H54: sola lettura
C55: Riepilogo IMN | G55: TT_riepilogo_IMN | H55: sola lettura
C56: QT-Acquedotto | G56: QT-Acquedotto | H56: lettura/scrittura
C57: QT-Fognatura | G57: QT-Fognatura | H57: lettura/scrittura
C58: QT-Depurazione | G58: QT-Depurazione | H58: lettura/scrittura
C59: QT-Altri dati | G59: QT-Altri dati | H59: lettura/scrittura
C60: QT-Resilienza | G60: QT-Resilienza | H60: lettura/scrittura
C61: Riepilogo RQTI | G61: Riepilogo_RQTI | H61: lettura/scrittura
C62: Programma degli Interventi: legenda | G62: PdI-legenda | H62: lettura
C63: Programma degli Interventi: cronoprogramma_investimenti | G63: PdI-crono_inv | H63: lettura/scrittura | I63: crono_investimenti
C64: Programma degli Interventi: POS - Piano Opere Strategiche | G64: POS-Piano_Opere_Strategiche | H64: lettura/scrittura | I64: crono_pos
C65: Programma degli Interventi: cronoprogramma_gestionale | G65: PdI-crono_ges | H65: lettura/scrittura | I65: crono_gestionale
C66: Programma degli Interventi: riepilogo | G66: PdI-riepilogo | H66: lettura/scrittura
C67: Riepilogo RQSII | G67: Riepilogo_RQSII | H67: lettura/scrittura

Sheet Dati_tecnici
B1: DATI TECNICI
B2: FORNITURA ELETTRICA | E2: ANNO 2024 | F2: ANNO 2025 | G2: ANNO 2023 | M2: Errore compilazione | N2: Errore dati EE | O2: Errore dati pop | P2: Sono presenti errori
C3: Totale consumo di energia elettrica | D3: kWh | E3: =+E5+E6 -> 0 | F3: =+F5+F6 -> 0 | G3: =+G5+G6 -> 0 | M3: =+COUNTA(E5:F5,E8:F8,E10:F10,E12:F12,G5,G8,G12)<>17 -> TRUE | N3: =+MIN(E5:F5,E8:F8,E10:F10,G5,G8)<=0 -> TRUE | O3: =+OR(COUNT(E15,E23,E29)=0,COUNT(F15,F23,F29)=0) -> TRUE | P3: =+OR(M3:O3) -> TRUE
C4: di cui, in salvaguardia | D4: kWh
C5: Energia elettrica, quantità acquistata e consumata | D5: kWh
C6: Energia elettrica, quantità autoprodotta e consumata | D6: kWh
C7: I costi di produzione dell’energia elettrica autoprodotta e consumata, ivi compresi quelli di capitale, non sono coperti da altre componenti tariffarie | D7: SI/NO
C8: Costo energia elettrica a bilancio | D8: Euro
C9: di cui, in salvaguardia | D9: Euro
C10: Costo medio della fornitura elettrica | D10: Euro/kWh
C11: Costo medio della fornitura elettrica per l'acquisto in regime di salvaguardia | D11: Euro/kWh
C12: Si esclude di avere acquistato energia elettrica in regime di salvaguardia per almeno 4 mesi | D12: SI/NO
B13: SERVIZIO ACQUEDOTTO
C14: Numero di comuni serviti (ComA) | D14: N
C15: Popolazione residente servita (PRA) | D15: N
C16: Volume di acqua fatturato (A20) | D16: m3
C17: Utenze totali (UtT) | D17: N
C18: Popolazione fluttuante (PFA) | D18: N
C19: Superficie (SUA) | D19: km2
C20: Lunghezza rete (L) | D20: km
B21: SERVIZIO FOGNATURA
C22: Numero di comuni serviti (ComF) | D22: N
C23: Popolazione residente servita (PRF) | D23: N
C24: Lunghezza rete fognaria (LL) | D24: km
C25: Popolazione fluttuante (PFF) | D25: N
C26: Superficie (SUF) | D26: km2
B27: SERVIZIO DEPURAZIONE
C28: Numero di comuni serviti (ComD) | D28: N
C29: Popolazione residente servita (PRD) | D29: N
C30: Popolazione fluttuante (PFD) | D30: N
C31: Superficie (SUD) | D31: km2
C32: Abitanti Equivalenti serviti da depurazione | D32: A.E.

Sheet Affidamento
B1: AFFIDAMENTO E CAUSE DI ESCLUSIONE | E1: ANNI 2026-2029
C2: Tipo affidamento | D2: - | P2: Sono presenti errori
C3: Data inizio affidamento | D3: gg/mm/aaaa | P3: =+COUNTA(E2:E8)<>7 -> TRUE
C4: Data fine affidamento | D4: gg/mm/aaaa
C5: Presenza Carta dei servizi | D5: SI/NO
C6: Assenza di un consumo minimo impegnato per la fatturazione delle utenze | D6: SI/NO
C7: Versamento delle componenti perequative a CSEA | D7: SI/NO
C8: Assenza di ritardi e carenze nell’implementazione dei piani (in precedenza comunicati all’Autorità) per il superamento della mancanza dei pertinenti prerequisiti | D8: SI/NO
B10: BANDO TIPO | E10: ANNO 2026 | F10: ANNO 2027 | G10: ANNO 2028 | H10: ANNO 2029
C11: CONDIZIONI DI AGGIUDICAZIONE EX OFFERTA ECONOMICA DI CUI ALLA DELIBERAZIONE 347/2025/R/IDR
C12: Limite di crescita del moltiplicatore tariffario (c. 9.2, lett. c, All. A Del. 347/2025/R/idr)
C13: Kcom (≤0%) | D13: %
C14: Xcom (≥0%) | D14: %
C15: Sharing dei margini altre attività idriche (c. 9.2, lett. b, All. A Del. 347/2025/R/idr)
C16: γb1com (≤0) | D16: N
C17: Efficienze nei costi operativi (c. 9.2, lett. a, All. A Del. 347/2025/R/idr)
C18: Detrazione Opexend | D18: Euro | E18: =+Input_per_calcoli_finali!K143 -> 0 | F18: =+Input_per_calcoli_finali!L143 -> 0 | G18: =+Input_per_calcoli_finali!M143 -> 0 | H18: =+Input_per_calcoli_finali!N143 -> 0
C19: Detrazione Opnew | D19: SI/NO
C20: Detrazione OpexQT | D20: SI/NO
C21: Detrazione OpexQC | D21: SI/NO
C22: Detrazione ERCtel | D22: SI/NO
C23: Procedura a evidenza pubblica con indisponibilità dei requisiti infomativi minimi (art. 11 All. A Del. 347/2025/R/idr)
C24: Detrazione COSconv | D24: Euro
C25: Detrazione Capexconv | D25: Euro

Sheet Dati_conto_economico
B1: DATI DI CONTO ECONOMICO | Q1: Sono presenti errori | R1: errore_voci_di_cui | S1: mancata_compilazione
C2: ANNO 2024 | I2: ANNO 2025 | Q2: =+OR(R2:S2) -> TRUE | R2: =+OR(P:P) -> FALSE | S2: =SUM(C:M)=0 -> TRUE
C3: Totale SII | D3: di cui ERC | E3: SII escluso ERC | F3: Altre attività idriche (c.d. Attività b) | G3: Attività diverse | I3: Totale SII | J3: di cui ERC | K3: SII escluso ERC | L3: Altre attività idriche (c.d. Attività b) | M3: Attività diverse | O3: n_riga | P3: errore compilazione
A4: VALORE DELLA PRODUZIONE (Euro) | C4: =C5+C7+C8+C9+C11 -> 0 | E4: =+C4-D4 -> 0 | F4: =F5+F7+F8+F9+F11 -> 0 | G4: =G5+G7+G8+G9+G11 -> 0 | I4: =I5+I7+I8+I9+I11 -> 0 | K4: =+I4-J4 -> 0 | L4: =L5+L7+L8+L9+L11 -> 0 | M4: =M5+M7+M8+M9+M11 -> 0 | O4: 0 | P4: =OR(C13>C4,F13>F4,G13>G4,I13>I4,L13>L4,M13>M4) -> FALSE
B5: A1) Ricavi delle vendite e delle prestazioni | E5: =+C5-D5 -> 0 | K5: =+I5-J5 -> 0 | O5: 1
B6: di cui da altre imprese del gruppo | E6: =+C6-D6 -> 0 | K6: =+I6-J6 -> 0 | O6: 2 | P6: =OR(C6>C5,F6>F5,G6>G5,I6>I5,L6>L5,M6>M5) -> FALSE
B7: A2) Variazioni rimanenze di prodotti in corso di lavorazione, semilavorati e finiti | E7: 0 | K7: 0 | O7: 3
B8: A3) Variazioni dei lavori in corso su ordinazione | E8: 0 | K8: 0 | O8: 4
B9: A4) Incrementi di immobilizzazioni per lavori interni (inclusi costi del personale) | E9: 0 | K9: 0 | O9: 5
B10: di cui per realizzazione allacciamenti idrici e fognari | E10: 0 | K10: 0 | O10: 6 | P10: =OR(C10>C9,F10>F9,G10>G9,I10>I9,L10>L9,M10>M9) -> FALSE
B11: A5) Altri ricavi e proventi | E11: 0 | K11: 0 | O11: 7
B12: di cui da altre imprese del gruppo | E12: 0 | K12: 0 | O12: 8 | P12: =OR(C12>C11,F12>F11,G12>G11,I12>I11,L12>L11,M12>M11) -> FALSE
A13: ULTERIORI SPECIFICAZIONI DEI RICAVI (Euro) | C13: =SUM(C14:C40) -> 0 | E13: =+C13-D13 -> 0 | F13: =SUM(F14:F40) -> 0 | G13: =SUM(G14:G40) -> 0 | I13: =SUM(I14:I40) -> 0 | K13: =+I13-J13 -> 0 | L13: =SUM(L14:L40) -> 0 | M13: =SUM(M14:M40) -> 0 | O13: 9
B14: Ricavi da articolazione tariffaria | E14: =+C14-D14 -> 0 | K14: =+I14-J14 -> 0 | O14: 10
B15: Vendita di acqua all’ingrosso | E15: 0 | K15: 0 | O15: 11
B16: Acquedotto (utenti non allacciati alla pubblica fognatura) | E16: 0 | K16: 0 | O16: 13
B17: Vendita di acqua non potabile o ad uso industriale | E17: 0 | K17: 0 | O17: 14
B18: Vendita di acqua forfetaria | E18: 0 | K18: 0 | O18: 15
B19: Fornitura bocche antincendio | E19: 0 | K19: 0 | O19: 16
B20: Fognatura e depurazione civile (approvvigionamento autonomo) | E20: 0 | K20: 0 | O20: 17
B21: Fognatura e depurazione di acque reflue industriali | E21: 0 | K21: 0 | O21: 18
B22: Contributi di allacciamento | E22: 0 | K22: 0 | O22: 19
B23: Prestazioni e servizi accessori | E23: 0 | K23: =+I23-J23 -> 0 | O23: 20
B24: Vendita di acqua con autobotte | E24: 0 | K24: =+I24-J24 -> 0 | O24: 22
B25: Trattamento percolati | O25: 23
B26: Trattamento bottini | O26: 24
B27: Gestione fognature bianche (v. comma 1.1 All. A. del 639/2023/R/idr) | E27: 0 | K27: 0 | O27: 25
B28: Pulizia e manutenzione caditoie stradali (v. comma 1.1 All. A. del 639/2023/R/idr) | E28: 0 | K28: 0 | O28: 26
B29: Installazione/gestione bocche antincendio | O29: 27
B30: Vendita di servizi a terzi | O30: 28
B31: Lavori conto terzi | E31: 0 | K31: 0 | O31: 29
B32: Spurgo pozzi neri | O32: 30
B33: Rilascio autorizzazioni allo scarico | O33: 31
B34: Lottizzazioni | O34: 32
B35: Riuso delle acque di depurazione | E35: =+C35-D35 -> 0 | O35: 33
B36: Case dell’acqua | O36: 34
B37: Proventi straordinari | E37: 0 | K37: 0 | O37: 35
B38: Contributi in conto esercizio | E38: 0 | K38: 0 | O38: 36
B39: Rimborsi e indennizzi | E39: 0 | K39: 0 | O39: 37
B40: Ricavi da altre attività (non inclusi nelle suddette voci) | O40: 38
O41: 39
A42: COSTI DELLA PRODUZIONE (Euro) | C42: =C43+C46++C59+C62+C65+SUM(C69:C72) -> 0 | D42: =D43+D46++D59+D62+D65+SUM(D69:D72) -> 0 | E42: =+C42-D42 -> 0 | F42: =F43+F46++F59+F62+F65+SUM(F69:F72) -> 0 | G42: =G43+G46++G59+G62+G65+SUM(G69:G72) -> 0 | I42: =I43+I46++I59+I62+I65+SUM(I69:I72) -> 0 | J42: =J43+J46++J59+J62+J65+SUM(J69:J72) -> 0 | K42: =+I42-J42 -> 0 | L42: =L43+L46++L59+L62+L65+SUM(L69:L72) -> 0 | M42: =M43+M46++M59+M62+M65+SUM(M69:M72) -> 0 | O42: 40 | P42: =+OR(C42<(C43+C46+C59+C62+C65+SUM(C69:C72)),D42<(D43+D46+D59+D62+D65+SUM(D69:D72)),F42<(F43+F46+F59+F62+F65+SUM(F69:F72)),G42<(G43+G46+G59+G62+G65+SUM(G69:G72)),I42<(I43+I46+I59+I62+I65+SUM(I69:I72)),J42<(J43+J46+J59+J62+J65+SUM(J69:J72)),L42<(L43+L46+L59+L62+L65+SUM(L69:L72)),M42<(M43+M46+M59+M62+M65+SUM(M69:M72))) -> FALSE
B43: B6) Per materie prime, sussidiarie, di consumo e merci | E43: =+C43-D43 -> 0 | K43: =+I43-J43 -> 0 | O43: 41
B44: di cui per materiali per manutenzioni | E44: =+C44-D44 -> 0 | K44: =+I44-J44 -> 0 | O44: 44
B45: di cui per reagenti | E45: =+C45-D45 -> 0 | K45: =+I45-J45 -> 0 | O45: 45
B46: B7) Per servizi | C46: =+SUM(C47:C58) -> 0 | D46: =+SUM(D47:D58) -> 0 | E46: =+C46-D46 -> 0 | F46: =+SUM(F47:F58) -> 0 | G46: =+SUM(G47:G58) -> 0 | I46: =+SUM(I47:I58) -> 0 | J46: =+SUM(J47:J58) -> 0 | K46: =+I46-J46 -> 0 | L46: =+SUM(L47:L58) -> 0 | M46: =+SUM(M47:M58) -> 0 | O46: 46
B47: energia elettrica da altre imprese del gruppo | E47: =+C47-D47 -> 0 | K47: =+I47-J47 -> 0 | O47: 47
B48: energia elettrica da altre imprese | E48: 0 | K48: 0 | O48: 48
B49: ricerca perdite (da terzi) | E49: 0 | K49: 0 | O49: 49
B50: ricerca perdite (da altre imprese del gruppo) | E50: 0 | K50: 0 | O50: 50
B51: smaltimento rifiuti (da terzi) | E51: 0 | K51: 0 | O51: 51
B52: smaltimento rifiuti (da altre imprese del gruppo) | E52: 0 | K52: 0 | O52: 52
B53: trasporto e smaltimento fanghi (da terzi) | E53: 0 | K53: 0 | O53: 53
B54: trasporto e smaltimento fanghi (da altre imprese del gruppo) | E54: 0 | K54: 0 | O54: 54
B55: manutenzioni ordinarie (da terzi) | E55: 0 | K55: 0 | O55: 55
B56: manutenzioni ordinarie (da altre imprese del gruppo) | E56: 0 | K56: 0 | O56: 56
B57: altri servizi da altre imprese del gruppo | E57: 0 | K57: 0 | O57: 57
B58: altri servizi da altre imprese | E58: 0 | K58: 0 | O58: 58
B59: B8) Per godimento beni di terzi | E59: 0 | K59: =+I59-J59 -> 0 | O59: 59 | P59: =OR(C59<SUM(C60:C61),D59<SUM(D60:D61),F59<SUM(F60:F61),G59<SUM(G60:G61),I59<SUM(I60:I61),J59<SUM(J60:J61),L59<SUM(L60:L61),M59<SUM(M60:M61)) -> FALSE
B60: di cui per uso impianti di altre imprese del gruppo | E60: 0 | K60: 0
B61: di cui altre spese verso altre imprese del gruppo | E61: 0 | K61: 0
B62: B9) Per il personale | E62: 0 | K62: 0 | O62: 74 | P62: =+OR(C62<(C63+C64),D62<(D63+D64),F62<(F63+F64),G62<(G63+G64),I62<(I63+I64),J62<(J63+J64),L62<(L63+L64),M62<(M63+M64)) -> FALSE
B63: di cui per salari e stipendi | E63: 0 | K63: 0 | O63: 75
B64: di cui per trattamento di fine rapporto (inclusa rivalutazione) | E64: 0 | K64: 0 | O64: 76
B65: B10) Ammortamenti e svalutazioni | E65: 0 | K65: 0 | O65: 77 | P65: =OR(C65<SUM(C66:C68),D65<SUM(D66:D68),F65<SUM(F66:F68),G65<SUM(G66:G68),I65<SUM(I66:I68),J65<SUM(J66:J68),L65<SUM(L66:L68),M65<SUM(M66:M68)) -> FALSE
B66: di cui per altre svalutazioni delle immobilizzazioni | E66: 0 | K66: 0 | O66: 78
B67: di cui per svalutazione dei crediti compresi nell'attivo circolante e delle disponibilità liquide | E67: 0 | K67: 0 | O67: 79
B68: di cui per Immobilizzazioni immateriali: avviamenti, capitalizzazione concessione, etc. | E68: 0 | K68: 0 | O68: 80
B69: B11) Variazione delle rimanenze di materie prime, sussidiarie, di consumo e merci | E69: 0 | K69: 0 | O69: 81
B70: B12) Accantonamenti per rischi | E70: 0 | K70: 0 | O70: 82
B71: B13) Altri accantonamenti | E71: 0 | K71: 0 | O71: 83
B72: B14) Oneri diversi di gestione | E72: 0 | K72: 0 | O72: 84
A73: ULTERIORI SPECIFICAZIONI DEI COSTI (Euro) | C73: =SUM(C74:C92)+C93+C97-C81 -> 0 | D73: =SUM(D74:D92)+D93+D97-D81 -> 0 | E73: 0 | F73: =SUM(F74:F92)+F93+F97-F81 -> 0 | G73: 0 | I73: =SUM(I74:I92)+I93+I97-I81 -> 0 | J73: =SUM(J74:J92)+J93+J97-J81 -> 0 | K73: 0 | L73: =SUM(L74:L92)+L93+L97-L81 -> 0 | M73: 0 | O73: 85
B74: Accantonamenti e rettifiche in eccesso rispetto all'applicazione di norme tributarie | E74: 0 | K74: 0 | O74: 86
B75: Rettifiche di valori di attività finanziarie | E75: 0 | K75: 0 | O75: 87
B76: Costi connessi all'erogazione di liberalità | E76: 0 | K76: 0 | O76: 88
B77: Costi pubblicitari e di marketing (incluse le imposte connesse) | E77: 0 | K77: 0 | O77: 89
B78: Oneri per sanzioni, penalità, risarcimenti automatici e simili | E78: 0 | K78: 0 | O78: 90
B79: Oneri straordinari | E79: 0 | K79: 0 | O79: 91
B80: Spese processuali | E80: 0 | K80: 0 | O80: 115
B81: di cui spese processuali in cui la parte è risultata soccombente | E81: 0 | K81: 0 | O81: 92
B82: Contributi associativi | E82: 0 | K82: 0 | O82: 93
B83: Spese di viaggio e di rappresentanza | E83: 0 | K83: 0 | O83: 94
B84: Spese di funzionamento Ente di governo dell'ambito | E84: 0 | K84: 0 | O84: 95
B85: Canoni di affitto immobili non industriali | E85: 0 | K85: 0 | O85: 96
B86: Costi di realizzazione degli allacciamenti idrici e fognari | E86: 0 | K86: 0 | O86: 97
B87: Gestione fognature bianche (v. comma 1.1 All. A. del 639/2023/R/idr) | E87: 0 | K87: 0 | O87: 98
B88: Pulizia e manutenzione caditoie stradali (v. comma 1.1 All. A. del 639/2023/R/idr) | E88: 0 | K88: 0 | O88: 99
B89: Perdite su crediti per la sola quota parte eccedente l'utilizzo del fondo | E89: 0 | K89: 0 | O89: 100
B90: Costi di strutturazione dei progetti di finanziamento (non capitalizzati) | E90: 0 | K90: 0 | O90: 101
B91: di cui della voce B7): lavorazioni eseguite da terzi di tipo labour intensive (ad esempio gestione call center) e consulenze | E91: 0 | K91: 0 | O91: 102 | P91: =OR(C91>C46,F91>F46,G91>G46,I91>I46,L91>L46,M91>M46) -> FALSE
B92: Trasporto e smaltimento fanghi non già inclusi nella voce B7) | E92: 0 | K92: 0 | O92: 103
B93: Uso infrastrutture di terzi | C93: =+SUM(C94:C96) -> 0 | D93: =+SUM(D94:D96) -> 0 | E93: 0 | F93: =+SUM(F94:F96) -> 0 | G93: =+SUM(G94:G96) -> 0 | I93: =+SUM(I94:I96) -> 0 | J93: =+SUM(J94:J96) -> 0 | K93: 0 | L93: =+SUM(L94:L96) -> 0 | M93: =+SUM(M94:M96) -> 0 | O93: 104
B94: rimborso mutui di comuni, aziende speciali, società patrimoniali | E94: 0 | K94: =+I94-J94 -> 0 | O94: 105
B95: altri corrispettivi a comuni, aziende speciali, società patrimoniali | E95: 0 | K95: =+I95-J95 -> 0 | O95: 106
B96: corrispettivi a gestori preesistenti, altri proprietari | E96: 0 | K96: =+I96-J96 -> 0 | O96: 107
B97: Oneri locali | C97: =+SUM(C98:C103) -> 0 | D97: =+SUM(D98:D103) -> 0 | E97: 0 | F97: =+SUM(F98:F103) -> 0 | G97: =+SUM(G98:G103) -> 0 | I97: =+SUM(I98:I103) -> 0 | J97: =+SUM(J98:J103) -> 0 | K97: =+I97-J97 -> 0 | L97: =+SUM(L98:L103) -> 0 | M97: =+SUM(M98:M103) -> 0 | O97: 108
B98: canoni di derivazione/sottensione idrica | E98: 0 | K98: =+I98-J98 -> 0 | O98: 109
B99: contributi per consorzi di bonifica | E99: 0 | K99: 0 | O99: 110
B100: contributi a comunità montane | E100: 0 | K100: 0 | O100: 111
B101: canoni per restituzione acque | E101: 0 | K101: 0 | O101: 112
B102: oneri per la gestione di aree di salvaguardia | E102: 0 | K102: 0 | O102: 113
B103: Altri oneri locali (Canone unico, IMU, TARI) | E103: 0 | K103: 0 | O103: 114
A107: ULTERIORI SPECIFICAZIONI DELLE ALTRE ATTIVITÀ IDRICHE (Euro) | D107: ANNO 2024 | J107: ANNO 2025
A109: Altre attività idriche relative ai seguenti obiettivi di sostenibilità energetica ed ambientale | D109: Ricavi | F109: Costi | J109: Ricavi | L109: Costi
B111: a) efficienza energetica nelle attività e nelle infrastrutture qualora non riconducibile al servizio idrico integrato
B112: b) riduzione dell’utilizzo della plastica mediante la promozione del consumo di acqua potabile anche tramite l’installazione di fontanelle
B113: c) recupero di energia - elettrica e termica - e di materie prime mediante impianti o specifici trattamenti integrati nelle infrastrutture idriche, nonché diffusione di energia da fonti rinnovabili per l’alimentazione degli impianti del servizio idrico integrato
O115: 115 | P115: =+OR(SUM(D111:D113)>F4,SUM(J111:J113)>L4,SUM(F111:F113)>F42,SUM(L111:L113)>L42) -> FALSE

Sheet Altri_dati_eco_fin
B1: FONTI DI FINANZIAMENTO
E2: ANNO 2024 | F2: ANNO 2025 | O2: errore nei dati per morosità | P2: errore nei dati in valore assoluto | Q2: errore nelle voci "di cui" | R2: Sono presenti errori
C3: Mezzi Propri | D3: Euro | O3: =+OR(E31*F31=0,E31="",F31="") -> TRUE | P3: =+OR(E17:F19="",E24:F26="",E27:F27="",E31:F32="",E49:E50="",F49:F50="",E52:F54="",E55:F56="",E76:F84="",E67="",E86:F86="") -> TRUE | Q3: =OR(E6>E5,F6>F5,E12>E11,F12>F11) -> FALSE | R3: =+OR(O3:Q3) -> TRUE
B4: MEZZI DI TERZI
C5: Finanziamenti a medio-lungo termine | D5: Euro
C6: di cui verso società controllate e collegate e verso controllanti | D6: Euro
C7: Tasso medio finanziamenti a medio-lungo termine | D7: %
C8: Prestiti obbligazionari | D8: Euro
C9: Tasso medio Prestiti obbligazionari | D9: %
C10: Altre passitivtà consolidate | D10: Euro
C11: Finanziamenti a breve termine | D11: Euro
C12: di cui verso società controllate e collegate e verso controllanti | D12: Euro
C13: Tasso medio Finanziamenti a breve termine | D13: %
C14: Altre passività correnti | D14: Euro
C15: Debiti tributari | D15: Euro
B16: TFR, FONDO RISCHI E ALTRI
C17: TFR | D17: Euro
C18: Fondo di quiescenza | D18: Euro
C19: Fondo rischi e oneri | D19: Euro
C20: Fondo rischi su crediti | D20: Euro
C21: Fondo svalutazione crediti | D21: Euro
C22: Valore Deposito cauzionale | D22: Euro
C23: Fondo imposte e tasse (anche differite) | D23: Euro
C24: Fondo sentenza Corte Costituzionale 335/2008 | D24: Euro
C25: Fondo per il ripristino di beni di terzi | D25: Euro
C26: Fondo vincolato al finanziamento della spesa per investimenti comma 10.1 lett. f) MTI-4 | D26: Euro
C27: Fondo per il finanziamento di tariffe sociali o di solidarietà | D27: Euro
B29: ALTRI DATI ECONOMICO FINANZIARI
B30: MOROSITA' | E30: ANNO 2024 | F30: ANNO 2025
C31: Unpaid Ratio (UR) a 24 mesi effettivamente rilevato | D31: %
C32: Rimborsi dagli utenti finali relativi alla gestione della morosità | D32: Euro
C33: Percentuale al fatturato per COdil (comma 28.4 MTI-3) | D33: %
C34: Comor - comma 30.2-bis MTI-4 (ai fini del calcolo delle componenti 2026-2029) | D34: SI/NO
B35: IMPOSTE
C36: IRES | D36: Euro
C37: IRAP | D37: Euro
C38: Imposte differite | D38: Euro
C39: Imposte anticipate | D39: Euro
C40: Aliquota media di tassazione, IRAP inclusa | D40: %
B41: ALTRI IMPORTI IN BOLLETTA
C42: Ui1 (importo fatturato componente Ui1) | D42: Euro
C43: Ui2 (importo fatturato componente Ui2) | D43: Euro
C44: Ui3 (importo fatturato componente Ui3) | D44: Euro
C45: Ui4 (importo fatturato componente Ui4) | D45: Euro
C46: Componente [(1+γOPi,j)*max{0;ΔOpex}] (importo fatturato) | D46: Euro
C47: Altre componenti perequative | D47: Euro
B48: ALTRI DATI PER CALCOLO RC
C49: Contributo versato ad ARERA | D49: Euro
C50: Costi per variazioni sistemiche o per eventi eccezionali | D50: Euro
C51: di cui: per eventi eccezionali, energia elettrica | D51: Euro
C52: di cui: per eventi eccezionali, altro | D52: Euro
C53: Costo delle forniture all’ingrosso transfrontaliere | D53: Euro
C54: Rimborsi effettuati ai sensi sentenza CC 335/2008 ed eccedenti la quota riconosciuta in tariffa | D54: Euro
C55: FONInoninv - riportare il dato in eccedenza rispetto alle componenti DCUITFoNI e AMMFoNI - comma 28.1 lett. e) MTI-4 | D55: Euro
C56: FoNIspesa ai sensi del comma 36.3 MTI-4 | D56: Euro
C57: Scostamento in ordine ai volumi fatturati comma 28.3 lett. a) MTI-4 | D57: Euro
C58: Costi operativi e conguagli comma 28.3 lett. b-bis) MTI-4 | D58: Euro
B59: ALTRI DATI PER CALCOLO RC | E59: per tariffe 2026 | F59: per tariffe 2027
C60: RCARC - art. 29 lett a) MTI-4 | D60: Euro
C61: RCARC - art. 29 lett b) MTI-4 | D61: Euro
C62: RCARC - art. 29 lett c) MTI-4 | D62: Euro
C63: Penalità RQSII - Delibera 277/2025/R/IDR (decurtazione VRG) | D63: Euro
C64: Penalità RQTI - Delibera 225/2025/R/IDR (decurtazione VRG) | D64: Euro
B65: ALTRI DATI PER IL CALCOLO DELLA COMPONENTE CAPEX | E65: ANNO 2024 | F65: ANNO 2025 | G65: ANNO 2026 | H65: ANNO 2027 | I65: ANNO 2028 | J65: ANNO 2029
C66: DCUIT capex (dettagliare nella relazione le motivazioni della collocazione tra i capex) | D66: Euro
C67: Ammortamento finanziario ammissibile ai sensi del comma 11.8 lettera a) MTI-4 | D67: SI/NO
B68: ALTRI DATI PER IL CALCOLO DELLE COMPONENTI OPEX E RC | E68: ANNO 2024 | F68: ANNO 2025 | G68: ANNO 2026 | H68: ANNO 2027 | I68: ANNO 2028 | J68: ANNO 2029
C69: Opex2025end,new - comma 18.1 lett.b) MTI-4 (al lordo degli ERC) | D69: Euro
C70: Opnew- comma 19.2 MTI-4 (al lordo degli ERC) | D70: Euro | G70: =Input_per_calcoli_finali!K30 -> 0 | H70: =Input_per_calcoli_finali!L30 -> 0 | I70: =Input_per_calcoli_finali!M30 -> 0 | J70: =Input_per_calcoli_finali!N30 -> 0
C71: Opnew esplicitati come ERC, comma 27.1 MTI-4 | D71: Euro
C72: OpexQT (al lordo degli ERC) - adeguamenti agli standard di qualità tecnica di cui alla deliberazione 917/2017/R/IDR (commi 19.8 lett. a) e 28.1 MTI-4) | D72: Euro | E72: =+SUMIFS('PdI-crono_ges'!O:O,'PdI-crono_ges'!$K:$K,"lettera a)") -> 0 | F72: =+SUMIFS('PdI-crono_ges'!S:S,'PdI-crono_ges'!$K:$K,"lettera a)") -> 0 | G72: =+SUMIFS('PdI-crono_ges'!V:V,'PdI-crono_ges'!$K:$K,"lettera a)") -> 0 | H72: =+SUMIFS('PdI-crono_ges'!W:W,'PdI-crono_ges'!$K:$K,"lettera a)") -> 0 | I72: =+SUMIFS('PdI-crono_ges'!X:X,'PdI-crono_ges'!$K:$K,"lettera a)") -> 0 | J72: =+SUMIFS('PdI-crono_ges'!Y:Y,'PdI-crono_ges'!$K:$K,"lettera a)") -> 0
C73: OpexQT (al lordo degli ERC) - adeguamenti agli standard di qualità tecnica di cui alla deliberazione 637/2023/R/IDR (commi 19.8 lett. b) e 28.1 MTI-4) | D73: Euro | E73: =+SUMIFS('PdI-crono_ges'!O:O,'PdI-crono_ges'!$K:$K,"lettera b)") -> 0 | F73: =+SUMIFS('PdI-crono_ges'!S:S,'PdI-crono_ges'!$K:$K,"lettera b)") -> 0 | G73: =+SUMIFS('PdI-crono_ges'!V:V,'PdI-crono_ges'!$K:$K,"lettera b)") -> 0 | H73: =+SUMIFS('PdI-crono_ges'!W:W,'PdI-crono_ges'!$K:$K,"lettera b)") -> 0 | I73: =+SUMIFS('PdI-crono_ges'!X:X,'PdI-crono_ges'!$K:$K,"lettera b)") -> 0 | J73: =+SUMIFS('PdI-crono_ges'!Y:Y,'PdI-crono_ges'!$K:$K,"lettera b)") -> 0
C74: OpexQT (al lordo degli ERC) (commi 19.8 lett. c) - 477/2023 e 28.1 MTI-4) | D74: Euro | E74: =+SUMIFS('PdI-crono_ges'!O:O,'PdI-crono_ges'!$K:$K,"lettera c) 477/2023/R/IDR") -> 0 | F74: =+SUMIFS('PdI-crono_ges'!S:S,'PdI-crono_ges'!$K:$K,"lettera c) 477/2023/R/IDR") -> 0 | G74: =+SUMIFS('PdI-crono_ges'!V:V,'PdI-crono_ges'!$K:$K,"lettera c) 477/2023/R/IDR") -> 0 | H74: =+SUMIFS('PdI-crono_ges'!W:W,'PdI-crono_ges'!$K:$K,"lettera c) 477/2023/R/IDR") -> 0 | I74: =+SUMIFS('PdI-crono_ges'!X:X,'PdI-crono_ges'!$K:$K,"lettera c) 477/2023/R/IDR") -> 0 | J74: =+SUMIFS('PdI-crono_ges'!Y:Y,'PdI-crono_ges'!$K:$K,"lettera c) 477/2023/R/IDR") -> 0
C75: OpexQT (al lordo degli ERC) (commi 19.8 lett. c) - 225/2025 e 28.1 MTI-4) | D75: Euro | G75: =+SUMIFS('PdI-crono_ges'!V:V,'PdI-crono_ges'!$K:$K,"lettera c) 225/2025/R/IDR") -> 0 | H75: =+SUMIFS('PdI-crono_ges'!W:W,'PdI-crono_ges'!$K:$K,"lettera c) 225/2025/R/IDR") -> 0 | I75: =+SUMIFS('PdI-crono_ges'!X:X,'PdI-crono_ges'!$K:$K,"lettera c) 225/2025/R/IDR") -> 0 | J75: =+SUMIFS('PdI-crono_ges'!Y:Y,'PdI-crono_ges'!$K:$K,"lettera c) 225/2025/R/IDR") -> 0
C76: OpexaQC - per adeguamenti agli standard di qualità contrattuale di cui alla deliberazione 655/2015/R/IDR (commi 19.9 lett. a) e 28.1 MTI-4) | D76: Euro
C77: OpexaQC - per l'adeguamento agli obiettivi di cui alla deliberazione 547/2019/R/IDR (commi 19.9 lett. a) e 28.1 MTI-4) | D77: Euro
C78: Opexqc (commi 19.9 lettera b) - 476/2023/R/IDR e 28.1 MTI-4) | D78: Euro
C79: Opexqc (commi 19.9 lettera b) - 277/2025/R/IDR e 28.1 MTI-4) | D79: Euro
C80: OpexaQC - nuovi obiettivi di qualità contrattuale di cui alla deliberazione 579/2025/R/IDR (comma 19.9 lett. a-bis) | D80: Euro
C81: Opsocial per bonus integrativo (commi 19.10 lett a) e 28.1 MTI-4) | D81: Euro
C82: Opsocial per oneri bonus utenze indirette (commi 19.10 lett a-bis)) | D82: Euro
C83: Opsocial ex comma 7.3 lett. a), REMSII (commi 19.10 lettera b) e 28.1 MTI-4) | D83: Euro
C84: Opmis (commi 19.11 e 28.1 MTI-4) | D84: Euro
C85: Opwsexp,a - comma 22.2 MTI-4 | D85: Euro | E85: =+Dati_Anni_precedenti!E45 -> 0 | F85: =+Dati_Anni_precedenti!F45 -> 0
C86: COΔfanghi (rispetto condizionalità comma 23.2 MTI-4) | D86: SI/NO
B87: ULTERIORI SPECIFICAZIONI PER I CALCOLI TARIFFARI | G87: ANNO 2026 | H87: ANNO 2027 | I87: ANNO 2028 | J87: ANNO 2029
C88: Anticipazione trend di diminuzione costo energia (in riduzione del costo massimo ammissibile di energia elettrica) | D88: Euro
C89: Contributi in c/e (eventuale correzione double counting) | D89: Euro
C90: ERCopex da piano tariffario | D90: Euro | G90: =+ERC!E220 -> 0 | H90: =+ERC!F220 -> 0 | I90: =+ERC!G220 -> 0 | J90: =+ERC!H220 -> 0
C91: Resopex - comma 27.2 MTI-4 | D91: Euro
B93: ALTRI DATI RELATIVI ALLA GESTIONE
B94: CONSISTENZA DEL PERSONALE | E94: ANNO 2024 | F94: ANNO 2025
C95: Dirigenti | D95: N.
C96: Quadri | D96: N.
C97: Impiegati | D97: N.
C98: Operai | D98: N.
C99: Collaboratori | D99: N.
B100: COSTI DEL PERSONALE | E100: ANNO 2024 | F100: ANNO 2025
C101: Dirigenti | D101: Euro
C102: Quadri | D102: Euro
C103: Impiegati | D103: Euro
C104: Operai | D104: Euro
C105: Collaboratori | D105: Euro
B106: SPESA IN RICERCA E SVILUPPO | E106: ANNO 2024 | F106: ANNO 2025
C107: Totale spesa in ricerca e sviluppo | D107: Euro

Sheet Finanziamenti
B1: Finanziamenti (capitale di terzi)
A7: n_riga | B7: Importo finanziato (€) | C7: Soggetto finanziatore | D7: Data di sottoscrizione del finanziamento (gg/mm/aaaa) | E7: Data di scadenza del finanziamento (gg/mm/aaaa) | F7: Garanzie richieste | G7: Anno | H7: Quota capitale | I7: Tasso medio d'interesse (%) | J7: Quota interessi (€) | K7: Debito residuo (€)
A8: =+ROW()-7 -> 1

Sheet Soggetti_proprietari
B1: ELENCO SOGGETTI PROPRIETARI
C3: Elenco proprietari infrastrutture per calcolo Mutui/Altri corrispettivi ed eventuale Stratificazione di terzi | O3: Sono presenti Errori
O4: =+OR(O5:Q5) -> FALSE
O5: =OR(INDEX(Elenco_Proprietari,0,15)=TRUE) -> FALSE | P5: =OR(INDEX(Elenco_Proprietari,0,16)) -> FALSE | Q5: =OR(INDEX(Elenco_Proprietari,0,17)) -> FALSE
A7: N_riga | B7: Key_Prop | C7: Soggetto Proprietario | D7: Tipologia di proprietario | E7: P. IVA Proprietario | F7: Codice Istat Comune proprietario | G7: Proprietario ai fini dei corrispettivi AC/MT | H7: Proprietario non più presente ai fini della RAB di terzi | I7: Fusione | J7: Numero Cespiti | K7: Key_Prop_bis | L7: New_Key_prop | M7: Proprietario risultante dalla fusione | N7: per costruzione | O7: Errore Proprietari duplicati | P7: Errore PIVA o CodiceISTAT | Q7: Errore tipologia
A8: =+ROW(A8)-7 -> 1 | B8: =idato & "_" & idgestore & "-" & IF($D8="Comune",$F8,"") & "-" &IF($D8="Comune","",$E8) -> _-- | I8: NO | K8: =B8 -> _-- | L8: =IF(I8="SI",VLOOKUP(M8,C:K,9,0),K8) -> _-- | M8: Nuovo comune | N8: =+IF(H8="SI",L8,0) -> 0 | O8: =IF(COUNTIF(B:B,B8)>1,IF(COUNTA(C8:H8)=0,FALSE,TRUE),FALSE) -> FALSE | P8: =IF(COUNTA(E8:F8)<1,IF(COUNTA(C8:H8)=0,FALSE,TRUE),FALSE) -> FALSE | Q8: =IF(COUNTA(D8)<1,IF(COUNTA(C8:H8)=0,FALSE,TRUE),FALSE) -> FALSE

Sheet Corrispettivi_proprietari
B1: COSTI ASSOCIATI AI SOGGETTI PROPRIETARI
C3: Imputare per ciascun soggetto proprietario il valore dei Mutui MT e altri corrispettivi AC
AK4: Sono presenti errori
AK5: =OR(INDEX(Corrispettivi_Proprietari,0,COLUMN($AK$8)-COLUMN($A$8)+1)) -> FALSE
G6: Rimborso della rata dei mutui (MT) | N6: Altri corrispettivi (AC) | W6: MT - controllo Anno deliberazione e Tipologia Proprietario | AD6: AC - controllo Anno deliberazione e Tipologia Proprietario
A7: N_riga | B7: Key_Prop | C7: Soggetto Proprietario | D7: Tipologia di proprietario | E7: P. IVA Proprietario | F7: Codice Istat Comune proprietario | G7: Anno di deliberazione | H7: previsto 2024 (€) | I7: previsto 2025 (€) | J7: previsto 2026 (€) | K7: previsto 2027 (€) | L7: previsto 2028 (€) | M7: previsto 2029 (€) | N7: Anno di deliberazione | O7: Canoni connessi alla stipula di ulteriori contratti di finanziamento (tipo contratti di locazione finanziaria di opere di pubblica utilità) | P7: previsto 2024 (€) | Q7: previsto 2025 (€) | R7: previsto 2026 (€) | S7: previsto 2027 (€) | T7: previsto 2028 (€) | U7: previsto 2029 (€) | W7: MT 2024 | X7: MT 2025 | Y7: MT 2026 | Z7: MT 2027 | AA7: MT 2028 | AB7: MT 2029 | AD7: AC 2024 | AE7: AC 2025 | AF7: AC 2026 | AG7: AC 2027 | AH7: AC 2028 | AI7: AC 2029 | AK7: Errore duplicazione soggetto
A8: =+ROW(A8)-7 -> 1 | B8: =IFERROR(IF(VLOOKUP(C8,Soggetti_proprietari!C:K,9,0)=0,"",VLOOKUP(C8,Soggetti_proprietari!C:K,9,0)),"") ->  | D8: =IFERROR(IF(VLOOKUP(C8,Soggetti_proprietari!C:K,2,0)=0,"",VLOOKUP(C8,Soggetti_proprietari!C:K,2,0)),"") ->  | E8: =IFERROR(IF(VLOOKUP(C8,Soggetti_proprietari!C:K,3,0)=0,"",VLOOKUP(C8,Soggetti_proprietari!C:K,3,0)),"") ->  | F8: =IFERROR(IF(VLOOKUP(C8,Soggetti_proprietari!C:K,4,0)=0,"",VLOOKUP(C8,Soggetti_proprietari!C:K,4,0)),"") ->  | Y8: =+IF(AND($G8<=2023,$G8<>"",$D8<>"Altra società privata",$B8<>""),J8,0) -> 0 | Z8: 0 | AA8: 0 | AB8: 0 | AF8: =+IF(AND($N8<=2006,$N8<>"",$D8<>"Altra società privata",$B8<>""),R8,IF($O8="SI",R8,0)) -> 0 | AG8: 0 | AH8: 0 | AI8: 0 | AK8: =IF(COUNTIF(B:B,B8)>1,IF(AND(G8="",J8="",K8="",N8="",R8="",S8="",C8=""),FALSE,TRUE),FALSE) -> FALSE

Sheet Soggetti_Scambio
B1: SCAMBI ALL'INGROSSO
Q2: Sono presenti errori
B3: per ciascun soggetto indicare almeno l'ID gestore oppure la Partita IVA | Q3: =+OR(INDEX(Soggetti_Elenco,0,13)) -> FALSE
B5: 1. Soggetti con cui si hanno scambi di Servizi all'ingrosso (Vendita e/o Acquisto)
B7: IDGestore | C7: Nome soggetto | D7: Partita Iva | H7: nome_soggetto | I7: id_gestore | J7: P.IVA | K7: errore idgestore | L7: errore P.IVA | M7: errore idgestore o Partita Iva
A8: =+ROW(A8)-7 -> 1 | H8: =+IFERROR(VLOOKUP(I8,TT_Gestori!A:C,3,FALSE),IFERROR(VLOOKUP(D8,TT_Gestori!B:C,2,FALSE),+C8)) -> 0 | I8: =IFERROR(VLOOKUP(B8,TT_Gestori!A:C,1,FALSE),IFERROR(VLOOKUP(D8,TT_Gestori!B:D,3,FALSE),B8)) -> 0 | J8: =IFERROR(VLOOKUP(D8,TT_Gestori!C:C,1,FALSE),IFERROR(VLOOKUP(I8,TT_Gestori!A:C,2,FALSE),D8)) -> 0 | K8: =+OR(I8="",I8=0) -> TRUE | L8: =+OR(J8="",J8=0) -> TRUE | M8: =+IF(AND(B8="",C8="",D8="",ROW(B8)=8),FALSE,IF(OR(H8="",H8=0,K8=TRUE,L8=TRUE),TRUE,FALSE)) -> FALSE

Sheet Vendita_Servizi_ingrosso
B1: SCAMBI ALL'INGROSSO
B3: 2. Ricavi da tariffe applicate nella Vendita all'ingrosso
F4: ANNO 2023 | L4: ANNO 2024 | R4: ANNO 2025 | Z4: J ANNO 2024 | AE4: J ANNO 2025
A5: N_riga | B5: Idgestore | C5: Soggetto a cui si vende | D5: ATO | E5: Servizio | F5: Volumi erogati / trattati (m3/anno) | G5: QV (Euro/m3) | H5: - | I5: Utenze (numero) | J5: QF (Euro/utente/anno) | K5: Importo (Euro/anno) | L5: Volumi erogati / trattati (m3/anno) | M5: QV (Euro/m3) | N5: - | O5: Utenze (numero) | P5: QF (Euro/utente/anno) | Q5: Importo (Euro/anno) | R5: Volumi erogati / trattati (m3/anno) | S5: QV (Euro/m3) | T5: - | U5: Utenze (numero) | V5: QF (Euro/utente/anno) | W5: Importo (Euro/anno) | X5: Le tariffe riportate per il 2024 includono l'applicazione del Teta? | Y5: Teta medio applicato nella fatturazione dell'anno 2024 | Z5: Teta approvato dal soggetto competente per l'anno 2024 | AA5: Teta approvato dall'Autorità per l'anno 2024 | AB5: delibera Autorità | AC5: Le tariffe riportate per il 2025 includono l'applicazione del Teta? | AD5: Teta medio applicato nella fatturazione dell'anno 2025 | AE5: Teta approvato dal soggetto competente per l'anno 2025 | AF5: Teta approvato dall'Autorità per l'anno 2025 | AG5: delibera Autorità | AI5: tar2023*vol2024 | AJ5: tar2023*vol2025 | AK5: tar2024*vol2024 | AL5: tar2025*vol2025
A6: =+ROW(A6)-5 -> 1 | K6: =+F6*G6+I6*J6 -> 0 | Q6: =+L6*M6+O6*P6 -> 0 | W6: =+U6*V6+R6*S6 -> 0 | AA6: =+Dati_Anni_precedenti!$E$5 -> 0 | AB6: =++Dati_Anni_precedenti!$G$4 -> 0 | AF6: =+Dati_Anni_precedenti!$F$5 -> 0 | AG6: =++Dati_Anni_precedenti!$G$4 -> 0 | AI6: =+O6*$J6+L6*$G6 -> 0 | AJ6: =+U6*$J6+R6*$G6 -> 0 | AK6: =+Q6 -> 0 | AL6: =+W6 -> 0

Sheet Acquisto_Servizi_ingrosso
B1: SCAMBI ALL'INGROSSO
B3: 3. Costi per acquisto all'ingrosso | G3: costi sostenuti di fornitura all'ingrosso, criterio di competenza | R3: costi a seguito dell'applicazione del J al grossista
G4: COeffettivo ai fini del COws comma 22.1 MTI-4 | M4: informazione sui J | R4: Coeffettivo ai fini del RCws comma 28.1 MTI-4
A5: N_riga | B5: Idgestore | C5: Soggetto da cui si acquista | D5: ATO | E5: Servizio | F5: Anno | G5: Volumi erogati / trattati (m3/anno) | H5: QV (Euro/m3) | I5: - | J5: Utenze (numero) | K5: QF (Euro/utente/anno) | L5: Importo (Euro/anno) | M5: Le tariffe applicate per la fatturazione includono l'applicazione del Teta? | N5: Teta medio applicato dal grossista nella fatturazione dell'anno indicato | O5: Teta approvato dal soggetto competente | P5: Teta approvato dall'Autorità | Q5: delibera Autorità | R5: Volumi erogati / trattati (m3/anno) | S5: QV (Euro/m3) | T5: - | U5: Utenze (numero) | V5: QF (Euro/utente/anno) | W5: Importo (Euro/anno) | Z5: check per RCws
A6: =+ROW(A6)-5 -> 1 | B6: =+IFERROR(VLOOKUP(C6,soggetto_j,2,FALSE),"") -> 0 | L6: =+G6*H6+J6*K6 -> 0 | W6: =+R6*S6+U6*V6 -> 0 | Z6: Verificare che i soggetti j ai fini del calcolo degli RC dell'anno a corrispondano a quelli dei Cows dell'anno a-2

Sheet Nuovi_Investimenti
B1: IMMOBILIZZAZIONI DEL GESTORE | G1: Tutti i valori si intendono a moneta dell'anno del cespite
A2: 1. LAVORI IN CORSO | M2: errori_compilazione | N2: errore_PdI | O2: Sono_presenti_errori
D3: 2024 | E3: 2025 | F3: 2026 | G3: 2027 | M3: =+OR(INDEX(Nuovi_Investimenti,0,29)) -> TRUE | N3: =+(D10+E10-'PdI-riepilogo'!F4-'PdI-riepilogo'!G4)<>0 -> FALSE | O3: =++OR(M3:N3) -> TRUE
C4: Saldo LICord (al netto dei saldi che risultino invariati da più di 4 anni) | D4: ='PdI-riepilogo'!E146 -> 0 | E4: ='PdI-riepilogo'!F146 -> 0 | F4: ='PdI-riepilogo'!C146 -> 0 | G4: ='PdI-riepilogo'!D146 -> 0
C5: Saldo LICpos (al netto dei saldi che risultino invariati da più di 5 anni)
A7: 2. NUOVI INVESTIMENTI (2022-2023)
D8: 2024 | E8: 2025 | F8: 2026 | G8: 2027
C9: FoNI da riportare a CFP | D9: =Altri_dati_eco_fin!E56 -> 0 | E9: =Altri_dati_eco_fin!F56 -> 0
C10: Totale nuovi investimenti | D10: =+SUMIF($T:$T,D$8,$U:$U) -> 0 | E10: =+SUMIF($T:$T,E$8,$U:$U) -> 0 | F10: =PdI_consolidamento!X4 -> 0 | G10: =PdI_consolidamento!Y4 -> 0 | K10: Valore | L10: Spazio per eventuale compilazione manuale del valore di incidenza
C11: incidenza ENV (%) su RAB MTI-4 | D11: =+IF($K11<>"",$K11,"") ->  | L11: incidenza ENV (%)
C12: incidenza RES (%) su RAB MTI-4 | D12: =+IF($K12<>"",$K12,"") ->  | L12: incidenza RES (%)
C13: incidenza FoNI (%) | D13: =IFERROR(D9/D10,0) -> 0 | E13: =IFERROR(E9/E10,0) -> 0
A15: N_riga | B15: Categoria del cespite | C15: Categoria di Immobilizzazione | D15: Attività | E15: Tipologia di costo sotteso ("Env", "Res", "Non ERC") | F15: Anno cespite | G15: IP (Euro) | H15: CFP (Euro) | I15: CFP da FoNI | J15: CFP Totale | K15: IDATO | L15: IDGestore | M15: Gestore_Proprietario | N15: N_prop | O15: Fonte | P15: ID_Categoria_Cespite | Q15: CategoriaCespite | R15: ID_Immobilizzazione | S15: IMMOBILIZZAZIONE | T15: AnnoCespite | U15: IP | V15: FAIP | W15: CFP | X15: FACP | Y15: - | Z15: ERC | AA15: Attività | AB15: foglio di origine | AC15: controllo_errori
A16: =+ROW(A16)-15 -> 1 | D16: =+IFERROR(VLOOKUP(B16,TT_Tabelle_Riferimento!$G$127:$I$164,3,FALSE),"") ->  | I16: =+IFERROR(HLOOKUP(F16,$D$8:$E$13,6,FALSE)*G16,0) -> 0 | J16: =+I16+H16 -> 0 | K16: =idato -> 0 | L16: =idgestore -> 0 | M16: Gestore | N16: 0 | O16: IP | P16: =+IFERROR(VLOOKUP(Q16,TT_Tabelle_Riferimento!$G$127:$K$164,5,0),0) -> 0 | Q16: =+IFERROR(VLOOKUP(B16,TT_Tabelle_Riferimento!$G$127:$K$164,1,0),0) -> 0 | R16: =+IFERROR(VLOOKUP(S16,cat_imm_new,2,0),0) -> 0 | S16: =+IFERROR(VLOOKUP(C16,cat_imm_new,1,0),0) -> 0 | T16: =F16 -> 0 | U16: 0 | V16: 0 | W16: =J16 -> 0 | X16: 0 | Z16: =+IF(OR(E16="Res",E16="Env",E16="Non ERC"),E16,"") ->  | AA16: =+IF(OR(D16="Acquedotto",D16="Fognatura",D16="Depurazione",D16="Comune"),D16,"") ->  | AB16: Nuovi_Investimenti | AC16: =+IF(OR(K16:L16=0,P16=0,R16=0),TRUE,FALSE) -> TRUE

Sheet Dismissioni
B1: IMMOBILIZZAZIONI DEL GESTORE | G1: Tutti i valori si intendono a moneta dell'anno del cespite
A2: 3. DISMISSIONI
M3: Sono presenti errori
M4: =+OR(INDEX(Dismissioni,0,32)) -> FALSE
A7: N_riga | B7: Categoria del cespite | C7: Categoria di Immobilizzazione | D7: Attività | E7: Tipologia di costo sotteso ("Env", "Res", "Non ERC") | F7: Anno dismissione | G7: Anno cespite | H7: IP (Euro) | I7: FA (Euro) | J7: CFP (Euro) | K7: FA cfp (Euro) | M7: IDATO | N7: IDGESTORE | O7: Gestore_Proprietario | P7: N_prop | Q7: Fonte | R7: ID_Categoria_Cespite | S7: CategoriaCespite | T7: ID_Immobilizzazione | U7: IMMOBILIZZAZIONE | V7: AnnoDismissione | W7: IP | X7: FAIP | Y7: CFP | Z7: FACFP | AA7: - | AB7: ERC | AC7: Attività | AD7: foglio di origine | AE7: AnnoCespite | AF7: controllo_errori
A8: =+ROW(A8)-8 -> 0 | D8: =+IFERROR(IF(G8>=2020,VLOOKUP(B8,TT_Tabelle_Riferimento!$G$127:$I$164,3,FALSE),""),"") ->  | M8: =idato -> 0 | N8: =idgestore -> 0 | O8: Gestore | P8: 0 | Q8: IP | R8: =+IFERROR(IF(G8<2020,VLOOKUP(B8,id_cat_ces,2,FALSE),VLOOKUP(B8,TT_Tabelle_Riferimento!$G$127:$K$164,5,FALSE)),0) -> 0 | S8: =+IFERROR(IF(G8<2020,VLOOKUP(B8,id_cat_ces,1,FALSE),VLOOKUP(B8,TT_Tabelle_Riferimento!$G$127:$K$164,1,FALSE)),0) -> 0 | T8: =+IFERROR(VLOOKUP(U8,cat_imm_new,2,0),0) -> 0 | U8: =+IFERROR(VLOOKUP(C8,cat_imm_new,1,0),0) -> 0 | V8: =+F8 -> 0 | W8: =+IFERROR(IP(ABS($H8),$R8,$T8,$G8,V8+2,ifl),0)*-1 -> 0 | X8: =+IFERROR(FondoAmm(ABS($H8),ABS($I8),$G8,$R8,$T8,V8+2,IF($G8>=2020,vite_regolatorie_new,vite_regolatorie),ifl),0)*-1 -> 0 | Y8: =+IFERROR(CFP_A(ABS($J8),$R8,$T8,$G8,V8+2,ifl),0)*-1 -> 0 | Z8: =+IFERROR(FACFP(ABS($J8),ABS($K8),$G8,$R8,$T8,V8+2,IF($G8>=2020,vite_regolatorie_new,vite_regolatorie),ifl),0)*-1 -> 0 | AA8: =+G8 -> 0 | AB8: =+IF(OR(E8="Res",E8="Env",E8="Non ERC"),E8,"") ->  | AC8: =+IF(OR(D8="Acquedotto",D8="Fognatura",D8="Depurazione",D8="Comune"),D8,"") ->  | AD8: Dismissioni | AE8: =+G8 -> 0 | AF8: =+IF(OR(M8:N8=0,R8=0,T8=0),IF(COUNTA(A:A)>3,TRUE,FALSE),FALSE) -> FALSE

Sheet Ammortamento_Finanziario
B1: IMMOBILIZZAZIONI DEL GESTORE | H1: Verificare puntualmente le informazioni eventualmente precompilate e integrare fornendo le informazioni solo con riferimento alle annualità e ai cespiti per cui si ricorre all'ammortamento finanziario
A2: 3. Vite utili finanziarie
F3: 2022 | G3: 2023 | H3: 2024 | I3: 2025 | J3: 2026 | K3: 2027 | N3: Sono presenti errori
E4: Ammortamento finanziario | F4: =+Dati_Anni_precedenti!E91 -> 0 | G4: =+Dati_Anni_precedenti!F91 -> 0 | H4: =+IF(OR(iAF="SI",schema="IV",schema="V",schema="VI"),"SI","NO") -> NO | I4: =+IF(OR(iAF="SI",schema="IV",schema="V",schema="VI"),"SI","NO") -> NO | J4: =+IF(OR(iAF="SI",schema="IV",schema="V",schema="VI"),"SI","NO") -> NO | K4: =+IF(OR(iAF="SI",schema="IV",schema="V",schema="VI"),"SI","NO") -> NO | N4: =+OR(INDEX(AmmortamentoFinanziario,0,14)) -> FALSE
A7: n_riga | B7: Anno cespite RIF | C7: Anno calcolo | D7: Categoria | E7: Vita utile finanziaria | F7: Per dismissioni | G7: AnnoCespiteRIF | H7: AnnoCespiteRIF-AnnoCalcolo | I7: ID Categoria cespite | J7: Vita utile regolatoria | K7: Ammortamento finanziario (SI/NO) | L7: Vita utile ai fini del calcolo | N7: Controllo ERRORI
A8: =+ROW(A8)-7 -> 1 | G8: =+IF(B8="","",IF(F8="SI",C8-2,IF(OR(B8="1967-2011",B8<2012),2011,B8))) ->  | H8: =+IF(B8="","",G8&"-"&C8&"-"&I8&IF(OR(B8="1967-2011",B8<2020,F8="SI"),"_old","_new")) ->  | I8: =+IFERROR(VLOOKUP(D8,IF(OR(IF(B8="1967-2011",2011,B8)<2020,F8="SI"),id_cat_ces,imm_nuovi_inv),IF(OR(IF(B8="1967-2011",2011,B8)<2020,F8="SI"),2,5),FALSE),"") ->  | J8: =+IFERROR(IF(RIGHT(H8,4)="_old",VLOOKUP(I8,TT_Tabelle_Riferimento!$H$31:$I$50,2,FALSE),VLOOKUP(I8,TT_Tabelle_Riferimento!$D$127:$H$164,5,FALSE)),"") ->  | K8: =+IFERROR(IF(VALUE(LEFT(H8,4))=2011,IF(iAF="","NO",iAF),IF(VLOOKUP(VALUE(LEFT(H8,4)),rif_metodo,3,FALSE)="","NO",VLOOKUP(VALUE(LEFT(H8,4)),rif_metodo,3,FALSE))),"") ->  | L8: =+IFERROR(IF(AND(K8="SI",E8>0),E8,J8),"") ->  | N8: =+IF(COUNTIFS(A:A,">0",G:G,G8,H:H,H8,I:I,I8)<=1,FALSE,TRUE) -> FALSE

Sheet Info_eventuali_aggregazioni
B1: AGGREGAZIONI
N2: Sono presenti errori
N3: =+OR(S:S) -> FALSE
B4: In caso di compilazione, fornire tutte le informazioni richieste
B5: 1. INFORMAZIONI SUI SOGGETTI AGGREGATI
B9: Nome del soggetto | C9: IDARERA della gestione aggregata | D9: Tipologia di gestione | E9: P. IVA | F9: Eventuale Codice Istat (per gestioni comunali) | G9: gestore esercente il servizio di Acquedotto | H9: gestore esercente il servizio di Fognatura | I9: gestore esercente il servizio di Depurazione | J9: popolazione (la maggiore tra i servizi forniti in origine) | K9: grado di completezza dei dati | L9: Anno tariffario a partire dal quale la gestione è integrata | N9: Nome soggetto | O9: idgestore | P9: popolazione | Q9: Regolazione tariffaria applicabile | S9: Sono presenti errori
A10: =+ROW(A10)-9 -> 1 | N10: =+IF(B10="","-",B10) -> - | O10: =+IF(C10="","-",C10) -> - | P10: =+IF(J10="","-",J10) -> - | Q10: =+IF(Input_per_calcoli_finali!$K$25="","",Input_per_calcoli_finali!$K$25) ->  | S10: =+AND((COUNTA(B10:E10)+COUNTA(G10:K10))<>9,COUNTA(B10:K10)>0) -> FALSE

Sheet Elenco_Bacini_Tariffari
B1: RICAVI TARIFFARI
G2: Sono presenti errori
G3: =+OR(F:F) -> TRUE
B5: 1 - Bacini Tariffari
B7: N_Riga | C7: Bacino Tariffario | D7: N_Riga bis | F7: Errore denominazione Ambito
B8: =+ROW(A8)-7 -> 1 | D8: =+B8 -> 1 | F8: =+C8="" -> TRUE

Sheet Bacini_Tariffari_Comuni
B1: RICAVI TARIFFARI
H2: Sono presenti errori
H3: =+OR(F:G) -> TRUE
B5: 2 - Comuni per ciascun Bacino Tariffario
A7: N_Riga | B7: Ambito tariffario | C7: Comune | D7: Codice ISTAT | F7: Errore denominazione Ambito | G7: Errore Codice ISTAT
A8: =+ROW(A8)-7 -> 1 | D8: =IFERROR(VLOOKUP(C8,TT_Comuni_ATO!X:Y,2,0),"") ->  | F8: =+IF(ISNA(VLOOKUP(B8,Elenco_Bacini_Tariffari!C:C,1,FALSE)),TRUE,FALSE) -> TRUE | G8: =+IF(AND(B8="",C8="",D8=""),FALSE,IF(COUNTA(B8:D8)<>3,TRUE,FALSE)) -> FALSE

Sheet Struttura_corrispettivi
B1: RICAVI TARIFFARI
AR2: Sono presenti errori | AS2: errori bacino_tariffario | AT2: errori_tipologia | AU2: errori_volumi
AR3: =+OR(AS3:AU3) -> TRUE | AS3: =+IFERROR(OR(AD:AD),FALSE) -> TRUE | AT3: =+IFERROR(OR(AE:AE),FALSE) -> TRUE | AU3: =+OR(AP:AP) -> FALSE
B5: 3 - Articolazione Tariffaria
I8: vigente al 31/12/2015 | K8: vigente al 31/12/2015
B9: Bacino tariffario | C9: Tipologia d'uso | D9: Sottotipologia | E9: 1° scaglione a tariffa agevolata | F9: Servizio idrico | G9: Min di scaglione (m3/2023) | H9: Max di scaglione (m3/2023) | I9: Min di scaglione (m3/2024) | J9: Max di scaglione (m3/2024) | K9: Min di scaglione (m3/2025) | L9: Max di scaglione (m3/2025) | M9: QV (Euro/m3) 2023 | N9: QV (Euro/m3) 2024 | O9: QV (Euro/m3) 2025 | P9: Volumi (m3/anno) 2023 | Q9: Volumi (m3/anno) 2024 | R9: Volumi (m3/anno) 2025 | S9: QF (Euro/utenti/anno) 2023 | T9: QF (Euro/utenti/anno) 2024 | U9: QF (Euro/utenti/anno) 2025 | V9: Utenze (numero/anno) 2023 | W9: Utenze (numero/anno) 2024 | X9: Utenze (numero/anno) 2025 | Y9: Utenze raggruppate/ condominiali (numero/anno) 2025 | Z9: Utenti indiretti sottesi alle utenze raggruppate/ condominiali (numero/anno) 2025 | AA9: Volumi delle utenze raggruppate/ condominiali (m3/anno) 2025 | AB9: UTENTI FINALI (numero/anno) 2025 | AC9: Consumo medio annuo (mc) | AD9: Bacino_Tariffario | AE9: Tipologia | AF9: Sottotipologia | AG9: Servizio | AH9: tar2023*vscal2024 | AI9: tar2023*vscal2025 | AJ9: tar2024*vscal2024 | AK9: tar2025*vscal2025 | AL9: num_scaglione | AM9: n_riga_blocco | AN9: blocco | AO9: agevolata | AP9: verifica di cui volumi delle utenze raggruppate/ condominiali
I10: Min_Scaglione | J10: Max_Scaglione | K10: Min_Scaglione | L10: Max_Scaglione | AD10: Ambito_Tariffario
F11: Acquedotto | G11: 0 | I11: 0 | K11: 0 | AB11: =+Y11+(X11-Z11) -> 0 | AD11: =+IFERROR(VLOOKUP(B11,Elenco_Bacini_Tariffari!C:C,1,FALSE),TRUE) -> TRUE | AE11: =+IFERROR(VLOOKUP(C11,ticsi_tipol,1,FALSE),TRUE) -> TRUE | AF11: =+D11 -> 0 | AG11: Acquedotto | AH11: =+IFERROR($M11*Q11+$S11*W11,0) -> 0 | AI11: =+IFERROR($M11*R11+$S11*X11,0) -> 0 | AJ11: =+IFERROR($N11*Q11+$T11*W11,0) -> 0 | AK11: =+IFERROR(O11*R11+U11*X11,0) -> 0 | AL11: 1 | AM11: 1 | AN11: =+IF(ROW()=11,1,(ROW()+1)/12) -> 1 | AO11: =+IF(E11="SI",1,IF(E11="NO",0,"")) ->  | AP11: =+IF(AA11>SUM(R11:R20),TRUE,FALSE) -> FALSE
G12: =+IF(H11=0,"",H11+1) ->  | I12: =+IF(J11=0,"",J11+1) ->  | K12: =+IF(L11=0,"",L11+1) ->  | AD12: =AD11 -> TRUE | AE12: =+AE11 -> TRUE | AF12: =+AF11 -> 0 | AG12: Acquedotto | AH12: =+IFERROR($M12*Q12,0) -> 0 | AI12: =+IFERROR($M12*R12,0) -> 0 | AJ12: =+IFERROR($N12*Q12,0) -> 0 | AK12: =+IFERROR(O12*R12,0) -> 0 | AL12: =+IF(OR(K12<>"",ISNUMBER(K12)=TRUE),AL11+1,0) -> 0 | AM12: 2 | AN12: =+AN11 -> 1 | AO12: =+AO11 ->  | AP12: =+AP11 -> FALSE
G13: =+IF(H12=0,"",H12+1) ->  | K13: =+IF(L12=0,"",L12+1) ->  | AD13: TRUE | AE13: =+AE12 -> TRUE | AF13: =+AF12 -> 0 | AG13: Acquedotto | AH13: 0 | AI13: 0 | AJ13: 0 | AK13: 0 | AL13: 0 | AM13: 3 | AN13: =+AN12 -> 1 | AP13: FALSE
AD14: TRUE | AE14: TRUE | AF14: 0 | AG14: Acquedotto | AH14: 0 | AI14: 0 | AJ14: 0 | AK14: 0 | AL14: 0 | AM14: 4 | AN14: 1 | AP14: FALSE
AD15: TRUE | AE15: TRUE | AF15: 0 | AG15: Acquedotto | AH15: 0 | AI15: 0 | AJ15: 0 | AK15: 0 | AL15: 0 | AM15: 5 | AN15: 1 | AP15: FALSE
AD16: TRUE | AE16: TRUE | AF16: 0 | AG16: Acquedotto | AH16: 0 | AI16: 0 | AJ16: 0 | AK16: 0 | AL16: 0 | AM16: 6 | AN16: 1 | AP16: FALSE
AD17: TRUE | AE17: TRUE | AF17: 0 | AG17: Acquedotto | AH17: 0 | AI17: 0 | AJ17: 0 | AK17: 0 | AL17: 0 | AM17: 7 | AN17: 1 | AP17: FALSE
AD18: TRUE | AE18: TRUE | AF18: 0 | AG18: Acquedotto | AH18: 0 | AI18: 0 | AJ18: 0 | AK18: 0 | AL18: 0 | AM18: 8 | AN18: 1 | AP18: FALSE
AD19: TRUE | AE19: TRUE | AF19: 0 | AG19: Acquedotto | AH19: 0 | AI19: 0 | AJ19: 0 | AK19: 0 | AL19: 0 | AM19: 9 | AN19: 1 | AP19: FALSE
AD20: TRUE | AE20: TRUE | AF20: 0 | AG20: Acquedotto | AH20: 0 | AI20: 0 | AJ20: 0 | AK20: 0 | AL20: 0 | AM20: 10 | AN20: 1 | AP20: FALSE
F21: Fognatura | AB21: =+Y21+(X21-Z21) -> 0 | AD21: TRUE | AE21: TRUE | AF21: 0 | AG21: Fognatura | AH21: 0 | AI21: 0 | AJ21: =+IFERROR($N21*Q21+$T21*W21,0) -> 0 | AK21: =+IFERROR(O21*R21+U21*X21,0) -> 0 | AL21: 1 | AM21: 11 | AN21: 1 | AP21: =+IF(AA21>R21,TRUE,FALSE) -> FALSE
F22: Depurazione | AB22: =+Y22+(X22-Z22) -> 0 | AD22: TRUE | AE22: TRUE | AF22: 0 | AG22: Depurazione | AH22: 0 | AI22: 0 | AJ22: 0 | AK22: 0 | AL22: 1 | AM22: 12 | AN22: 1 | AP22: =+IF(AA22>R22,TRUE,FALSE) -> FALSE

Sheet Titolo 6 TIMSII ut_raggruppate
B1: TITOLO 6 TIMSII - Utenze raggruppate
H2: Sono presenti errori
H3: =+IF(OR(C14>C13,C17>C16,C25>C24),TRUE,FALSE) -> FALSE
B5: 4 - Informazioni alle utenze indirette e strumenti per la corretta applicazione dell’articolazione tariffaria (articoli 20 e 21 - Titolo 6 TIMSII)
C7: ANNO 2025 | D7: Note
B8: Indicare il numero di utenze raggruppate/condominiali ai cui utenti indiretti sono state fornite le informazioni di cui al comma 20.1 (lettere da a) a g)) e di cui al comma 20.2 lettera a) del TIMSII in relazione all'articolazione approvata, aggiungendo informazioni specifiche relative alla costruzione della tariffa per le utenze domestiche residenti ai sensi del TICSI | D8: Nel caso in cui non corrisponda alla totalità di utenze raggruppate/condominiali, motivare in Relazione di accompagnamento
B9: Indicare il numero di utenti indiretti sottesi per i quali sono state fornite tali informazioni
B10: Indicare la modalità utilizzata in via prevalente | D10: Nel caso di modalità "altro", dettagliare in Relazione di accompagnamento
B11: Indicare quante modalità sono state utilizzate
B12: Indicare il numero di utenze raggruppate/condominiali ai cui utenti indiretti sono state fornite le indicazioni di cui al comma 20.2 lettera b) del TIMSII in relazione alle modalità utilizzabili per comunicare la numerosità del proprio nucleo familiare e la presenza o meno di contatori divisionali, prevedendo almeno una modalità via e-mail ed una tramite numero di telefono per messaggistica | D12: Nel caso in cui non corrisponda alla totalità di utenze raggruppate/condominiali, motivare in Relazione di accompagnamento
B13: Indicare il numero di utenti indiretti sottesi per i quali sono state fornite tali indicazioni
B14: di cui utenti indiretti sottesi che hanno comunicato la numerosità del proprio nucleo familiare e la presenza o meno di contatori divisionali | D14: =IF(C14<=C13,"","! non può essere superiore al numero di utenze raggruppate/condominiali alle quali sono state fornite tali indicazioni !") -> 
B15: Indicare il numero di utenze raggruppate/condominiali per i cui utenti indiretti è stato fornito il modulo, di cui al comma 20.2 lettera c) del TIMSII, per l’espressione del consenso ad essere contattati personalmente dal gestore, indicando la modalità prescelta (cartacea, e-mail, telefono, messaggistica, altro) | D15: Nel caso in cui non corrisponda alla totalità di utenze raggruppate/condominiali, motivare in Relazione di accompagnamento
B16: Indicare il numero di utenti indiretti sottesi per i quali è stato fornito tale modulo
B17: di cui utenti indiretti sottesi che hanno espresso consenso ad essere contattati personalmente dal gestore | D17: =IF(C17<=C16,"","! non può essere superiore al numero di utenti indiretti a cui è stato fornito tale modulo !") -> 
B18: Indicare la modalità prescelta in via prevalente per essere contattati personalmente dal gestore | D18: Nel caso di modalità "altro", dettagliare in Relazione di accompagnamento
B19: Indicare la seconda modalità prescelta in via prevalente per essere contattati personalmente dal gestore | D19: Nel caso di modalità "altro", dettagliare in Relazione di accompagnamento
B20: Indicare se è reso disponibile o concordato con l’Ente di governo dell’ambito competente il testo di cui al comma 20.3 del TIMSII al fine di rendere edotte le utenze indirette circa le motivazioni sottostanti le previsioni normative e regolamentari in tema di misurazione individuale dei consumi e di equa applicazione delle articolazioni tariffarie
B21: Indicare il numero di utenze raggruppate/condominiali alle quali è stato fornito lo strumento di calcolo previsto dal comma 21.1 del TIMSII che consente la ripartizione degli importi fatturati tra ciascuna utenza indiretta secondo i criteri stabiliti nel TICSI | D21: Nel caso in cui non corrisponda alla totalità di utenze raggruppate/condominiali, motivare in Relazione di accompagnamento
B22: Indicare il numero di utenti indiretti sottesi per i quali è stato fornito tale strumento di calcolo
B23: Indicare la modalità di fruizione dello strumento resa disponibile dal gestore | D23: Nel caso di modalità "altro", dettagliare in Relazione di accompagnamento
B24: Indicare il numero di utenze raggruppate/condominiali alle quali, ai sensi del comma 21.4 del TIMSII, ai fini dell’applicazione del comma 3.4, lettera b) del TICSI, laddove l’informazione non sia già disponibile, è stato richiesto formalmente all’amministratore del condominio o al referente dell’utenza raggruppata l’effettiva numerosità dei componenti di ciascuna utenza domestica residente, da utilizzare ai fini della puntuale applicazione del criterio pro capite
B25: di cui utenze raggruppate/condominiali che hanno dato riscontro al gestore di tale richiesta | D25: Indicare il numero di utenze raggruppate/condominiali per le quali il riscontro è completo, cioè riferito alla totalità delle utenze indirette sottese

Sheet Ricavi_Coll_Dep
B1: RICAVI TARIFFARI
B5: 4 - Totale ricavi da Tariffe Industriali
B9: Variabili di scala
B10: Descrizione dato | C10: ΣVp (m3) Anno 2024 | D10: ΣVp (m3) Anno 2025
B11: Fognatura
B12: Depurazione
B17: Ricavi Tariffe Industriali da formula TICSI
B18: Notazione dato | C18: Descrizione dato | D18: tarifindnew,2023 * (vscalindnew,2024)T | E18: tarifindnew,2023 * (vscalindnew,2025)T | G18: tarifindnew,2024 * (vscalindnew,2024)T | H18: tarifindnew,2025 * (vscalindnew,2025)T
B19: ∑p Tp | C19: Ricavi complessivi da nuova struttura dei corrispettivi per collettamento e depurazione dei reflui industriali
B20: ∑p Tp cap 10% annuo | C20: Ricavi complessivi da nuova struttura dei corrispettivi per collettamento e trattamento dei reflui industriali - post applicazione condizione di sostenibilità su singolo utente p-esimo ex comma 21.2 TICSI
B25: Ricavi Tariffe Industriali per componente RCvol
B26: Notazione dato | C26: Descrizione dato | D26: tarifindnew,2024 * (vscalindnew,2024)T | E26: tarifindnew,2025 * (vscalindnew,2025)T
B27: per Rcvol,ind | C27: Ricavi per scostamento tra tariffe effettivamente applicate rispetto al VRG calcolato per l'anno (a-2) | D27: =+G20 -> 0 | E27: 0
B28: Notazione dato | C28: Descrizione dato | D28: DTG,ind2024 in tariffa 2026 | E28: DTG,ind2024 in tariffa 2027
B29: DTG,indATO | C29: Variazione complessiva dei ricavi afferenti all'implementazione della nuova struttura dei corrispettivi per reflui industriali rispetto all'articolazione previgente (co. 21.3 TICSI)

Sheet Ricavi_bacini_tariffari
B1: RICAVI TARIFFARI
B5: 5 - Totale ricavi per ciascun bacino tariffario
B9: N_riga | C9: Ambito_Tariffario | D9: tar2023*vscal2024 | E9: tar2023*vscal2025 | F9: tar2024*vscal2024 | G9: tar2025*vscal2025 | H9: tar2023*vscal2024 | I9: tar2023*vscal2025 | J9: tar2024*vscal2024 | K9: tar2025*vscal2025 | L9: SPIEGAZIONE EVENTUALE DIFFERENZA CON LA STRUTTURA TARIFFARIA | N9: tar2023*vscal2024 | O9: tar2023*vscal2025 | P9: tar2024*vscal2024 | Q9: tar2025*vscal2025
D10: per calcolo J 2026 | E10: per calcolo J 2027 | F10: per calcolo RCvol 2026 | G10: per calcolo RCvol 2027 | H10: per calcolo J 2026 | I10: per calcolo J 2027 | J10: per calcolo RCvol 2026 | K10: per calcolo RCvol 2027
B11: =+ROW(A11)-10 -> 1 | D11: =+SUMIF(Struttura_corrispettivi!$AD:$AD,$C11,Struttura_corrispettivi!AH:AH) -> 0 | E11: =+SUMIF(Struttura_corrispettivi!$AD:$AD,$C11,Struttura_corrispettivi!AI:AI) -> 0 | F11: =+SUMIF(Struttura_corrispettivi!$AD:$AD,$C11,Struttura_corrispettivi!AJ:AJ) -> 0 | G11: =+SUMIF(Struttura_corrispettivi!$AD:$AD,$C11,Struttura_corrispettivi!AK:AK) -> 0 | N11: =+IF(H11=0,D11,H11) -> 0 | O11: =+IF(I11=0,E11,I11) -> 0 | P11: =+IF(J11=0,F11,J11) -> 0 | Q11: =+IF(K11=0,G11,K11) -> 0

Sheet Dati_Anni_precedenti
B3: n_riga | C3: Sezione | D3: Voce | E3: 2024 | F3: 2025 | G3: 2024-2029
B4: 1 | C4: Delibera Autorità | D4: Delibera
B5: 2 | C5: Delibera Autorità | D5: J deliberato
B6: 3 | C6: Delibera Autorità | D6: J medio
B7: 4 | C7: Delibera Autorità | D7: RC post
B8: 5 | C8: Schema regolatorio | D8: (∑2024-2029 Ipaexp + CFPaexp )
B9: 6 | C9: Schema regolatorio | D9: ψ
B10: 7 | C10: Schema regolatorio | D10: RAB MTI-3
B11: 8 | C11: Schema regolatorio | D11: pop + 0,25 popflut
B12: 9 | C12: Schema regolatorio | D12: Schema regolatorio
B13: 10 | C13: Totale investimenti pianificati | D13: Iptexp + CFPexp
B14: 11 | C14: Totale investimenti pianificati | D14: CFPexp
B15: 12 | C15: Totale investimenti pianificati | D15: Iptexp
B16: 13 | C16: Moltiplicatore | D16: VRG approvato
B17: 14 | C17: Moltiplicatore | D17: ∑tarif2023 * vscala-2
B18: 15 | C18: Moltiplicatore | D18: di cui: Ricavi ws
B19: 16 | C19: Moltiplicatore | D19: di cui: tarif2023 * vscala-2
B20: 17 | C20: Moltiplicatore | D20: di cui: tarifindnew,2023vscalindnew,a-2
B21: 18 | C21: Moltiplicatore | D21: Rba-2
B22: 19 | C22: Moltiplicatore | D22: Cba-2
B23: 20 | C23: Costi delle immobilizzazioni | D23: AMM
B24: 21 | C24: Costi delle immobilizzazioni | D24: OF
B25: 22 | C25: Costi delle immobilizzazioni | D25: OFisc
B26: 23 | C26: Costi delle immobilizzazioni | D26: ΔCUITcapex
B27: 24 | C27: Immobilizzazioni | D27: IML
B28: 25 | C28: Immobilizzazioni | D28: IMN
B29: 26 | C29: Immobilizzazioni | D29: FA
B30: 27 | C30: Fondo Nuovi Investimenti | D30: AMMfoni
B31: 28 | C31: Fondo Nuovi Investimenti | D31: ΔCUITfoni
B32: 29 | C32: Fondo Nuovi Investimenti | D32: FNIfoni
B33: 30 | C33: Costi Operativi, specifiche finalità | D33: Opnew,a
B34: 31 | C34: Costi Operativi, specifiche finalità | D34: OpexQT lett. a)
B35: 32 | C35: Costi Operativi, specifiche finalità | D35: OpexQT lett. b)
B36: 33 | C36: Costi Operativi, specifiche finalità | D36: OpexQT lett. c)
B37: 34 | C37: Costi Operativi, specifiche finalità | D37: OpexaQC - adeguamenti standard 655/2015/R/IDR (comma 19.9 lett. a)
B38: 35 | C38: Costi Operativi, specifiche finalità | D38: OpexaQC - adeguamento agli obiettivi 547/2019/R/IDR (comma 19.9 lett. a)
B39: 36 | C39: Costi Operativi, specifiche finalità | D39: OpexaQC (comma 19.9 lett. b)
B40: 37 | C40: Costi Operativi, specifiche finalità | D40: Opsocial lett.a)
B41: 38 | C41: Costi Operativi, specifiche finalità | D41: Opsocial lett.b)
B42: 39 | C42: Costi Operativi, specifiche finalità | D42: Opmis
B43: 40 | C43: Costi Operativi, aggiornabili | D43: COee
B44: 41 | C44: Costi Operativi, aggiornabili | D44: Cows
B45: 42 | C45: Costi Operativi, aggiornabili | D45: COws, di cui OPexpws
B46: 43 | C46: Costi Operativi, aggiornabili | D46: CoΔfanghi
B47: 44 | C47: Costi Operativi, aggiornabili | D47: MT
B48: 45 | C48: Costi Operativi, aggiornabili | D48: AC
B49: 46 | C49: Costi Operativi, aggiornabili | D49: COato
B50: 47 | C50: Costi Operativi, aggiornabili | D50: COARERA
B51: 48 | C51: Costi Operativi, aggiornabili | D51: COmor
B52: 49 | C52: Costi Operativi, aggiornabili | D52: COres
B53: 50 | C53: Costi Operativi, aggiornabili | D53: Contributi c/e
B54: 51 | C54: Costi Operativi, endogeni | D54: Opexend
B55: 52 | C55: Costi ambientali e della risorsa (immobilizzazioni) | D55: ENVcapex
B56: 53 | C56: Costi ambientali e della risorsa (immobilizzazioni) | D56: REScapex
B57: 54 | C57: Costi ambientali e della risorsa (costi operativi) | D57: ENVopex
B58: 55 | C58: Costi ambientali e della risorsa (costi operativi) | D58: RESopex
B59: 56 | C59: Costi ambientali e della risorsa (costi operativi) | D59: ERCend
B60: 57 | C60: Costi ambientali e della risorsa (costi operativi) | D60: ERCal
B61: 58 | C61: Costi ambientali e della risorsa (costi operativi) | D61: ERCQT lett. a)
B62: 59 | C62: Costi ambientali e della risorsa (costi operativi) | D62: ERCQT lett. b)
B63: 60 | C63: Costi ambientali e della risorsa (costi operativi) | D63: ERCQT lett. c)
B64: 61 | C64: Costi ambientali e della risorsa (costi operativi) | D64: ERCa tel - di cui Opnew lett. c)
B65: 62 | C65: Sezione Conguagli (include inflazione) | D65: RcVOL
B66: 63 | C66: Sezione Conguagli (include inflazione) | D66: RcEE
B67: 64 | C67: Sezione Conguagli (include inflazione) | D67: RcWS
B68: 65 | C68: Sezione Conguagli (include inflazione) | D68: RcERCa
B69: 66 | C69: Sezione Conguagli (include inflazione) | D69: Rcab1
B70: 67 | C70: Sezione Conguagli (include inflazione) | D70: Rcab2
B71: 68 | C71: Sezione Conguagli (include inflazione) | D71: Rcares
B72: 69 | C72: Sezione Conguagli (include inflazione) | D72: RcaARERA
B73: 70 | C73: Sezione Conguagli (include inflazione) | D73: Costo forniture all’ingrosso transfrontaliere
B74: 71 | C74: Sezione Conguagli (include inflazione) | D74: RcIP (valori a moneta a-2, include eventuale FoNInoninv)
B75: 72 | C75: Sezione Conguagli (include inflazione) | D75: Costi per variazioni sistemiche / eventi eccezionali
B76: 73 | C76: Sezione Conguagli (include inflazione) | D76: Variazioni sistemiche, di cui: per eventi eccezionali, energia elettrica
B77: 74 | C77: Sezione Conguagli (include inflazione) | D77: Variazioni sistemiche, di cui: per eventi eccezionali, altro
B78: 75 | C78: Sezione Conguagli (include inflazione) | D78: Rimb335a
B79: 76 | C79: Sezione Conguagli (include inflazione) | D79: Rcaappr
B80: 77 | C80: Sezione Conguagli (include inflazione) | D80: DOpexQC
B81: 78 | C81: Sezione Conguagli (include inflazione) | D81: DOpexQT
B82: 79 | C82: Sezione Conguagli (include inflazione) | D82: DOpsocial
B83: 80 | C83: Sezione Conguagli (include inflazione) | D83: Penalità RQSII - Delibera 476/2023/R/IDR
B84: 81 | C84: Sezione Conguagli (include inflazione) | D84: Penalità RQTI - Delibera 477/2023/R/IDR
B85: 82 | C85: Sezione Conguagli (include inflazione) | D85: DOpmis
B86: 83 | C86: Sezione Conguagli (include inflazione) | D86: RcARC
B87: 84 | C87: Sezione Conguagli (include inflazione) | D87: Recupero volumi 2021
B88: 85 | C88: Sezione Conguagli (include inflazione) | D88: Recupero energia elettrica 2021
B89: 86 | C89: Sezione Conguagli (include inflazione) | D89: Recupero straordinario inflazione
B90: 87 | C90: Sezione Conguagli (include inflazione) | D90: Rctot
B91: 88 | C91: Ammortamento finanziario | D91: AF MTI-4
B92: 89 | C92: Altro | D92: FoNInoninv
E96: 2022 | F96: 2023 | G96: 2022-2023
C97: Costi Operativi | D97: Opexend
C98: Costi ambientali e della risorsa | D98: ERCend
C99: Costi Operativi | D99: OpexQT, lett. a) co. 19.8 MTI-4
C100: Costi Operativi | D100: OpexQC lett. a) co. 19.9 MTI-4 (655/2015/R/IDR)
C101: Costi Operativi | D101: OpexQC lett. a) co. 19.9 MTI-4 (547/2019/R/IDR)
C102: Sezione altri dati | D102: KWh, quantità acquistata e consumata
C103: Sezione altri dati | D103: KWh, quantità autoprodotta e consumata
C104: Sezione altri dati | D104: COrealiEE (altre gruppo - SII)
C105: Sezione altri dati | D105: COrealiEE (altre imprese - SII)
C106: Sezione altri dati | D106: COrealiEE (altre gruppo - AAI)
C107: Sezione altri dati | D107: COrealiEE (altre imprese - AAI)
C108: Conguagli rinviati MTI-2 aggiornamento (2016-2019) | D108: RCappr MTI-3 agg
C109: Ammortamento finanziario | D109: AF MTI-3 agg
E113: 2020 | F113: 2021
C114: Sezione altri dati | D114: KWh
C115: Sezione altri dati | D115: KWh, quantità acquistata e consumata
C116: Sezione altri dati | D116: KWh, quantità autoprodotta e consumata
C117: Ammortamento finanziario | D117: AF MTI-3
E121: 2018 | F121: 2019
C122: Ammortamento finanziario | D122: AF MTI-2 agg
E126: 2016 | F126: 2017
C127: Sezione altri dati | D127: CO𝑓𝑎𝑛𝑔ℎ𝑖𝑒𝑓𝑓𝑒𝑡𝑡𝑖𝑣𝑜
C128: Ammortamento finanziario | D128: AF MTI-2
E132: 2014 | F132: 2015
C133: Ammortamento finanziario | D133: AF MTI
E137: 2013
C138: Sezione altri dati | D138: PopATO

Sheet IMN_cespiti_anni_precedenti
L1: ATTENZIONE: verificare la correttezza dei dati presenti nell'eventuale file precompilato formito
H2: Immobilizzazioni del gestore (solo immobilizzazioni al 2022 incluso) | S2: Sono presenti errori | T2: errore id categoria cespite | U2: errore id immobilizzazione | V2: errore id anno cespite | W2: errore valori non negativi
S3: =+OR(T3:W3) -> TRUE | T3: =+OR(INDEX(IMN_ante2019,0,20)) -> TRUE | U3: =+OR(INDEX(IMN_ante2019,0,21)) -> TRUE | V3: =+OR(INDEX(IMN_ante2019,0,22)) -> TRUE | W3: =+OR(INDEX(IMN_ante2019,0,23)) -> FALSE
A4: IMN gestore ante 2023
A5: IDATO | B5: IDGestore | C5: Gestore_Proprietario | D5: N_prop | E5: Fonte | F5: ID_Categoria_Cespite | G5: CategoriaCespite | H5: ID_Immobilizzazione | I5: IMMOBILIZZAZIONE | J5: AnnoCespite | K5: IP | L5: FAIP | M5: CFP | N5: FACP | O5: - | P5: Tipologia di costo sotteso ("Env", "Res", "Non ERC") | Q5: Attività | R5: foglio di origine | S5: n_riga | T5: errore id categoria cespite | U5: errore id immobilizzazione | V5: errore id anno cespite | W5: errore valori non negativi
A6: =+idato -> 0 | B6: =+idgestore -> 0 | C6: Gestore | D6: 0 | E6: IP | F6: =+IFERROR(IF(J6<2020,VLOOKUP(G6,id_cat_ces,2,FALSE),VLOOKUP(G6,TT_Tabelle_Riferimento!$G$127:$K$164,5,FALSE)),"") ->  | H6: =+IFERROR(VLOOKUP(I6,id_cat_imm,2,FALSE),"") ->  | R6: =+"RAB_cespiti_anni_precedenti" -> RAB_cespiti_anni_precedenti | S6: =+ROW(A6)-5 -> 1 | T6: =++IF(S6=0,FALSE,IFERROR(IF(J6<2020,VLOOKUP(G6,id_cat_ces,2,FALSE),VLOOKUP(G6,TT_Tabelle_Riferimento!$G$127:$K$164,5,FALSE)),FALSE)<>F6) -> TRUE | U6: =++IF(S6=0,FALSE,IFERROR(VLOOKUP(I6,id_cat_imm,2,FALSE),FALSE)<>H6) -> TRUE | V6: =+IF(S6=0,FALSE,J6<1967) -> TRUE | W6: =+IF(S6=0,FALSE,OR(K6<0,L6<0,M6<0,N6<0)) -> FALSE

Sheet Conferma_investimenti
R1: sono presenti errori | U1: errore id categoria cespite | W1: errore id immobilizzazione | Z1: errore valori non negativi | AC1: check PdI
R2: =+OR(U2,W2,Z2,AC2) -> FALSE | U2: =+OR(VALUE(INDEX(ConfermaInvestimenti,0,21)))=0 -> FALSE | W2: =+OR(INDEX(ConfermaInvestimenti,0,23))=0 -> FALSE | Z2: =+OR(VALUE(INDEX(ConfermaInvestimenti,0,26)))<0 -> FALSE | AC2: =+SUM(Z:Z)-'PdI-riepilogo'!E4<>0 -> FALSE
D3: Investimenti 2023 Le colonne da D a M devono mostrare gli investimenti relativi al 2023 come da predisposizione tariffaria MTI-4 Indicare nelle colonne N e O eventuali variazioni motivandole in relazione di accompagnamento, altrimenti ricopiare i valori dalle adiacenti colonne. La mancata compilazione delle colonne N e O escluderà tali cespiti dal calcolo. | N3: spazio per la compilazione manuale nessuna rivalutazione monetaria va effettuata
N4: Investimenti EFFETTIVI del 2023 (non lasciare campi vuoti) | AH4: zona per il calcolo RcIP2023
A6: N_riga | B6: IDATO | C6: IDGESTORE | D6: ID_Categoria_Cespite | E6: CategoriaCespite | F6: ID_Immobilizzazione | G6: IMMOBILIZZAZIONE | H6: Tipologia di costo sotteso ("Env", "Res", "Non ERC") | I6: Attività | J6: AnnoCespite | K6: IP (come da approvazione tariffaria) | L6: CFP TOTALE (come da approvazione tariffaria) | M6: di cui, CFP da FoNI (come da approvazione tariffaria) | N6: IP | O6: CFP | P6: IDATO | Q6: Idgestore | R6: Gestore_Proprietario | S6: N_prop | T6: Fonte | U6: ID_Categoria_Cespite | V6: CategoriaCespite | W6: ID_Immobilizzazione | X6: IMMOBILIZZAZIONE | Y6: AnnoCespite | Z6: IP | AB6: CFP | AD6: - | AE6: ERC | AF6: Attività | AG6: foglio di origine | AH6: ΔIP | AI6: ΔFA | AJ6: ΔAMM | AK6: ΔCFP | AL6: ΔFACFP | AM6: ΔAMM CFP | AO6: ΔIMN2023 | AP6: ΔCINcfp2023 | AQ6: 1 - CINfp / CIN | AR6: Km + α (ex del. 639/2023) | AS6: Rai rate (ex del. 639/2023) | AU6: ΔAMM - ΔAMM CFP | AV6: ΔOF | AW6: ΔOFisc | AY6: DRCIP
A7: =+ROW(A7)-ROW($A$6) -> 1 | B7: =+idato -> 0 | C7: =+idgestore -> 0 | D7: =+IFERROR(VLOOKUP(E7,TT_Tabelle_Riferimento!$G$127:$K$164,5,FALSE),0) -> 0 | F7: =+IFERROR(VLOOKUP(G7,id_cat_imm,2,FALSE),0) -> 0 | I7: =+IFERROR(VLOOKUP(D7,TT_Tabelle_Riferimento!$D$127:$K$164,2,FALSE),"") ->  | J7: 2023 | P7: =idato -> 0 | Q7: =idgestore -> 0 | R7: Gestore | S7: 0 | T7: IP | U7: =IFERROR(VLOOKUP(V7,TT_Tabelle_Riferimento!$G$127:$K$164,5,0),0) -> 0 | V7: =IFERROR(VLOOKUP(E7,TT_Tabelle_Riferimento!$G$127:$K$164,1,0),0) -> 0 | W7: =+IFERROR(VLOOKUP(X7,TT_Tabelle_Riferimento!$G$2:$H$6,2,0),0) -> 0 | X7: =+IFERROR(VLOOKUP(G7,TT_Tabelle_Riferimento!$G$2:$H$6,1,0),0) -> 0 | Y7: =J7 -> 2023 | Z7: =N7 -> 0 | AB7: =IFERROR(O7+(SUM(M:M)/SUM(Z:Z))*Z7,0) -> 0 | AE7: =+H7 -> 0 | AF7: =+I7 ->  | AG7: Conferma_investimenti | AH7: =+IFERROR(IP(Z7,U7,W7,2023,2025,ifl)-IP(K7,U7,W7,2023,2025,ifl),0) -> 0 | AI7: =+IFERROR(FondoAmm(Z7,0,2023,U7,W7,2025,vite_regolatorie_new,ifl)-FondoAmm(K7,0,2023,U7,W7,2025,vite_regolatorie_new,ifl),0) -> 0 | AJ7: =+IFERROR(QA(Z7,0,2023,U7,W7,2025,vite_regolatorie,ifl)-QA(K7,0,2023,U7,W7,2025,vite_regolatorie,ifl),0) -> 0 | AK7: =+IFERROR(CFP_A(AB7,U7,W7,2023,2025,ifl)-CFP_A(L7,U7,W7,2023,2025,ifl),0) -> 0 | AL7: =+IFERROR(FACFP(AB7,0,2023,U7,W7,2025,vite_regolatorie,ifl)-FACFP(L7,0,2023,U7,W7,2025,vite_regolatorie,ifl),0) -> 0 | AM7: =+IFERROR(QA_CFP(AB7,0,2023,W7,U7,2025,vite_regolatorie,ifl)-QA_CFP(L7,0,2023,W7,U7,2025,vite_regolatorie,ifl),0) -> 0 | AO7: =+IFERROR(IP(Z7,U7,W7,2023,2025,ifl)-FondoAmm(Z7,0,2023,U7,W7,2025,vite_regolatorie,ifl)-(IP(K7,U7,W7,2023,2025,ifl)-FondoAmm(K7,0,2023,U7,W7,2025,vite_regolatorie,ifl)),0) -> 0 | AP7: =+IFERROR(CFP_A(AB7,U7,W7,2023,2025,ifl)-FACFP(AB7,0,2023,U7,W7,2025,vite_regolatorie,ifl)-(CFP_A(L7,U7,W7,2023,2025,ifl)-FACFP(L7,0,2023,U7,W7,2025,vite_regolatorie,ifl)),0) -> 0 | AQ7: =IFERROR(1-AP7/AO7,0) -> 0 | AR7: 0.043125 | AS7: 0.07564106139 | AU7: =+AJ7-AM7 -> 0 | AV7: =+AR7*AQ7*AO7 -> 0 | AW7: =+AS7*0.275*AQ7*AO7 -> 0 | AY7: =+AU7+AV7+AW7 -> 0

Sheet IMN_Proprietari
C1: IMNProprietari - Sviluppo dei costi di capitale associati alle infrastrutture di terzi | H1: ATTENZIONE: verificare la correttezza dei dati presenti nell'eventuale file precompilato fornito
A2: scarico dati
A3: IMN P.
A5: idato associato al gestore | B5: idarera associato al gestore | C5: Tipologia di Proprietario | D5: Key_Prop | E5: ID_Categoria_Cespite | F5: CategoriaCespite | G5: ID_Immobilizzazione | H5: IMMOBILIZZAZIONE | I5: Motivazione della realizzazione da parte di terzi | J5: Immobilizzazioni riconducibili a una grande infrastruttura upstream | K5: AnnoCespite | L5: IP | M5: FAIP | N5: CFP | O5: FACP | P5: New_Key_prop | Q5: dati da non valorizzare | R5: VU 2024 | S5: IP 2024 | T5: FAIP 2024 | U5: IP netto 2024 | V5: AMM 2024 | W5: CFP 2024 | X5: FA CFP 2024 | Y5: CFP netto 2024 | Z5: AMM CFP 2024 | AA5: Nriga | AB5: VU 2025 | AC5: IP 2025 | AD5: FAIP 2025 | AE5: IP netto 2025 | AF5: AMM 2025 | AG5: CFP 2025 | AH5: FA CFP 2025 | AI5: CFP netto 2025 | AJ5: AMM CFP 2025 | AK5: aaa | AL5: VU 2026 | AM5: IP 2026 | AN5: FAIP 2026 | AO5: IP netto 2026 | AP5: AMM 2026 | AQ5: CFP 2026 | AR5: FA CFP 2026 | AS5: CFP netto 2026 | AT5: AMM CFP 2026 | AU5: aaaa | AV5: VU 2027 | AW5: IP 2027 | AX5: FAIP 2027 | AY5: IP netto 2027 | AZ5: AMM 2027 | BA5: CFP 2027 | BB5: FA CFP 2027 | BC5: CFP netto 2027 | BD5: AMM CFP 2027 | BE5: aaaa | BF5: VU 2028 | BG5: IP 2028 | BH5: FAIP 2028 | BI5: IP netto 2028 | BJ5: AMM 2028 | BK5: CFP 2028 | BL5: FA CFP 2028 | BM5: CFP netto 2028 | BN5: AMM CFP 2028 | BO5: aaaa | BP5: VU 2029 | BQ5: IP 2029 | BR5: FAIP 2029 | BS5: IP netto 2029 | BT5: AMM 2029 | BU5: CFP 2029 | BV5: FA CFP 2029 | BW5: CFP netto 2029 | BX5: AMM CFP 2029
A6: =+idato -> 0 | B6: =+idgestore -> 0 | E6: =+IFERROR(IF(K6<2020,VLOOKUP(F6,id_cat_ces,2,FALSE),VLOOKUP(F6,TT_Tabelle_Riferimento!$G$127:$K$164,5,FALSE)),"") ->  | G6: =+IFERROR(VLOOKUP(H6,id_cat_imm,2,FALSE),"") ->  | P6: =+IF(D6="","",IFERROR(VLOOKUP(D6,Soggetti_proprietari!K:L,2,0),"")) ->  | Q6: =IF(ISNA(VLOOKUP(P6,Soggetti_proprietari!N:N,1,FALSE)),IF(OR(K6=1961,K6=1962),TRUE,FALSE),TRUE) -> FALSE | R6: =+IF(OR($Q6,$E6=""),0,VLOOKUP($E6,IF($K6<2020,ViteRegolatorieProp_old,ViteRegolatorieProp_new),VALUE(RIGHT(R$5,4))-2011)) -> 0 | S6: =IF(OR($Q6,$E6=""),0,IFERROR(IP_PROP($L6,T6,V6,$E6,$G6,$K6,$R6,VALUE(RIGHT(S$5,4)),ifl),0)) -> 0 | T6: =IF(OR($Q6,$E6=""),0,IFERROR(FondoAmm_prop($L6,$M6,$K6,$E6,$G6,VALUE(RIGHT(T$5,4)),IF($K6<2020,ViteRegolatorieProp_old,ViteRegolatorieProp_new),ifl),0)) -> 0 | U6: =+S6-T6 -> 0 | V6: =IF(OR($Q6,$E6=""),0,IFERROR(QA_PROP($L6,$M6,$K6,$E6,$G6,VALUE(RIGHT(V$5,4)),IF($K6<2020,ViteRegolatorieProp_old,ViteRegolatorieProp_new),ifl),0)) -> 0 | W6: =IF(OR($Q6,$E6=""),0,IFERROR(IP_PROP($N6,X6,Z6,$E6,$G6,$K6,$R6,VALUE(RIGHT(W$5,4)),ifl),0)) -> 0 | X6: =IF(OR($Q6,$E6=""),0,IFERROR(FondoAmm_prop($N6,$O6,$K6,$E6,$G6,VALUE(RIGHT(X$5,4)),IF($K6<2020,ViteRegolatorieProp_old,ViteRegolatorieProp_new),ifl),0)) -> 0 | Y6: =+W6-X6 -> 0 | Z6: =IF(OR($Q6,$E6=""),0,IFERROR(QA_PROP($N6,$O6,$K6,$E6,$G6,VALUE(RIGHT(Z$5,4)),IF($K6<2020,ViteRegolatorieProp_old,ViteRegolatorieProp_new),ifl),0)) -> 0 | AA6: =+ROW(A6)-5 -> 1 | AB6: =+IF(OR($Q6,$E6=""),0,VLOOKUP($E6,IF($K6<2020,ViteRegolatorieProp_old,ViteRegolatorieProp_new),VALUE(RIGHT(AB$5,4))-2011)) -> 0 | AC6: =IF(OR($Q6,$E6=""),0,IFERROR(IP_PROP($L6,AD6,AF6,$E6,$G6,$K6,$R6,VALUE(RIGHT(AC$5,4)),ifl),0)) -> 0 | AD6: =IF(OR($Q6,$E6=""),0,IFERROR(FondoAmm_prop($L6,$M6,$K6,$E6,$G6,VALUE(RIGHT(AD$5,4)),IF($K6<2020,ViteRegolatorieProp_old,ViteRegolatorieProp_new),ifl),0)) -> 0 | AE6: =+AC6-AD6 -> 0 | AF6: =IF(OR($Q6,$E6=""),0,IFERROR(QA_PROP($L6,$M6,$K6,$E6,$G6,VALUE(RIGHT(AF$5,4)),IF($K6<2020,ViteRegolatorieProp_old,ViteRegolatorieProp_new),ifl),0)) -> 0 | AG6: =IF(OR($Q6,$E6=""),0,IFERROR(IP_PROP($N6,AH6,AJ6,$E6,$G6,$K6,$R6,VALUE(RIGHT(AG$5,4)),ifl),0)) -> 0 | AH6: =IF(OR($Q6,$E6=""),0,IFERROR(FondoAmm_prop($N6,$O6,$K6,$E6,$G6,VALUE(RIGHT(AH$5,4)),IF($K6<2020,ViteRegolatorieProp_old,ViteRegolatorieProp_new),ifl),0)) -> 0 | AI6: =+AG6-AH6 -> 0 | AJ6: =IF(OR($Q6,$E6=""),0,IFERROR(QA_PROP($N6,$O6,$K6,$E6,$G6,VALUE(RIGHT(AJ$5,4)),IF($K6<2020,ViteRegolatorieProp_old,ViteRegolatorieProp_new),ifl),0)) -> 0 | AK6: =+ROW(M6)-5 -> 1 | AL6: =+IF(OR($Q6,$E6=""),0,VLOOKUP($E6,IF($K6<2020,ViteRegolatorieProp_old,ViteRegolatorieProp_new),VALUE(RIGHT(AL$5,4))-2011)) -> 0 | AM6: =IF(OR($Q6,$E6=""),0,IFERROR(IP_PROP($L6,AN6,AP6,$E6,$G6,$K6,$R6,VALUE(RIGHT(AM$5,4)),ifl),0)) -> 0 | AN6: =IF(OR($Q6,$E6=""),0,IFERROR(FondoAmm_prop($L6,$M6,$K6,$E6,$G6,VALUE(RIGHT(AN$5,4)),IF($K6<2020,ViteRegolatorieProp_old,ViteRegolatorieProp_new),ifl),0)) -> 0 | AO6: =+AM6-AN6 -> 0 | AP6: =IF(OR($Q6,$E6=""),0,IFERROR(QA_PROP($L6,$M6,$K6,$E6,$G6,VALUE(RIGHT(AP$5,4)),IF($K6<2020,ViteRegolatorieProp_old,ViteRegolatorieProp_new),ifl),0)) -> 0 | AQ6: =IF(OR($Q6,$E6=""),0,IFERROR(IP_PROP($N6,AR6,AT6,$E6,$G6,$K6,$R6,VALUE(RIGHT(AQ$5,4)),ifl),0)) -> 0 | AR6: =IF(OR($Q6,$E6=""),0,IFERROR(FondoAmm_prop($N6,$O6,$K6,$E6,$G6,VALUE(RIGHT(AR$5,4)),IF($K6<2020,ViteRegolatorieProp_old,ViteRegolatorieProp_new),ifl),0)) -> 0 | AS6: =+AQ6-AR6 -> 0 | AT6: =IF(OR($Q6,$E6=""),0,IFERROR(QA_PROP($N6,$O6,$K6,$E6,$G6,VALUE(RIGHT(AT$5,4)),IF($K6<2020,ViteRegolatorieProp_old,ViteRegolatorieProp_new),ifl),0)) -> 0 | AU6: =+ROW(W6)-5 -> 1 | AV6: =+IF(OR($Q6,$E6=""),0,VLOOKUP($E6,IF($K6<2020,ViteRegolatorieProp_old,ViteRegolatorieProp_new),VALUE(RIGHT(AV$5,4))-2011)) -> 0 | AW6: =IF(OR($Q6,$E6=""),0,IFERROR(IP_PROP($L6,AX6,AZ6,$E6,$G6,$K6,$R6,VALUE(RIGHT(AW$5,4)),ifl),0)) -> 0 | AX6: =IF(OR($Q6,$E6=""),0,IFERROR(FondoAmm_prop($L6,$M6,$K6,$E6,$G6,VALUE(RIGHT(AX$5,4)),IF($K6<2020,ViteRegolatorieProp_old,ViteRegolatorieProp_new),ifl),0)) -> 0 | AY6: =+AW6-AX6 -> 0 | AZ6: =IF(OR($Q6,$E6=""),0,IFERROR(QA_PROP($L6,$M6,$K6,$E6,$G6,VALUE(RIGHT(AZ$5,4)),IF($K6<2020,ViteRegolatorieProp_old,ViteRegolatorieProp_new),ifl),0)) -> 0 | BA6: =IF(OR($Q6,$E6=""),0,IFERROR(IP_PROP($N6,BB6,BD6,$E6,$G6,$K6,$R6,VALUE(RIGHT(BA$5,4)),ifl),0)) -> 0 | BB6: =IF(OR($Q6,$E6=""),0,IFERROR(FondoAmm_prop($N6,$O6,$K6,$E6,$G6,VALUE(RIGHT(BB$5,4)),IF($K6<2020,ViteRegolatorieProp_old,ViteRegolatorieProp_new),ifl),0)) -> 0 | BC6: =+BA6-BB6 -> 0 | BD6: =IF(OR($Q6,$E6=""),0,IFERROR(QA_PROP($N6,$O6,$K6,$E6,$G6,VALUE(RIGHT(BD$5,4)),IF($K6<2020,ViteRegolatorieProp_old,ViteRegolatorieProp_new),ifl),0)) -> 0 | BE6: =+ROW(AG6)-5 -> 1 | BF6: =+IF(OR($Q6,$E6=""),0,VLOOKUP($E6,IF($K6<2020,ViteRegolatorieProp_old,ViteRegolatorieProp_new),VALUE(RIGHT(BF$5,4))-2011)) -> 0 | BG6: =IF(OR($Q6,$E6=""),0,IFERROR(IP_PROP($L6,BH6,BJ6,$E6,$G6,$K6,$R6,VALUE(RIGHT(BG$5,4)),ifl),0)) -> 0 | BH6: =IF(OR($Q6,$E6=""),0,IFERROR(FondoAmm_prop($L6,$M6,$K6,$E6,$G6,VALUE(RIGHT(BH$5,4)),IF($K6<2020,ViteRegolatorieProp_old,ViteRegolatorieProp_new),ifl),0)) -> 0 | BI6: =+BG6-BH6 -> 0 | BJ6: =IF(OR($Q6,$E6=""),0,IFERROR(QA_PROP($L6,$M6,$K6,$E6,$G6,VALUE(RIGHT(BJ$5,4)),IF($K6<2020,ViteRegolatorieProp_old,ViteRegolatorieProp_new),ifl),0)) -> 0 | BK6: =IF(OR($Q6,$E6=""),0,IFERROR(IP_PROP($N6,BL6,BN6,$E6,$G6,$K6,$R6,VALUE(RIGHT(BK$5,4)),ifl),0)) -> 0 | BL6: =IF(OR($Q6,$E6=""),0,IFERROR(FondoAmm_prop($N6,$O6,$K6,$E6,$G6,VALUE(RIGHT(BL$5,4)),IF($K6<2020,ViteRegolatorieProp_old,ViteRegolatorieProp_new),ifl),0)) -> 0 | BM6: =+BK6-BL6 -> 0 | BN6: =IF(OR($Q6,$E6=""),0,IFERROR(QA_PROP($N6,$O6,$K6,$E6,$G6,VALUE(RIGHT(BN$5,4)),IF($K6<2020,ViteRegolatorieProp_old,ViteRegolatorieProp_new),ifl),0)) -> 0 | BO6: =+ROW(AQ6)-5 -> 1 | BP6: =+IF(OR($Q6,$E6=""),0,VLOOKUP($E6,IF($K6<2020,ViteRegolatorieProp_old,ViteRegolatorieProp_new),VALUE(RIGHT(BP$5,4))-2011)) -> 0 | BQ6: =IF(OR($Q6,$E6=""),0,IFERROR(IP_PROP($L6,BR6,BT6,$E6,$G6,$K6,$R6,VALUE(RIGHT(BQ$5,4)),ifl),0)) -> 0 | BR6: =IF(OR($Q6,$E6=""),0,IFERROR(FondoAmm_prop($L6,$M6,$K6,$E6,$G6,VALUE(RIGHT(BR$5,4)),IF($K6<2020,ViteRegolatorieProp_old,ViteRegolatorieProp_new),ifl),0)) -> 0 | BS6: =+BQ6-BR6 -> 0 | BT6: =IF(OR($Q6,$E6=""),0,IFERROR(QA_PROP($L6,$M6,$K6,$E6,$G6,VALUE(RIGHT(BT$5,4)),IF($K6<2020,ViteRegolatorieProp_old,ViteRegolatorieProp_new),ifl),0)) -> 0 | BU6: =IF(OR($Q6,$E6=""),0,IFERROR(IP_PROP($N6,BV6,BX6,$E6,$G6,$K6,$R6,VALUE(RIGHT(BU$5,4)),ifl),0)) -> 0 | BV6: =IF(OR($Q6,$E6=""),0,IFERROR(FondoAmm_prop($N6,$O6,$K6,$E6,$G6,VALUE(RIGHT(BV$5,4)),IF($K6<2020,ViteRegolatorieProp_old,ViteRegolatorieProp_new),ifl),0)) -> 0 | BW6: =+BU6-BV6 -> 0 | BX6: =IF(OR($Q6,$E6=""),0,IFERROR(QA_PROP($N6,$O6,$K6,$E6,$G6,VALUE(RIGHT(BX$5,4)),IF($K6<2020,ViteRegolatorieProp_old,ViteRegolatorieProp_new),ifl),0)) -> 0

Sheet Storico_Piano_Tariffario
C3: SCHEMI REGOLATORI
D5: UdM | E5: Del. 639/2023/R/IDR
C6: VRG2022 | D6: euro
C7: pop + 0,25 popflut | D7: n. abitante
D8: SI/NO
C9: Nessuna aggregazione o variazione dei processi tecnici significativa: (NO) oppure Presenza di aggregazioni o variazioni dei processi tecnici significative: (SI) | D9: SI/NO
D10: euro
C11: RABMTI-3 | D11: euro
D12: SI/NO
C13: SCHEMA REGOLATORIO (A) SCHEMA REGOLATORIO DI CONVERGENZA (B) | D13: A/B
C14: y | D14: (0,4-0,8)
C15: SCHEMA REGOLATORIO | D15: (I, II, III, IV, V, VI)
C20: COMPONENTI DI COSTO Opex, Capex , FNInew, ERC
D21: UdM | E21: ANNO 2024 | F21: ANNO 2025 | G21: ANNO 2026 | H21: ANNO 2027 | I21: ANNO 2028 | J21: ANNO 2029 | K21: ANNO 2030 | L21: ANNO 2031 | M21: ANNO 2032 | N21: ANNO 2033 | O21: ANNO 2034 | P21: ANNO 2035 | Q21: ANNO 2036 | R21: ANNO 2037 | S21: ANNO 2038 | T21: ANNO 2039 | U21: ANNO 2040 | V21: ANNO 2041 | W21: ANNO 2042 | X21: ANNO 2043 | Y21: ANNO 2044 | Z21: ANNO 2045 | AA21: ANNO 2046 | AB21: ANNO 2047 | AC21: ANNO 2048 | AD21: ANNO 2049 | AE21: ANNO 2050 | AF21: ANNO 2051 | AG21: ANNO 2052 | AH21: ANNO 2053 | AI21: ANNO 2054 | AJ21: ANNO 2055 | AK21: ANNO 2056 | AL21: ANNO 2057 | AM21: ANNO 2058 | AN21: ANNO 2059 | AO21: ANNO 2060 | AP21: ANNO 2061 | AQ21: ANNO 2062 | AR21: ANNO 2063
C22: Opexaend | D22: euro
C23: Opexaal | D23: euro
C24: Opnew,a | D24: euro
C25: OpexaQT | D25: euro
C26: OpexaQC | D26: euro
C27: Opasocial | D27: euro
C28: Opamis | D28: euro
C29: Opexa (al netto degli ERC) | D29: euro
C30: AMMa | D30: euro
C31: OFa | D31: euro
C32: OFisca | D32: euro
C33: DCUITaCapex | D33: euro
C34: Capexa (al netto degli ERC) | D34: euro
C35: IPtexp | D35: euro
C36: Capexa | D36: euro
C37: FNInew,a | D37: euro
C41: ERCacapex | D41: euro
C42: ERCaopex | D42: euro
C43: ERCa | D43: euro
C45: FONDO NUOVI INVESTIMENTI
D46: UdM | E46: ANNO 2024 | F46: ANNO 2025 | G46: ANNO 2026 | H46: ANNO 2027 | I46: ANNO 2028 | J46: ANNO 2029 | K46: ANNO 2030 | L46: ANNO 2031 | M46: ANNO 2032 | N46: ANNO 2033 | O46: ANNO 2034 | P46: ANNO 2035 | Q46: ANNO 2036 | R46: ANNO 2037 | S46: ANNO 2038 | T46: ANNO 2039 | U46: ANNO 2040 | V46: ANNO 2041 | W46: ANNO 2042 | X46: ANNO 2043 | Y46: ANNO 2044 | Z46: ANNO 2045 | AA46: ANNO 2046 | AB46: ANNO 2047 | AC46: ANNO 2048 | AD46: ANNO 2049 | AE46: ANNO 2050 | AF46: ANNO 2051 | AG46: ANNO 2052 | AH46: ANNO 2053 | AI46: ANNO 2054 | AJ46: ANNO 2055 | AK46: ANNO 2056 | AL46: ANNO 2057 | AM46: ANNO 2058 | AN46: ANNO 2059 | AO46: ANNO 2060 | AP46: ANNO 2061 | AQ46: ANNO 2062 | AR46: ANNO 2063
C47: FNIaFoNI | D47: euro
C48: AMMaFoNI | D48: euro
C49: DCUITaFoNI | D49: euro
C50: FoNIa | D50: euro
C52: SVILUPPO DEL VRG predisposto dal soggetto competente (include eventuali rimodulazioni)
D53: UdM | E53: ANNO 2024 | F53: ANNO 2025 | G53: ANNO 2026 | H53: ANNO 2027 | I53: ANNO 2028 | J53: ANNO 2029 | K53: ANNO 2030 | L53: ANNO 2031 | M53: ANNO 2032 | N53: ANNO 2033 | O53: ANNO 2034 | P53: ANNO 2035 | Q53: ANNO 2036 | R53: ANNO 2037 | S53: ANNO 2038 | T53: ANNO 2039 | U53: ANNO 2040 | V53: ANNO 2041 | W53: ANNO 2042 | X53: ANNO 2043 | Y53: ANNO 2044 | Z53: ANNO 2045 | AA53: ANNO 2046 | AB53: ANNO 2047 | AC53: ANNO 2048 | AD53: ANNO 2049 | AE53: ANNO 2050 | AF53: ANNO 2051 | AG53: ANNO 2052 | AH53: ANNO 2053 | AI53: ANNO 2054 | AJ53: ANNO 2055 | AK53: ANNO 2056 | AL53: ANNO 2057 | AM53: ANNO 2058 | AN53: ANNO 2059 | AO53: ANNO 2060 | AP53: ANNO 2061 | AQ53: ANNO 2062 | AR53: ANNO 2063
C54: Opexa | D54: euro
C55: Capexa | D55: euro
C56: FoNIa | D56: euro
C57: RCaTOT | D57: euro
C58: ERCa | D58: euro
C59: VRGa predisposto dal soggetto competente | D59: euro
C61: SVILUPPO DEL MOLTIPLICATORE TARIFFARIO predisposto dal soggetto competente
D62: UdM | E62: ANNO 2024 | F62: ANNO 2025 | G62: ANNO 2026 | H62: ANNO 2027 | I62: ANNO 2028 | J62: ANNO 2029 | K62: ANNO 2030 | L62: ANNO 2031 | M62: ANNO 2032 | N62: ANNO 2033 | O62: ANNO 2034 | P62: ANNO 2035 | Q62: ANNO 2036 | R62: ANNO 2037 | S62: ANNO 2038 | T62: ANNO 2039 | U62: ANNO 2040 | V62: ANNO 2041 | W62: ANNO 2042 | X62: ANNO 2043 | Y62: ANNO 2044 | Z62: ANNO 2045 | AA62: ANNO 2046 | AB62: ANNO 2047 | AC62: ANNO 2048 | AD62: ANNO 2049 | AE62: ANNO 2050 | AF62: ANNO 2051 | AG62: ANNO 2052 | AH62: ANNO 2053 | AI62: ANNO 2054 | AJ62: ANNO 2055 | AK62: ANNO 2056 | AL62: ANNO 2057 | AM62: ANNO 2058 | AN62: ANNO 2059 | AO62: ANNO 2060 | AP62: ANNO 2061 | AQ62: ANNO 2062 | AR62: ANNO 2063
C63: VRGa predisposto dal soggetto competente | D63: euro
C64: Ra-2b | D64: euro
C65: S tarif2023*vscala-2 | D65: euro
C66: Ja predisposto dal soggetto competente | D66: n. (3 cifre decimali)
C68: SVILUPPO DEL MOLTIPLICATORE TARIFFARIO applicabile (nelle more dell'approvazione ARERA)
D69: UdM | E69: ANNO 2024 | F69: ANNO 2025 | G69: ANNO 2026 | H69: ANNO 2027 | I69: ANNO 2028 | J69: ANNO 2029 | K69: ANNO 2030 | L69: ANNO 2031 | M69: ANNO 2032 | N69: ANNO 2033 | O69: ANNO 2034 | P69: ANNO 2035 | Q69: ANNO 2036 | R69: ANNO 2037 | S69: ANNO 2038 | T69: ANNO 2039 | U69: ANNO 2040 | V69: ANNO 2041 | W69: ANNO 2042 | X69: ANNO 2043 | Y69: ANNO 2044 | Z69: ANNO 2045 | AA69: ANNO 2046 | AB69: ANNO 2047 | AC69: ANNO 2048 | AD69: ANNO 2049 | AE69: ANNO 2050 | AF69: ANNO 2051 | AG69: ANNO 2052 | AH69: ANNO 2053 | AI69: ANNO 2054 | AJ69: ANNO 2055 | AK69: ANNO 2056 | AL69: ANNO 2057 | AM69: ANNO 2058 | AN69: ANNO 2059 | AO69: ANNO 2060 | AP69: ANNO 2061 | AQ69: ANNO 2062 | AR69: ANNO 2063
C70: Limite al moltiplicatore tariffario | D70: n. (3 cifre decimali)
C71: VRGa (coerente con J applicabile) | D71: euro
C72: Ja applicabile | D72: n. (3 cifre decimali)
C74: Quota da recupero efficienza per alimentazione Fondo per la promozione dell'innovazione nel servizio idrico integrato
D75: UdM | E75: ANNO 2024 | F75: ANNO 2025 | G75: ANNO 2026 | H75: ANNO 2027 | I75: ANNO 2028 | J75: ANNO 2029 | K75: ANNO 2030 | L75: ANNO 2031 | M75: ANNO 2032 | N75: ANNO 2033 | O75: ANNO 2034 | P75: ANNO 2035 | Q75: ANNO 2036 | R75: ANNO 2037 | S75: ANNO 2038 | T75: ANNO 2039 | U75: ANNO 2040 | V75: ANNO 2041 | W75: ANNO 2042 | X75: ANNO 2043 | Y75: ANNO 2044 | Z75: ANNO 2045 | AA75: ANNO 2046 | AB75: ANNO 2047 | AC75: ANNO 2048 | AD75: ANNO 2049 | AE75: ANNO 2050 | AF75: ANNO 2051 | AG75: ANNO 2052 | AH75: ANNO 2053 | AI75: ANNO 2054 | AJ75: ANNO 2055 | AK75: ANNO 2056 | AL75: ANNO 2057 | AM75: ANNO 2058 | AN75: ANNO 2059 | AO75: ANNO 2060 | AP75: ANNO 2061 | AQ75: ANNO 2062 | AR75: ANNO 2063
C76: Quota da recupero efficienza (€/mc) | D76: €/mc
C77: (1+γOPi,j)*max(0;ΔOpex) | D77: euro
C79: INVESTIMENTI
D80: UdM | E80: ANNO 2024 | F80: ANNO 2025 | G80: ANNO 2026 | H80: ANNO 2027 | I80: ANNO 2028 | J80: ANNO 2029 | K80: ANNO 2030 | L80: ANNO 2031 | M80: ANNO 2032 | N80: ANNO 2033 | O80: ANNO 2034 | P80: ANNO 2035 | Q80: ANNO 2036 | R80: ANNO 2037 | S80: ANNO 2038 | T80: ANNO 2039 | U80: ANNO 2040 | V80: ANNO 2041 | W80: ANNO 2042 | X80: ANNO 2043 | Y80: ANNO 2044 | Z80: ANNO 2045 | AA80: ANNO 2046 | AB80: ANNO 2047 | AC80: ANNO 2048 | AD80: ANNO 2049 | AE80: ANNO 2050 | AF80: ANNO 2051 | AG80: ANNO 2052 | AH80: ANNO 2053 | AI80: ANNO 2054 | AJ80: ANNO 2055 | AK80: ANNO 2056 | AL80: ANNO 2057 | AM80: ANNO 2058 | AN80: ANNO 2059 | AO80: ANNO 2060 | AP80: ANNO 2061 | AQ80: ANNO 2062 | AR80: ANNO 2063
C81: Investimenti al lordo dei contributi | D81: euro
C82: Contributi | D82: euro
C83: Investimenti al netto dei contributi | D83: euro
C84: CIN | D84: euro
C85: CINfp | D85: euro
C86: OF/CIN | D86: %
C88: Interventi funzionali alla risoluzione delle sentenze di condanna della Corte di Giustizia Europea e Contabilità speciale del Commissario Unico (Del. 440/2017/R/idr)
D89: UdM | E89: 2024-2029
C90: Fabbisogno degli investimenti per adeguamento agglomerati oggetto di condanne UE del 19/07/2012 e 10/04/2014 | D90: euro
C91: Fabbisogno di investimenti coperto da tariffa | D91: euro
C92: Fabbisogno di investimenti coperto con risorse regionali o altre fonti pubbliche | D92: euro
C93: Risorse da destinare alla contabilità speciale del Commissario Unico | D93: euro
C94: Parte del VRG destinata alla contabilità speciale del Commissario Unico | D94: euro
C95: Risorse regionali o altre fonti pubbliche destinate alla contabilità speciale del Commissario Unico | D95: euro
C97: VALORE RESIDUO A FINE CONCESSIONE
D98: UdM | E98: Del. 639/2023/R/IDR
C99: Ipc,t | D99: euro
C100: FAIP,c,t | D100: euro
C101: CFPc,t | D101: euro
C102: FACFP,c,t | D102: euro
C103: LIC | D103: euro
C104: VR a fine concessione | D104: euro

Sheet DCUIT
A2: Titolo 3 MTI-4 - art. 14 | C2: ΔCUIT - Immobilizzazioni di terzi
AB5: Anno 2024 | AC5: Anno 2025 | AD5: Anno 2026 | AE5: Anno 2027 | AF5: Anno 2028 | AG5: Anno 2029 | AJ5: Anno 2024 | AK5: Anno 2025 | AL5: Anno 2026 | AM5: Anno 2027 | AN5: Anno 2028 | AO5: Anno 2029 | AP5: Anno 2024 | AQ5: Anno 2025 | AR5: Anno 2026 | AS5: Anno 2027 | AT5: Anno 2028 | AU5: Anno 2029 | AV5: Anno 2024 | AW5: Anno 2025 | AX5: Anno 2026 | AY5: Anno 2027 | AZ5: Anno 2028 | BA5: Anno 2029 | BB5: Anno 2024 | BC5: Anno 2025 | BD5: Anno 2026 | BE5: Anno 2027 | BF5: Anno 2028 | BG5: Anno 2029 | BH5: Anno 2024 | BI5: Anno 2025 | BJ5: Anno 2026 | BK5: Anno 2027 | BL5: Anno 2028 | BM5: Anno 2029 | BN5: Anno 2024 | BO5: Anno 2025 | BP5: Anno 2026 | BQ5: Anno 2027 | BR5: Anno 2028 | BS5: Anno 2029 | BT5: Anno 2024 | BU5: Anno 2025 | BV5: Anno 2026 | BW5: Anno 2027 | BX5: Anno 2028 | BY5: Anno 2029 | BZ5: Anno 2024 | CA5: Anno 2025 | CB5: Anno 2026 | CC5: Anno 2027 | CD5: Anno 2028 | CE5: Anno 2029
A6: New_Key_prop | B6: CINp 2024 | C6: CINp 2025 | D6: CINp 2026 | E6: CINp 2027 | F6: CINp 2028 | G6: CINp 2029 | H6: AMMp 2024 | I6: AMMp 2025 | J6: AMMp 2026 | K6: AMMp 2027 | L6: AMMp 2028 | M6: AMMp 2029 | N6: CINfp,p 2024 | O6: CINfp,p 2025 | P6: CINfp,p 2026 | Q6: CINfp,p 2027 | R6: CINfp,p 2028 | S6: CINfp,p 2029 | T6: AMMcfp,p 2024 | U6: AMMcfp,p 2025 | V6: AMMcfp,p 2026 | W6: AMMcfp,p 2027 | X6: AMMcfp,p 2028 | AB6: ΔCUIT | AC6: ΔCUIT | AD6: ΔCUIT | AE6: ΔCUIT | AF6: ΔCUIT | AG6: ΔCUIT | AJ6: CINp | AK6: CINp | AL6: CINp | AM6: CINp | AN6: CINp | AO6: CINp | AP6: CINfp,p / CIN | AQ6: CINfp,p / CIN | AR6: CINfp,p / CIN | AS6: CINfp,p / CIN | AT6: CINfp,p / CIN | AU6: CINfp,p / CIN | AV6: Rai | AW6: Rai | AX6: Rai | AY6: Rai | AZ6: Rai | BA6: Rai | BB6: OFp | BC6: OFp | BD6: OFp | BE6: OFp | BF6: OFp | BG6: OFp | BH6: OFiscp | BI6: OFiscp | BJ6: OFiscp | BK6: OFiscp | BL6: OFiscp | BM6: OFiscp | BN6: AMMp | BO6: AMMp | BP6: AMMp | BQ6: AMMp | BR6: AMMp | BS6: AMMp | BT6: MT | BU6: MT | BV6: MT | BW6: MT | BX6: MT | BY6: MT | BZ6: AC | CA6: AC | CB6: AC | CC6: AC | CD6: AC | CE6: AC
B7: 0 | C7: 0 | D7: 0 | E7: 0 | F7: 0 | G7: 0 | H7: 0 | I7: 0 | J7: 0 | K7: 0 | L7: 0 | M7: 0 | N7: 0 | O7: 0 | P7: 0 | Q7: 0 | R7: 0 | S7: 0 | T7: 0 | U7: 0 | V7: 0 | W7: 0 | X7: 0 | AD7: =MAX(0,((BP7+BD7+BJ7)-(BV7+CB7))) -> 0 | AE7: 0 | AF7: 0 | AG7: 0 | AL7: =+IFERROR(D7*1,0) -> 0 | AM7: 0 | AN7: 0 | AO7: 0 | AR7: =IFERROR(P7/AL7,0) -> 0 | AS7: 0 | AT7: 0 | AU7: 0 | AX7: =((1+((TT_parametri!$BF$36+TT_parametri!$BF$37+1)*(1+TT_parametri!$BF$33)-1)/(1-TT_parametri!$BF$35))/(1+TT_parametri!$BF$33)-1)*(1-AR7)*AL7 -> 0 | AY7: =((1+((TT_parametri!$BF$36+TT_parametri!$BF$37+1)*(1+TT_parametri!$BF$33)-1)/(1-TT_parametri!$BF$35))/(1+TT_parametri!$BF$33)-1)*(1-AS7)*AM7 -> 0 | AZ7: =((1+((TT_parametri!$BF$36+TT_parametri!$BF$37+1)*(1+TT_parametri!$BF$33)-1)/(1-TT_parametri!$BF$35))/(1+TT_parametri!$BF$33)-1)*(1-AT7)*AN7 -> 0 | BA7: =((1+((TT_parametri!$BF$36+TT_parametri!$BF$37+1)*(1+TT_parametri!$BF$33)-1)/(1-TT_parametri!$BF$35))/(1+TT_parametri!$BF$33)-1)*(1-AU7)*AO7 -> 0 | BD7: =MAX(+(TT_parametri!$BF$36+TT_parametri!$BF$37)*(1-AR7)*AL7,0) -> 0 | BE7: =MAX(+(TT_parametri!$BF$36+TT_parametri!$BF$37)*(1-AS7)*AM7,0) -> 0 | BF7: =MAX(+(TT_parametri!$BF$36+TT_parametri!$BF$37)*(1-AT7)*AN7,0) -> 0 | BG7: =MAX(+(TT_parametri!$BF$36+TT_parametri!$BF$37)*(1-AU7)*AO7,0) -> 0 | BJ7: =MAX(0.319*AX7,0) -> 0 | BK7: 0 | BL7: 0 | BM7: 0 | BP7: =+IFERROR(J7*1,0) -> 0 | BQ7: 0 | BR7: 0 | BS7: 0 | BV7: =+IFERROR(VLOOKUP($A7,Corrispettivi_proprietari!$B:$AJ,COLUMN(Y7)-1,FALSE),0) -> 0 | BW7: =+IFERROR(VLOOKUP($A7,Corrispettivi_proprietari!$B:$AJ,COLUMN(Z7)-1,FALSE),0) -> 0 | BX7: =+IFERROR(VLOOKUP($A7,Corrispettivi_proprietari!$B:$AJ,COLUMN(AA7)-1,FALSE),0) -> 0 | BY7: =+IFERROR(VLOOKUP($A7,Corrispettivi_proprietari!$B:$AJ,COLUMN(AB7)-1,FALSE),0) -> 0 | CB7: =+IFERROR(VLOOKUP($A7,Corrispettivi_proprietari!$B:$AJ,COLUMN(AF7)-1,FALSE),0) -> 0 | CC7: =+IFERROR(VLOOKUP($A7,Corrispettivi_proprietari!$B:$AJ,COLUMN(AG7)-1,FALSE),0) -> 0 | CD7: =+IFERROR(VLOOKUP($A7,Corrispettivi_proprietari!$B:$AJ,COLUMN(AH7)-1,FALSE),0) -> 0 | CE7: =+IFERROR(VLOOKUP($A7,Corrispettivi_proprietari!$B:$AJ,COLUMN(AI7)-1,FALSE),0) -> 0

Sheet IMN_consolidamento
A3: consolidamento immobilizzazioni Include le immobilizzazioni fino ai nuovi investimenti a moneta dell'anno del cespite Il foglio è solo di supporto al calcolo e non va compilato manualmente | S3: Sezione di elaborazione dei dati forniti
A5: IDATO | B5: IDGestore | C5: Gestore_Proprietario | D5: N_prop | E5: Fonte | F5: ID_Categoria_Cespite | G5: CategoriaCespite | H5: ID_Immobilizzazione | I5: IMMOBILIZZAZIONE | J5: AnnoCespite | K5: IP | L5: FAIP | M5: CFP | N5: FACP | O5: - | P5: Tipologia di costo sotteso | Q5: Attività | R5: foglio di origine | S5: n_riga
A6: 0 | B6: 0 | R6: 0 | S6: =+ROW(S6)-ROW($S$5) -> 1

Sheet IMN_gestore
A1: q_RAB
D2: IMNGestore
A5: ID categoria cespite | B5: Categoria cespite | C5: ID Immobilizzazione | D5: IMMOBILIZZAZIONE | E5: Anno Cespite | F5: Per dismissioni | G5: Tipologia di costo sotteso | H5: Attività | I5: foglio di origine | J5: IP | K5: FAIP | L5: CFP | M5: FACFP | O5: VU 2024 | P5: IP 2024 | Q5: FAIP 2024 | R5: IP netto 2024 | S5: AMM 2024 | T5: componente tariffaria AMM 2024 | U5: CFP 2024 | V5: FA CFP 2024 | W5: CFP netto 2024 | X5: AMM CFP 2024 | Y5: aa | Z5: VU 2025 | AA5: IP 2025 | AB5: FAIP 2025 | AC5: IP netto 2025 | AD5: AMM 2025 | AE5: componente tariffaria AMM 2025 | AF5: CFP 2025 | AG5: FA CFP 2025 | AH5: CFP netto 2025 | AI5: AMM CFP 2025 | AJ5: aaa | AK5: VU 2026 | AL5: IP 2026 | AM5: FAIP 2026 | AN5: IP netto 2026 | AO5: AMM 2026 | AP5: componente tariffaria AMM 2026 | AQ5: CFP 2026 | AR5: FA CFP 2026 | AS5: CFP netto 2026 | AT5: AMM CFP 2026 | AU5: aaaa | AV5: VU 2027 | AW5: IP 2027 | AX5: FAIP 2027 | AY5: IP netto 2027 | AZ5: AMM 2027 | BA5: componente tariffaria AMM 2027 | BB5: CFP 2027 | BC5: FA CFP 2027 | BD5: CFP netto 2027 | BE5: AMM CFP 2027 | BF5: aaaa | BG5: VU 2028 | BH5: IP 2028 | BI5: FAIP 2028 | BJ5: IP netto 2028 | BK5: AMM 2028 | BL5: componente tariffaria AMM 2028 | BM5: CFP 2028 | BN5: FA CFP 2028 | BO5: CFP netto 2028 | BP5: AMM CFP 2028 | BQ5: aaaa | BR5: VU 2029 | BS5: IP 2029 | BT5: FAIP 2029 | BU5: IP netto 2029 | BV5: AMM 2029 | BW5: componente tariffaria AMM 2029 | BX5: CFP 2029 | BY5: FA CFP 2029 | BZ5: CFP netto 2029 | CA5: AMM CFP 2029
A6: (blank) | B6: (blank) | C6: (blank) | D6: (blank) | E6: (blank) | F6: (blank) | G6: (blank) | H6: (blank) | I6: 0 | J6: 0 | K6: 0 | L6: 0 | M6: 0 | O6: =+IFERROR(P6/ROUNDDOWN(S6,0),"-") -> - | P6: =IF($G6="Dismissioni",IFERROR(DISM(ABS($J6),$A6,$C6,$E6,VALUE(RIGHT(P$5,4)),ifl),0)*-1,IFERROR(IP(ABS($J6),$A6,$C6,$E6,VALUE(RIGHT(P$5,4)),ifl),0)) -> 0 | Q6: =IF($G6="Dismissioni",IFERROR(FondoAmm_dism(ABS($J6),ABS($K6),$E6,$A6,$C6,VALUE(RIGHT(Q$5,4)),IF($F6>=2020,vite_regolatorie_new,vite_regolatorie),ifl),0)*-1,IFERROR(FondoAmm(ABS($J6),ABS($K6),$E6,$A6,$C6,VALUE(RIGHT(Q$5,4)),IF($E6>=2020,vite_regolatorie_new,vite_regolatorie),ifl),0)) -> 0 | R6: =+P6-Q6 -> 0 | S6: =IF($G6="Dismissioni",IFERROR(QA_DISM(ABS($J6),ABS($K6),$E6,$A6,$C6,VALUE(RIGHT(S$5,4)),IF($F6>=2020,vite_regolatorie_new,vite_regolatorie),ifl),0)*-1,IFERROR(QA(ABS($J6),ABS($K6),$E6,$A6,$C6,VALUE(RIGHT(S$5,4)),IF($E6>=2020,vite_regolatorie_new,vite_regolatorie),ifl),0)) -> 0 | T6: =+S6-X6 -> 0 | U6: =IF($G6="Dismissioni",IFERROR(CFP_DISM_A(ABS($L6),$A6,$E6,$C6,VALUE(RIGHT(U$5,4)),ifl)*-1,0),IFERROR(CFP_A(ABS($L6),$A6,$C6,$E6,VALUE(RIGHT(U$5,4)),ifl),0)) -> 0 | V6: =IF($G6="Dismissioni",IFERROR(FACFP_DISM(ABS($L6),ABS($M6),$E6,$A6,$C6,VALUE(RIGHT(V$5,4)),IF($F6>=2020,vite_regolatorie_new,vite_regolatorie),ifl)*-1,0),IFERROR(FACFP(ABS($L6),ABS($M6),$E6,$A6,$C6,VALUE(RIGHT(V$5,4)),IF($E6>=2020,vite_regolatorie_new,vite_regolatorie),ifl),0)) -> 0 | W6: =+U6-V6 -> 0 | X6: =IF($G6="Dismissioni",IFERROR(QA_CFP_DISM(ABS($L6),ABS($M6),$E6,$A6,$C6,VALUE(RIGHT(X$5,4)),IF($F6>=2020,vite_regolatorie_new,vite_regolatorie),ifl)*-1,0),IFERROR(QA_CFP(ABS($L6),ABS($M6),$E6,$C6,$A6,VALUE(RIGHT(X$5,4)),IF($E6>=2020,vite_regolatorie_new,vite_regolatorie),ifl),0)) -> 0 | Z6: =+IFERROR(AA6/ROUNDDOWN(AD6,0),"-") -> - | AA6: =IF($G6="Dismissioni",IFERROR(DISM(ABS($J6),$A6,$C6,$E6,VALUE(RIGHT(AA$5,4)),ifl),0)*-1,IFERROR(IP(ABS($J6),$A6,$C6,$E6,VALUE(RIGHT(AA$5,4)),ifl),0)) -> 0 | AB6: =IF($G6="Dismissioni",IFERROR(FondoAmm_dism(ABS($J6),ABS($K6),$E6,$A6,$C6,VALUE(RIGHT(AB$5,4)),IF($F6>=2020,vite_regolatorie_new,vite_regolatorie),ifl),0)*-1,IFERROR(FondoAmm(ABS($J6),ABS($K6),$E6,$A6,$C6,VALUE(RIGHT(AB$5,4)),IF($E6>=2020,vite_regolatorie_new,vite_regolatorie),ifl),0)) -> 0 | AC6: =+AA6-AB6 -> 0 | AD6: =IF($G6="Dismissioni",IFERROR(QA_DISM(ABS($J6),ABS($K6),$E6,$A6,$C6,VALUE(RIGHT(AD$5,4)),IF($F6>=2020,vite_regolatorie_new,vite_regolatorie),ifl),0)*-1,IFERROR(QA(ABS($J6),ABS($K6),$E6,$A6,$C6,VALUE(RIGHT(AD$5,4)),IF($E6>=2020,vite_regolatorie_new,vite_regolatorie),ifl),0)) -> 0 | AE6: =+AD6-AI6 -> 0 | AF6: =IF($G6="Dismissioni",IFERROR(CFP_DISM_A(ABS($L6),$A6,$E6,$C6,VALUE(RIGHT(AF$5,4)),ifl)*-1,0),IFERROR(CFP_A(ABS($L6),$A6,$C6,$E6,VALUE(RIGHT(AF$5,4)),ifl),0)) -> 0 | AG6: =IF($G6="Dismissioni",IFERROR(FACFP_DISM(ABS($L6),ABS($M6),$E6,$A6,$C6,VALUE(RIGHT(AG$5,4)),IF($F6>=2020,vite_regolatorie_new,vite_regolatorie),ifl)*-1,0),IFERROR(FACFP(ABS($L6),ABS($M6),$E6,$A6,$C6,VALUE(RIGHT(AG$5,4)),IF($E6>=2020,vite_regolatorie_new,vite_regolatorie),ifl),0)) -> 0 | AH6: =+AF6-AG6 -> 0 | AI6: =IF($G6="Dismissioni",IFERROR(QA_CFP_DISM(ABS($L6),ABS($M6),$E6,$A6,$C6,VALUE(RIGHT(AI$5,4)),IF($F6>=2020,vite_regolatorie_new,vite_regolatorie),ifl)*-1,0),IFERROR(QA_CFP(ABS($L6),ABS($M6),$E6,$C6,$A6,VALUE(RIGHT(AI$5,4)),IF($E6>=2020,vite_regolatorie_new,vite_regolatorie),ifl),0)) -> 0 | AK6: =+IFERROR(AL6/ROUNDDOWN(AO6,0),"-") -> - | AL6: =IF($G6="Dismissioni",IFERROR(DISM(ABS($J6),$A6,$C6,$E6,VALUE(RIGHT(AL$5,4)),ifl),0)*-1,IFERROR(IP(ABS($J6),$A6,$C6,$E6,VALUE(RIGHT(AL$5,4)),ifl),0)) -> 0 | AM6: =IF($G6="Dismissioni",IFERROR(FondoAmm_dism(ABS($J6),ABS($K6),$E6,$A6,$C6,VALUE(RIGHT(AM$5,4)),IF($F6>=2020,vite_regolatorie_new,vite_regolatorie),ifl),0)*-1,IFERROR(FondoAmm(ABS($J6),ABS($K6),$E6,$A6,$C6,VALUE(RIGHT(AM$5,4)),IF($E6>=2020,vite_regolatorie_new,vite_regolatorie),ifl),0)) -> 0 | AN6: =+AL6-AM6 -> 0 | AO6: =IF($G6="Dismissioni",IFERROR(QA_DISM(ABS($J6),ABS($K6),$E6,$A6,$C6,VALUE(RIGHT(AO$5,4)),IF($F6>=2020,vite_regolatorie_new,vite_regolatorie),ifl),0)*-1,IFERROR(QA(ABS($J6),ABS($K6),$E6,$A6,$C6,VALUE(RIGHT(AO$5,4)),IF($E6>=2020,vite_regolatorie_new,vite_regolatorie),ifl),0)) -> 0 | AP6: =+AO6-AT6 -> 0 | AQ6: =IF($G6="Dismissioni",IFERROR(CFP_DISM_A(ABS($L6),$A6,$E6,$C6,VALUE(RIGHT(AQ$5,4)),ifl)*-1,0),IFERROR(CFP_A(ABS($L6),$A6,$C6,$E6,VALUE(RIGHT(AQ$5,4)),ifl),0)) -> 0 | AR6: =IF($G6="Dismissioni",IFERROR(FACFP_DISM(ABS($L6),ABS($M6),$E6,$A6,$C6,VALUE(RIGHT(AR$5,4)),IF($F6>=2020,vite_regolatorie_new,vite_regolatorie),ifl)*-1,0),IFERROR(FACFP(ABS($L6),ABS($M6),$E6,$A6,$C6,VALUE(RIGHT(AR$5,4)),IF($E6>=2020,vite_regolatorie_new,vite_regolatorie),ifl),0)) -> 0 | AS6: =+AQ6-AR6 -> 0 | AT6: =IF($G6="Dismissioni",IFERROR(QA_CFP_DISM(ABS($L6),ABS($M6),$E6,$A6,$C6,VALUE(RIGHT(AT$5,4)),IF($F6>=2020,vite_regolatorie_new,vite_regolatorie),ifl)*-1,0),IFERROR(QA_CFP(ABS($L6),ABS($M6),$E6,$C6,$A6,VALUE(RIGHT(AT$5,4)),IF($E6>=2020,vite_regolatorie_new,vite_regolatorie),ifl),0)) -> 0 | AV6: =+IFERROR(AW6/ROUNDDOWN(AZ6,0),"-") -> - | AW6: =IF($G6="Dismissioni",IFERROR(DISM(ABS($J6),$A6,$C6,$E6,VALUE(RIGHT(AW$5,4)),ifl),0)*-1,IFERROR(IP(ABS($J6),$A6,$C6,$E6,VALUE(RIGHT(AW$5,4)),ifl),0)) -> 0 | AX6: =IF($G6="Dismissioni",IFERROR(FondoAmm_dism(ABS($J6),ABS($K6),$E6,$A6,$C6,VALUE(RIGHT(AX$5,4)),IF($F6>=2020,vite_regolatorie_new,vite_regolatorie),ifl),0)*-1,IFERROR(FondoAmm(ABS($J6),ABS($K6),$E6,$A6,$C6,VALUE(RIGHT(AX$5,4)),IF($E6>=2020,vite_regolatorie_new,vite_regolatorie),ifl),0)) -> 0 | AY6: =+AW6-AX6 -> 0 | AZ6: =IF($G6="Dismissioni",IFERROR(QA_DISM(ABS($J6),ABS($K6),$E6,$A6,$C6,VALUE(RIGHT(AZ$5,4)),IF($F6>=2020,vite_regolatorie_new,vite_regolatorie),ifl),0)*-1,IFERROR(QA(ABS($J6),ABS($K6),$E6,$A6,$C6,VALUE(RIGHT(AZ$5,4)),IF($E6>=2020,vite_regolatorie_new,vite_regolatorie),ifl),0)) -> 0 | BA6: =+AZ6-BE6 -> 0 | BB6: =IF($G6="Dismissioni",IFERROR(CFP_DISM_A(ABS($L6),$A6,$E6,$C6,VALUE(RIGHT(BB$5,4)),ifl)*-1,0),IFERROR(CFP_A(ABS($L6),$A6,$C6,$E6,VALUE(RIGHT(BB$5,4)),ifl),0)) -> 0 | BC6: =IF($G6="Dismissioni",IFERROR(FACFP_DISM(ABS($L6),ABS($M6),$E6,$A6,$C6,VALUE(RIGHT(BC$5,4)),IF($F6>=2020,vite_regolatorie_new,vite_regolatorie),ifl)*-1,0),IFERROR(FACFP(ABS($L6),ABS($M6),$E6,$A6,$C6,VALUE(RIGHT(BC$5,4)),IF($E6>=2020,vite_regolatorie_new,vite_regolatorie),ifl),0)) -> 0 | BD6: =+BB6-BC6 -> 0 | BE6: =IF($G6="Dismissioni",IFERROR(QA_CFP_DISM(ABS($L6),ABS($M6),$E6,$A6,$C6,VALUE(RIGHT(BE$5,4)),IF($F6>=2020,vite_regolatorie_new,vite_regolatorie),ifl)*-1,0),IFERROR(QA_CFP(ABS($L6),ABS($M6),$E6,$C6,$A6,VALUE(RIGHT(BE$5,4)),IF($E6>=2020,vite_regolatorie_new,vite_regolatorie),ifl),0)) -> 0 | BG6: =+IFERROR(BH6/ROUNDDOWN(BK6,0),"-") -> - | BH6: =IF($G6="Dismissioni",IFERROR(DISM(ABS($J6),$A6,$C6,$E6,VALUE(RIGHT(BH$5,4)),ifl),0)*-1,IFERROR(IP(ABS($J6),$A6,$C6,$E6,VALUE(RIGHT(BH$5,4)),ifl),0)) -> 0 | BI6: =IF($G6="Dismissioni",IFERROR(FondoAmm_dism(ABS($J6),ABS($K6),$E6,$A6,$C6,VALUE(RIGHT(BI$5,4)),IF($F6>=2020,vite_regolatorie_new,vite_regolatorie),ifl),0)*-1,IFERROR(FondoAmm(ABS($J6),ABS($K6),$E6,$A6,$C6,VALUE(RIGHT(BI$5,4)),IF($E6>=2020,vite_regolatorie_new,vite_regolatorie),ifl),0)) -> 0 | BJ6: =+BH6-BI6 -> 0 | BK6: =IF($G6="Dismissioni",IFERROR(QA_DISM(ABS($J6),ABS($K6),$E6,$A6,$C6,VALUE(RIGHT(BK$5,4)),IF($F6>=2020,vite_regolatorie_new,vite_regolatorie),ifl),0)*-1,IFERROR(QA(ABS($J6),ABS($K6),$E6,$A6,$C6,VALUE(RIGHT(BK$5,4)),IF($E6>=2020,vite_regolatorie_new,vite_regolatorie),ifl),0)) -> 0 | BL6: =+BK6-BP6 -> 0 | BM6: =IF($G6="Dismissioni",IFERROR(CFP_DISM_A(ABS($L6),$A6,$E6,$C6,VALUE(RIGHT(BM$5,4)),ifl)*-1,0),IFERROR(CFP_A(ABS($L6),$A6,$C6,$E6,VALUE(RIGHT(BM$5,4)),ifl),0)) -> 0 | BN6: =IF($G6="Dismissioni",IFERROR(FACFP_DISM(ABS($L6),ABS($M6),$E6,$A6,$C6,VALUE(RIGHT(BN$5,4)),IF($F6>=2020,vite_regolatorie_new,vite_regolatorie),ifl)*-1,0),IFERROR(FACFP(ABS($L6),ABS($M6),$E6,$A6,$C6,VALUE(RIGHT(BN$5,4)),IF($E6>=2020,vite_regolatorie_new,vite_regolatorie),ifl),0)) -> 0 | BO6: =+BM6-BN6 -> 0 | BP6: =IF($G6="Dismissioni",IFERROR(QA_CFP_DISM(ABS($L6),ABS($M6),$E6,$A6,$C6,VALUE(RIGHT(BP$5,4)),IF($F6>=2020,vite_regolatorie_new,vite_regolatorie),ifl)*-1,0),IFERROR(QA_CFP(ABS($L6),ABS($M6),$E6,$C6,$A6,VALUE(RIGHT(BP$5,4)),IF($E6>=2020,vite_regolatorie_new,vite_regolatorie),ifl),0)) -> 0 | BR6: =+IFERROR(BS6/ROUNDDOWN(BV6,0),"-") -> - | BS6: =IF($G6="Dismissioni",IFERROR(DISM(ABS($J6),$A6,$C6,$E6,VALUE(RIGHT(BS$5,4)),ifl),0)*-1,IFERROR(IP(ABS($J6),$A6,$C6,$E6,VALUE(RIGHT(BS$5,4)),ifl),0)) -> 0 | BT6: =IF($G6="Dismissioni",IFERROR(FondoAmm_dism(ABS($J6),ABS($K6),$E6,$A6,$C6,VALUE(RIGHT(BT$5,4)),IF($F6>=2020,vite_regolatorie_new,vite_regolatorie),ifl),0)*-1,IFERROR(FondoAmm(ABS($J6),ABS($K6),$E6,$A6,$C6,VALUE(RIGHT(BT$5,4)),IF($E6>=2020,vite_regolatorie_new,vite_regolatorie),ifl),0)) -> 0 | BU6: =+BS6-BT6 -> 0 | BV6: =IF($G6="Dismissioni",IFERROR(QA_DISM(ABS($J6),ABS($K6),$E6,$A6,$C6,VALUE(RIGHT(BV$5,4)),IF($F6>=2020,vite_regolatorie_new,vite_regolatorie),ifl),0)*-1,IFERROR(QA(ABS($J6),ABS($K6),$E6,$A6,$C6,VALUE(RIGHT(BV$5,4)),IF($E6>=2020,vite_regolatorie_new,vite_regolatorie),ifl),0)) -> 0 | BW6: =+BV6-CA6 -> 0 | BX6: =IF($G6="Dismissioni",IFERROR(CFP_DISM_A(ABS($L6),$A6,$E6,$C6,VALUE(RIGHT(BX$5,4)),ifl)*-1,0),IFERROR(CFP_A(ABS($L6),$A6,$C6,$E6,VALUE(RIGHT(BX$5,4)),ifl),0)) -> 0 | BY6: =IF($G6="Dismissioni",IFERROR(FACFP_DISM(ABS($L6),ABS($M6),$E6,$A6,$C6,VALUE(RIGHT(BY$5,4)),IF($F6>=2020,vite_regolatorie_new,vite_regolatorie),ifl)*-1,0),IFERROR(FACFP(ABS($L6),ABS($M6),$E6,$A6,$C6,VALUE(RIGHT(BY$5,4)),IF($E6>=2020,vite_regolatorie_new,vite_regolatorie),ifl),0)) -> 0 | BZ6: =+BX6-BY6 -> 0 | CA6: =IF($G6="Dismissioni",IFERROR(QA_CFP_DISM(ABS($L6),ABS($M6),$E6,$A6,$C6,VALUE(RIGHT(CA$5,4)),IF($F6>=2020,vite_regolatorie_new,vite_regolatorie),ifl)*-1,0),IFERROR(QA_CFP(ABS($L6),ABS($M6),$E6,$C6,$A6,VALUE(RIGHT(CA$5,4)),IF($E6>=2020,vite_regolatorie_new,vite_regolatorie),ifl),0)) -> 0

Sheet Framework_schemi
A2: Titolo 1 MTI-4 - Art. 2 Titolo 2 MTI-4 - Art. 6 | B2: Regolazione tariffaria applicabile Matrice di schemi regolatori
B4: Regolazione tariffaria applicabile
D7: Del. 582/2025/R/IDR
B8: Informazioni sulla predisposizione tariffaria | D8: =+IF(OR(Input_per_calcoli_finali!K25="",D13="",D14="",D15="",D16="",D17=""),"",IF(Input_per_calcoli_finali!K25="Schema regolatorio di convergenza","Schema regolatorio di convergenza",IF(PRODUCT(C13:C17)=0,"Escluso dall'aggiornamento tariffario","Schema regolatorio"))) -> 
B12: Verifica cause di esclusione | D12: Del. 582/2025/R/IDR
B13: Gestione in possesso di un titolo giuridico ad esercire il servizio conforme alla normativa, ovvero gestione interessata da procedure di affidamento già avviate | C13: =+IF(D13="SI",1,0) -> 0 | D13: =IF(Input_per_calcoli_finali!K12="","",Input_per_calcoli_finali!K12) -> 
B14: Assenza di un consumo minimo impegnato per la fatturazione alle utenze | C14: =+IF(D14="SI",1,0) -> 0 | D14: =IF(Input_per_calcoli_finali!K17="","",Input_per_calcoli_finali!K17) -> 
B15: Adozione Carta dei Servizi | C15: =+IF(D15="SI",1,0) -> 0 | D15: =IF(Input_per_calcoli_finali!K16="","",Input_per_calcoli_finali!K16) -> 
B16: Versamento delle componenti perequative a CSEA | C16: =+IF(D16="SI",1,0) -> 0 | D16: =+IF(Input_per_calcoli_finali!K18="","",Input_per_calcoli_finali!K18) -> 
B17: Assenza di ritardi e carenze nell’implementazione dei piani (in precedenza comunicati all’Autorità) per il superamento della mancanza dei pertinenti prerequisiti | C17: =+IF(D17="SI",1,0) -> 0 | D17: =IF(Input_per_calcoli_finali!K19="","",Input_per_calcoli_finali!K19) -> 
B22: Matrice di schemi regolatori
G27: AGGREGAZIONI O VARIAZIONI DEI PROCESSI TECNICI SIGNIFICATIVE
C30: Schema I | E30: Schema II | G30: Schema III
C34: Schema IV | E34: Schema V | G34: Schema VI
G43: limite alla crescita del moltiplicatore tariffario
B44: Posizionamento nella matrice | C44: elemento i,j | D44: Schema | E44: γk | F44: γx | G44: 2026 | H44: 2027 | I44: 2028 | J44: 2029
B45: prima riga, prima colonna | C45: 1-1 | D45: Schema I | E45: 0.25 | F45: 0.5 | G45: =1+rpi+((1+$E45)*(kschema+IF(Affidamento!$E$13>0,0,Affidamento!$E$13))-((1+$F45)*(xschema+IF(Affidamento!$E$14<0,0,Affidamento!$E$14)))) -> 1.059 | H45: =1+rpi+((1+$E45)*(kschema+IF(Affidamento!$F$13>0,0,Affidamento!$F$13))-((1+$F45)*(xschema+IF(Affidamento!$F$14<0,0,Affidamento!$F$14)))) -> 1.059 | I45: =1+rpi+((1+$E45)*(kschema+IF(Affidamento!$G$13>0,0,Affidamento!$G$13))-(1+$F45)*(xschema+IF(Affidamento!$G$14<0,0,Affidamento!$G$14))) -> 1.059 | J45: =1+rpi+((1+$E45)*(kschema+IF(Affidamento!$H$13>0,0,Affidamento!$H$13))-(1+$F45)*(xschema+IF(Affidamento!$H$14<0,0,Affidamento!$H$14))) -> 1.059
B46: prima riga, seconda colonna | C46: 1-2 | D46: Schema II | E46: 0.25 | F46: 1 | G46: =1+rpi+((1+$E46)*(kschema+IF(Affidamento!$E$13>0,0,Affidamento!$E$13))-((1+$F46)*(xschema+IF(Affidamento!$E$14<0,0,Affidamento!$E$14)))) -> 1.0515 | H46: =1+rpi+((1+$E46)*(kschema+IF(Affidamento!$F$13>0,0,Affidamento!$F$13))-((1+$F46)*(xschema+IF(Affidamento!$F$14<0,0,Affidamento!$F$14)))) -> 1.0515 | I46: =1+rpi+((1+$E46)*(kschema+IF(Affidamento!$G$13>0,0,Affidamento!$G$13))-(1+$F46)*(xschema+IF(Affidamento!$G$14<0,0,Affidamento!$G$14))) -> 1.0515 | J46: =1+rpi+((1+$E46)*(kschema+IF(Affidamento!$H$13>0,0,Affidamento!$H$13))-(1+$F46)*(xschema+IF(Affidamento!$H$14<0,0,Affidamento!$H$14))) -> 1.0515
B47: prima riga, terza colonna | C47: 1-3 | D47: Schema III | E47: 0.25 | F47: 0 | G47: =1+rpi+((1+$E47)*(kschema+IF(Affidamento!$E$13>0,0,Affidamento!$E$13))-((1+$F47)*(xschema+IF(Affidamento!$E$14<0,0,Affidamento!$E$14)))) -> 1.0665 | H47: =1+rpi+((1+$E47)*(kschema+IF(Affidamento!$F$13>0,0,Affidamento!$F$13))-((1+$F47)*(xschema+IF(Affidamento!$F$14<0,0,Affidamento!$F$14)))) -> 1.0665 | I47: =1+rpi+((1+$E47)*(kschema+IF(Affidamento!$G$13>0,0,Affidamento!$G$13))-(1+$F47)*(xschema+IF(Affidamento!$G$14<0,0,Affidamento!$G$14))) -> 1.0665 | J47: =1+rpi+((1+$E47)*(kschema+IF(Affidamento!$H$13>0,0,Affidamento!$H$13))-(1+$F47)*(xschema+IF(Affidamento!$H$14<0,0,Affidamento!$H$14))) -> 1.0665
B48: seconda riga, prima colonna | C48: 2-1 | D48: Schema IV | E48: 0.75 | F48: 0.5 | G48: =1+rpi+((1+$E48)*(kschema+IF(Affidamento!$E$13>0,0,Affidamento!$E$13))-((1+$F48)*(xschema+IF(Affidamento!$E$14<0,0,Affidamento!$E$14)))) -> 1.084 | H48: =1+rpi+((1+$E48)*(kschema+IF(Affidamento!$F$13>0,0,Affidamento!$F$13))-((1+$F48)*(xschema+IF(Affidamento!$F$14<0,0,Affidamento!$F$14)))) -> 1.084 | I48: =1+rpi+((1+$E48)*(kschema+IF(Affidamento!$G$13>0,0,Affidamento!$G$13))-(1+$F48)*(xschema+IF(Affidamento!$G$14<0,0,Affidamento!$G$14))) -> 1.084 | J48: =1+rpi+((1+$E48)*(kschema+IF(Affidamento!$H$13>0,0,Affidamento!$H$13))-(1+$F48)*(xschema+IF(Affidamento!$H$14<0,0,Affidamento!$H$14))) -> 1.084
B49: seconda riga, seconda colonna | C49: 2-2 | D49: Schema V | E49: 0.75 | F49: 1 | G49: =1+rpi+((1+$E49)*(kschema+IF(Affidamento!$E$13>0,0,Affidamento!$E$13))-((1+$F49)*(xschema+IF(Affidamento!$E$14<0,0,Affidamento!$E$14)))) -> 1.0765 | H49: =1+rpi+((1+$E49)*(kschema+IF(Affidamento!$F$13>0,0,Affidamento!$F$13))-((1+$F49)*(xschema+IF(Affidamento!$F$14<0,0,Affidamento!$F$14)))) -> 1.0765 | I49: =1+rpi+((1+$E49)*(kschema+IF(Affidamento!$G$13>0,0,Affidamento!$G$13))-(1+$F49)*(xschema+IF(Affidamento!$G$14<0,0,Affidamento!$G$14))) -> 1.0765 | J49: =1+rpi+((1+$E49)*(kschema+IF(Affidamento!$H$13>0,0,Affidamento!$H$13))-(1+$F49)*(xschema+IF(Affidamento!$H$14<0,0,Affidamento!$H$14))) -> 1.0765
B50: seconda riga, terza colonna | C50: 2-3 | D50: Schema VI | E50: 0.75 | F50: 0 | G50: =1+rpi+((1+$E50)*(kschema+IF(Affidamento!$E$13>0,0,Affidamento!$E$13))-((1+$F50)*(xschema+IF(Affidamento!$E$14<0,0,Affidamento!$E$14)))) -> 1.0915 | H50: =1+rpi+((1+$E50)*(kschema+IF(Affidamento!$F$13>0,0,Affidamento!$F$13))-((1+$F50)*(xschema+IF(Affidamento!$F$14<0,0,Affidamento!$F$14)))) -> 1.0915 | I50: =1+rpi+((1+$E50)*(kschema+IF(Affidamento!$G$13>0,0,Affidamento!$G$13))-(1+$F50)*(xschema+IF(Affidamento!$G$14<0,0,Affidamento!$G$14))) -> 1.0915 | J50: =1+rpi+((1+$E50)*(kschema+IF(Affidamento!$H$13>0,0,Affidamento!$H$13))-(1+$F50)*(xschema+IF(Affidamento!$H$14<0,0,Affidamento!$H$14))) -> 1.0915
B57: Parametri per schema regolatorio | C57: Del. 582/2025/R/IDR
B58: ω | C58: =+TT_parametri!BC42 -> 0.5
B59: rpi | C59: =TT_parametri!BC43 -> 0.019
B60: Kreg | C60: =TT_parametri!BC44 -> 0.05
B61: Xreg | C61: =TT_parametri!BC45 -> 0.015
B62: VRGPM | C62: =TT_parametri!BC46 -> 159
B65: Identificazione della riga della matrice di schemi | C65: Del. 582/2025/R/IDR
B66: (∑2024-2029 Ipaexp + CFPaexp ) | C66: =+Input_per_calcoli_finali!I43 -> 0
B67: RAB MTI-3 | C67: =Input_per_calcoli_finali!G49 -> 0
B68: (∑2024-2029 Ipaexp + CFPaexp ) / RABMTI-3 | C68: =+IFERROR(C66/C67,0) -> 0
B70: riga della matrice | C70: =IF(AND(Input_per_calcoli_finali!O55="Schema regolatorio",C68<=C58),1,IF(AND(Input_per_calcoli_finali!O55="Schema regolatorio",C68>C58),2,"")) -> 
B74: Identificazione della colonna della matrice di schemi | C74: Del. 582/2025/R/IDR
B75: Aggregazioni o variazioni dei processi tecnici significative | C75: =+IF(integr="nessuna","NO",IF(integr="","","SI")) -> 
B76: VRG2022 | C76: =Input_per_calcoli_finali!G38 -> 
B77: pop + 0,25popflut | C77: =Input_per_calcoli_finali!G39 -> 
B78: VRG2022 / pop + 0,25popflut | C78: =+IFERROR(C76/C77,"") -> 
B80: colonna della matrice | C80: =+IF(AND(Input_per_calcoli_finali!O55="Schema regolatorio",C75="SI"),3,IF(AND(Input_per_calcoli_finali!O55="Schema regolatorio",OPMi<=C62),1,IF(AND(Input_per_calcoli_finali!O53="Schema regolatorio",OPMi>C62),2,""))) -> 
B85: Identificazione dello schema della matrice MTI-4 | C85: Del. 582/2025/R/IDR | G85: 2026 | H85: 2027 | I85: 2028 | J85: 2029
B86: selezione dello schema | C86: =IF(Input_per_calcoli_finali!O55="Schema regolatorio",VLOOKUP(C70&"-"&C80,$C$45:$D$50,2,FALSE),IF(mti_4="Escluso dall'aggiornamento tariffario",1,"")) ->  | E86: limite alla crescita annuale del moltiplicatore tariffario | G86: =IFERROR(VLOOKUP(Quad,$D$45:$J$50,4,FALSE),IF(mti_4="Escluso dall'aggiornamento tariffario",1,"")) ->  | H86: =IFERROR(VLOOKUP(Quad,$D$45:$J$50,5,FALSE),IF(mti_4="Escluso dall'aggiornamento tariffario",1,"")) ->  | I86: =IFERROR(VLOOKUP(Quad,$D$45:$J$50,6,FALSE),IF(mti_4="Escluso dall'aggiornamento tariffario",1,"")) ->  | J86: =IFERROR(VLOOKUP(Quad,$D$45:$J$50,7,FALSE),IF(mti_4="Escluso dall'aggiornamento tariffario",1,"")) -> 
C94: Del. 639/2023/R/IDR
B95: selezione dello schema dati storici (dati storici) | C95: =Storico_Piano_Tariffario!E15 -> 0
B96: limite alla crescita annuale del moltiplicatore tariffario (dati storici) | C96: =IF(Storico_Piano_Tariffario!E70="","",Storico_Piano_Tariffario!E70) -> 

Sheet VRG_Teta
A2: Titolo 2 MTI-4 - Art. 4 Titolo 2 MTI-4 - Art. 5 | B2: Moltiplicatore tariffario Vincolo riconosciuto ai ricavi del gestore
B4: Sviluppo del VRG
B9: Componenti nel Piano Tariffario | C9: 2024 | D9: 2025 | E9: 2026 | F9: 2027 | G9: 2028 | H9: 2029
B10: VRGa | C10: =+SUM(C11:C15) -> 0 | D10: =+SUM(D11:D15) -> 0 | E10: =+SUM(E11:E15) -> 0 | F10: 0 | G10: 0 | H10: 0
B11: Capexa | C11: =+IFERROR(Capex!C10,0) -> 0 | D11: =+IFERROR(Capex!D10,0) -> 0 | E11: =+IFERROR(Capex!E10,0) -> 0 | F11: =+IFERROR(Capex!F10,0) -> 0 | G11: =+IFERROR(Capex!G10,0) -> 0 | H11: =+IFERROR(Capex!H10,0) -> 0
B12: FoNIa | C12: =+IFERROR(FoNI!C10,0) -> 0 | D12: =+IFERROR(FoNI!D10,0) -> 0 | E12: =+IFERROR(FoNI!E10,0) -> 0 | F12: =+IFERROR(FoNI!F10,0) -> 0 | G12: =+IFERROR(FoNI!G10,0) -> 0 | H12: =+IFERROR(FoNI!H10,0) -> 0
B13: Opexa | C13: =+IFERROR(Opex!C10,0) -> 0 | D13: =+IFERROR(Opex!D10,0) -> 0 | E13: =+IFERROR(Opex!E10,0) -> 0 | F13: =+IFERROR(Opex!F10,0) -> 0 | G13: =+IFERROR(Opex!G10,0) -> 0 | H13: =+IFERROR(Opex!H10,0) -> 0
B14: ERCa | C14: =+IFERROR(ERC!C10,0) -> 0 | D14: =+IFERROR(ERC!D10,0) -> 0 | E14: =+IFERROR(ERC!E10,0) -> 0 | F14: =+IFERROR(ERC!F10,0) -> 0 | G14: =+IFERROR(ERC!G10,0) -> 0 | H14: =+IFERROR(ERC!H10,0) -> 0
B15: RcTOTa | C15: =IFERROR('Rc'!C10,0) -> 0 | D15: =IFERROR('Rc'!D10,0) -> 0 | E15: =IFERROR('Rc'!E10,0) -> 0 | F15: =IFERROR('Rc'!F10,0) -> 0 | G15: =IFERROR('Rc'!G10,0) -> 0 | H15: =IFERROR('Rc'!H10,0) -> 0
B19: Eventuali detrazioni | C19: 2024 | D19: 2025 | E19: 2026 | F19: 2027 | G19: 2028 | H19: 2029
B20: Capexa | E20: =+E40-E11 -> 0 | F20: 0 | G20: 0 | H20: 0
B21: FoNIa | E21: 0 | F21: 0 | G21: 0 | H21: 0
B22: Opexa | E22: 0 | F22: 0 | G22: 0 | H22: 0
B23: ERCa | E23: 0 | F23: 0 | G23: 0 | H23: 0
B24: RcTOTa | E24: 0 | F24: 0 | G24: 0 | H24: 0
B28: Componenti post detrazioni | C28: 2024 | D28: 2025 | E28: 2026 | F28: 2027 | G28: 2028 | H28: 2029
B29: VRGa | E29: =+SUM(E30:E34) -> 0 | F29: 0 | G29: 0 | H29: 0
B30: Capexa | E30: =+IFERROR(Capex!E10,0) -> 0 | F30: =+IFERROR(Capex!F10,0) -> 0 | G30: =+IFERROR(Capex!G10,0) -> 0 | H30: =+IFERROR(Capex!H10,0) -> 0
B31: FoNIa | E31: =+IFERROR(FoNI!E10,0) -> 0 | F31: =+IFERROR(FoNI!F10,0) -> 0 | G31: =+IFERROR(FoNI!G10,0) -> 0 | H31: =+IFERROR(FoNI!H10,0) -> 0
B32: Opexa | E32: =+IFERROR(Opex!E10,0) -> 0 | F32: =+IFERROR(Opex!F10,0) -> 0 | G32: =+IFERROR(Opex!G10,0) -> 0 | H32: =+IFERROR(Opex!H10,0) -> 0
B33: ERCa | E33: =+IFERROR(ERC!E10,0) -> 0 | F33: =+IFERROR(ERC!F10,0) -> 0 | G33: =+IFERROR(ERC!G10,0) -> 0 | H33: =+IFERROR(ERC!H10,0) -> 0
B34: RcTOTa | E34: =IFERROR('Rc'!E19,0) -> 0 | F34: =IFERROR('Rc'!F19,0) -> 0 | G34: =IFERROR('Rc'!G19,0) -> 0 | H34: =IFERROR('Rc'!H19,0) -> 0
B38: Componenti calcolate | C38: 2024 | D38: 2025 | E38: 2026 | F38: 2027 | G38: 2028 | H38: 2029
B39: VRGa | E39: =+SUM(E40:E44) -> 0 | F39: 0 | G39: 0 | H39: 0
B40: Capexa | E40: =+IFERROR(Capex!E29,0) -> 0 | F40: =+IFERROR(Capex!F29,0) -> 0 | G40: =+IFERROR(Capex!G29,0) -> 0 | H40: =+IFERROR(Capex!H29,0) -> 0
B41: FoNIa | E41: =+IFERROR(FoNI!E29,0) -> 0 | F41: =+IFERROR(FoNI!F29,0) -> 0 | G41: =+IFERROR(FoNI!G29,0) -> 0 | H41: =+IFERROR(FoNI!H29,0) -> 0
B42: Opexa | E42: =+IFERROR(Opex!E29,0) -> 0 | F42: =+IFERROR(Opex!F29,0) -> 0 | G42: =+IFERROR(Opex!G29,0) -> 0 | H42: =+IFERROR(Opex!H29,0) -> 0
B43: ERCa | E43: =+IFERROR(ERC!E29,0) -> 0 | F43: =+IFERROR(ERC!F29,0) -> 0 | G43: =+IFERROR(ERC!G29,0) -> 0 | H43: =+IFERROR(ERC!H29,0) -> 0
B44: RcTOTa | E44: =+IFERROR('Rc'!E29,0) -> 0 | F44: =+IFERROR('Rc'!F29,0) -> 0 | G44: =+IFERROR('Rc'!G29,0) -> 0 | H44: =+IFERROR('Rc'!H29,0) -> 0
A49: Art. 4 All. A | B49: Moltiplicatore Tariffario J
B51: Sviluppo del Moltiplicatore
C54: 2024 | D54: 2025 | E54: 2026 | F54: 2027 | G54: 2028 | H54: 2029
B55: STar2023*Vscala-2 (include vendita all'ingrosso) | C55: =+Storico_Piano_Tariffario!E65 -> 0 | D55: =+Storico_Piano_Tariffario!F65 -> 0 | E55: =+SUM(Ricavi_bacini_tariffari!N:N)+SUM(Vendita_Servizi_ingrosso!AI:AI)+Ricavi_Coll_Dep!D19+Dati_conto_economico!C23+Dati_conto_economico!C24+Dati_conto_economico!C27+Dati_conto_economico!C28+Dati_conto_economico!C35 -> 0 | F55: =+SUM(Ricavi_bacini_tariffari!O:O)+SUM(Vendita_Servizi_ingrosso!AJ:AJ)+Ricavi_Coll_Dep!E19+Dati_conto_economico!I23+Dati_conto_economico!I24+Dati_conto_economico!I27+Dati_conto_economico!I28+Dati_conto_economico!I35 -> 0 | G55: =+F55 -> 0 | H55: =+G55 -> 0
B56: Rba-2 | C56: =+Storico_Piano_Tariffario!E64 -> 0 | D56: =+Storico_Piano_Tariffario!F64 -> 0 | E56: =+E109+E111 -> 0 | F56: 0 | G56: =G109+G111 -> 0 | H56: =H109+H111 -> 0
B60: VRGa calcolato | E60: =+E39 -> 0 | F60: 0 | G60: 0 | H60: 0
B61: Ja calcolato | C61: =C68 ->  | D61: =D68 ->  | E61: =+IFERROR(E60/(SUM(E55:E56)),"") -> 
B62: Limite al VRGa | C62: =IFERROR(C63*SUM(C55:C56),"") ->  | D62: =IFERROR(D63*SUM(D55:D56),"") ->  | E62: =+IFERROR(E63*SUM(E55:E56),"") ->  | F62: =+IFERROR(F63*SUM(F55:F56),"") ->  | G62: =+IFERROR(G63*SUM(G55:G56),"") ->  | H62: =+IFERROR(H63*SUM(H55:H56),"") -> 
B63: Limite al moltiplicatore | C63: =Framework_schemi!C96 ->  | D63: =+IFERROR(MIN(C63,C61)*Framework_schemi!C96,"") ->  | E63: =IFERROR(MIN(D63,D61)*Framework_schemi!G86,"") ->  | F63: =IFERROR(MIN(E63,E61)*Framework_schemi!H86,"") ->  | G63: =+IFERROR(MIN(F63,F61)*Framework_schemi!I86,"") ->  | H63: =+IFERROR(MIN(G63,G61)*Framework_schemi!J86,"") -> 
B64: info predisposizione iniziale | C64: =+IF(C61>C63,"sovracap",IF(AND(C60=0,C61=0,C62=0,C63=0),"",IF(Framework_schemi!C96="","","nei limiti"))) ->  | D64: =+IF(D61>D63,"sovracap",IF(AND(D60=0,D61=0,D62=0,D63=0),"",IF(Framework_schemi!C96="","","nei limiti"))) ->  | E64: =+IF(E61>E63,"sovracap",IF(AND(E60=0,E61=0,E62=0,E63=0),"","nei limiti")) -> nei limiti | F64: =+IF(F61>F63,"sovracap",IF(AND(F60=0,F61=0,F62=0,F63=0),"","nei limiti")) -> nei limiti | G64: nei limiti | H64: nei limiti
B67: VRGa calc post eventuali detrazioni | C67: =+Storico_Piano_Tariffario!E63-'Rc'!C10+'Rc'!C11 -> 0 | D67: =+Storico_Piano_Tariffario!F63-'Rc'!D10+'Rc'!D11 -> 0 | E67: =+E29 -> 0 | F67: 0 | G67: 0 | H67: 0
B68: Ja calc post eventuali detrazioni | C68: =+IFERROR(C67/SUM(C55:C56),"") ->  | D68: =+IFERROR(D67/SUM(D55:D56),"") ->  | E68: =+IFERROR(E67/SUM(E55:E56),"") -> 
B69: Limite al VRGa post eventuali detrazioni | C69: =IFERROR(C70*SUM(C55:C56),"") ->  | D69: =IFERROR(D70*SUM(D55:D56),"") ->  | E69: =IFERROR(E70*SUM(E55:E56),"") ->  | F69: =IFERROR(F70*SUM(F55:F56),"") -> 
B70: Limite al moltiplicatore post eventuali detrazioni | C70: =Framework_schemi!C96 ->  | D70: =IFERROR(MIN(C70,C68)*Framework_schemi!C96,"") ->  | E70: =IFERROR(MIN(D70,D68)*Framework_schemi!G86,"") ->  | F70: =IFERROR(MIN(E70,E68)*Framework_schemi!H86,"") ->  | G70: =IFERROR(MIN(F70,F68)*Framework_schemi!I86,"") ->  | H70: =IFERROR(MIN(G70,G68)*Framework_schemi!J86,"") -> 
B71: info predisposizione intermedia | C71: =+IF(C68>C70,"sovracap",IF(AND(C67=0,C68=0,C69=0,C70=0),"",IF(Framework_schemi!C96="","","nei limiti"))) ->  | D71: =+IF(D68>D70,"sovracap",IF(AND(D67=0,D68=0,D69=0,D70=0),"",IF(Framework_schemi!C96="","","nei limiti"))) ->  | E71: =+IF(E68>E70,"sovracap",IF(AND(E67=0,E68=0,E69=0,E70=0),"",IF(Framework_schemi!G86="","","nei limiti"))) ->  | F71: =+IF(F68>F70,"sovracap",IF(AND(F67=0,F68=0,F69=0,F70=0),"",IF(Framework_schemi!H86="","","nei limiti"))) ->  | G71: =+IF(G68>G70,"sovracap",IF(AND(G67=0,G68=0,G69=0,G70=0),"",IF(Framework_schemi!I86="","","nei limiti"))) ->  | H71: =+IF(H68>H70,"sovracap",IF(AND(H67=0,H68=0,H69=0,H70=0),"",IF(Framework_schemi!J86="","","nei limiti"))) -> 
B74: VRGa calc post ulteriori rimodulazioni | C74: =+Storico_Piano_Tariffario!E63 -> 0 | D74: =+Storico_Piano_Tariffario!F63 -> 0 | E74: =+E10+SUM(Input_per_calcoli_finali!K233:K235) -> 0 | F74: =+F10+SUM(Input_per_calcoli_finali!L233:L235) -> 0 | G74: =+G10+SUM(Input_per_calcoli_finali!M233:M235) -> 0 | H74: =+H10+SUM(Input_per_calcoli_finali!N233:N235) -> 0
B75: Ja calc post ulteriori rimodulazioni | C75: =+Storico_Piano_Tariffario!E66 -> 0 | D75: =+Storico_Piano_Tariffario!F66 -> 0 | E75: =+IFERROR(E74/SUM(E55:E56),"") -> 
B76: Limite al VRGa post ulteriori rimodulazioni | C76: =IFERROR(C77*SUM(C55:C56),"") ->  | D76: =IFERROR(D77*SUM(D55:D56),"") ->  | E76: =IFERROR(E77*SUM(E55:E56),"") -> 
B77: Limite al moltiplicatore post ulteriori rimodulazioni | C77: =Framework_schemi!C96 ->  | D77: =IFERROR(MIN(C77,C75)*Framework_schemi!C96,"") ->  | E77: =IFERROR(MIN(C77,C75)*Framework_schemi!G86,"") ->  | F77: =IFERROR(MIN(D77,D75)*Framework_schemi!H86,"") ->  | G77: =IFERROR(MIN(E77,E75)*Framework_schemi!I86,"") ->  | H77: =IFERROR(MIN(F77,F75)*Framework_schemi!J86,"") -> 
B78: info predisposizione finale | C78: =+IF(C75>C77,"sovracap",IF(AND(C74=0,C75=0,C76=0,C77=0),"",IF(Framework_schemi!C96="","","nei limiti"))) ->  | D78: =+IF(D75>D77,"sovracap",IF(AND(D74=0,D75=0,D76=0,D77=0),"",IF(Framework_schemi!C96="","","nei limiti"))) ->  | E78: =+IF(E75>E77,"sovracap",IF(AND(E74=0,E75=0,E76=0,E77=0),"",IF(Framework_schemi!G86="","","nei limiti"))) ->  | F78: =+IF(F75>F77,"sovracap",IF(AND(F74=0,F75=0,F76=0,F77=0),"",IF(Framework_schemi!H86="","","nei limiti"))) ->  | G78: =+IF(G75>G77,"sovracap",IF(AND(G74=0,G75=0,G76=0,G77=0),"",IF(Framework_schemi!I86="","","nei limiti"))) ->  | H78: =+IF(H75>H77,"sovracap",IF(AND(H74=0,H75=0,H76=0,H77=0),"",IF(Framework_schemi!J86="","","nei limiti"))) -> 
B81: VRGa (calcolo per applicabile) | C81: =+Storico_Piano_Tariffario!E71 -> 0 | D81: =+Storico_Piano_Tariffario!F71 -> 0 | E81: =+E74-SUM(Input_per_calcoli_finali!K233:K235) -> 0 | F81: =+F74-SUM(Input_per_calcoli_finali!L233:L235) -> 0 | G81: =+G74-SUM(Input_per_calcoli_finali!M233:M235) -> 0 | H81: =+H74-SUM(Input_per_calcoli_finali!N233:N235) -> 0
B82: Ja (calcolo per applicabile) | C82: =+Storico_Piano_Tariffario!E72 -> 0 | D82: =+Storico_Piano_Tariffario!F72 -> 0 | E82: =+IFERROR(E81/SUM(E55:E56),"") -> 
B83: Limite al VRGa (calcolo per applicabile) | C83: =IFERROR(C84*SUM(C55:C56),"") ->  | D83: =IFERROR(D84*SUM(D55:D56),"") ->  | E83: =IFERROR(E84*SUM(E55:E56),"") -> 
B84: Limite al moltiplicatore (calcolo per applicabile) | C84: =Framework_schemi!C96 ->  | D84: =IFERROR(MIN(C82,C84)*Framework_schemi!C96,"") ->  | E84: =IFERROR(MIN(D82,D84)*Framework_schemi!G86,"") ->  | F84: =IFERROR(MIN(E82,E84)*Framework_schemi!H86,"") ->  | G84: =IFERROR(MIN(F82,F84)*Framework_schemi!I86,"") ->  | H84: =IFERROR(MIN(G82,G84)*Framework_schemi!J86,"") -> 
B85: info predisposizione applicabile | C85: =+IF(C82>C84,"sovracap",IF(AND(C81=0,C82=0,C83=0,C84=0),"",IF(Framework_schemi!C96="","","nei limiti"))) ->  | D85: =+IF(D82>D84,"sovracap",IF(AND(D81=0,D82=0,D83=0,D84=0),"",IF(Framework_schemi!C96="","","nei limiti"))) ->  | E85: =+IF(E82>E84,"sovracap",IF(AND(E81=0,E82=0,E83=0,E84=0),"",IF(Framework_schemi!G86="","","nei limiti"))) ->  | F85: =+IF(F82>F84,"sovracap",IF(AND(F81=0,F82=0,F83=0,F84=0),"",IF(Framework_schemi!H86="","","nei limiti"))) ->  | G85: =+IF(G82>G84,"sovracap",IF(AND(G81=0,G82=0,G83=0,G84=0),"",IF(Framework_schemi!I86="","","nei limiti"))) ->  | H85: =+IF(H82>H84,"sovracap",IF(AND(H81=0,H82=0,H83=0,H84=0),"",IF(Framework_schemi!J86="","","nei limiti"))) -> 
A88: Definizioni - All. A | B88: Rb - Ricavi altre attività idriche
C92: 2024 | D92: 2025 | E92: 2026 | F92: 2027 | G92: 2028 | H92: 2029
B93: Vendita di acqua non potabile o ad uso industriale | E93: =+Dati_conto_economico!F17 -> 0 | F93: =+Dati_conto_economico!L17 -> 0 | G93: =+F93 -> 0 | H93: =+G93 -> 0
B94: Prestazioni e servizi accessori | E94: =+Dati_conto_economico!F23 -> 0 | F94: =+Dati_conto_economico!L23 -> 0 | G94: =+F94 -> 0 | H94: 0
B95: Vendita di acqua con autobotte | E95: =+Dati_conto_economico!F24 -> 0 | F95: =+Dati_conto_economico!L24 -> 0 | G95: 0 | H95: 0
B96: Trattamento percolati | E96: =+Dati_conto_economico!F25 -> 0 | F96: =+Dati_conto_economico!L25 -> 0 | G96: 0 | H96: 0
B97: Trattamento bottini | E97: =+Dati_conto_economico!F26 -> 0 | F97: =+Dati_conto_economico!L26 -> 0 | G97: 0 | H97: 0
B98: Installazione/manutenzione bocche antincendio | E98: =+Dati_conto_economico!F29 -> 0 | F98: =+Dati_conto_economico!L29 -> 0 | G98: 0 | H98: 0
B99: Vendita di servizi a terzi | E99: =+Dati_conto_economico!F30 -> 0 | F99: =+Dati_conto_economico!L30 -> 0 | G99: 0 | H99: 0
B100: Lavori conto terzi | E100: =+Dati_conto_economico!F31 -> 0 | F100: =+Dati_conto_economico!L31 -> 0 | G100: 0 | H100: 0
B101: Spurgo pozzi neri | E101: =+Dati_conto_economico!F32 -> 0 | F101: =+Dati_conto_economico!L32 -> 0 | G101: 0 | H101: 0
B102: Rilascio autorizzazioni allo scarico | E102: =+Dati_conto_economico!F33 -> 0 | F102: =+Dati_conto_economico!L33 -> 0 | G102: 0 | H102: 0
B103: Lottizzazioni | E103: =+Dati_conto_economico!F34 -> 0 | F103: =+Dati_conto_economico!L34 -> 0 | G103: 0 | H103: 0
B104: Riuso delle acque di depurazione
B105: Case dell’acqua | E105: =+Dati_conto_economico!F36 -> 0 | F105: =+Dati_conto_economico!L36 -> 0 | G105: 0 | H105: 0
B106: Ricavi da altre attività (non inclusi nelle suddette voci) | E106: =+MAX(Dati_conto_economico!F40,0) -> 0 | F106: =+MAX(Dati_conto_economico!L40,0) -> 0 | G106: 0 | H106: 0
B108: di cui, per "Obiettivi di sostenibilità energetica e ambientale"
B109: Totale Ra-2b2 | E109: =SUM(Dati_conto_economico!D111:D113) -> 0 | F109: =SUM(Dati_conto_economico!J111:J113) -> 0 | G109: =+F109 -> 0 | H109: =+G109 -> 0
B111: Totale Ra-2b1 | E111: =+SUM(E93:E103,E105:E106)-E109 -> 0 | F111: =+SUM(F93:F103,F105:F106)-F109 -> 0 | G111: =+SUM(G93:G103,G105:G106)-G109 -> 0 | H111: =+SUM(H93:H103,H105:H106)-H109 -> 0
A116: Definizioni - All. A | B116: Cb - Costi altre attività idriche
C120: 2024 | D120: 2025 | E120: 2026 | F120: 2027 | G120: 2028 | H120: 2029
B121: CO altre attività idriche | E121: =+Dati_conto_economico!F42-Dati_conto_economico!F65 -> 0 | F121: =+Dati_conto_economico!L42-Dati_conto_economico!L65 -> 0 | G121: =+D121 -> 0 | H121: =+G121 -> 0
B122: Accantonamenti e rettifiche in eccesso rispetto all'applicazione di norme tributarie | E122: =+Dati_conto_economico!F74 -> 0 | F122: =+Dati_conto_economico!L74 -> 0 | G122: 0 | H122: 0
B123: Rettifiche di valori di attività finanziarie | E123: =+Dati_conto_economico!F75 -> 0 | F123: =+Dati_conto_economico!L75 -> 0 | G123: 0 | H123: 0
B124: Costi connessi all'erogazione di liberalità | E124: =+Dati_conto_economico!F76 -> 0 | F124: =+Dati_conto_economico!L76 -> 0 | G124: 0 | H124: 0
B125: Costi pubblicitari e di marketing (incluse le imposte connesse) | E125: =+Dati_conto_economico!F77 -> 0 | F125: =+Dati_conto_economico!L77 -> 0 | G125: 0 | H125: 0
B126: Oneri per sanzioni, penalità, risarcimenti automatici e simili | E126: =+Dati_conto_economico!F78 -> 0 | F126: =+Dati_conto_economico!L78 -> 0 | G126: 0 | H126: 0
B127: Oneri straordinari | E127: =+Dati_conto_economico!F79 -> 0 | F127: =+Dati_conto_economico!L79 -> 0 | G127: 0 | H127: 0
B128: Spese processuali in cui la parte è risultata soccombente | E128: =+Dati_conto_economico!F81 -> 0 | F128: =+Dati_conto_economico!L81 -> 0 | G128: 0 | H128: 0
B129: Perdite su crediti per la sola quota parte eccedente l'utilizzo del fondo | E129: =+Dati_conto_economico!F89 -> 0 | F129: =+Dati_conto_economico!L89 -> 0 | G129: 0 | H129: 0
B130: Costi di strutturazione dei progetti di finanziamento (non capitalizzati) | E130: =+Dati_conto_economico!F90 -> 0 | F130: =+Dati_conto_economico!L90 -> 0 | G130: 0 | H130: 0
B131: A2) Variazioni rimanenze di prodotti in corso di lavorazione, semilavorati e finiti | E131: =+Dati_conto_economico!F7 -> 0 | F131: =+Dati_conto_economico!L7 -> 0 | G131: 0 | H131: 0
B132: A3) Variazioni dei lavori in corso su ordinazione | E132: =+Dati_conto_economico!F8 -> 0 | F132: =+Dati_conto_economico!L8 -> 0 | G132: 0 | H132: 0
B133: A4) Incrementi di immobilizzazioni per lavori interni (inclusi costi del personale) | E133: =+Dati_conto_economico!F9 -> 0 | F133: =+Dati_conto_economico!L9 -> 0 | G133: 0 | H133: 0
B134: Rimborsi e indennizzi | E134: =+Dati_conto_economico!F39 -> 0 | F134: =+Dati_conto_economico!L39 -> 0 | G134: 0 | H134: 0
B135: Costi di realizzazione degli allacciamenti idrici e fognari | E135: =+Dati_conto_economico!F86 -> 0 | F135: =+Dati_conto_economico!L86 -> 0 | G135: 0 | H135: 0
B137: di cui, per "Obiettivi di sostenibilità energetica e ambientale"
B138: Totale Ca-2b2 | E138: =+SUM(Dati_conto_economico!F111:F114) -> 0 | F138: =+SUM(Dati_conto_economico!L111:L114) -> 0 | G138: =+F138 -> 0 | H138: =+G138 -> 0
B140: Totale Ca-2b1 | E140: =MAX((E121-SUM(E122:E135)-E138),0) -> 0 | F140: =MAX((F121-SUM(F122:F135)-F138),0) -> 0 | G140: =+F140 -> 0 | H140: =+G140 -> 0

Sheet Capex
A2: Titolo 3 MTI-4 | B2: Costi delle immobilizzazioni
B4: Sviluppo della componente Capex
B9: Componenti nel Piano Tariffario | C9: 2024 | D9: 2025 | E9: 2026 | F9: 2027 | G9: 2028 | H9: 2029
B10: Capex | C10: =SUM(C11:C14) -> 0 | D10: =SUM(D11:D14) -> 0 | E10: =SUM(E11:E14) -> 0 | F10: =SUM(F11:F14) -> 0 | G10: =SUM(G11:G14) -> 0 | H10: 0
B11: OF | C11: =+C73 -> 0 | D11: =+D73 -> 0 | E11: =+E73 -> 0 | F11: =+F73 -> 0 | G11: =+G73 -> 0 | H11: 0
B12: OFisc | C12: =C81 -> 0 | D12: =D81 -> 0 | E12: =E81 -> 0 | F12: =F81 -> 0 | G12: =G81 -> 0 | H12: 0
B13: AMM | C13: =+C50 -> 0 | D13: =+D50 -> 0 | E13: =+E50 -> 0 | F13: =+F50 -> 0 | G13: =+G50 -> 0 | H13: 0
B14: ΔCUITcapex | C14: =+C139 -> 0 | D14: =+D139 -> 0 | E14: =+E139 -> 0 | F14: =+F139 -> 0 | G14: =+G139 -> 0 | H14: 0
B28: Componenti calcolate | C28: 2024 | D28: 2025 | E28: 2026 | F28: 2027 | G28: 2028 | H28: 2029
B29: Capex | E29: =SUM(E30:E33) -> 0 | F29: =SUM(F30:F33) -> 0 | G29: =SUM(G30:G33) -> 0 | H29: 0
B30: OF | E30: =E71 -> 0 | F30: =F71 -> 0 | G30: =G71 -> 0 | H30: 0
B31: OFisc | E31: =E79 -> 0 | F31: =F79 -> 0 | G31: =G79 -> 0 | H31: 0
B32: AMM | E32: =E48 -> 0 | F32: =F48 -> 0 | G32: =G48 -> 0 | H32: 0
B33: ΔCUITcapex | E33: =+E139 -> 0 | F33: =+F139 -> 0 | G33: =+G139 -> 0 | H33: 0
A39: Art. 11 all. A Art. 12 All. A Art. 13 All. A | B39: Ammortamento delle immobilizzazioni del gestore del SII Oneri finanziari del gestore del SII Oneri fiscali del gestore del SII
C43: 2024 | D43: 2025 | E43: 2026 | F43: 2027 | G43: 2028 | H43: 2029
B44: Incidenza ERC parametrica | E44: =IF(AND(Nuovi_Investimenti!D11="",Nuovi_Investimenti!D12=""),"",IF(AND(Nuovi_Investimenti!D11<>"",Nuovi_Investimenti!D12<>""),Nuovi_Investimenti!D11+Nuovi_Investimenti!D12,IF(Nuovi_Investimenti!D11="",0,Nuovi_Investimenti!D11)+IF(Nuovi_Investimenti!D12="",0,Nuovi_Investimenti!D12))) ->  | F44: =IF(AND(Nuovi_Investimenti!E11="",Nuovi_Investimenti!E12=""),"",IF(AND(Nuovi_Investimenti!E11<>"",Nuovi_Investimenti!E12<>""),Nuovi_Investimenti!E11+Nuovi_Investimenti!E12,IF(Nuovi_Investimenti!E11="",0,Nuovi_Investimenti!E11)+IF(Nuovi_Investimenti!E12="",0,Nuovi_Investimenti!E12))) ->  | G44: =IF(AND(Nuovi_Investimenti!H11="",Nuovi_Investimenti!H12=""),"",IF(AND(Nuovi_Investimenti!H11<>"",Nuovi_Investimenti!H12<>""),Nuovi_Investimenti!H11+Nuovi_Investimenti!H12,IF(Nuovi_Investimenti!H11="",0,Nuovi_Investimenti!H11)+IF(Nuovi_Investimenti!H12="",0,Nuovi_Investimenti!H12))) ->  | H44: =IF(AND(Nuovi_Investimenti!I11="",Nuovi_Investimenti!I12=""),"",IF(AND(Nuovi_Investimenti!I11<>"",Nuovi_Investimenti!I12<>""),Nuovi_Investimenti!I11+Nuovi_Investimenti!I12,IF(Nuovi_Investimenti!I11="",0,Nuovi_Investimenti!I11)+IF(Nuovi_Investimenti!I12="",0,Nuovi_Investimenti!I12))) -> 
B46: AMM (componente calcolata) | E46: =+(TT_riepilogo_IMN!G9) -> 0 | F46: =+(TT_riepilogo_IMN!H9) -> 0 | G46: =+(TT_riepilogo_IMN!I9) -> 0 | H46: =+(TT_riepilogo_IMN!J9) -> 0
B47: AMMenv + AMMres | E47: =+ERC!E64+ERC!E105 -> 0 | F47: =+ERC!F64+ERC!F105 -> 0 | G47: =+ERC!G64+ERC!G105 -> 0 | H47: =+ERC!H64+ERC!H105 -> 0
B48: AMM (componente calcolata, al netto degli ERC) | E48: =+E46-E47 -> 0 | F48: =+F46-F47 -> 0 | G48: =+G46-G47 -> 0 | H48: 0
B49: AMM (eventuale detrazione da "Input per calcoli finali") | E49: =Input_per_calcoli_finali!K104 -> 0 | F49: =Input_per_calcoli_finali!L104 -> 0 | G49: =Input_per_calcoli_finali!M104 -> 0 | H49: =Input_per_calcoli_finali!N104 -> 0
B50: AMM | C50: =+Dati_Anni_precedenti!E23 -> 0 | D50: =+Dati_Anni_precedenti!F23 -> 0 | E50: =+E48-E49 -> 0 | F50: =+F48-F49 -> 0 | G50: =+G48-G49 -> 0 | H50: 0 | I50: al netto di quanto riconosciuto nella componente ERCcapex
B53: LICord | E53: ='PdI-riepilogo'!E146 -> 0 | F53: ='PdI-riepilogo'!F146 -> 0 | G53: ='PdI-riepilogo'!G146 -> 0 | H53: ='PdI-riepilogo'!H146 -> 0
B54: LICpos | E54: ='PdI-riepilogo'!E150 -> 0 | F54: ='PdI-riepilogo'!F150 -> 0 | G54: ='PdI-riepilogo'!G150 -> 0 | H54: ='PdI-riepilogo'!H150 -> 0
J56: Parametri finanziari e fiscali
J57: Parametro | K57: =+TT_parametri!BC26 -> MTI-4 | L57: Parametro | M57: =+TT_parametri!BC26 -> MTI-4
C58: 2024 | D58: 2025 | E58: 2026 | F58: 2027 | G58: 2028 | H58: 2029 | J58: CS/CnS | K58: =+TT_parametri!BC27 -> 1 | L58: ERP | M58: =+TT_parametri!BC32 -> 0.031
B59: CINfp | E59: =+E121 -> 0 | F59: =+F121 -> 0 | G59: =+G121 -> 0 | H59: 0 | J59: risk free rate | K59: =+TT_parametri!BC28 -> 0.0213 | L59: rpi | M59: =+TT_parametri!BC33 -> 0.019
B60: CINfp / (CIN - LICord) | E60: =+IFERROR(E59/(E120-E53),0) -> 0 | F60: =+IFERROR(F59/(F120-F53),0) -> 0 | G60: =+IFERROR(G59/(G120-G53),0) -> 0 | H60: 0 | J60: Kd | K60: =+TT_parametri!BC29 -> 0.03 | L60: tc | M60: =+TT_parametri!BC34 -> 0.24
B61: Km | E61: =+(K59+K61)*(1-(K58/(1+K58)))+K60*(1-M60)*(K58/(1+K58)) -> 0.03105 | F61: =+(K59+K61)*(1-(K58/(1+K58)))+K60*(1-M60)*(K58/(1+K58)) -> 0.03105 | G61: =+(K59+K61)*(1-(K58/(1+K58)))+K60*(1-M60)*(K58/(1+K58)) -> 0.03105 | H61: =+(K59+K61)*(1-(K58/(1+K58)))+K60*(1-M60)*(K58/(1+K58)) -> 0.03105 | J61: WRP | K61: =+TT_parametri!BC30 -> 0.018 | L61: T | M61: =+TT_parametri!BC35 -> 0.319
B62: α | E62: =+(1-(K58/(1+K58)))*K62*M58 -> 0.012245 | F62: =+(1-(K58/(1+K58)))*K62*M58 -> 0.012245 | G62: =+(1-(K58/(1+K58)))*K62*M58 -> 0.012245 | H62: =+(1-(K58/(1+K58)))*K62*M58 -> 0.012245 | J62: β levered | K62: =+TT_parametri!BC31 -> 0.79 | L62: time lag | M62: =+TT_parametri!BC36 -> 0.01
B63: SLIC | C63: =+$E63-(($E$63-$H$63)/5)*(COLUMN(C63)-COLUMN($E$63)) -> 0.048613 | D63: =+$E63-(($E$63-$H$63)/5)*(COLUMN(D63)-COLUMN($E$63)) -> 0.045954 | E63: =+E61+E62 -> 0.043295 | F63: =+$E63-(($E$63-$H$63)/5)*(COLUMN(F63)-COLUMN($E$63)) -> 0.040636 | G63: =+$E63-(($E$63-$H$63)/5)*(COLUMN(G63)-COLUMN($E$63)) -> 0.037977 | H63: =+K60 -> 0.03 | I63: verificare, va applicata alla stratificazione
B65: OF (time lag) | E65: =+$M$62*(TT_riepilogo_IMN!G20-TT_riepilogo_IMN!G24) -> 0 | F65: =+$M$62*(TT_riepilogo_IMN!H20-TT_riepilogo_IMN!H24) -> 0 | G65: =+$M$62*(TT_riepilogo_IMN!I20-TT_riepilogo_IMN!I24) -> 0 | H65: =+$M$62*(TT_riepilogo_IMN!J20-TT_riepilogo_IMN!J24) -> 0
B66: OFimm | E66: =MAX(+(E61+E62)*(1-E60)*(E120-E53),0) -> 0 | F66: =MAX(+(F61+F62)*(1-F60)*(F120-F53),0) -> 0 | G66: =MAX(+(G61+G62)*(1-G60)*(G120-G53),0) -> 0 | H66: 0
B67: OFlic, ord | E67: =+'PdI-riepilogo'!E142 -> 0 | F67: =+'PdI-riepilogo'!F142 -> 0 | G67: =+'PdI-riepilogo'!G142 -> 0 | H67: =+'PdI-riepilogo'!H142 -> 0
B69: OF (componente calcolata) | E69: =+(E65+E66+E67) -> 0 | F69: =+(F65+F66+F67) -> 0 | G69: =+(G65+G66+G67) -> 0 | H69: 0
B70: OFenv + OFres | E70: =+ERC!E85+ERC!E126 -> 0 | F70: =+ERC!F85+ERC!F126 -> 0 | G70: =+ERC!G85+ERC!G126 -> 0 | H70: =+ERC!H85+ERC!H126 -> 0
B71: OF (componente calcolata, al netto degli ERC) | E71: =+E69-E70 -> 0 | F71: =+F69-F70 -> 0 | G71: =+G69-G70 -> 0 | H71: 0
B72: OF (eventuale detrazione da "Input per calcoli finali") | E72: =Input_per_calcoli_finali!K108 -> 0 | F72: =Input_per_calcoli_finali!L108 -> 0 | G72: =Input_per_calcoli_finali!M108 -> 0 | H72: =Input_per_calcoli_finali!N108 -> 0
B73: OF | C73: =+Dati_Anni_precedenti!E24 -> 0 | D73: =+Dati_Anni_precedenti!F24 -> 0 | E73: =+E71-E72 -> 0 | F73: =+F71-F72 -> 0 | G73: =+G71-G72 -> 0 | H73: 0 | I73: valori già al netto di quanto riconosciuto nella componente ERCcapex
B75: Rai rate | E75: =+(((1+((E61+E62+1)*(1+$M59)-1)/(1-$M61))/(1+$M59))-1) -> 0.07230982118 | F75: =+(((1+((F61+F62+1)*(1+$M59)-1)/(1-$M61))/(1+$M59))-1) -> 0.07230982118 | G75: =+(((1+((G61+G62+1)*(1+$M59)-1)/(1-$M61))/(1+$M59))-1) -> 0.07230982118 | H75: =+(((1+((H61+H62+1)*(1+$M59)-1)/(1-$M61))/(1+$M59))-1) -> 0.07230982118
B76: Rai | E76: =+E75*(E120-E59) -> 0 | F76: =+F75*(F120-F59) -> 0 | G76: =+G75*(G120-G59) -> 0 | H76: 0
B77: OFisc (componente calcolata) | E77: =MAX($M60*E76,0) -> 0 | F77: =MAX($M60*F76,0) -> 0 | G77: =MAX($M60*G76,0) -> 0 | H77: =MAX($M60*H76,0) -> 0
B78: OFISCenv + OFISCres | E78: =+ERC!E92+ERC!E133 -> 0 | F78: =+ERC!F92+ERC!F133 -> 0 | G78: =+ERC!G92+ERC!G133 -> 0 | H78: =+ERC!H92+ERC!H133 -> 0
B79: OFisc (componente calcolata, al netto degli ERC) | E79: =+E77-E78 -> 0 | F79: =+F77-F78 -> 0 | G79: =+G77-G78 -> 0 | H79: 0
B80: OFisc ( (eventuale detrazione da "Input per calcoli finali") | E80: =Input_per_calcoli_finali!K112 -> 0 | F80: =Input_per_calcoli_finali!L112 -> 0 | G80: =Input_per_calcoli_finali!M112 -> 0 | H80: =Input_per_calcoli_finali!N112 -> 0
B81: OFisc | C81: =+Dati_Anni_precedenti!E25 -> 0 | D81: =+Dati_Anni_precedenti!F25 -> 0 | E81: =+E79-E80 -> 0 | F81: =+F79-F80 -> 0 | G81: =+G79-G80 -> 0 | H81: 0 | I81: valori già al netto di quanto riconosciuto nella componente ERCcapex
A87: Art. 10 All. A | B87: CIN e CINfp - Capitale Investito Netto (valori inclusivi di ERC)
C91: 2024 | D91: 2025 | E91: 2026 | F91: 2027 | G91: 2028 | H91: 2029
B92: IMN | C92: =+Dati_Anni_precedenti!E28 -> 0 | D92: =+Dati_Anni_precedenti!F28 -> 0 | E92: =(TT_riepilogo_IMN!G8) -> 0 | F92: =(TT_riepilogo_IMN!H8) -> 0 | G92: =(TT_riepilogo_IMN!I8) -> 0 | H92: =(TT_riepilogo_IMN!J8) -> 0
B95: Saldo LIC (ord+POS) | E95: =+E53+E54 -> 0 | F95: =+F53+F54 -> 0 | G95: =+G53+G54 -> 0 | H95: 0
B96: LIC | E96: =+E95 -> 0 | F96: =+F95 -> 0 | G96: =+G95 -> 0 | H96: 0
B99: TFR | E99: =+Altri_dati_eco_fin!E17 -> 0 | F99: =+Altri_dati_eco_fin!F17 -> 0 | G99: =+D99 -> 0 | H99: =+G99 -> 0
B100: Fondo di quiescenza | E100: =+Altri_dati_eco_fin!E18 -> 0 | F100: =+Altri_dati_eco_fin!F18 -> 0 | G100: 0 | H100: 0
B101: Fondo rischi e oneri | E101: =+Altri_dati_eco_fin!E19 -> 0 | F101: =+Altri_dati_eco_fin!F19 -> 0 | G101: 0 | H101: 0
B102: Fondo sentenza Corte Costituzionale 335/2008 | E102: =+Altri_dati_eco_fin!E24 -> 0 | F102: =+Altri_dati_eco_fin!F24 -> 0 | G102: 0 | H102: 0
B103: Fondo per il ripristino di beni di terzi | E103: =+Altri_dati_eco_fin!E25 -> 0 | F103: =+Altri_dati_eco_fin!F25 -> 0 | G103: 0 | H103: 0
B104: Fondo vincolato al finanziamento della spesa per investimenti comma 10.1 lett. f) MTI-4 | E104: =+Altri_dati_eco_fin!E26 -> 0 | F104: =+Altri_dati_eco_fin!F26 -> 0 | G104: 0 | H104: =+G104 -> 0
B105: Fondo per il finanziamento di tariffe sociali o di solidarietà | E105: =+Altri_dati_eco_fin!E27 -> 0 | F105: =+Altri_dati_eco_fin!F27 -> 0 | G105: 0 | H105: =+G105 -> 0
B106: Accantonamenti e rettifiche in eccesso rispetto all'applicazione di norme tributarie | E106: =+-ABS(Dati_conto_economico!C74)-ABS(Dati_conto_economico!F74) -> 0 | F106: =+-ABS(Dati_conto_economico!I74)-ABS(Dati_conto_economico!L74) -> 0 | G106: 0 | H106: 0
B109: FACC | E109: =+SUM(E99:E106) -> 0 | F109: =+SUM(F99:F106) -> 0 | G109: =+SUM(G99:G106) -> 0 | H109: 0
B111: Ricavi,A1 | E111: =+(SUM(Dati_conto_economico!C14:'Dati_conto_economico'!C21)+Dati_conto_economico!C23+Dati_conto_economico!C24+Dati_conto_economico!C27+Dati_conto_economico!C28)+(SUM(Dati_conto_economico!F14:'Dati_conto_economico'!F21)+Dati_conto_economico!F23+Dati_conto_economico!F24+Dati_conto_economico!F27+Dati_conto_economico!F28) -> 0 | F111: =+(SUM(Dati_conto_economico!I14:'Dati_conto_economico'!I21)+Dati_conto_economico!I23+Dati_conto_economico!I24+Dati_conto_economico!I27+Dati_conto_economico!I28)+(SUM(Dati_conto_economico!L14:'Dati_conto_economico'!L21)+Dati_conto_economico!L23+Dati_conto_economico!L24+Dati_conto_economico!L27+Dati_conto_economico!L28) -> 0 | G111: =+D111 -> 0 | H111: =+G111 -> 0 | J111: giorni di dilazione:
B112: CO,B6+B7 | E112: =+Dati_conto_economico!C43+SUM(Dati_conto_economico!C47:C58)++Dati_conto_economico!F43+SUM(Dati_conto_economico!F47:F58) -> 0 | F112: =+Dati_conto_economico!I43+SUM(Dati_conto_economico!I47:I58)++Dati_conto_economico!L43+SUM(Dati_conto_economico!L47:L58) -> 0 | G112: =+D112 -> 0 | H112: 0 | J112: fatture | K112: 90
B113: CCN | E113: =($K$112/365*E111-$K$113/365*E112)*E125 -> 0 | F113: =($K$112/365*F111-$K$113/365*F112)*F125 -> 0 | G113: =($K$112/365*G111-$K$113/365*G112)*G125 -> 0 | H113: =($K$112/365*H111-$K$113/365*H112)*H125 -> 0 | J113: fornitori | K113: 60
B115: CCN | E115: =+E113 -> 0 | F115: =+F113 -> 0 | G115: =+G113 -> 0 | H115: 0
B118: FoNIanon_inv | E118: =+FoNI!E122 -> 0 | F118: =+FoNI!F122 -> 0 | G118: =+FoNI!G122 -> 0 | H118: =+FoNI!H122 -> 0
B120: CIN | E120: =+MAX(E92+E115+E96-E109-E118,0) -> 0 | F120: =+MAX(F92+F115+F96-F109-F118,0) -> 0 | G120: =+MAX(G92+G115+G96-G109-G118,0) -> 0 | H120: 0
B121: CINfp | E121: =+(TT_riepilogo_IMN!G12) -> 0 | F121: =+(TT_riepilogo_IMN!H12) -> 0 | G121: =+(TT_riepilogo_IMN!I12) -> 0 | H121: =+(TT_riepilogo_IMN!J12) -> 0
C123: 2024 | D123: 2025 | E123: 2026 | F123: 2027 | G123: 2028 | H123: 2029
B124: dfl | C124: =+VLOOKUP(C91-2,ifl,C91 - 2010,FALSE) -> 1.062952 | D124: =+VLOOKUP(D91-2,ifl,D91 - 2010,FALSE) -> 1.026972 | E124: =+VLOOKUP(E91-2,ifl,E91 - 2010,FALSE) -> 0.999999 | F124: =+VLOOKUP(F91-2,ifl,F91 - 2010,FALSE) -> 1.001 | G124: =+VLOOKUP(G91-2,ifl,G91 - 2010,FALSE) -> 1 | H124: 1
B125: ∏(1+It) | C125: =+TT_parametri!BP8 -> 1.03224 | D125: =+TT_parametri!BQ8 -> 1.012 | E125: =+TT_parametri!BN8 -> 1.13696 | F125: =+TT_parametri!BO8 -> 1.10976 | G125: =+TT_parametri!BR8 -> 1 | H125: =+TT_parametri!BS8 -> 1
A131: Art. 8 All. A | B131: DCUITcapex
C135: 2024 | D135: 2025 | E135: 2026 | F135: 2027 | G135: 2028 | H135: 2029
B136: ΔCUIT | E136: =+SUM(DCUIT!AD:AD) -> 0 | F136: =+SUM(DCUIT!AE:AE) -> 0 | G136: =+SUM(DCUIT!AF:AF) -> 0 | H136: =+SUM(DCUIT!AG:AG) -> 0
B137: ΔCUITcapex da foglio "Altri dati economico_finanziari" | E137: =+Altri_dati_eco_fin!G66 -> 0 | F137: =+Altri_dati_eco_fin!H66 -> 0 | G137: =+Altri_dati_eco_fin!I66 -> 0 | H137: =+Altri_dati_eco_fin!J66 -> 0
B138: ΔCUITcapex (controllo ammissibilità) | E138: =+IF(E137<=E136,"SI","NO") -> SI | F138: =+IF(F137<=F136,"SI","NO") -> SI | G138: =+IF(G137<=G136,"SI","NO") -> SI | H138: SI
B139: ΔCUITcapex | C139: =+Dati_Anni_precedenti!E26 -> 0 | D139: =+Dati_Anni_precedenti!F26 -> 0 | E139: =+IF(E138="SI",E137,0) -> 0 | F139: =+IF(F138="SI",F137,0) -> 0 | G139: =+IF(G138="SI",G137,0) -> 0 | H139: 0

Sheet ERC
A2: Titolo 6 MTI-4 | B2: Costi ambientali e della risorsa
B4: Sviluppo della componente ERC
B9: Componenti nel Piano Tariffario | C9: 2024 | D9: 2025 | E9: 2026 | F9: 2027 | G9: 2028 | H9: 2029
B10: ERC | C10: =+C11+C12 -> 0 | D10: =+D11+D12 -> 0 | E10: =+E11+E12 -> 0 | F10: 0 | G10: 0 | H10: 0
B11: ERCcapex | C11: =+C51 -> 0 | D11: =+D51 -> 0 | E11: =+E51 -> 0 | F11: 0 | G11: 0 | H11: 0
B12: ERCopex | C12: =+C150 -> 0 | D12: =+D150 -> 0 | E12: =+E150 -> 0 | F12: 0 | G12: 0 | H12: 0
B28: Componenti calcolate | C28: 2024 | D28: 2025 | E28: 2026 | F28: 2027 | G28: 2028 | H28: 2029
B29: ERC | E29: =+E30+E31 -> 0 | F29: 0 | G29: 0 | H29: 0
B30: ERCcapex | E30: =E49 -> 0 | F30: 0 | G30: 0 | H30: 0
B31: ERCopex | E31: =E148 -> 0 | F31: 0 | G31: 0 | H31: 0
B41: Sviluppo della componente ERCcapex
C45: 2024 | D45: 2025 | E45: 2026 | F45: 2027 | G45: 2028 | H45: 2029
B46: ENVcapex | C46: =Dati_Anni_precedenti!E55 -> 0 | D46: =Dati_Anni_precedenti!F55 -> 0 | E46: =+E64+E85+E92 -> 0 | F46: 0 | G46: 0 | H46: 0
B47: REScapex | C47: =Dati_Anni_precedenti!E56 -> 0 | D47: =Dati_Anni_precedenti!F56 -> 0 | E47: =+E105+E126+E133 -> 0 | F47: 0 | G47: 0 | H47: 0
B49: ERCcapex da calcolo | E49: =+E46+E47 -> 0 | F49: 0 | G49: 0 | H49: 0
B50: ERCcapex (eventuale detrazione da "Input per calcoli finali") | E50: =+Input_per_calcoli_finali!K161 -> 0 | F50: =+Input_per_calcoli_finali!L161 -> 0 | G50: =+Input_per_calcoli_finali!M161 -> 0 | H50: =+Input_per_calcoli_finali!N161 -> 0
B51: ERCcapex | C51: =+C46+C47 -> 0 | D51: =+D46+D47 -> 0 | E51: =+E49-E50 -> 0 | F51: =+F49-F50 -> 0 | G51: =+G46+G47 -> 0 | H51: =+H46+H47 -> 0
A55: Art. 26 All. A | B55: Envcapex
C59: 2024 | D59: 2025 | E59: 2026 | F59: 2027 | G59: 2028 | H59: 2029
B60: Incidenza ENV parametrica | E60: =+IF(Nuovi_Investimenti!D11<>"",Nuovi_Investimenti!D11,"") ->  | F60: =+IF(Nuovi_Investimenti!E11<>"",Nuovi_Investimenti!E11,"") ->  | G60: =+IF(Nuovi_Investimenti!F11<>"",Nuovi_Investimenti!F11,"") ->  | H60: =+IF(Nuovi_Investimenti!G11<>"",Nuovi_Investimenti!G11,"") -> 
B61: AMMenv (eventuale valore parametrico) | E61: =+IFERROR(IF(E60>=0,E60*Capex!E46),"") ->  | F61: =+IFERROR(IF(F60>=0,F60*Capex!F46),"") ->  | G61: =+IFERROR(IF(G60>=0,G60*Capex!G46),"") ->  | H61: =+IFERROR(IF(H60>=0,H60*Capex!H46),"") -> 
B62: AMMenv (valore puntuale) | E62: =+TT_riepilogo_IMN!G45 -> 0 | F62: =+TT_riepilogo_IMN!H45 -> 0 | G62: =+TT_riepilogo_IMN!I45 -> 0 | H62: =+TT_riepilogo_IMN!J45 -> 0
B64: AMMenv | E64: =+IF(E60<>"",E61,E62) -> 0 | F64: 0 | G64: 0 | H64: 0
B67: LICord | E67: ='PdI-riepilogo'!E145 -> 0 | F67: ='PdI-riepilogo'!F145 -> 0 | G67: ='PdI-riepilogo'!G145 -> 0 | H67: ='PdI-riepilogo'!H145 -> 0
B68: LICpos | E68: ='PdI-riepilogo'!E149 -> 0 | F68: ='PdI-riepilogo'!F149 -> 0 | G68: ='PdI-riepilogo'!G149 -> 0 | H68: ='PdI-riepilogo'!H149 -> 0
C72: 2024 | D72: 2025 | E72: 2026 | F72: 2027 | G72: 2028 | H72: 2029
B73: CINenv | E73: =+MAX(TT_riepilogo_IMN!G44,0)+E67+E68 -> 0 | F73: =+MAX(TT_riepilogo_IMN!H44,0)+F67+F68 -> 0 | G73: =+MAX(TT_riepilogo_IMN!I44,0)+G67+G68 -> 0 | H73: =+MAX(TT_riepilogo_IMN!J44,0)+H67+H68 -> 0
B74: CINfp / (CIN - LICord) env | E74: =+IFERROR(E81/(E73-E67),0) -> 0 | F74: 0 | G74: 0 | H74: 0
B75: Km | E75: =Capex!$E$61 -> 0.03105 | F75: =Capex!$F$61 -> 0.03105 | G75: =+Capex!$G$61 -> 0.03105 | H75: =+Capex!$H$61 -> 0.03105
B76: α | E76: =Capex!$E$62 -> 0.012245 | F76: =Capex!$F$62 -> 0.012245 | G76: =+Capex!$G$62 -> 0.012245 | H76: =+Capex!$H$62 -> 0.012245
B78: OFenv (time lag) | E78: =Capex!$M$62*(TT_riepilogo_IMN!G68-TT_riepilogo_IMN!G72) -> 0 | F78: =Capex!$M$62*(TT_riepilogo_IMN!H68-TT_riepilogo_IMN!H72) -> 0 | G78: =Capex!$M$62*(TT_riepilogo_IMN!I68-TT_riepilogo_IMN!I72) -> 0 | H78: =Capex!$M$62*(TT_riepilogo_IMN!J68-TT_riepilogo_IMN!J72) -> 0
B79: OFimm env | E79: =+(E75+E76)*(1-E74)*(E73-E67) -> 0 | F79: 0 | G79: 0 | H79: 0
B80: OFlic, ord env | E80: ='PdI-riepilogo'!E141 -> 0 | F80: ='PdI-riepilogo'!F141 -> 0 | G80: ='PdI-riepilogo'!G141 -> 0 | H80: ='PdI-riepilogo'!H141 -> 0
B81: CINfp,env | E81: =+MAX(TT_riepilogo_IMN!G48,0) -> 0 | F81: =+MAX(TT_riepilogo_IMN!H48,0) -> 0 | G81: =+MAX(TT_riepilogo_IMN!I48,0) -> 0 | H81: =+MAX(TT_riepilogo_IMN!J48,0) -> 0
B83: OFenv (eventuale valore parametrico) | E83: =+IFERROR(IF(E60>=0,E60*Capex!E69),"") ->  | F83: =+IFERROR(IF(F60>=0,F60*Capex!F69),"") ->  | G83: =+IFERROR(IF(G60>=0,G60*Capex!G69),"") ->  | H83: =+IFERROR(IF(H60>=0,H60*Capex!H69),"") -> 
B84: OFenv (valore puntuale) | E84: =+E78+E79+E80 -> 0 | F84: 0 | G84: 0 | H84: 0
B85: OFenv | E85: =+IF(E60<>"",E83,E84) -> 0 | F85: 0 | G85: 0 | H85: 0
B87: Rai rate | E87: =Capex!$E$75 -> 0.07230982118 | F87: =Capex!$F$75 -> 0.07230982118 | G87: =+Capex!$G$75 -> 0.07230982118 | H87: =+Capex!$H$75 -> 0.07230982118
B88: Raienv | E88: =+(E73-E81)*E87 -> 0 | F88: 0 | G88: 0 | H88: 0
B90: OFISCenv (eventuale valore parametrico) | E90: =+IFERROR(IF(E60>=0,E60*Capex!E77),"") ->  | F90: =+IFERROR(IF(F60>=0,F60*Capex!F77),"") ->  | G90: =+IFERROR(IF(G60>=0,G60*Capex!G77),"") ->  | H90: =+IFERROR(IF(H60>=0,H60*Capex!H77),"") -> 
B91: OFISCenv (valore puntuale) | E91: =+MAX(Capex!$M$60*E88,0) -> 0 | F91: =+MAX(Capex!$M$60*F88,0) -> 0 | G91: =+MAX(Capex!$M$60*G88,0) -> 0 | H91: =+MAX(Capex!$M$60*H88,0) -> 0
B92: OFiscenv | E92: =+IF(E60<>"",E90,E91) -> 0 | F92: 0 | G92: 0 | H92: 0
A96: Art. 26 All. A | B96: Rescapex
C100: 2024 | D100: 2025 | E100: 2026 | F100: 2027 | G100: 2028 | H100: 2029
B101: Incidenza Res parametrica | E101: =+IF(Nuovi_Investimenti!D12<>"",Nuovi_Investimenti!D12,"") ->  | F101: =+IF(Nuovi_Investimenti!E12<>"",Nuovi_Investimenti!E12,"") ->  | G101: =+IF(Nuovi_Investimenti!F12<>"",Nuovi_Investimenti!F12,"") ->  | H101: =+IF(Nuovi_Investimenti!G12<>"",Nuovi_Investimenti!G12,"") -> 
B102: AMMres (eventuale valore parametrico) | E102: =+IFERROR(IF(E101>=0,E101*Capex!E46),"") ->  | F102: =+IFERROR(IF(F101>=0,F101*Capex!F46),"") ->  | G102: =+IFERROR(IF(G101>=0,G101*Capex!G46),"") ->  | H102: =+IFERROR(IF(H101>=0,H101*Capex!H46),"") -> 
B103: AMMres (valore puntuale) | E103: =+TT_riepilogo_IMN!G57 -> 0 | F103: =+TT_riepilogo_IMN!H57 -> 0 | G103: =+TT_riepilogo_IMN!I57 -> 0 | H103: =+TT_riepilogo_IMN!J57 -> 0
B105: AMMres | E105: =+IF(E101<>"",E102,E103) -> 0 | F105: 0 | G105: 0 | H105: 0
B108: LICord | E108: ='PdI-riepilogo'!E144 -> 0 | F108: ='PdI-riepilogo'!F144 -> 0 | G108: ='PdI-riepilogo'!G144 -> 0 | H108: ='PdI-riepilogo'!H144 -> 0
B109: LICpos | E109: ='PdI-riepilogo'!E148 -> 0 | F109: ='PdI-riepilogo'!F148 -> 0 | G109: ='PdI-riepilogo'!G148 -> 0 | H109: ='PdI-riepilogo'!H148 -> 0
C113: 2024 | D113: 2025 | E113: 2026 | F113: 2027 | G113: 2028 | H113: 2029
B114: CINres | E114: =+MAX(TT_riepilogo_IMN!G56,0)+E108+E109 -> 0 | F114: =+MAX(TT_riepilogo_IMN!H56,0)+F108+F109 -> 0 | G114: =+MAX(TT_riepilogo_IMN!I56,0)+G108+G109 -> 0 | H114: =+MAX(TT_riepilogo_IMN!J56,0)+H108+H109 -> 0
B115: CINfp / (CIN - LICord) res | E115: =+IFERROR(E122/(E114-E108),0) -> 0 | F115: 0 | G115: 0 | H115: 0
B116: Km | E116: =Capex!$E$61 -> 0.03105 | F116: =Capex!$F$61 -> 0.03105 | G116: =+Capex!$G$61 -> 0.03105 | H116: =+Capex!$H$61 -> 0.03105
B117: α | E117: =Capex!$E$62 -> 0.012245 | F117: =Capex!$F$62 -> 0.012245 | G117: =+Capex!$G$62 -> 0.012245 | H117: =+Capex!$H$62 -> 0.012245
B119: OFres (time lag) | E119: =Capex!$M$62*(TT_riepilogo_IMN!G80-TT_riepilogo_IMN!G84) -> 0 | F119: =Capex!$M$62*(TT_riepilogo_IMN!F80-TT_riepilogo_IMN!F84) -> 0 | G119: =Capex!$M$62*(TT_riepilogo_IMN!I80-TT_riepilogo_IMN!I84) -> 0 | H119: =Capex!$M$62*(TT_riepilogo_IMN!J80-TT_riepilogo_IMN!J84) -> 0
B120: OFimm res | E120: =+(E75+E76)*(1-E115)*(E114-E108) -> 0 | F120: 0 | G120: 0 | H120: 0
B121: OFlic, ord res | E121: ='PdI-riepilogo'!E140 -> 0 | F121: ='PdI-riepilogo'!F140 -> 0 | G121: ='PdI-riepilogo'!G140 -> 0 | H121: ='PdI-riepilogo'!H140 -> 0
B122: CINfp,res | E122: =+MAX(TT_riepilogo_IMN!G60,0) -> 0 | F122: =+MAX(TT_riepilogo_IMN!H60,0) -> 0 | G122: =+MAX(TT_riepilogo_IMN!I60,0) -> 0 | H122: =+MAX(TT_riepilogo_IMN!J60,0) -> 0
B124: OFres (eventuale valore parametrico) | E124: =+IFERROR(IF(E101>=0,E101*Capex!E69),"") ->  | F124: =+IFERROR(IF(F101>=0,F101*Capex!F69),"") ->  | G124: =+IFERROR(IF(G101>=0,G101*Capex!G69),"") ->  | H124: =+IFERROR(IF(H101>=0,H101*Capex!H69),"") -> 
B125: OFres (valore puntuale) | E125: =+E119+E120+E121 -> 0 | F125: 0 | G125: 0 | H125: 0
B126: OFres | E126: =+IF(E101<>"",E124,E125) -> 0 | F126: 0 | G126: 0 | H126: 0
B128: Rai rate | E128: =Capex!$E$75 -> 0.07230982118 | F128: =Capex!$F$75 -> 0.07230982118 | G128: =+Capex!$G$75 -> 0.07230982118 | H128: =+Capex!$H$75 -> 0.07230982118
B129: Raires | E129: =+(E114-E122)*E87 -> 0 | F129: 0 | G129: 0 | H129: 0
B131: OFiscres (eventuale valore parametrico) | E131: =+IFERROR(IF(E101>=0,E101*Capex!E77),"") ->  | F131: =+IFERROR(IF(F101>=0,F101*Capex!F77),"") ->  | G131: =+IFERROR(IF(G101>=0,G101*Capex!G77),"") ->  | H131: =+IFERROR(IF(H101>=0,H101*Capex!H77),"") -> 
B132: OFiscres (valore puntuale) | E132: =+MAX(Capex!$M$60*E129,0) -> 0 | F132: =+MAX(Capex!$M$60*F129,0) -> 0 | G132: =+MAX(Capex!$M$60*G129,0) -> 0 | H132: =+MAX(Capex!$M$60*H129,0) -> 0
B133: OFiscres | E133: =+IF(E101<>"",E131,E132) -> 0 | F133: 0 | G133: 0 | H133: 0
B140: Sviluppo della componente ERCopex
C143: 2024 | D143: 2025 | E143: 2026 | F143: 2027 | G143: 2028 | H143: 2029
B144: ERCend | C144: =+C189 -> 0 | D144: 0 | E144: =+E189 -> 0 | F144: 0 | G144: 0 | H144: 0
B145: ERCal | C145: =+C170 -> 0 | D145: 0 | E145: =+E170 -> 0 | F145: 0 | G145: 0 | H145: 0
B146: ERCtel | C146: =+C206 -> 0 | D146: 0 | E146: =+E206 -> 0 | F146: 0 | G146: 0 | H146: 0
B148: ERCopex da calcolo | E148: =+SUM(E144:E146) -> 0 | F148: 0 | G148: 0 | H148: 0
B149: ERCopex (eventuale detrazione da "Input per calcoli finali") | E149: =+Input_per_calcoli_finali!K165 -> 0 | F149: =+Input_per_calcoli_finali!L165 -> 0 | G149: =+Input_per_calcoli_finali!M165 -> 0 | H149: =+Input_per_calcoli_finali!N165 -> 0
B150: ERCopex | C150: =+SUM(C144:C146) -> 0 | D150: =+SUM(D144:D146) -> 0 | E150: =+E148-E149 -> 0 | F150: 0 | G150: 0 | H150: 0
A156: Art. 27 All. A | B156: ERCal - ERC aggiornabili
B160: Valori da bilancio dell'anno a-2 | C160: 2024 | D160: 2025 | E160: 2026 | F160: 2027 | G160: 2028 | H160: 2029
B161: Canoni di derivaz/sottens idrica (quota ERC) | E161: =+Dati_conto_economico!D98 -> 0 | F161: =+Dati_conto_economico!J98 -> 0 | G161: =+F161 -> 0 | H161: =+G161 -> 0
B162: contributi per consorzi di bonifica | E162: =+Dati_conto_economico!D99 -> 0 | F162: =+Dati_conto_economico!J99 -> 0 | G162: =+F162 -> 0 | H162: 0
B163: Comunità Montane (quota ERC) | E163: =+Dati_conto_economico!D100 -> 0 | F163: =+Dati_conto_economico!J100 -> 0 | G163: 0 | H163: 0
B164: canoni per restituzione acque | E164: =+Dati_conto_economico!D101 -> 0 | F164: =+Dati_conto_economico!J101 -> 0 | G164: 0 | H164: 0
B165: oneri per la gestione di aree di salvaguardia | E165: =+Dati_conto_economico!D102 -> 0 | F165: =+Dati_conto_economico!J102 -> 0 | G165: 0 | H165: 0
B168: ERCaal da formula
B169: ERCaal (detrazione)
B170: ERCaal | C170: =+Dati_Anni_precedenti!E60 -> 0 | D170: =+Dati_Anni_precedenti!F60 -> 0 | E170: =+SUM(E161:E165) -> 0 | F170: 0 | G170: 0 | H170: 0
A174: Art. 27 All. A | B174: ERCend - ERC endogeni
B178: Valori da bilancio dell'anno a-2 | C178: 2024 | D178: 2025 | E178: 2026 | F178: 2027 | G178: 2028 | H178: 2029
B179: B6) Per materie prime, sussidiarie, di consumo e merci | E179: =+Dati_conto_economico!D43 -> 0 | F179: =+Dati_conto_economico!J43 -> 0 | G179: =+F179 -> 0 | H179: =+G179 -> 0
B180: B7) Altri servizi da altre imprese del gruppo | E180: =+Dati_conto_economico!D57 -> 0 | F180: =+Dati_conto_economico!J57 -> 0 | G180: =+F180 -> 0 | H180: 0
B181: B7) Altri servizi da altre imprese | E181: =+Dati_conto_economico!D58 -> 0 | F181: =+Dati_conto_economico!J58 -> 0 | G181: 0 | H181: 0
B182: B8) Per godimento beni di terzi | E182: =+Dati_conto_economico!D59 -> 0 | F182: =+Dati_conto_economico!J59 -> 0 | G182: 0 | H182: 0
B183: B9) Per il personale | E183: =+Dati_conto_economico!D62 -> 0 | F183: =+Dati_conto_economico!J62 -> 0 | G183: 0 | H183: 0
B184: B14) Oneri diversi di gestione | E184: =+Dati_conto_economico!D72-SUM(E161:E165) -> 0 | F184: =+Dati_conto_economico!J72-SUM(F161:F165) -> 0 | G184: 0 | H184: 0
B185: ∏(1+It) | C185: =+VLOOKUP("da t-2 a t",PINF,C178 - 2011,FALSE) -> 1.13696 | D185: =+VLOOKUP("da t-2 a t",PINF,D178 - 2011,FALSE) -> 1.10976 | E185: =+VLOOKUP("da t-2 a t",PINF,E178 - 2011,FALSE) -> 1.03224 | F185: 1.012 | G185: 1 | H185: 1
B189: ERCaend | C189: =+Dati_Anni_precedenti!E59 -> 0 | D189: =+Dati_Anni_precedenti!F59 -> 0 | E189: =++SUM(E179:E184)*E185 -> 0 | F189: 0 | G189: 0 | H189: 0
A193: Art. 27 All. A | B193: ERCtel - specifiche finalità
C197: 2024 | D197: 2025 | E197: 2026 | F197: 2027 | G197: 2028 | H197: 2029
B198: ERCQT comma 19.8 lett. a) - dati anni precedenti | C198: =+Dati_Anni_precedenti!E61 -> 0 | D198: =+Dati_Anni_precedenti!F61 -> 0 | E198: =+MIN(Dati_Anni_precedenti!$F$61,SUMIFS('PdI-crono_ges'!V:V,'PdI-crono_ges'!$J:$J,"ENV",'PdI-crono_ges'!$K:$K,"lettera a)")+SUMIFS('PdI-crono_ges'!V:V,'PdI-crono_ges'!$J:$J,"RES",'PdI-crono_ges'!$K:$K,"lettera a)")) -> 0 | F198: =+MIN(Dati_Anni_precedenti!$F$61,SUMIFS('PdI-crono_ges'!W:W,'PdI-crono_ges'!$J:$J,"ENV",'PdI-crono_ges'!$K:$K,"lettera a)")+SUMIFS('PdI-crono_ges'!W:W,'PdI-crono_ges'!$J:$J,"RES",'PdI-crono_ges'!$K:$K,"lettera a)")) -> 0 | G198: =+MIN(Dati_Anni_precedenti!$F$61,SUMIFS('PdI-crono_ges'!X:X,'PdI-crono_ges'!$J:$J,"ENV",'PdI-crono_ges'!$K:$K,"lettera a)")+SUMIFS('PdI-crono_ges'!X:X,'PdI-crono_ges'!$J:$J,"RES",'PdI-crono_ges'!$K:$K,"lettera a)")) -> 0 | H198: =+MIN(Dati_Anni_precedenti!$F$61,SUMIFS('PdI-crono_ges'!Y:Y,'PdI-crono_ges'!$J:$J,"ENV",'PdI-crono_ges'!$K:$K,"lettera a)")+SUMIFS('PdI-crono_ges'!Y:Y,'PdI-crono_ges'!$J:$J,"RES",'PdI-crono_ges'!$K:$K,"lettera a)")) -> 0
C199: =+Dati_Anni_precedenti!E62 -> 0 | D199: =+Dati_Anni_precedenti!F62 -> 0
B200: ERCQT comma 19.8 lett. b) | C200: =+Dati_Anni_precedenti!E63 -> 0 | D200: =+Dati_Anni_precedenti!F63 -> 0 | E200: =+SUMIFS('PdI-crono_ges'!V:V,'PdI-crono_ges'!$J:$J,"ENV",'PdI-crono_ges'!$K:$K,"lettera b)")+SUMIFS('PdI-crono_ges'!V:V,'PdI-crono_ges'!$J:$J,"RES",'PdI-crono_ges'!$K:$K,"lettera b)") -> 0 | F200: =+SUMIFS('PdI-crono_ges'!W:W,'PdI-crono_ges'!$J:$J,"ENV",'PdI-crono_ges'!$K:$K,"lettera b)")+SUMIFS('PdI-crono_ges'!W:W,'PdI-crono_ges'!$J:$J,"RES",'PdI-crono_ges'!$K:$K,"lettera b)") -> 0 | G200: =+SUMIFS('PdI-crono_ges'!X:X,'PdI-crono_ges'!$J:$J,"ENV",'PdI-crono_ges'!$K:$K,"lettera b)")+SUMIFS('PdI-crono_ges'!X:X,'PdI-crono_ges'!$J:$J,"RES",'PdI-crono_ges'!$K:$K,"lettera b)") -> 0 | H200: =+SUMIFS('PdI-crono_ges'!Y:Y,'PdI-crono_ges'!$J:$J,"ENV",'PdI-crono_ges'!$K:$K,"lettera b)")+SUMIFS('PdI-crono_ges'!Y:Y,'PdI-crono_ges'!$J:$J,"RES",'PdI-crono_ges'!$K:$K,"lettera b)") -> 0
B201: ERCQT comma 19.8 lett. c) 477/2023/R/IDR | C201: =+Dati_Anni_precedenti!E64 -> 0 | D201: =+Dati_Anni_precedenti!F64 -> 0 | E201: =+SUMIFS('PdI-crono_ges'!V:V,'PdI-crono_ges'!$J:$J,"ENV",'PdI-crono_ges'!$K:$K,"lettera c) 477/2023/R/IDR")+SUMIFS('PdI-crono_ges'!V:V,'PdI-crono_ges'!$J:$J,"RES",'PdI-crono_ges'!$K:$K,"lettera c) 477/2023/R/IDR") -> 0 | F201: =+SUMIFS('PdI-crono_ges'!W:W,'PdI-crono_ges'!$J:$J,"ENV",'PdI-crono_ges'!$K:$K,"lettera c) 477/2023/R/IDR")+SUMIFS('PdI-crono_ges'!W:W,'PdI-crono_ges'!$J:$J,"RES",'PdI-crono_ges'!$K:$K,"lettera c) 477/2023/R/IDR") -> 0 | G201: =+SUMIFS('PdI-crono_ges'!X:X,'PdI-crono_ges'!$J:$J,"ENV",'PdI-crono_ges'!$K:$K,"lettera c) 477/2023/R/IDR")+SUMIFS('PdI-crono_ges'!X:X,'PdI-crono_ges'!$J:$J,"RES",'PdI-crono_ges'!$K:$K,"lettera c) 477/2023/R/IDR") -> 0 | H201: =+SUMIFS('PdI-crono_ges'!Y:Y,'PdI-crono_ges'!$J:$J,"ENV",'PdI-crono_ges'!$K:$K,"lettera c) 477/2023/R/IDR")+SUMIFS('PdI-crono_ges'!Y:Y,'PdI-crono_ges'!$J:$J,"RES",'PdI-crono_ges'!$K:$K,"lettera c) 477/2023/R/IDR") -> 0
B202: ERCQT comma 19.8 lett. c) 225/2025/R/IDR | E202: =+SUMIFS('PdI-crono_ges'!V:V,'PdI-crono_ges'!$J:$J,"ENV",'PdI-crono_ges'!$K:$K,"lettera c) 225/2025/R/IDR")+SUMIFS('PdI-crono_ges'!V:V,'PdI-crono_ges'!$J:$J,"RES",'PdI-crono_ges'!$K:$K,"lettera c) 225/2025/R/IDR") -> 0 | F202: =+SUMIFS('PdI-crono_ges'!W:W,'PdI-crono_ges'!$J:$J,"ENV",'PdI-crono_ges'!$K:$K,"lettera c) 225/2025/R/IDR")+SUMIFS('PdI-crono_ges'!W:W,'PdI-crono_ges'!$J:$J,"RES",'PdI-crono_ges'!$K:$K,"lettera c) 225/2025/R/IDR") -> 0 | G202: =+SUMIFS('PdI-crono_ges'!X:X,'PdI-crono_ges'!$J:$J,"ENV",'PdI-crono_ges'!$K:$K,"lettera c) 225/2025/R/IDR")+SUMIFS('PdI-crono_ges'!X:X,'PdI-crono_ges'!$J:$J,"RES",'PdI-crono_ges'!$K:$K,"lettera c) 225/2025/R/IDR") -> 0 | H202: =+SUMIFS('PdI-crono_ges'!Y:Y,'PdI-crono_ges'!$J:$J,"ENV",'PdI-crono_ges'!$K:$K,"lettera c) 225/2025/R/IDR")+SUMIFS('PdI-crono_ges'!Y:Y,'PdI-crono_ges'!$J:$J,"RES",'PdI-crono_ges'!$K:$K,"lettera c) 225/2025/R/IDR") -> 0
B203: ERCa tel - di cui ERCQT | C203: =+MIN(C198:C199)+C200+C201 -> 0 | D203: =+MIN(D198:D199)+D200+D201 -> 0 | E203: =+E198+E200+E201+E202 -> 0 | F203: =+F198+F200+F201+F202 -> 0 | G203: 0 | H203: 0
B204: ERCa tel - di cui Opnew | C204: =+Dati_Anni_precedenti!E64 -> 0 | D204: =+Dati_Anni_precedenti!F64 -> 0 | E204: =Altri_dati_eco_fin!G71 -> 0 | F204: =Altri_dati_eco_fin!H71 -> 0 | G204: =Altri_dati_eco_fin!I71 -> 0 | H204: =Altri_dati_eco_fin!J71 -> 0
B206: ERCa tel | C206: =+C203+C204 -> 0 | D206: =+D203+D204 -> 0 | E206: =+E203+E204 -> 0 | F206: 0 | G206: 0 | H206: 0
A211: Comma 25.1 All. A | B211: Riepilogo della componente tariffaria a copertura dei costi ambientali e della risorsa
B213: Sviluppo dei costi ambientali (Env) e della risorsa (Res)
C216: 2024 | D216: 2025 | E216: 2026 | F216: 2027 | G216: 2028 | H216: 2029
B217: ERCcapex da piano tariffario | C217: =Storico_Piano_Tariffario!E41 -> 0 | D217: =Storico_Piano_Tariffario!F41 -> 0 | E217: =+E218+E219 -> 0 | F217: 0 | G217: 0 | H217: 0
B218: di cui Envcapex | C218: =Dati_Anni_precedenti!E55 -> 0 | D218: =Dati_Anni_precedenti!F55 -> 0 | E218: =+IFERROR(E46-((E46/E51)*E50),0) -> 0 | F218: 0 | G218: 0 | H218: 0
B219: di cui Rescapex | C219: =Dati_Anni_precedenti!E56 -> 0 | D219: =Dati_Anni_precedenti!F56 -> 0 | E219: =+IFERROR(E47-((E47/E51)*E50),0) -> 0 | F219: 0 | G219: 0 | H219: 0
B220: ERCopex da piano tariffario | C220: =Storico_Piano_Tariffario!E42 -> 0 | D220: =Storico_Piano_Tariffario!F42 -> 0 | E220: =+E150 -> 0 | F220: 0 | G220: 0 | H220: 0
B221: di cui Envopex | C221: =Dati_Anni_precedenti!E57 -> 0 | D221: =Dati_Anni_precedenti!F57 -> 0 | E221: =+E220-E222 -> 0 | F221: 0 | G221: 0 | H221: 0
B222: di cui Resopex | C222: =Dati_Anni_precedenti!E58 -> 0 | D222: =Dati_Anni_precedenti!F58 -> 0 | E222: =+Altri_dati_eco_fin!G91 -> 0 | F222: =+Altri_dati_eco_fin!H91 -> 0 | G222: =+Altri_dati_eco_fin!I91 -> 0 | H222: =+Altri_dati_eco_fin!J91 -> 0

Sheet FoNI
A2: Titolo 3 MTI-4 | B2: Fondo nuovi investimenti
B4: Sviluppo della componente FoNI
B9: Componenti nel Piano Tariffario | C9: 2024 | D9: 2025 | E9: 2026 | F9: 2027 | G9: 2028 | H9: 2029
B10: FoNIa | C10: =+SUM(C11:C13) -> 0 | D10: =+SUM(D11:D13) -> 0 | E10: =+SUM(E11:E13) -> 0 | F10: 0 | G10: 0 | H10: 0
B11: AMMaFoNI | C11: =C93 -> 0 | D11: =D93 -> 0 | E11: =E93 -> 0 | F11: 0 | G11: 0 | H11: 0
B12: FNIa | C12: =+C79 -> 0 | D12: =+D79 -> 0 | E12: =+E79 -> 0 | F12: 0 | G12: 0 | H12: 0
B13: ΔCUITaFoNI | C13: =+C107 -> 0 | D13: =+D107 -> 0 | E13: =+E107 -> 0 | F13: 0 | G13: 0 | H13: 0
B28: Componenti calcolate | C28: 2024 | D28: 2025 | E28: 2026 | F28: 2027 | G28: 2028 | H28: 2029
B29: FoNIa | E29: =SUM(E30:E32) -> 0 | F29: 0 | G29: 0 | H29: 0
B30: AMMaFoNI | E30: =+E90 -> 0 | F30: 0 | G30: 0 | H30: 0
B31: FNIa | E31: =+IF(OR(schema="IV",schema="V",schema="VI"),E77,0) -> 0 | F31: 0 | G31: 0 | H31: 0
B32: ΔCUITaFoNI | E32: =+E105 -> 0 | F32: 0 | G32: 0 | H32: 0
A69: comma 16.2 All. A | B69: FNI - Anticipazione per il finanziamento di nuovi investimenti
C73: 2024 | D73: 2025 | E73: 2026 | F73: 2027 | G73: 2028 | H73: 2029
B74: Ipaexp | E74: ='PdI-riepilogo'!F15-('PdI-riepilogo'!F21-'PdI-riepilogo'!F24) -> 0 | F74: ='PdI-riepilogo'!G15-('PdI-riepilogo'!G21-'PdI-riepilogo'!G24) -> 0 | G74: ='PdI-riepilogo'!H15-('PdI-riepilogo'!H21-'PdI-riepilogo'!H24) -> 0 | H74: ='PdI-riepilogo'!I15-('PdI-riepilogo'!I21-'PdI-riepilogo'!I24) -> 0
B75: Capexa | E75: =+Capex!E10+ERC!E11 -> 0 | F75: =+Capex!F10+ERC!F11 -> 0 | G75: =+Capex!G10+ERC!G11 -> 0 | H75: =+Capex!H10+ERC!H11 -> 0
B76: ψ [0,4÷0,8] | E76: =Input_per_calcoli_finali!$K$51 -> 0 | F76: =Input_per_calcoli_finali!$K$51 -> 0 | G76: =Input_per_calcoli_finali!$K$51 -> 0 | H76: =Input_per_calcoli_finali!$K$51 -> 0
B77: FNInew,a da formula | E77: =IF(OR(schema="IV",schema="V",schema="VI"),MAX(0,E76*(E74-E75)),0) -> 0 | F77: 0 | G77: 0 | H77: 0
B78: FNInew,a rinunciato da soggetto compilante | E78: =Input_per_calcoli_finali!K124 -> 0 | F78: =Input_per_calcoli_finali!L124 -> 0 | G78: =Input_per_calcoli_finali!M124 -> 0 | H78: =Input_per_calcoli_finali!N124 -> 0
B79: FNIa | C79: =+Dati_Anni_precedenti!E32 -> 0 | D79: =+Dati_Anni_precedenti!F32 -> 0 | E79: =IF(OR(schema="IV",schema="V",schema="VI"),MAX(0,E77-E78),0) -> 0 | F79: 0 | G79: 0 | H79: 0
A85: comma 16.3 All. A | B85: AMMFoNI - Ammortamento sui contributi a fondo perduto
C89: 2024 | D89: 2025 | E89: 2026 | F89: 2027 | G89: 2028 | H89: 2029
B90: AMMaCFP da formula | E90: =TT_riepilogo_IMN!G13+SUMIF(IMN_Proprietari!$C:$C,"Altra società privata",IMN_Proprietari!$AT:$AT) -> 0 | F90: =TT_riepilogo_IMN!H13+SUMIF(IMN_Proprietari!$C:$C,"Altra società privata",IMN_Proprietari!$BD:$BD) -> 0 | G90: =TT_riepilogo_IMN!I13+SUMIF(IMN_Proprietari!$C:$C,"Altra società privata",IMN_Proprietari!$BN:$BN) -> 0 | H90: =TT_riepilogo_IMN!J13+SUMIF(IMN_Proprietari!$C:$C,"Altra società privata",IMN_Proprietari!$BX:$BX) -> 0
B91: AMMaCFP massimo nel FoNI (post controllo sull'eventuale presenza di FoNInoninv) | E91: =+IF(E136="SI",0,E90) -> 0 | F91: 0 | G91: 0 | H91: 0
B92: AMMaFoNI rinunciato da soggetto compilante | E92: =Input_per_calcoli_finali!K128 -> 0 | F92: =Input_per_calcoli_finali!L128 -> 0 | G92: =Input_per_calcoli_finali!M128 -> 0 | H92: =Input_per_calcoli_finali!N128 -> 0
B93: AMMaFoNI | C93: =+Dati_Anni_precedenti!E30 -> 0 | D93: =+Dati_Anni_precedenti!F30 -> 0 | E93: =MAX(0,E91-E92) -> 0 | F93: 0 | G93: 0 | H93: 0
A99: comma 16.4 All. A | B99: DCUITFoNI - Eccedenza del costo per l’uso delle infrastrutture di terzi
C103: 2024 | D103: 2025 | E103: 2026 | F103: 2027 | G103: 2028 | H103: 2029
B104: ΔCUITa da formula | E104: =+Capex!E136-Capex!E14 -> 0 | F104: =+Capex!F136-Capex!F14 -> 0 | G104: =+Capex!G136-Capex!G14 -> 0 | H104: =+Capex!H136-Capex!H14 -> 0
B105: ΔCUITa massimo nel FoNI (post controllo sull'eventuale presenza di FoNInoninv e Ammortamento finanziario) | E105: =+IF(E135="SI",0,E104) -> 0 | F105: 0 | G105: 0 | H105: 0
B106: ΔCUITaFoNI rinunciato dal soggetto compilante | E106: =+Input_per_calcoli_finali!K132 -> 0 | F106: =+Input_per_calcoli_finali!L132 -> 0 | G106: =+Input_per_calcoli_finali!M132 -> 0 | H106: =+Input_per_calcoli_finali!N132 -> 0
B107: ΔCUITaFoNI | C107: =+Dati_Anni_precedenti!E31 -> 0 | D107: =+Dati_Anni_precedenti!F31 -> 0 | E107: =MAX(0,E105-E106) -> 0 | F107: 0 | G107: 0 | H107: 0
A113: Art. 36 All. A | B113: Controllo sul rispetto del vincolo di destinazione del FoNI
B117: Controllo sull'eventuale presenza di FoNI - non speso
C119: 2024 | D119: 2025 | E119: 2026 | F119: 2027 | G119: 2028 | H119: 2029
B120: FoNIa-2 dal foglio "Dati anni precedenti" | E120: =+SUM(Dati_Anni_precedenti!E30:E32) -> 0 | F120: =+SUM(Dati_Anni_precedenti!F30:F32) -> 0 | G120: =+E10 -> 0 | H120: =+F10 -> 0
B121: FoNIspesa ai sensi del comma 36.3 del MTI-4 | E121: =+Altri_dati_eco_fin!E56 -> 0 | F121: =+Altri_dati_eco_fin!F56 -> 0 | G121: =PdI_consolidamento!X6 -> 0 | H121: =PdI_consolidamento!Y6 -> 0
B122: FoNInoninv | C122: =+Dati_Anni_precedenti!E92 -> 0 | D122: =+Dati_Anni_precedenti!F92 -> 0 | E122: =+MAX(E120-E121,0) -> 0 | F122: 0 | G122: 0 | H122: 0
B123: SFoNInoninv (a moneta dell'anno) | C123: =+MAX(C122*C125,0) -> 0 | D123: =+MAX(C123*VLOOKUP(D119-1,ifl,D119 - 2010,FALSE)+D122*D125,0) -> 0 | E123: =+MAX(D123*VLOOKUP(E119-1,ifl,E119 - 2010,FALSE)+E122*E125,0) -> 0 | F123: =+MAX(E123*VLOOKUP(F119-1,ifl,F119 - 2010,FALSE)+F122*F125,0) -> 0 | G123: =+MAX(F123*VLOOKUP(G119-1,ifl,G119 - 2010,FALSE)+G122*G125,0) -> 0 | H123: =+MAX(G123*VLOOKUP(H119-1,ifl,H119 - 2010,FALSE)+H122*H125,0) -> 0
B125: dfl | C125: =+VLOOKUP(C119-2,ifl,C119 - 2010,FALSE) -> 1.062952 | D125: =+VLOOKUP(D119-2,ifl,D119 - 2010,FALSE) -> 1.026972 | E125: =+VLOOKUP(E119-2,ifl,E119 - 2010,FALSE) -> 0.999999 | F125: 1.001 | G125: 1 | H125: 1
B127: Verifica FoNIspesa | C127: =+IF(C123<>0,"Verificare il valore del FoNIspesa","OK") -> OK | D127: =+IF(D123<>0,"Verificare il valore del FoNIspesa","OK") -> OK | E127: =+IF(E123<>0,"Verificare il valore del FoNIspesa","OK") -> OK | F127: OK | G127: OK | H127: OK
B129: Condizioni di azzeramento delle componenti ΔCUITFoNI e AMMfoni
C131: 2024 | D131: 2025 | E131: 2026 | F131: 2027 | G131: 2028 | H131: 2029
B132: Presenza FoNInoninv | E132: =+IF(ROUND(E123,0)=0,"NO","SI") -> NO | F132: NO | G132: NO | H132: NO
B133: AMMORTAMENTO FINANZIARIO | E133: =Ammortamento_Finanziario!H4 -> NO | F133: =Ammortamento_Finanziario!I4 -> NO | G133: =Ammortamento_Finanziario!J4 -> NO | H133: =Ammortamento_Finanziario!K4 -> NO
B135: Azzeramento ΔCUITaFoNI | E135: =+IF(OR(E133="SI",E132="SI"),"SI","NO") -> NO | F135: NO | G135: NO | H135: NO
B136: Azzeramento AMMaFoNI | E136: =+IF(AND(E132="SI",E122>E107),"SI","NO") -> NO | F136: NO | G136: NO | H136: NO

Sheet Opex
A2: Titolo 5 MTI-4 | B2: Costi operativi
B4: Sviluppo della componente Opex
B9: Componenti nel Piano Tariffario | C9: 2024 | D9: 2025 | E9: 2026 | F9: 2027 | G9: 2028 | H9: 2029
B10: Opexa | C10: =+SUM(C11:C13) -> 0 | D10: =+SUM(D11:D13) -> 0 | E10: =+SUM(E11:E13) -> 0 | F10: 0 | G10: 0 | H10: 0
B11: Opexend | C11: =+C57 -> 0 | D11: =+D57 -> 0 | E11: =+E57 -> 0 | F11: 0 | G11: 0 | H11: 0
B12: Opexal | C12: =+C155 -> 0 | D12: =+D155 -> 0 | E12: =+E155 -> 0 | F12: 0 | G12: 0 | H12: 0
B13: Opextel | C13: =+C72 -> 0 | D13: =+D72 -> 0 | E13: =+E72 -> 0 | F13: 0 | G13: 0 | H13: 0
B28: Componenti calcolate | C28: 2024 | D28: 2025 | E28: 2026 | F28: 2027 | G28: 2028 | H28: 2029
B29: Opexa | E29: =+SUM(E30:E32) -> 0 | F29: 0 | G29: 0 | H29: 0
B30: Opexend | E30: =+E55 -> 0 | F30: 0 | G30: 0 | H30: 0
B31: Opexal | E31: =+E153 -> 0 | F31: 0 | G31: 0 | H31: 0
B32: Opextel | E32: =+E72 -> 0 | F32: 0 | G32: 0 | H32: 0
A38: Art. 18 MTI-4 | B38: Opexend - Costi endogeni
C42: 2024 | D42: 2025 | E42: 2026 | F42: 2027 | G42: 2028 | H42: 2029
B43: Classe (i)
B44: Cluster (j)
B45: γOP
B46: Opexend 2020
B47: Coeff 2020
B48: ΔOpex
B49: ∏(1+It) (da 2022 ad a) | C49: =+VLOOKUP("da t-2 a t",PINF,C$9 - 2011,FALSE) -> 1.13696 | D49: =+VLOOKUP("da t-3 a t",PINF,D$9 - 2011,FALSE) -> 1.1596992 | E49: =+VLOOKUP("da t-4 a t",PINF,E$9 - 2011,FALSE) -> 1.17361559 | F49: =+VLOOKUP("da t-5 a t",PINF,F$9 - 2011,FALSE) -> 1.17361559 | G49: =+VLOOKUP("da t-6 a t",PINF,G$9 - 2011,FALSE) -> 1.17361559 | H49: =+VLOOKUP("da t-7 a t",PINF,H$9 - 2011,FALSE) -> 1.17361559
B50: (1+γOPi,j)*max(0;ΔOpex) | C50: =+Storico_Piano_Tariffario!E77 -> 0 | D50: =+Storico_Piano_Tariffario!F77 -> 0 | E50: =+D50 -> 0 | F50: =+E50 -> 0 | G50: =+F50 -> 0 | H50: =+G50 -> 0
B51: Opex2025end, new | E51: =Altri_dati_eco_fin!F69 -> 0 | F51: =Altri_dati_eco_fin!F69 -> 0 | G51: =Altri_dati_eco_fin!F69 -> 0 | H51: =Altri_dati_eco_fin!F69 -> 0
B52: ∏(1+It) (da 2025 ad a) | E52: =+VLOOKUP("da t-1 a t",PINF,E$9 - 2011,FALSE) -> 1.012 | F52: =+VLOOKUP("da t-2 a t",PINF,F$9 - 2011,FALSE) -> 1.012 | G52: =+VLOOKUP("da t-3 a t",PINF,G$9 - 2011,FALSE) -> 1.012 | H52: =+VLOOKUP("da t-4 a t",PINF,H$9 - 2011,FALSE) -> 1.012
B53: Opexend al lordo degli ERCend | E53: =+IFERROR((Dati_Anni_precedenti!$E$97+Dati_Anni_precedenti!$E$98)*E49-E50+(E51*E52),"") -> 0 | F53: =+IFERROR((Dati_Anni_precedenti!$E$97+Dati_Anni_precedenti!$E$98)*F49-F50+(F51*F52),"") -> 0 | G53: =+IFERROR((Dati_Anni_precedenti!$E$97+Dati_Anni_precedenti!$E$98)*G49-G50+(G51*G52),"") -> 0 | H53: =+IFERROR((Dati_Anni_precedenti!$E$97+Dati_Anni_precedenti!$E$98)*H49-H50+(H51*H52),"") -> 0
B55: Opexend da formula | E55: =+IFERROR(E53-ERC!E189,0) -> 0 | F55: =+IFERROR(F53-ERC!F189,0) -> 0 | G55: =+IFERROR(G53-ERC!G189,0) -> 0 | H55: =+IFERROR(H53-ERC!H189,0) -> 0
B56: Opexend (eventuale detrazione da "Input per calcoli finali") | E56: =Input_per_calcoli_finali!K145 -> 0 | F56: =Input_per_calcoli_finali!L145 -> 0 | G56: =Input_per_calcoli_finali!M145 -> 0 | H56: =Input_per_calcoli_finali!N145 -> 0
B57: Opexend al netto degli ERCend | C57: =+Dati_Anni_precedenti!E54 -> 0 | D57: =+Dati_Anni_precedenti!F54 -> 0 | E57: =+IFERROR(E55-E56,0) -> 0 | F57: 0 | G57: 0 | H57: 0
A62: Art. 19 MTI-4 | B62: Opexatel - Costi operativi associati a specifiche finalità
C66: 2024 | D66: 2025 | E66: 2026 | F66: 2027 | G66: 2028 | H66: 2029
B67: OPnew | C67: =C84 -> 0 | D67: =D84 -> 0 | E67: =E84 -> 0 | F67: 0 | G67: 0 | H67: 0
B68: OpexQT | C68: =C99 -> 0 | D68: =D99 -> 0 | E68: =E99 -> 0 | F68: 0 | G68: 0 | H68: 0
B69: OpexQC | C69: =C115 -> 0 | D69: =D115 -> 0 | E69: =E115 -> 0 | F69: 0 | G69: 0 | H69: 0
B70: Opsocial | C70: =C129 -> 0 | D70: =D129 -> 0 | E70: =E129 -> 0 | F70: 0 | G70: 0 | H70: 0
B71: Opmis | C71: =C141 -> 0 | D71: =D141 -> 0 | E71: =E141 -> 0 | F71: 0 | G71: 0 | H71: 0
B72: Opextel | C72: =+SUM(C67:C71) -> 0 | D72: =+SUM(D67:D71) -> 0 | E72: =+SUM(E67:E71) -> 0 | F72: 0 | G72: 0 | H72: 0
A78: commi 19.1 a 19.7 All. A | B78: Opnew,a - Costi per cambiamenti sistematici
C82: 2024 | D82: 2025 | E82: 2026 | F82: 2027 | G82: 2028 | H82: 2029
B83: Opnew,a da foglio "Input per calcoli finali" (al netto della quota ERC) | C83: =Dati_Anni_precedenti!E33 -> 0 | D83: =Dati_Anni_precedenti!F33 -> 0 | E83: =Input_per_calcoli_finali!K30-ERC!E204 -> 0 | F83: =Input_per_calcoli_finali!L30-ERC!F204 -> 0 | G83: =Input_per_calcoli_finali!M30-ERC!G204 -> 0 | H83: =Input_per_calcoli_finali!N30-ERC!H204 -> 0 | I83: al netto della quota ERC eventualmente imputata
B84: Opnew,a | C84: =Dati_Anni_precedenti!E33 -> 0 | D84: =Dati_Anni_precedenti!F33 -> 0 | E84: =+IF(OR(TRIM(schema)="III",TRIM(schema)="VI"),E83,0) -> 0 | F84: =+IF(OR(TRIM(schema)="III",TRIM(schema)="VI"),F83,0) -> 0 | G84: =+IF(OR(TRIM(schema)="III",TRIM(schema)="VI"),G83,0) -> 0 | H84: =+IF(OR(TRIM(schema)="III",TRIM(schema)="VI"),H83,0) -> 0
A90: comma 19.8 All. A | B90: OpexQT - Costi per gli adeguamenti agli standard di qualità tecnica
C94: 2024 | D94: 2025 | E94: 2026 | F94: 2027 | G94: 2028 | H94: 2029
B95: OpexaQT lett. a) | C95: =Dati_Anni_precedenti!E34 -> 0 | D95: =Dati_Anni_precedenti!F34 -> 0 | E95: =MIN(Dati_Anni_precedenti!$F$34,SUMIFS('PdI-crono_ges'!V:V,'PdI-crono_ges'!$J:$J,"Non ERC",'PdI-crono_ges'!$K:$K,"lettera a)")) -> 0 | F95: =MIN(Dati_Anni_precedenti!$F$34,SUMIFS('PdI-crono_ges'!W:W,'PdI-crono_ges'!$J:$J,"Non ERC",'PdI-crono_ges'!$K:$K,"lettera a)")) -> 0 | G95: =MIN(Dati_Anni_precedenti!$F$34,SUMIFS('PdI-crono_ges'!X:X,'PdI-crono_ges'!$J:$J,"Non ERC",'PdI-crono_ges'!$K:$K,"lettera a)")) -> 0 | H95: =MIN(Dati_Anni_precedenti!$F$34,SUMIFS('PdI-crono_ges'!Y:Y,'PdI-crono_ges'!$J:$J,"Non ERC",'PdI-crono_ges'!$K:$K,"lettera a)")) -> 0
B96: OpexaQT lett. b) | C96: =+Dati_Anni_precedenti!E35 -> 0 | D96: =+Dati_Anni_precedenti!F35 -> 0 | E96: =+SUMIFS('PdI-crono_ges'!V:V,'PdI-crono_ges'!$J:$J,"Non ERC",'PdI-crono_ges'!$K:$K,"lettera b)") -> 0 | F96: =+SUMIFS('PdI-crono_ges'!W:W,'PdI-crono_ges'!$J:$J,"Non ERC",'PdI-crono_ges'!$K:$K,"lettera b)") -> 0 | G96: =+SUMIFS('PdI-crono_ges'!X:X,'PdI-crono_ges'!$J:$J,"Non ERC",'PdI-crono_ges'!$K:$K,"lettera b)") -> 0 | H96: =+SUMIFS('PdI-crono_ges'!Y:Y,'PdI-crono_ges'!$J:$J,"Non ERC",'PdI-crono_ges'!$K:$K,"lettera b)") -> 0
B97: OpexaQT lett. c) 477/2023/R/IDR | C97: =+Dati_Anni_precedenti!E36 -> 0 | D97: =+Dati_Anni_precedenti!F36 -> 0 | E97: =+SUMIFS('PdI-crono_ges'!V:V,'PdI-crono_ges'!$J:$J,"Non ERC",'PdI-crono_ges'!$K:$K,"lettera c) 477/2023/R/IDR") -> 0 | F97: =+SUMIFS('PdI-crono_ges'!W:W,'PdI-crono_ges'!$J:$J,"Non ERC",'PdI-crono_ges'!$K:$K,"lettera c) 477/2023/R/IDR") -> 0 | G97: =+SUMIFS('PdI-crono_ges'!X:X,'PdI-crono_ges'!$J:$J,"Non ERC",'PdI-crono_ges'!$K:$K,"lettera c) 477/2023/R/IDR") -> 0 | H97: =+SUMIFS('PdI-crono_ges'!Y:Y,'PdI-crono_ges'!$J:$J,"Non ERC",'PdI-crono_ges'!$K:$K,"lettera c) 477/2023/R/IDR") -> 0
B98: OpexaQT lett. c) 225/2025/R/IDR | E98: =+SUMIFS('PdI-crono_ges'!V:V,'PdI-crono_ges'!$J:$J,"Non ERC",'PdI-crono_ges'!$K:$K,"lettera c) 225/2025/R/IDR") -> 0 | F98: =+SUMIFS('PdI-crono_ges'!W:W,'PdI-crono_ges'!$J:$J,"Non ERC",'PdI-crono_ges'!$K:$K,"lettera c) 225/2025/R/IDR") -> 0 | G98: =+SUMIFS('PdI-crono_ges'!X:X,'PdI-crono_ges'!$J:$J,"Non ERC",'PdI-crono_ges'!$K:$K,"lettera c) 225/2025/R/IDR") -> 0 | H98: =+SUMIFS('PdI-crono_ges'!Y:Y,'PdI-crono_ges'!$J:$J,"Non ERC",'PdI-crono_ges'!$K:$K,"lettera c) 225/2025/R/IDR") -> 0
B99: OpexQT (al netto della componente ERCQT) | C99: =+SUM(C95:C97) -> 0 | D99: =+SUM(D95:D97) -> 0 | E99: =+SUM(E95:E98) -> 0 | F99: =+SUM(F95:F98) -> 0 | G99: 0 | H99: 0
A105: comma 19.9 All. A | B105: OpexaQC - Costi per gli adeguamenti standard qualità contrattuale e eventuali oneri aggiuntivi
C109: 2024 | D109: 2025 | E109: 2026 | F109: 2027 | G109: 2028 | H109: 2029
B110: OpexaQC - adeguamenti agli standard di qualità contrattuale di cui alla deliberazione 655/2015/R/IDR (comma 19.9 lett. a) | C110: =Dati_Anni_precedenti!E37 -> 0 | D110: =Dati_Anni_precedenti!F37 -> 0 | E110: =MIN(Dati_Anni_precedenti!$F$37,Altri_dati_eco_fin!G76) -> 0 | F110: =MIN(Dati_Anni_precedenti!$F$37,Altri_dati_eco_fin!H76) -> 0 | G110: =MIN(Dati_Anni_precedenti!$F$37,Altri_dati_eco_fin!I76) -> 0 | H110: =MIN(Dati_Anni_precedenti!$F$37,Altri_dati_eco_fin!J76) -> 0
B111: OpexaQC - oneri aggiuntivi relativi per l'adeguamento agli obiettivi di cui alla deliberazione 547/2019/R/IDR (comma 19.9 lett. a) | C111: =+Dati_Anni_precedenti!E38 -> 0 | D111: =+Dati_Anni_precedenti!F38 -> 0 | E111: =MIN(Dati_Anni_precedenti!$F$38,,Altri_dati_eco_fin!G77) -> 0 | F111: =MIN(Dati_Anni_precedenti!$F$38,,Altri_dati_eco_fin!H77) -> 0 | G111: =MIN(Dati_Anni_precedenti!$F$38,,Altri_dati_eco_fin!I77) -> 0 | H111: =MIN(Dati_Anni_precedenti!$F$38,,Altri_dati_eco_fin!J77) -> 0
B112: OpexaQC - nuovi obiettivi di qualità contrattuale di cui alla deliberazione 579/2025/R/IDR (comma 19.9 lett. a-bis) | E112: =Altri_dati_eco_fin!G80 -> 0 | F112: =Altri_dati_eco_fin!H80 -> 0 | G112: =Altri_dati_eco_fin!I80 -> 0 | H112: =Altri_dati_eco_fin!J80 -> 0
B113: Opexaqc (commi 19.9 lettera b) - 476/2023/R/IDR e 28.1 MTI-4) | C113: =+Dati_Anni_precedenti!E39 -> 0 | D113: =+Dati_Anni_precedenti!F39 -> 0 | E113: =Altri_dati_eco_fin!G78 -> 0 | F113: =Altri_dati_eco_fin!H78 -> 0 | G113: =Altri_dati_eco_fin!I78 -> 0 | H113: =Altri_dati_eco_fin!J78 -> 0
B114: Opexaqc (commi 19.9 lettera b) - 277/2025/R/IDR e 28.1 MTI-4) | E114: =+Altri_dati_eco_fin!G79 -> 0 | F114: =+Altri_dati_eco_fin!H79 -> 0 | G114: =+Altri_dati_eco_fin!I79 -> 0 | H114: =+Altri_dati_eco_fin!J79 -> 0
B115: OpexaQC | C115: =+SUM(C110:C111,C113) -> 0 | D115: =+SUM(D110:D111,D113) -> 0 | E115: =+SUM(E110:E114) -> 0 | F115: =+SUM(F110:F114) -> 0 | G115: 0 | H115: 0
A121: comma 19.10 All. A | B121: Opsocial
C125: 2024 | D125: 2025 | E125: 2026 | F125: 2027 | G125: 2028 | H125: 2029
B126: Opasocial - lett. a) | C126: =Dati_Anni_precedenti!E40 -> 0 | D126: =Dati_Anni_precedenti!F40 -> 0 | E126: =+Altri_dati_eco_fin!G81 -> 0 | F126: =+Altri_dati_eco_fin!H81 -> 0 | G126: =+Altri_dati_eco_fin!I81 -> 0 | H126: =+Altri_dati_eco_fin!J81 -> 0
B127: Opasocial - lett. a-bis) | E127: =+Altri_dati_eco_fin!G82 -> 0 | F127: =+Altri_dati_eco_fin!H82 -> 0 | G127: =+Altri_dati_eco_fin!I82 -> 0 | H127: =+Altri_dati_eco_fin!J82 -> 0
B128: Opasocial - lett. b) | C128: =+Dati_Anni_precedenti!E41 -> 0 | D128: =+Dati_Anni_precedenti!F41 -> 0 | E128: =+Altri_dati_eco_fin!G83 -> 0 | F128: =+Altri_dati_eco_fin!H83 -> 0 | G128: =+Altri_dati_eco_fin!I83 -> 0 | H128: =+Altri_dati_eco_fin!J83 -> 0
B129: Opsocial | C129: =+C126+C128 -> 0 | D129: =+D126+D128 -> 0 | E129: =SUM(E126:E128) -> 0 | F129: =SUM(F126:F128) -> 0 | G129: 0 | H129: 0
A135: comma 19.11 All. A | B135: Opmis
C139: 2024 | D139: 2025 | E139: 2026 | F139: 2027 | G139: 2028 | H139: 2029
B140: Opmis | C140: =Dati_Anni_precedenti!E42 -> 0 | D140: =Dati_Anni_precedenti!F42 -> 0 | E140: =+Altri_dati_eco_fin!G84 -> 0 | F140: =+Altri_dati_eco_fin!H84 -> 0 | G140: =+Altri_dati_eco_fin!I84 -> 0 | H140: =+Altri_dati_eco_fin!J84 -> 0
B141: Opmis | C141: =Dati_Anni_precedenti!E42 -> 0 | D141: =Dati_Anni_precedenti!F42 -> 0 | E141: =+E140 -> 0 | F141: 0 | G141: 0 | H141: 0
A148: Art. 20 All. A | B148: Opexal - Costi aggiornabili
C152: 2024 | D152: 2025 | E152: 2026 | F152: 2027 | G152: 2028 | H152: 2029
B153: Opexala da formula | C153: =+C179+C192+C209+C242+C227 -> 0 | D153: =+D179+D192+D209+D242+D227 -> 0 | E153: =+E179+E192+E209+E242+E227 -> 0 | F153: 0 | G153: 0 | H153: 0
B154: Opexala (eventuale detrazione da "Input per calcoli finali") | E154: =+Input_per_calcoli_finali!K149 -> 0 | F154: =+Input_per_calcoli_finali!L149 -> 0 | G154: =+Input_per_calcoli_finali!M149 -> 0 | H154: =+Input_per_calcoli_finali!N149 -> 0
B155: Opexala | C155: =+C153 -> 0 | D155: 0 | E155: =+IFERROR(E153-E154,0) -> 0 | F155: 0 | G155: 0 | H155: 0
A161: Art. 21 All. A | B161: Coee - Costi di energia elettrica
C165: 2024 | D165: 2025 | E165: 2026 | F165: 2027 | G165: 2028 | H165: 2029
B166: COeff,a-2EE massimo ammissibile | E166: =+SUM(Dati_conto_economico!C47:C48,Dati_conto_economico!F47:F48) -> 0 | F166: =+SUM(Dati_conto_economico!I47:I48,Dati_conto_economico!L47:L48) -> 0 | G166: =+F166 -> 0 | H166: =+G166 -> 0
B167: Anticipazione trend di diminuzione costo energia | E167: =+Altri_dati_eco_fin!G88 -> 0 | F167: =+Altri_dati_eco_fin!H88 -> 0 | G167: =+Altri_dati_eco_fin!I88 -> 0 | H167: =+Altri_dati_eco_fin!J88 -> 0
B168: COeff,a-2EE al netto dell'anticipazione | E168: =+E166-E167 -> 0 | F168: 0 | G168: 0 | H168: 0
B169: kWh a-2 (acquistati e consumati) | C169: =Dati_Anni_precedenti!E102 -> 0 | D169: =+Dati_tecnici!G5 -> 0 | E169: =Dati_tecnici!E5 -> 0 | F169: =Dati_tecnici!F5 -> 0 | G169: =+F169 -> 0 | H169: =+G169 -> 0
B170: kWhaut a-2 (autoprodotti e consumati) | C170: =Dati_Anni_precedenti!E103 -> 0 | D170: =+Dati_tecnici!G6 -> 0 | E170: =Dati_tecnici!E6 -> 0 | F170: =Dati_tecnici!F6 -> 0 | G170: =+F170 -> 0 | H170: =+G170 -> 0
B171: S(kWh+kWhAut)a-n/4 | E171: =((Dati_Anni_precedenti!E115+Dati_Anni_precedenti!E116)+(Dati_Anni_precedenti!F115+Dati_Anni_precedenti!F116)+(Dati_Anni_precedenti!E102+Dati_Anni_precedenti!E103)+(Dati_tecnici!G5+Dati_tecnici!G6))/4 -> 0 | F171: =((Dati_Anni_precedenti!F115+Dati_Anni_precedenti!F116)+(Dati_Anni_precedenti!E102+Dati_Anni_precedenti!E103)+(Dati_tecnici!G5+Dati_tecnici!G6)+(Dati_tecnici!E5+Dati_tecnici!E6))/4 -> 0 | G171: =((Dati_Anni_precedenti!E102+Dati_Anni_precedenti!E103)+(Dati_tecnici!G5+Dati_tecnici!G6)+(Dati_tecnici!E5+Dati_tecnici!E6)+(Dati_tecnici!F5+Dati_tecnici!F6))/4 -> 0 | H171: =((Dati_tecnici!G5+Dati_tecnici!G6)+(Dati_tecnici!E5+Dati_tecnici!E6)+(Dati_tecnici!F5+Dati_tecnici!F6)+(G169+G170))/4 -> 0
B172: Assenza di double counting | E172: =Dati_tecnici!E7 -> 0 | F172: =Dati_tecnici!F7 -> 0 | G172: =+F172 -> 0 | H172: =+G172 -> 0
B173: Δrisparmionew | E173: =+IFERROR((E171-(E170+E169))*(E168/E169),0) -> 0 | F173: =+IFERROR((F171-(F170+F169))*(F168/F169),0) -> 0 | G173: 0 | H173: 0
B174: γEEnew | E174: =+IF(E173<0,0,0.25) -> 0.25 | F174: 0.25 | G174: 0.25 | H174: 0.25
B175: ∏(1+It) | C175: =+VLOOKUP("da t-2 a t",PINF,C$9 - 2011,FALSE) -> 1.13696 | D175: =+VLOOKUP("da t-2 a t",PINF,D$9 - 2011,FALSE) -> 1.10976 | E175: =+VLOOKUP("da t-2 a t",PINF,E$9 - 2011,FALSE) -> 1.03224 | F175: 1.012 | G175: 1 | H175: 1
B179: COEE | C179: =Dati_Anni_precedenti!E43 -> 0 | D179: =Dati_Anni_precedenti!F43 -> 0 | E179: =(E168+IF(E172="SI",E170*E168/E169,0)+E174*E173)*E175 -> 0 | F179: =+(F168+IF(F172="SI",F168*F170/F169,0)+F174*F173)*F175 -> 0 | G179: 0 | H179: 0
A185: Art. 22 All. A | B185: Cows - Costi all'ingrosso
C189: 2024 | D189: 2025 | E189: 2026 | F189: 2027 | G189: 2028 | H189: 2029
B190: Opwsexp,a - comma 22.2 MTI-4 | C190: =+Dati_Anni_precedenti!E45 -> 0 | D190: =+Dati_Anni_precedenti!F45 -> 0 | E190: =Altri_dati_eco_fin!G85 -> 0 | F190: =Altri_dati_eco_fin!H85 -> 0 | G190: =Altri_dati_eco_fin!I85 -> 0 | H190: =Altri_dati_eco_fin!J85 -> 0
B191: Cowseffettivi, a-2 | C191: =Dati_Anni_precedenti!E44-Dati_Anni_precedenti!E45 -> 0 | D191: =Dati_Anni_precedenti!F44-Dati_Anni_precedenti!F45 -> 0 | E191: =+SUMIF(Acquisto_Servizi_ingrosso!$F:$F,E189-2,Acquisto_Servizi_ingrosso!$L:$L) -> 0 | F191: =+SUMIF(Acquisto_Servizi_ingrosso!$F:$F,F189-2,Acquisto_Servizi_ingrosso!$L:$L) -> 0 | G191: =+F191 -> 0 | H191: =+G191 -> 0
B192: COws | C192: =+C190+C191 -> 0 | D192: =+D190+D191 -> 0 | E192: =+E191+E190 -> 0 | F192: 0 | G192: 0 | H192: 0
A198: Art. 23 All. A | B198: COΔfanghi - Oneri aggiuntivi per lo smaltimento dei fanghi di depurazione
C202: 2024 | D202: 2025 | E202: 2026 | F202: 2027 | G202: 2028 | H202: 2029
B203: Coeffettivo,2017fanghi | C203: =+Dati_Anni_precedenti!$F$127 -> 0 | D203: =+Dati_Anni_precedenti!$F$127 -> 0 | E203: =+Dati_Anni_precedenti!$F$127 -> 0 | F203: =+Dati_Anni_precedenti!$F$127 -> 0 | G203: =+Dati_Anni_precedenti!$F$127 -> 0 | H203: =+Dati_Anni_precedenti!$F$127 -> 0
B204: Coeffettivo,a-2fanghi | E204: =+SUM(Dati_conto_economico!C53:C54,Dati_conto_economico!F53:F54,Dati_conto_economico!C92,Dati_conto_economico!F92) -> 0 | F204: =+SUM(Dati_conto_economico!I53:I54,Dati_conto_economico!L53:L54,Dati_conto_economico!I92,Dati_conto_economico!L92) -> 0 | G204: =+F204 -> 0 | H204: =+G204 -> 0
B205: F | C205: 0.02 | D205: 0.02 | E205: 0.02 | F205: 0.02 | G205: 0.02 | H205: 0.02
B206: ∏(1+It) (da 2017 a a-2) | C206: =+VLOOKUP({"da t-5 a t"},PINF,C$202 - 2011-2,FALSE) -> 1.030323467 | D206: =+VLOOKUP({"da t-6 a t"},PINF,D$202 - 2011-2,FALSE) -> 1.076688023 | E206: =+VLOOKUP("da t-7 a t",PINF,E$202 - 2011-2,FALSE) -> 1.171436569 | F206: =+VLOOKUP({"da t-8 a t"},PINF,F$202 - 2011-2,FALSE) -> 1.1948653 | G206: =+VLOOKUP({"da t-9 a t"},PINF,G$202 - 2011-2,FALSE) -> 1.209203684 | H206: =+VLOOKUP({"da t-10 a t"},PINF,H$202 - 2011-2,FALSE) -> 1.209203684
B207: ∏(1+It) (da 2017 ad a ) | C207: =+VLOOKUP({"da t-7 a t"},PINF,C$202 - 2011,FALSE) -> 1.171436569 | D207: =+VLOOKUP({"da t-8 a t"},PINF,D$202 - 2011,FALSE) -> 1.1948653 | E207: =+VLOOKUP("da t-9 a t",PINF,E$202 - 2011,FALSE) -> 1.209203684 | F207: =+VLOOKUP({"da t-10 a t"},PINF,F$202 - 2011,FALSE) -> 1.209203684 | G207: =+VLOOKUP({"da t-11 a t"},PINF,G$202 - 2011,FALSE) -> 1.209203684 | H207: =+VLOOKUP({"da t-12 a t"},PINF,H$202 - 2011,FALSE) -> 1.209203684
B208: COΔfanghi (rispetto condizionalità) | E208: =+IF(Altri_dati_eco_fin!$E$86="SI","SI","NO") -> NO | F208: =+IF(Altri_dati_eco_fin!$F$86="SI","SI","NO") -> NO | G208: =+D208 -> 0 | H208: =+G208 -> 0
B209: COΔfanghi | C209: =Dati_Anni_precedenti!E46 -> 0 | D209: =Dati_Anni_precedenti!F46 -> 0 | E209: =+IFERROR(IF(E208="SI",E203*E207*MAX(((E204/(E203*E206))-E205)-1,0),0),0) -> 0 | F209: 0 | G209: 0 | H209: 0
A217: comma 20.1 All. A | B217: MT, AC - Mutui e Altri corrispettivi
C221: 2024 | D221: 2025 | E221: 2026 | F221: 2027 | G221: 2028 | H221: 2029
B222: MT | C222: =Dati_Anni_precedenti!E47 -> 0 | D222: =Dati_Anni_precedenti!F47 -> 0 | E222: =+SUM(Corrispettivi_proprietari!Y:Y) -> 0 | F222: =+SUM(Corrispettivi_proprietari!Z:Z) -> 0 | G222: =+SUM(Corrispettivi_proprietari!AA:AA) -> 0 | H222: =+SUM(Corrispettivi_proprietari!AB:AB) -> 0
B223: AC | C223: =Dati_Anni_precedenti!E48 -> 0 | D223: =Dati_Anni_precedenti!F48 -> 0 | E223: =+SUM(Corrispettivi_proprietari!AF:AF) -> 0 | F223: =+SUM(Corrispettivi_proprietari!AG:AG) -> 0 | G223: =+SUM(Corrispettivi_proprietari!AH:AH) -> 0 | H223: =+SUM(Corrispettivi_proprietari!AI:AI) -> 0
B227: MT + AC | C227: =+C222+C223 -> 0 | D227: =+D222+D223 -> 0 | E227: =+E222+E223 -> 0 | F227: 0 | G227: 0 | H227: 0
A233: Art. 24 All. A | B233: Coaltri - Altri costi
C237: 2024 | D237: 2025 | E237: 2026 | F237: 2027 | G237: 2028 | H237: 2029
B238: COATOa | C238: =+C265 -> 0 | D238: =+D265 -> 0 | E238: =+E265 -> 0 | F238: 0 | G238: 0 | H238: 0
B239: COARERAa | C239: =+C279 -> 0 | D239: =+D279 -> 0 | E239: =+E279 -> 0 | F239: 0 | G239: 0 | H239: 0
B240: COmora | C240: =+Opex!C298 -> 0 | D240: =+Opex!D298 -> 0 | E240: =+Opex!E298 -> 0 | F240: =+Opex!F298 -> 0 | G240: =+Opex!G298 -> 0 | H240: =+Opex!H298 -> 0
B241: COresa | C241: =+C312 -> 0 | D241: =+D312 -> 0 | E241: =+E312 -> 0 | F241: 0 | G241: 0 | H241: 0
B242: COaltria | C242: =+SUM(C238:C240,C241) -> 0 | D242: =+SUM(D238:D240,D241) -> 0 | E242: =+SUM(E238:E240,E241) -> 0 | F242: 0 | G242: 0 | H242: 0
A248: comma 24.2 All. A | B248: CoATO - Costi dell'ATO
B252: COmedio,2013ATO | E252: =+TT_parametri!$AV$50 -> 1.01
B253: popATO di competenza del gestore | E253: =IF(popolazione_ato<>0,popolazione_ato,MAX(Dati_tecnici!E15,Dati_tecnici!E23,Dati_tecnici!E29)) -> 0
B254: COmedio,2013ATO * pop2013*z | E254: =+E252*E253*3 -> 0
C257: 2024 | D257: 2025 | E257: 2026 | F257: 2027 | G257: 2028 | H257: 2029
B258: COa-2ATO | E258: =+Dati_conto_economico!C84+Dati_conto_economico!F84 -> 0 | F258: =+Dati_conto_economico!I84+Dati_conto_economico!L84 -> 0 | G258: =+F258 -> 0 | H258: =+G258 -> 0
L259: SI | M259: Accoglimento Istanza per soggetto competente
B260: Produttoria(1+It) 2014 - anno a | C260: =+VLOOKUP("da t-"&C257-2014+1&" a t",PINF,C257 - 2011,FALSE) -> 1.200807734 | D260: =+VLOOKUP("da t-"&D257-2014+1&" a t",PINF,D257 - 2011,FALSE) -> 1.224823889 | E260: =+VLOOKUP("da t-"&E257-2014+1&" a t",PINF,E257 - 2011,FALSE) -> 1.239521776 | F260: 1.239521776 | G260: 1.239521776 | H260: 1.239521776
B261: Produttoria(1+It) mobile di 2 anni | C261: =+VLOOKUP("da t-2 a t",PINF,C$9 - 2011,FALSE) -> 1.13696 | D261: =+VLOOKUP("da t-2 a t",PINF,D$9 - 2011,FALSE) -> 1.10976 | E261: =+VLOOKUP("da t-2 a t",PINF,E$9 - 2011,FALSE) -> 1.03224 | F261: 1.012 | G261: 1 | H261: 1
B265: COATOa | C265: =Dati_Anni_precedenti!E49 -> 0 | D265: =Dati_Anni_precedenti!F49 -> 0 | E265: =MIN(E258*E261,$E$254*E260) -> 0 | F265: 0 | G265: 0 | H265: 0
A271: comma 24.5 All. A | B271: CoARERA - Costi dell'Autorità
C275: 2024 | D275: 2025 | E275: 2026 | F275: 2027 | G275: 2028 | H275: 2029
B276: Ricavia-2A1+A5 | E276: =+Dati_conto_economico!C5+Dati_conto_economico!C11 -> 0 | F276: =+Dati_conto_economico!I5+Dati_conto_economico!I11 -> 0 | G276: =+F276 -> 0 | H276: =+G276 -> 0
B277: quota% | C277: =+TT_parametri!$BC$60 -> 0.00027 | D277: =+TT_parametri!$BC$61 -> 0.00027 | E277: =+TT_parametri!$BC$62 -> 0.00027 | F277: =+TT_parametri!$BC$63 -> 0.00027 | G277: =+F277 -> 0.00027 | H277: =+G277 -> 0.00027
B279: COaARERA | C279: =Dati_Anni_precedenti!E50 -> 0 | D279: =Dati_Anni_precedenti!F50 -> 0 | E279: =+E276*E277 -> 0 | F279: 0 | G279: 0 | H279: 0
A285: Art. 30 All. A | B285: Comor - Costi della morosità
B288: Trattamento dei costi di morosità
L289: +IVA 10% | M289: Area Geogr
C290: 2024 | D290: 2025 | E290: 2026 | F290: 2027 | G290: 2028 | H290: 2029 | L290: =1+0.1 -> 1.1 | M290: =+IFERROR(VLOOKUP(VALUE(idato),TT_Comuni_ATO!N2:O99,2,FALSE),0) -> 0
B291: fatturatoa-2 | E291: =+(SUM(Dati_conto_economico!C14:'Dati_conto_economico'!C21)+(Dati_conto_economico!C23+Dati_conto_economico!C24+Dati_conto_economico!C27+Dati_conto_economico!C28+Dati_conto_economico!C35))*$L$290 -> 0 | F291: =+(SUM(Dati_conto_economico!I14:'Dati_conto_economico'!I21)+(Dati_conto_economico!I23+Dati_conto_economico!I24+Dati_conto_economico!I27+Dati_conto_economico!I28+Dati_conto_economico!I35))*$L$290 -> 0 | G291: =+F291 -> 0 | H291: =+G291 -> 0
B292: Unpaid Ratio [UR] reale | C292: =+F292 -> 0 | D292: =+C292 -> 0 | E292: =Altri_dati_eco_fin!E31 -> 0 | F292: =Altri_dati_eco_fin!$F$31 -> 0 | G292: =+F292 -> 0 | H292: 0
B293: Unpaid Ratio [UR] comma 30.2 / 30.2 bis MTI-4 | C293: =IFERROR(VLOOKUP($M290,TT_parametri!$AU$55:$AV$57,2,FALSE),0) -> 0 | D293: =IFERROR(VLOOKUP($M290,TT_parametri!$AU$55:$AV$57,2,FALSE),0) -> 0 | E293: =IFERROR( IF(Altri_dati_eco_fin!E34="SI", VLOOKUP($M290,TT_parametri!$AU$61:$AV$63,2,FALSE), VLOOKUP($M290,TT_parametri!$AU$55:$AV$57,2,FALSE)), 0) -> 0 | F293: =+E293 -> 0 | G293: =+F293 -> 0 | H293: =+G293 -> 0
B294: Unpaid Ratio [UR] indicato | C294: =+Input_per_calcoli_finali!$K$68 -> 0 | D294: =+Input_per_calcoli_finali!$K$68 -> 0 | E294: =+Input_per_calcoli_finali!$K$68 -> 0 | F294: =+Input_per_calcoli_finali!$K$68 -> 0 | G294: =+Input_per_calcoli_finali!$K$68 -> 0 | H294: =+Input_per_calcoli_finali!$K$68 -> 0
B298: COamor | C298: =Dati_Anni_precedenti!E51 -> 0 | D298: =Dati_Anni_precedenti!F51 -> 0 | E298: =MAX(E291* IF(E294="",E293, MIN(E294,E293)),0) -> 0 | F298: =MAX(F291* IF(F294="",F293, MIN(F294,F293)),0) -> 0 | G298: =MAX(G291* IF(G294="",G293, MIN(G294,G293)),0) -> 0 | H298: =MAX(H291* IF(H294="",H293, MIN(H294,H293)),0) -> 0
A304: comma 24.1 All. A | B304: Cores - Oneri locali
C308: 2024 | D308: 2025 | E308: 2026 | F308: 2027 | G308: 2028 | H308: 2029
B309: Oneri locali a-2 (esclusi ERC) | E309: =+SUM(Dati_conto_economico!E98:F103) -> 0 | F309: =SUM(Dati_conto_economico!K98:L103) -> 0 | G309: =+F309 -> 0 | H309: =+G309 -> 0
B310: Contributi in c/e a-2 | E310: =+IF(Altri_dati_eco_fin!G89<>"",Altri_dati_eco_fin!G89,Dati_conto_economico!C38+Dati_conto_economico!F38) -> 0 | F310: =+IF(Altri_dati_eco_fin!H89<>"",Altri_dati_eco_fin!H89,Dati_conto_economico!$I$38+Dati_conto_economico!$L$38) -> 0 | G310: =+IF(Altri_dati_eco_fin!I89<>"",Altri_dati_eco_fin!I89,Dati_conto_economico!$I$38+Dati_conto_economico!$L$38) -> 0 | H310: =+IF(Altri_dati_eco_fin!J89<>"",Altri_dati_eco_fin!J89,Dati_conto_economico!$I$38+Dati_conto_economico!$L$38) -> 0
B312: COares | C312: =Dati_Anni_precedenti!E52 -> 0 | D312: =Dati_Anni_precedenti!F52 -> 0 | E312: =+E309-E310 -> 0 | F312: 0 | G312: 0 | H312: 0
A318: Comma 18.3 e art. 37 All. A | B318: Quota da recupero efficienza per alimentazione Fondo per la promozione dell'innovazione nel servizio idrico integrato
B322: Quota destinata a meccanismi incentivanti per la promozione della sostenibilità energetica e ambientale
C324: 2024 | D324: 2025 | E324: 2026 | F324: 2027 | G324: 2028 | H324: 2029
B325: Quota da recupero efficienza (€/mc) | C325: =Storico_Piano_Tariffario!E76 -> 0 | D325: =Storico_Piano_Tariffario!F76 -> 0 | E325: =+IFERROR(E326/E327,"") -> 
B326: (1+γOPi,j)*max(0;ΔOpex) | C326: =Storico_Piano_Tariffario!E77 -> 0 | D326: =Storico_Piano_Tariffario!F77 -> 0 | E326: =Opex!E50 -> 0 | F326: =Opex!F50 -> 0 | G326: =Opex!G50 -> 0 | H326: =Opex!H50 -> 0
B327: Volumi | E327: =+IFERROR(E334,"") -> 0 | F327: 0 | G327: 0 | H327: 0
B329: Totale Volumi
B330: Acquedotto | E330: =+SUMIF(Struttura_corrispettivi!$AG:$AG,"Acquedotto",Struttura_corrispettivi!Q:Q) -> 0 | F330: =+SUMIF(Struttura_corrispettivi!$AG:$AG,"Acquedotto",Struttura_corrispettivi!R:R) -> 0 | G330: =+F330 -> 0 | H330: =+G330 -> 0
B331: Fognatura | E331: =+SUMIF(Struttura_corrispettivi!$AG:$AG,"Fognatura",Struttura_corrispettivi!Q:Q) -> 0 | F331: =+SUMIF(Struttura_corrispettivi!$AG:$AG,"Fognatura",Struttura_corrispettivi!R:R) -> 0 | G331: =+F331 -> 0 | H331: 0
B332: Depurazione | E332: =+SUMIF(Struttura_corrispettivi!$AG:$AG,"Depurazione",Struttura_corrispettivi!Q:Q) -> 0 | F332: =+SUMIF(Struttura_corrispettivi!$AG:$AG,"Depurazione",Struttura_corrispettivi!R:R) -> 0 | G332: 0 | H332: 0
B333: Volumi utenze industriali di cui al Titolo 4 (TICSI) | E333: =+SUM(Ricavi_Coll_Dep!C11,Ricavi_Coll_Dep!C12) -> 0 | F333: =+SUM(Ricavi_Coll_Dep!D11,Ricavi_Coll_Dep!D12) -> 0 | G333: =+F333 -> 0 | H333: 0
B334: Volumi per esprimere la quota da recupero efficienza in unità di consumo | E334: =+SUM(E330:E333) -> 0 | F334: 0 | G334: 0 | H334: 0

Sheet Rc
A2: Titolo 7 MTI-4 | B2: Sostenibilità finanziaria efficiente
B4: Sviluppo della componente Rc
B9: Componenti nel Piano Tariffario | C9: 2024 | D9: 2025 | E9: 2026 | F9: 2027 | G9: 2028 | H9: 2029
B10: RcTOTa | C10: =+C12 -> 0 | D10: =+D12 -> 0 | E10: =+E12 -> 0 | F10: 0 | G10: 0 | H10: 0
B11: RcTOTa calcolato (include inflazione) | C11: =+C19 -> 0 | D11: =+D19 -> 0 | E11: =+E19 -> 0 | F11: 0 | G11: 0 | H11: 0
B12: RcTOTa da input per calcoli finali | C12: =++IFERROR(Input_per_calcoli_finali!I222,0) -> 0 | D12: =++IFERROR(Input_per_calcoli_finali!J222,0) -> 0 | E12: =++IFERROR(Input_per_calcoli_finali!K222,0) -> 0 | F12: =++IFERROR(Input_per_calcoli_finali!L222,0) -> 0 | G12: =++IFERROR(Input_per_calcoli_finali!M222,0) -> 0 | H12: =++IFERROR(Input_per_calcoli_finali!N222,0) -> 0
B18: Componenti post detrazioni | C18: 2024 | D18: 2025 | E18: 2026 | F18: 2027 | G18: 2028 | H18: 2029
B19: RcTOTa | C19: =+SUM(C20:C24) -> 0 | D19: =+SUM(D20:D24) -> 0 | E19: =+SUM(E20:E24) -> 0 | F19: 0 | G19: =+SUM(G20:G24) -> 0 | H19: =+SUM(H20:H24) -> 0 | I19: Prima della eventuale ulteriore riallocazione dei conguagli
B20: Rcvol | C20: =(C53) -> 0 | D20: =(D53) -> 0 | E20: =(E53)*VLOOKUP("da t-2 a t",PINF,E18 - 2011,FALSE) -> 0 | F20: 0 | G20: 0 | H20: 0
B21: RcEE | C21: =(C82) -> 0 | D21: =(D82) -> 0 | E21: =(E82)*VLOOKUP("da t-2 a t",PINF,E18 - 2011,FALSE) -> 0 | F21: 0 | G21: 0 | H21: 0
B22: RcWS | C22: =(C102) -> 0 | D22: =(D102) -> 0 | E22: =(E102)*VLOOKUP("da t-2 a t",PINF,E18 - 2011,FALSE) -> 0 | F22: 0 | G22: 0 | H22: 0
B23: RcERC | C23: =(C123) -> 0 | D23: =(D123) -> 0 | E23: =(E123)*VLOOKUP("da t-2 a t",PINF,E18 - 2011,FALSE) -> 0 | F23: 0 | G23: 0 | H23: 0
B24: RcALTRO | C24: =(C158) -> 0 | D24: =(D158) -> 0 | E24: =(E158)*VLOOKUP("da t-2 a t",PINF,E18 - 2011,FALSE) -> 0 | F24: 0 | G24: 0 | H24: 0
B28: Componenti calcolate | C28: 2024 | D28: 2025 | E28: 2026 | F28: 2027 | G28: 2028 | H28: 2029
B29: RcTOTa | E29: =+SUM(E30:E34)+SUM(E288)*VLOOKUP("da t-2 a t",PINF,E28-2011,FALSE) -> 0 | F29: =+SUM(F30:F34)+SUM(F288)*VLOOKUP("da t-2 a t",PINF,F28-2011,FALSE) -> 0 | G29: =+SUM(G30:G34) -> 0 | H29: =+SUM(H30:H34) -> 0
B30: Rcvol | E30: =(E51)*VLOOKUP("da t-2 a t",PINF,E$28 - 2011,FALSE) -> 0 | F30: 0 | G30: 0 | H30: 0
B31: RcEE | E31: =(E80)*VLOOKUP("da t-2 a t",PINF,E$28 - 2011,FALSE) -> 0 | F31: 0 | G31: 0 | H31: 0
B32: RcWS | E32: =(E100)*VLOOKUP("da t-2 a t",PINF,E$28 - 2011,FALSE) -> 0 | F32: 0 | G32: 0 | H32: 0
B33: RcERC | E33: =(E121)*VLOOKUP("da t-2 a t",PINF,E$28 - 2011,FALSE) -> 0 | F33: 0 | G33: 0 | H33: 0
B34: RcALTRO | E34: =(E156)*VLOOKUP("da t-2 a t",PINF,E$28 - 2011,FALSE) -> 0 | F34: 0 | G34: 0 | H34: 0
A40: comma 28.1 All. A | B40: RCvol - recupero scostamento tariffe e volumi
C44: 2024 | D44: 2025 | E44: 2026 | F44: 2027 | G44: 2028 | H44: 2029
B45: Ja-2 ai fini del calcolo dei conguagli | E45: =+IF(Dati_Anni_precedenti!E6="",Dati_Anni_precedenti!E5,Dati_Anni_precedenti!E6) -> 0 | F45: =+IF(Dati_Anni_precedenti!F6="",Dati_Anni_precedenti!F5,Dati_Anni_precedenti!F6) -> 0 | G45: =+Piano_Tariffario!G66 ->  | H45: =+Piano_Tariffario!H66 -> 
B46: tarif2023*vscala-4 | E46: =+SUM(Dati_Anni_precedenti!E18:E20) -> 0 | F46: =+SUM(Dati_Anni_precedenti!F18:F20) -> 0 | G46: =+F46 -> 0 | H46: =+G46 -> 0
B47: Ja-2*tarif2023/vscala-4 (minuendo, include dettaglio, ingrosso, ind) | E47: =+IFERROR(E45*E46,0) -> 0 | F47: 0 | G47: 0 | H47: 0
B48: (tarifa-2vscala-2) (sottraendo, include dettaglio, ingrosso, ind) | E48: =SUM(Ricavi_bacini_tariffari!P:P)+SUM(Vendita_Servizi_ingrosso!AK:AK)+Ricavi_Coll_Dep!D27 -> 0 | F48: =SUM(Ricavi_bacini_tariffari!Q:Q)+SUM(Vendita_Servizi_ingrosso!AL:AL)+Ricavi_Coll_Dep!E27 -> 0 | G48: =+F48 -> 0 | H48: =+G48 -> 0
B49: Rcvol (per dettaglio, ingrosso, ind) | E49: =IF(E56="manca il dato di input",0,E47-E48) -> 0 | F49: 0 | G49: 0 | H49: 0
B51: Rcvol da calcolo | E51: =IF(E56="manca il dato di input",0,E47-E48) -> 0 | F51: 0 | G51: 0 | H51: 0
B52: Rcvol (eventuale detrazione da "Input per calcoli finali") | E52: =Input_per_calcoli_finali!K177 -> 0 | F52: =Input_per_calcoli_finali!L177 -> 0 | G52: =Input_per_calcoli_finali!M177 -> 0 | H52: =Input_per_calcoli_finali!N177 -> 0
B53: Rcvola | C53: =+Dati_Anni_precedenti!E65 -> 0 | D53: =+Dati_Anni_precedenti!F65 -> 0 | E53: =+E51-E52 -> 0 | F53: =+F51-F52 -> 0
B56: controllo dati anni precedenti | E56: =+IF(E46=0,"manca il dato di input", "ok") -> manca il dato di input | F56: manca il dato di input | G56: manca il dato di input | H56: manca il dato di input
A64: comma 28.1 All. A | B64: RCEE - recupero scostamento costi di energia elettrica
C68: 2024 | D68: 2025 | E68: 2026 | F68: 2027 | G68: 2028 | H68: 2029
B69: COeff,a-2EE | E69: =+SUM(Dati_conto_economico!C47:C48,Dati_conto_economico!F47:F48) -> 0 | F69: =+SUM(Dati_conto_economico!I47:I48,Dati_conto_economico!L47:L48) -> 0 | G69: =+F69 -> 0 | H69: =+G69 -> 0
B70: COmedio,a-2EE / dal 2026: Benchmarka-2EE | E70: =+VLOOKUP(E68-2,TT_parametri!$AU$29:$AV$46,2,FALSE) -> 0.215 | F70: =+VLOOKUP(F68-2,TT_parametri!$AU$29:$AV$46,2,FALSE) -> 0.221 | G70: =+VLOOKUP(G68-2,TT_parametri!$AU$29:$AV$46,2,FALSE) -> da individuare | H70: =+VLOOKUP(H68-2,TT_parametri!$AU$29:$AV$46,2,FALSE) -> da individuare
B72: kWh a-2 (acquistati e consumati) | C72: =+Opex!C169 -> 0 | D72: =+Opex!D169 -> 0 | E72: =+Opex!E169 -> 0 | F72: =+Opex!F169 -> 0 | G72: =+Opex!G169 -> 0 | H72: =+Opex!H169 -> 0
B73: kWhaut a-2 (autoprodotti e consumati) | C73: =+Opex!C170 -> 0 | D73: =+Opex!D170 -> 0 | E73: =+Opex!E170 -> 0 | F73: =+Opex!F170 -> 0 | G73: =+Opex!G170 -> 0 | H73: =+Opex!H170 -> 0
B74: SkWh a-n/4 / dal 2026: S(kWh+kWhAut)a-n/4 | E74: =+Opex!E171 -> 0 | F74: =+Opex!F171 -> 0 | G74: =+Opex!G171 -> 0 | H74: =+Opex!H171 -> 0
B75: COmedio,a-2EE * kWha-2*1,1
B76: Δrisparmio / dal 2026: Δrisparmionew | E76: =+IFERROR(IF(E69>=E70*E72,(E74-(E73+E72))*(MIN(E69/E72,E70*1.15)),(E74-(E73+E72))*0.5*(E69/E72+E70)),0) -> 0 | F76: =+IFERROR(IF(F69>=F70*F72,(F74-(F73+F72))*(MIN(F69/F72,F70*1.15)),(F74-(F73+F72))*0.5*(F69/F72+F70)),0) -> 0 | G76: =+IFERROR(IF(G69>=G70*G72,(G74-(G73+G72))*(MIN(G69/G72,G70*1.15)),(G74-(G73+G72))*0.5*(G69/G72+G70)),0) -> 0 | H76: 0
B77: γEE / dal 2026: γEEnew | E77: =+IF(E76<0,0,0.25) -> 0.25 | F77: 0.25 | G77: 0.25 | H77: 0.25
B78: COEEa-2 | E78: =Dati_Anni_precedenti!E43 -> 0 | F78: =Dati_Anni_precedenti!F43 -> 0 | G78: =+Opex!E179 -> 0 | H78: =+Opex!F179 -> 0
B80: RcEE da calcolo | E80: =+IFERROR(IF(E69>=(E70*E72), (MIN(E69,E70*E72*1.15)+(MIN(E69,E70*E72*1.15)/E72)*E73+E77*E76)-E78, (0.5*(E69+E70*E72)+(0.5*(E69+E70*E72)/E72)*E73+E77*E76)-E78),0) -> 0 | F80: =+IFERROR(IF(F69>=(F70*F72), (MIN(F69,F70*F72*1.15)+(MIN(F69,F70*F72*1.15)/F72)*F73+F77*F76)-F78, (0.5*(F69+F70*F72)+(0.5*(F69+F70*F72)/F72)*F73+F77*F76)-F78),0) -> 0 | G80: 0 | H80: 0
B81: RcEE (eventuale detrazione da "Input per calcoli finali") | E81: =+Input_per_calcoli_finali!K181 -> 0 | F81: =+Input_per_calcoli_finali!L181 -> 0 | G81: =+Input_per_calcoli_finali!M181 -> 0 | H81: =+Input_per_calcoli_finali!N181 -> 0
B82: RcEEa | C82: =+Dati_Anni_precedenti!E66 -> 0 | D82: =+Dati_Anni_precedenti!F66 -> 0 | E82: =+E80-E81 -> 0 | F82: 0 | G82: 0 | H82: 0
B85: controllo dati anni precedenti | E85: =+IF(OR(E72=0,Dati_Anni_precedenti!E43=""),"manca il dato di input", "ok") -> manca il dato di input | F85: =+IF(OR(F72=0,Dati_Anni_precedenti!F43=""),"manca il dato di input", "ok") -> manca il dato di input | G85: ok | H85: ok
A93: comma 28.1 All. A | B93: RCws - recupero scostamento costi all'ingrosso
C97: 2024 | D97: 2025 | E97: 2026 | F97: 2027 | G97: 2028 | H97: 2029
B98: Cows,jeff,a-2 | E98: =+SUMIF(Acquisto_Servizi_ingrosso!$F:$F,E97-2,Acquisto_Servizi_ingrosso!$W:$W) -> 0 | F98: =+SUMIF(Acquisto_Servizi_ingrosso!$F:$F,F97-2,Acquisto_Servizi_ingrosso!$W:$W) -> 0 | G98: =+Opex!E192 -> 0 | H98: =+Opex!E192 -> 0
B99: Cows,ja-2 | E99: =+Dati_Anni_precedenti!E44 -> 0 | F99: =+Dati_Anni_precedenti!F44 -> 0 | G99: =+Opex!E192 -> 0 | H99: =+Opex!F192 -> 0
B100: Rcws da calcolo | E100: =+E98-E99 -> 0 | F100: 0 | G100: 0 | H100: 0
B101: Rcws (eventuale detrazione da "Input per calcoli finali") | E101: =+Input_per_calcoli_finali!K185 -> 0 | F101: =+Input_per_calcoli_finali!L185 -> 0 | G101: =+Input_per_calcoli_finali!M185 -> 0 | H101: =+Input_per_calcoli_finali!N185 -> 0
B102: Rcwsa | C102: =+Dati_Anni_precedenti!E67 -> 0 | D102: =+Dati_Anni_precedenti!F67 -> 0 | E102: =+E100-E101 -> 0 | F102: 0 | G102: 0 | H102: 0
A111: comma 28.1 All. A | B111: RCERC - recupero scostamento componente ERC
C115: 2024 | D115: 2025 | E115: 2026 | F115: 2027 | G115: 2028 | H115: 2029
B116: ERCala-2 effettivo | E116: =+SUM(Dati_conto_economico!D98:D103) -> 0 | F116: =+SUM(Dati_conto_economico!J98:J103) -> 0 | G116: =+F116 -> 0 | H116: =+G116 -> 0
B117: ERCala-2 | E117: =+Dati_Anni_precedenti!E60 -> 0 | F117: =+Dati_Anni_precedenti!F60 -> 0 | G117: =+ERC!E145 -> 0 | H117: =+ERC!F145 -> 0
B118: ERCQTa-2 effettivo | E118: =SUMIFS('PdI-crono_ges'!O:O,'PdI-crono_ges'!J:J,"RES",'PdI-crono_ges'!K:K,"lettera a)")+SUMIFS('PdI-crono_ges'!O:O,'PdI-crono_ges'!J:J,"ENV",'PdI-crono_ges'!K:K,"lettera a)")+SUMIFS('PdI-crono_ges'!O:O,'PdI-crono_ges'!J:J,"RES",'PdI-crono_ges'!K:K,"lettera b)")+SUMIFS('PdI-crono_ges'!O:O,'PdI-crono_ges'!J:J,"ENV",'PdI-crono_ges'!K:K,"lettera b)")+SUMIFS('PdI-crono_ges'!O:O,'PdI-crono_ges'!J:J,"RES",'PdI-crono_ges'!K:K,"lettera c) 477/2023/R/IDR")+SUMIFS('PdI-crono_ges'!O:O,'PdI-crono_ges'!J:J,"ENV",'PdI-crono_ges'!K:K,"lettera c) 477/2023/R/IDR") -> 0 | F118: =SUMIFS('PdI-crono_ges'!S:S,'PdI-crono_ges'!J:J,"RES",'PdI-crono_ges'!K:K,"lettera a)")+SUMIFS('PdI-crono_ges'!S:S,'PdI-crono_ges'!J:J,"ENV",'PdI-crono_ges'!K:K,"lettera a)")+SUMIFS('PdI-crono_ges'!S:S,'PdI-crono_ges'!J:J,"RES",'PdI-crono_ges'!K:K,"lettera b)")+SUMIFS('PdI-crono_ges'!S:S,'PdI-crono_ges'!J:J,"ENV",'PdI-crono_ges'!K:K,"lettera b)")+SUMIFS('PdI-crono_ges'!S:S,'PdI-crono_ges'!J:J,"RES",'PdI-crono_ges'!K:K,"lettera c) 477/2023/R/IDR")+SUMIFS('PdI-crono_ges'!S:S,'PdI-crono_ges'!J:J,"ENV",'PdI-crono_ges'!K:K,"lettera c) 477/2023/R/IDR") -> 0 | G118: =SUMIFS('PdI-crono_ges'!V:V,'PdI-crono_ges'!$J:$J,"RES")+SUMIFS('PdI-crono_ges'!V:V,'PdI-crono_ges'!$J:$J,"ENV") -> 0 | H118: =SUMIFS('PdI-crono_ges'!W:W,'PdI-crono_ges'!$J:$J,"RES")+SUMIFS('PdI-crono_ges'!W:W,'PdI-crono_ges'!$J:$J,"ENV") -> 0
B119: ERCQTa-2 | E119: =+Dati_Anni_precedenti!E61+Dati_Anni_precedenti!E62+Dati_Anni_precedenti!E63 -> 0 | F119: =+Dati_Anni_precedenti!F61+Dati_Anni_precedenti!F62+Dati_Anni_precedenti!F63 -> 0 | G119: =ERC!E203 -> 0 | H119: =ERC!F203 -> 0
B121: RcERC da calcolo | E121: =+E116-E117+MIN(E118-E119,0) -> 0 | F121: 0 | G121: 0 | H121: 0
B122: RcERC (eventuale detrazione da "Input per calcoli finali") | E122: =+Input_per_calcoli_finali!K189 -> 0 | F122: =+Input_per_calcoli_finali!L189 -> 0 | G122: =+Input_per_calcoli_finali!M189 -> 0 | H122: =+Input_per_calcoli_finali!N189 -> 0
B123: RcERCa | C123: =+Dati_Anni_precedenti!E68 -> 0 | D123: =+Dati_Anni_precedenti!F68 -> 0 | E123: =+E121-E122 -> 0 | F123: 0 | G123: 0 | H123: 0
A132: comma 28.1 All. A | B132: RCALTRO - recupero altri scostamenti
C136: 2024 | D136: 2025 | E136: 2026 | F136: 2027 | G136: 2028 | H136: 2029
B137: RcaAttiv b | C137: =+C180 -> 0 | D137: 0 | E137: =E180 -> 0 | F137: 0 | G137: 0 | H137: 0
B138: Rcares | C138: =C195 -> 0 | D138: =D195 -> 0 | E138: =E195 -> 0 | F138: 0 | G138: 0 | H138: 0
B139: RcaARERA | C139: =C211 -> 0 | D139: =D211 -> 0 | E139: =E211 -> 0 | F139: 0 | G139: 0 | H139: 0
B140: Costo forniture all’ingrosso transfrontaliere | C140: =+Dati_Anni_precedenti!E73 -> 0 | D140: =+Dati_Anni_precedenti!F73 -> 0 | E140: =+Altri_dati_eco_fin!E53 -> 0 | F140: =+Altri_dati_eco_fin!F53 -> 0
B141: RcIP (valori a moneta a-2, include eventuale FoNInoninv) | C141: =+Dati_Anni_precedenti!E74 -> 0 | D141: =+Dati_Anni_precedenti!F74 -> 0 | E141: =-Altri_dati_eco_fin!E55 -> 0 | F141: =-Altri_dati_eco_fin!F55+SUM(Conferma_investimenti!AY:AY) -> 0
B142: Costi per variazioni sistemiche / eventi eccezionali | C142: =+Dati_Anni_precedenti!E75 -> 0 | D142: =+Dati_Anni_precedenti!F75 -> 0 | E142: =+Altri_dati_eco_fin!E50 -> 0 | F142: =+Altri_dati_eco_fin!F50 -> 0
B143: Rimb335a | C143: =+Dati_Anni_precedenti!E78 -> 0 | D143: =+Dati_Anni_precedenti!F78 -> 0 | E143: =+Altri_dati_eco_fin!E54 -> 0 | F143: =+Altri_dati_eco_fin!F54 -> 0
B144: Rcaappr | C144: =+Dati_Anni_precedenti!E79 -> 0 | D144: =+Dati_Anni_precedenti!F79 -> 0 | E144: =Input_per_calcoli_finali!K78 -> 0 | F144: =Input_per_calcoli_finali!L78 -> 0 | G144: =Input_per_calcoli_finali!M78 -> 0 | H144: =Input_per_calcoli_finali!N78 -> 0
B145: DOpexQC | C145: =C227 -> 0 | D145: =D227 -> 0 | E145: =E227 -> 0 | F145: 0 | G145: 0 | H145: 0
B146: DOpexQT | C146: =C243 -> 0 | D146: =D243 -> 0 | E146: =E243 -> 0 | F146: 0 | G146: 0 | H146: 0
B147: DOpsocial | C147: =+C259 -> 0 | D147: =+D259 -> 0 | E147: =+E259 -> 0 | F147: 0 | G147: 0 | H147: 0
B148: DOpmis | C148: =C273 -> 0 | D148: =D273 -> 0 | E148: =E273 -> 0 | F148: 0 | G148: 0 | H148: 0
B149: Penalità RQSII - Delibera 277/2025/R/IDR | C149: =+Dati_Anni_precedenti!E83 -> 0 | D149: =+Dati_Anni_precedenti!F83 -> 0 | E149: =-Altri_dati_eco_fin!E63 -> 0 | F149: =-Altri_dati_eco_fin!F63 -> 0
B150: Penalità RQTI - Delibera 225/2025/R/IDR | C150: =+Dati_Anni_precedenti!E84 -> 0 | D150: =+Dati_Anni_precedenti!F84 -> 0 | E150: =-Altri_dati_eco_fin!E64 -> 0 | F150: =-Altri_dati_eco_fin!F64 -> 0
B151: Recupero volumi 2021 / 2023 | D151: =+Dati_Anni_precedenti!F87 -> 0 | F151: =+F301 -> 0
B152: Recupero energia elettrica 2021 / 2023 | D152: =+Dati_Anni_precedenti!F88 -> 0 | F152: =+F322 -> 0
B153: Recupero straordinario inflazione | D153: =+Dati_Anni_precedenti!F89 -> 0 | F153: =$F$340 -> 0
B156: RcaAltro da calcolo | E156: =+SUM(E137:E150) -> 0 | F156: =+SUM(F137:F153) -> 0 | G156: =+SUM(G137:G139,G144:G148) -> 0 | H156: =+SUM(H137:H139,H144:H148) -> 0
B157: RcaAltro (eventuale detrazione da "Input per calcoli finali") | E157: =+Input_per_calcoli_finali!K193 -> 0 | F157: =+Input_per_calcoli_finali!L193 -> 0 | G157: =+Input_per_calcoli_finali!M193 -> 0 | H157: =+Input_per_calcoli_finali!N193 -> 0
B158: RcaAltro | C158: =+SUM(C137:C150) -> 0 | D158: =+SUM(D137:D153) -> 0 | E158: =+E156-E157 -> 0 | F158: 0 | G158: 0 | H158: 0
B166: RCattività b
C170: 2024 | D170: 2025 | E170: 2026 | F170: 2027 | G170: 2028 | H170: 2029
B171: %breg | E171: 0.5 | F171: 0.5 | G171: 0.5 | H171: 0.5
B172: Rb1a-2 | E172: =+VRG_Teta!E111 -> 0 | F172: =+VRG_Teta!F111 -> 0 | G172: =+VRG_Teta!G111 -> 0 | H172: =+VRG_Teta!H111 -> 0
B173: Cb1a-2 | E173: =+VRG_Teta!E140 -> 0 | F173: =+VRG_Teta!F140 -> 0 | G173: =+VRG_Teta!G140 -> 0 | H173: =+VRG_Teta!H140 -> 0
B174: γb | E174: 0.5 | F174: 0.5 | G174: 0.5 | H174: 0.5
B175: γb1com | E175: =+Affidamento!E16 -> 0 | F175: =+Affidamento!F16 -> 0 | G175: =+Affidamento!G16 -> 0 | H175: =+Affidamento!H16 -> 0
B176: Rb2a-2 | E176: =VRG_Teta!E109 -> 0 | F176: =VRG_Teta!F109 -> 0 | G176: =VRG_Teta!G109 -> 0 | H176: =VRG_Teta!H109 -> 0
B177: Cb2a-2 | E177: =VRG_Teta!E138 -> 0 | F177: =VRG_Teta!F138 -> 0 | G177: =VRG_Teta!G138 -> 0 | H177: =VRG_Teta!H138 -> 0
B178: Rcab1 | C178: =+Dati_Anni_precedenti!E69 -> 0 | D178: =+Dati_Anni_precedenti!F69 -> 0 | E178: =+IF((E172+E176-E173-E177)>0,E171*(1+E175)*(E172-E173),0) -> 0 | F178: =+IF((F172+F176-F173-F177)>0,F171*(1+F175)*(F172-F173),0) -> 0 | G178: =+IF((G172+G176-G173-G177)>0,G171*(G172-G173),0) -> 0 | H178: 0
B179: Rcab2 | C179: =+Dati_Anni_precedenti!E70 -> 0 | D179: =+Dati_Anni_precedenti!F70 -> 0 | E179: =+IF((E172+E176-E173-E177)>0,(E171*(1+E174))*(E176-E177),0) -> 0 | F179: =+IF((F172+F176-F173-F177)>0,(F171*(1+F174))*(F176-F177),0) -> 0 | G179: =+IF((G172+G176-G173-G177)>0,(G171*(1+G174))*(G176-G177),0) -> 0 | H179: =+IF((H172+H176-H173-H177)>0,(H171*(1+H174))*(H176-H177),0) -> 0
B180: RcaAttività b | C180: =+C178+C179 -> 0 | D180: =+D178+D179 -> 0 | E180: =+IF((E172+E176-E173-E177)>0,E171*(1+E175)*(E172-E173)+(E171*(1+E174))*(E176-E177),0) -> 0 | F180: =+IF((F172+F176-F173-F177)>0,F171*(1+F175)*(F172-F173)+(F171*(1+F174))*(F176-F177),0) -> 0 | G180: =+IF((G172+G176-G173-G177)>0,G171*(1+G175)*(G172-G173)+(G171*(1+G174))*(G176-G177),0) -> 0 | H180: =+IF((H172+H176-H173-H177)>0,H171*(1+H175)*(H172-H173)+(H171*(1+H174))*(H176-H177),0) -> 0
B188: RCres
C192: 2024 | D192: 2025 | E192: 2026 | F192: 2027 | G192: 2028 | H192: 2029
B193: Oneri locali a-2 | E193: =+SUM(Dati_conto_economico!E98:E103)+SUM(Dati_conto_economico!F98:F103) -> 0 | F193: =SUM(Dati_conto_economico!K98:K103)+SUM(Dati_conto_economico!L98:L103) -> 0 | G193: =+F193 -> 0 | H193: =+G193 -> 0
B194: COresa-2 (al lordo dei contributi) | E194: =Dati_Anni_precedenti!E52+Dati_Anni_precedenti!E53 -> 0 | F194: =Dati_Anni_precedenti!F52+Dati_Anni_precedenti!F53 -> 0 | G194: =Opex!E309 -> 0 | H194: =Opex!F309 -> 0
B195: Rcares | C195: =+Dati_Anni_precedenti!E71 -> 0 | D195: =+Dati_Anni_precedenti!F71 -> 0 | E195: =+E193-E194 -> 0 | F195: 0 | G195: 0 | H195: 0
B204: RCARERA - Recupero COARERA
C208: 2024 | D208: 2025 | E208: 2026 | F208: 2027 | G208: 2028 | H208: 2029
B209: COa-2ARERA,effettivo | E209: =+Altri_dati_eco_fin!E49 -> 0 | F209: =+Altri_dati_eco_fin!F49 -> 0 | G209: =+F209 -> 0 | H209: =+G209 -> 0
B210: COa-2ARERA | E210: =+Dati_Anni_precedenti!E50 -> 0 | F210: =+Dati_Anni_precedenti!F50 -> 0 | G210: =+Opex!E279 -> 0 | H210: =+Opex!F279 -> 0
B211: RcaARERA | C211: =+Dati_Anni_precedenti!E72 -> 0 | D211: =+Dati_Anni_precedenti!F72 -> 0 | E211: =+E209-E210 -> 0 | F211: 0 | G211: 0 | H211: 0
B220: DOpexQC - Recupero (a vantaggio utenza) OpexQC
C224: 2024 | D224: 2025 | E224: 2026 | F224: 2027 | G224: 2028 | H224: 2029
B225: OpexQC effettivamente sostenuti dal gestore | E225: =Altri_dati_eco_fin!E76+Altri_dati_eco_fin!E77+Altri_dati_eco_fin!E78 -> 0 | F225: =Altri_dati_eco_fin!F76+Altri_dati_eco_fin!F77+Altri_dati_eco_fin!F78 -> 0 | G225: =+Opex!E115 -> 0 | H225: =+Opex!F115 -> 0
B226: Opexa-2QC | E226: =+Dati_Anni_precedenti!E37+Dati_Anni_precedenti!E38+Dati_Anni_precedenti!E39 -> 0 | F226: =+Dati_Anni_precedenti!F37+Dati_Anni_precedenti!F38+Dati_Anni_precedenti!F39 -> 0 | G226: =+Opex!E115 -> 0 | H226: =+Opex!F115 -> 0
B227: DOpexQC | C227: =+Dati_Anni_precedenti!E80 -> 0 | D227: =+Dati_Anni_precedenti!F80 -> 0 | E227: =+MIN(E225-E226,0) -> 0 | F227: 0 | G227: 0 | H227: 0
B236: DOpexQT - Recupero (a vantaggio utenza) OpexQT
C240: 2024 | D240: 2025 | E240: 2026 | F240: 2027 | G240: 2028 | H240: 2029
B241: OpexQT effettivamente sostenuti dal gestore | E241: =SUMIFS('PdI-crono_ges'!O:O,'PdI-crono_ges'!J:J,"Non ERC",'PdI-crono_ges'!K:K,"lettera a)")+SUMIFS('PdI-crono_ges'!O:O,'PdI-crono_ges'!J:J,"Non ERC",'PdI-crono_ges'!K:K,"lettera b)")+SUMIFS('PdI-crono_ges'!O:O,'PdI-crono_ges'!J:J,"Non ERC",'PdI-crono_ges'!K:K,"lettera c) 477/2023/R/IDR") -> 0 | F241: =SUMIFS('PdI-crono_ges'!S:S,'PdI-crono_ges'!J:J,"Non ERC",'PdI-crono_ges'!K:K,"lettera a)")+SUMIFS('PdI-crono_ges'!S:S,'PdI-crono_ges'!J:J,"Non ERC",'PdI-crono_ges'!K:K,"lettera b)")+SUMIFS('PdI-crono_ges'!S:S,'PdI-crono_ges'!J:J,"Non ERC",'PdI-crono_ges'!K:K,"lettera c) 477/2023/R/IDR") -> 0 | G241: =+SUMIFS('PdI-crono_ges'!V:V,'PdI-crono_ges'!J:J,"Non ERC") -> 0 | H241: =+SUMIFS('PdI-crono_ges'!W:W,'PdI-crono_ges'!J:J,"Non ERC") -> 0
B242: Opexa-2QT | E242: =+Dati_Anni_precedenti!E34+Dati_Anni_precedenti!E35+Dati_Anni_precedenti!E36 -> 0 | F242: =+Dati_Anni_precedenti!F34+Dati_Anni_precedenti!F35+Dati_Anni_precedenti!F36 -> 0 | G242: =+Opex!E99 -> 0 | H242: =+Opex!F99 -> 0
B243: DOpexQT | C243: =+Dati_Anni_precedenti!E81 -> 0 | D243: =+Dati_Anni_precedenti!F81 -> 0 | E243: =+MIN(E241-E242,0) -> 0 | F243: 0 | G243: 0 | H243: 0
B252: DOpsocial - Recupero Opsocial
C256: 2024 | D256: 2025 | E256: 2026 | F256: 2027 | G256: 2028 | H256: 2029
B257: Opsocial effettivamente sostenuti dal gestore | E257: =SUM(Altri_dati_eco_fin!E81:E83) -> 0 | F257: =SUM(Altri_dati_eco_fin!F81:F83) -> 0 | G257: =+Opex!E129 -> 0 | H257: =+Opex!F129 -> 0
B258: Opsociala-2 | E258: =+Dati_Anni_precedenti!E40+Dati_Anni_precedenti!E41 -> 0 | F258: =+Dati_Anni_precedenti!F40+Dati_Anni_precedenti!F41 -> 0 | G258: =+Opex!E129 -> 0 | H258: =+Opex!F129 -> 0
B259: DOpsocial | C259: =+Dati_Anni_precedenti!E82 -> 0 | D259: =+Dati_Anni_precedenti!F82 -> 0 | E259: =+E257-E258 -> 0 | F259: 0 | G259: 0 | H259: 0
B266: DOpmis - Recupero Opmis
C270: 2024 | D270: 2025 | E270: 2026 | F270: 2027 | G270: 2028 | H270: 2029
B271: Opmis effettivamente sostenuti dal gestore | E271: =Altri_dati_eco_fin!E84 -> 0 | F271: =Altri_dati_eco_fin!F84 -> 0 | G271: =+Opex!E141 -> 0 | H271: =+Opex!F141 -> 0
B272: Opa-2mis | E272: =+Dati_Anni_precedenti!E42 -> 0 | F272: =+Dati_Anni_precedenti!F42 -> 0 | G272: =+Opex!E141 -> 0 | H272: =+Opex!F141 -> 0
B273: DOpmis | C273: =+Dati_Anni_precedenti!E85 -> 0 | D273: =+Dati_Anni_precedenti!F85 -> 0 | E273: =+E271-E272 -> 0 | F273: 0 | G273: 0 | H273: 0
A280: Art. 29 All. A | B280: Altre regole per i conguagli
C284: 2024 | D284: 2025 | E284: 2026 | F284: 2027 | G284: 2028 | H284: 2029
B285: RCARC - art. 29 lett a) MTI-4
B286: RCARC - art. 29 lett b) MTI-4
B287: RCARC - art. 29 lett c) MTI-4
B288: RCARC - art. 29 MTI-4 | C288: =+Dati_Anni_precedenti!E86 -> 0 | D288: =+Dati_Anni_precedenti!F86 -> 0
A296: comma 28.1 All. A | B296: Integrazioni componenti a conguaglio: recupero volumi
C300: 2024 | D300: 2025 | E300: 2026 | F300: 2027 | G300: 2028 | H300: 2029
B301: Recupero volumi 2021 / 2023 | D301: =+Dati_Anni_precedenti!F87 -> 0 | F301: =+Altri_dati_eco_fin!F57 -> 0
A311: comma 28.3 lett. a) All. A | B311: Integrazioni componenti a conguaglio: recupero energia elettrica
C315: 2024 | D315: 2025 | E315: 2026 | F315: 2027 | G315: 2028 | H315: 2029
B316: Coee,consuntivo 2023 | F316: =+Dati_tecnici!G8 -> 0 | L316: anno | M316: costo medio EE per calcolo COEE | N316: u.d.m.
B317: Kwhconsuntivo 2023 | F317: =+Dati_tecnici!G5 -> 0 | L317: 639/2023 | M317: =TT_parametri!$AV$41 -> 0.2436 | N317: =+TT_parametri!AW31 -> €/KWh
B318: minuendoa-2 | F318: =+MIN(F316,F317*M318*1.1) -> 0 | L318: 2023 | M318: =TT_parametri!$AV$41 -> 0.2436 | N318: =+TT_parametri!AW32 -> €/KWh
B319: Coee,preconsuntivo 2023 | F319: =+SUM(Dati_Anni_precedenti!F104:F107) -> 0
B320: Kwhpreconsuntivo 2023 | F320: =Dati_Anni_precedenti!$F$102 -> 0
B321: sottraendoa-2 | F321: =+MIN(F319,F320*M317*1.1) -> 0
B322: Recupero energia elettrica 2021 / 2023 | D322: =+Dati_Anni_precedenti!F88 -> 0 | F322: =+IF(F325="manca il dato di input",0,F318-F321) -> 0
B325: controllo dati anni precedenti | F325: =+IF(AND(F318=0,F321=0),"OK",IF(OR(F318=0,F321=0),"manca il dato di input", "ok")) -> OK
A333: comma 28.3 lett. b) All. A | B333: Integrazioni componenti a conguaglio: recupero straordinario inflazione
C337: 2024 | D337: 2025 | E337: 2026 | F337: 2027 | G337: 2028 | H337: 2029
B338: Costi operativi e conguagli 2025 | F338: =Altri_dati_eco_fin!F58 -> 0
B339: sottraendoa-2 | F339: =+F338*1.02 -> 0
B340: Recupero straordinario inflazione | D340: =+Dati_Anni_precedenti!F89 -> 0 | F340: =+F339-F338 -> 0

Sheet Schema di convergenza
A2: Titolo 8 MTI-4 | B2: Meccanismi di convergenza
B4: Schema regolatorio di convergenza
C8: 2024 | D8: 2025 | E8: 2026 | F8: 2027 | G8: 2028 | H8: 2029
B9: Tipologia di schema adottato da foglio "Input per calcoli finali" | C9: =+IF(var="","",var) -> 
B10: Determinazione del parametro α da foglio "Input per calcoli finali" | C10: =+IF(incid="","",Input_per_calcoli_finali!F26&": "&incid) -> 
B12: Numero delle gestioni integrate | E12: =+COUNTIFS(Info_eventuali_aggregazioni!$P:$P,">0",Info_eventuali_aggregazioni!$L:$L,"<="&E$8) -> 0 | F12: =+COUNTIFS(Info_eventuali_aggregazioni!$P:$P,">0",Info_eventuali_aggregazioni!$L:$L,"<="&F$8) -> 0 | G12: =+COUNTIFS(Info_eventuali_aggregazioni!$P:$P,">0",Info_eventuali_aggregazioni!$L:$L,"<="&G$8) -> 0 | H12: =+COUNTIFS(Info_eventuali_aggregazioni!$P:$P,">0",Info_eventuali_aggregazioni!$L:$L,"<="&H$8) -> 0
B13: Popolazione delle gestioni integrate | E13: =+SUMIFS(Info_eventuali_aggregazioni!$P:$P,Info_eventuali_aggregazioni!$Q:$Q,"Schema regolatorio di convergenza",Info_eventuali_aggregazioni!$L:$L,"<="&E$8) -> 0 | F13: =+SUMIFS(Info_eventuali_aggregazioni!$P:$P,Info_eventuali_aggregazioni!$Q:$Q,"Schema regolatorio di convergenza",Info_eventuali_aggregazioni!$L:$L,"<="&F$8) -> 0 | G13: =+SUMIFS(Info_eventuali_aggregazioni!$P:$P,Info_eventuali_aggregazioni!$Q:$Q,"Schema regolatorio di convergenza",Info_eventuali_aggregazioni!$L:$L,"<="&G$8) -> 0 | H13: =+SUMIFS(Info_eventuali_aggregazioni!$P:$P,Info_eventuali_aggregazioni!$Q:$Q,"Schema regolatorio di convergenza",Info_eventuali_aggregazioni!$L:$L,"<="&H$8) -> 0
B14: In caso di mancate aggregazioni compilare manualmente la popolazione di riferimento
B15: Eventuale istanza ai sensi del comma 32.10 MTI-4 | C15: SI | I15: compilazione manuale
B16: Eventuale procedura a evidenza pubblica con indispobibilità dei requisiti infomativi minimi art. 11 Allegato A Del. 347/2025/R/Idr | C16: SI | I16: compilazione manuale
B18: Ja | E18: =+IFERROR(D18*E21,"Non applicabile") -> 0 | F18: =+IFERROR(E18*F21,"Non applicabile") -> 0 | G18: =+IFERROR(F18*G21,"Non applicabile") -> 0 | H18: =+IFERROR(G18*H21,"Non applicabile") -> 0
B19: Fattore di aggregazione α | E19: =+IF(RIGHT($C9,2)<>"c)",IF(RIGHT($C10,2)="SI",1.5,1),"Non applicabile") -> 1 | F19: =+IF(RIGHT($C9,2)<>"c)",IF(RIGHT($C10,2)="SI",1.5,1),"Non applicabile") -> 1 | G19: =+IF(RIGHT($C9,2)<>"c)",IF(RIGHT($C10,2)="SI",1.5,1),"Non applicabile") -> 1 | H19: =+IF(RIGHT($C9,2)<>"c)",IF(RIGHT($C10,2)="SI",1.5,1),"Non applicabile") -> 1
B20: Fattore di incremento Y | E20: =IF(RIGHT($C9,2)<>"c)",IF($C$15="","Compilare la cella C15",IF($C$15="SI",7%,4%)),"Non applicabile") -> 0.07 | F20: =IF(RIGHT($C9,2)<>"c)",IF($C$15="","Compilare la cella C15",IF($C$15="SI",6%,3.5%)),"Non applicabile") -> 0.06 | G20: =IF(RIGHT($C9,2)<>"c)",IF($C$15="","Compilare la cella C15",IF($C$15="SI",5%,3%)),"Non applicabile") -> 0.05 | H20: =IF(RIGHT($C9,2)<>"c)",IF($C$15="","Compilare la cella C15",IF($C$15="SI",4.5%,2.5%)),"Non applicabile") -> 0.045
B21: 1+αY | E21: =IF($C$15="","Compilare la cella C15",IF(RIGHT($C9,2)<>"c)",1+E19*E20,"Non applicabile")) -> 1.07 | F21: =IF($C$15="","Compilare la cella C15",IF(RIGHT($C9,2)<>"c)",1+F19*F20,"Non applicabile")) -> 1.06 | G21: =IF($C$15="","Compilare la cella C15",IF(RIGHT($C9,2)<>"c)",1+G19*G20,"Non applicabile")) -> 1.05 | H21: =IF($C$15="","Compilare la cella C15",IF(RIGHT($C9,2)<>"c)",1+H19*H20,"Non applicabile")) -> 1.045
B23: COSTOT
B24: Ricavi tariffari delle gestioni integrate | E24: =++SUMIF(Ricavi_bacini_tariffari!C:C,"Bacino tariffario schema di convergenza",Ricavi_bacini_tariffari!P:P) -> 0 | F24: =+SUMIF(Ricavi_bacini_tariffari!C:C,"Bacino tariffario schema di convergenza",Ricavi_bacini_tariffari!Q:Q) -> 0 | G24: =+F24 -> 0 | H24: =+G24 -> 0
B25: In caso di "Schema di convergenza" indicare un unico bacino tariffario scrivendo "Bacino tariffario schema di convergenza" nel foglio "Elenco Bacini Tariffari" e compilare conseguentemente i successivi fogli dei ricavi.
B26: VRGconv | E26: =+IF(RIGHT($C9,2)="c)",E27+E29,"Non applicabile") -> Non applicabile | F26: =+IF(RIGHT($C9,2)="c)",F27+F29,"Non applicabile") -> Non applicabile | G26: =+IF(RIGHT($C9,2)="c)",G27+G29,"Non applicabile") -> Non applicabile | H26: =+IF(RIGHT($C9,2)="c)",H27+H29,"Non applicabile") -> Non applicabile
B27: Capexconv | E27: =+IF(RIGHT($C9,2)="c)",MAX(0.16*E29-IF($C16="SI",E28,0),0),"Non applicabile") -> Non applicabile | F27: =+IF(RIGHT($C9,2)="c)",MAX(0.16*F29-IF($C16="SI",F28,0),0),"Non applicabile") -> Non applicabile | G27: =+IF(RIGHT($C9,2)="c)",MAX(0.16*G29-IF($C16="SI",G28,0),0),"Non applicabile") -> Non applicabile | H27: =+IF(RIGHT($C9,2)="c)",MAX(0.16*H29-IF($C16="SI",H28,0),0),"Non applicabile") -> Non applicabile
B28: Eventuali detrazione al Capexconv di cui al comma 33.11-bis del MTI-4 | E28: =Affidamento!E24 -> 0 | F28: =Affidamento!F24 -> 0 | G28: =Affidamento!G24 -> 0 | H28: =Affidamento!H24 -> 0
B29: COSconv | E29: =+IF(AND(RIGHT($C9,2)="c)",($C$16="NO")),74*1.1*E13,IF(AND(RIGHT($C9,2)="c)",($C$16="SI")),MAX(116*1.1*E13-E30,0),"Non applicabile")) -> Non applicabile | F29: =+IF(AND(RIGHT($C9,2)="c)",($C$16="NO")),74*1.1*F13,IF(AND(RIGHT($C9,2)="c)",($C$16="SI")),MAX(116*1.1*F13-F30,0),"Non applicabile")) -> Non applicabile | G29: =+IF(AND(RIGHT($C9,2)="c)",($C$16="NO")),74*1.1*G13,IF(AND(RIGHT($C9,2)="c)",($C$16="SI")),MAX(116*1.1*G13-G30,0),"Non applicabile")) -> Non applicabile | H29: =+IF(AND(RIGHT($C9,2)="c)",($C$16="NO")),74*1.1*H13,IF(AND(RIGHT($C9,2)="c)",($C$16="SI")),MAX(116*1.1*H13-H30,0),"Non applicabile")) -> Non applicabile
B30: Eventuali detrazione al COSconv di cui al comma 33.11-bis del MTI-4 | E30: =Affidamento!E25 -> 0 | F30: =Affidamento!F25 -> 0 | G30: =Affidamento!G25 -> 0 | H30: =Affidamento!H25 -> 0

Sheet Input_per_calcoli_finali
O1: =+O55 -> 
R2: Sono presenti errori
R3: =+O245<>"Compilazione conclusa!" -> TRUE
G4: Compilare - secondo l'ordine proposto - tutti i campi. Utilizzare lo zero, quando è richiesto di "compilare tutti i campi", in luogo della cella vuota
G6: Area info | K6: Area di input per i soggetti competenti | O6: Area suggerimenti
I8: Sezione "verifica cause di esclusione dall'aggiornamento tariffario"
G11: info | K11: Dati MTI-4
F12: Gestione in possesso di un titolo giuridico ad esercire il servizio conforme alla normativa, ovvero gestione interessata da procedure di affidamento già avviate | G12: Compilare il campo in colonna K--> | O12: =+IF(K12="","<-- Iniziare da qui la compilazione",IF(OR(K12="SI",K12="NO"),"OK, continuare la compilazione","Compilare correttamente il campo")) -> <-- Iniziare da qui la compilazione
F13: Tipo affidamento | G13: Assicurarsi di aver correttamente fornito tali informazioni nel foglio dati tecnici | K13: =+IF(AND(Affidamento!E2<>"",LEFT(O12,2)="OK"),Affidamento!E2,"") ->  | O13: =++IF(LEFT(O12,2)="OK",+IF(K13<>"","OK, continuare la compilazione","Compilare il campo"),"") -> 
F14: Data inizio affidamento | K14: =+IF(OR(K13="",Affidamento!E3=""),"",Affidamento!E3) ->  | O14: =++IF(AND(LEFT(O13,2)="OK",K13="Affidamento del SII"),+IF(LEN(K14)=5,"OK, continuare la compilazione","Compilare correttamente il campo. Formato data: gg/mm/aaaa"),IF(K13="","","OK, compilare o continuare la compilazione (formato gg/mm/aaaa)")) -> 
F15: Data fine affidamento | K15: =+IF(OR(Affidamento!E4="",K14=""),"",Affidamento!E4) ->  | O15: =++IF(AND(LEFT(O14,2)="OK",K13="Affidamento del SII"),+IF(LEN(K15)=5,"OK, continuare la compilazione","Compilare correttamente il campo. Formato data: gg/mm/aaaa"),IF(AND(LEFT(O14,2)="OK",K13="Affidamento del SII",K15=""),"Compilare il campo",IF(LEFT(O14,2)="OK","OK, compilare o continuare la compilazione (formato gg/mm/aaaa)",""))) -> 
F16: Presenza Carta dei servizi | K16: =+IF(OR(Affidamento!E5="",K15=""),"",Affidamento!E5) ->  | O16: =++IF(LEFT(O15,2)="OK",+IF(OR(K16="SI",K16="NO"),"OK, continuare la compilazione","Compilare correttamente il campo"),"") -> 
F17: Assenza di un consumo minimo impegnato per la fatturazione alle utenze | K17: =+IF(OR(Affidamento!E6="",K16=""),"",Affidamento!E6) ->  | O17: =++IF(LEFT(O16,2)="OK",+IF(OR(K17="SI",K17="NO"),"OK, continuare la compilazione","Compilare correttamente il campo"),"") -> 
F18: Versamento delle componenti perequative a CSEA | K18: =+IF(OR(Affidamento!E7="",K17=""),"",Affidamento!E7) ->  | O18: =++IF(LEFT(O17,2)="OK",+IF(OR(K18="SI",K18="NO"),"OK, continuare la compilazione","Compilare correttamente il campo"),"") -> 
F19: Assenza di ritardi e carenze nell’implementazione dei piani (in precedenza comunicati all’Autorità) per il superamento della mancanza dei pertinenti prerequisiti | K19: =+IF(OR(Affidamento!E8="",K18=""),"",Affidamento!E8) ->  | O19: =++IF(LEFT(O18,2)="OK",+IF(OR(K19="SI",K19="NO"),"OK, continuare la compilazione","Compilare correttamente il campo"),"") -> 
I22: Sezione "Interventi sullo schema regolatorio" e Oneri aggiuntivi
G24: info | K24: Dati MTI-4
F25: Regolazione tariffaria applicabile | G25: Compilare i campi in colonna K--> | O25: =+IF(AND(K25="Matrice di schemi regolatori",LEFT(O19,2)="OK"),"OK, continuare la compilazione",IF(AND(LEFT(O19,2)="OK",K25<>""),"Schema regolatorio di convergenza",IF(AND(LEFT(O19,2)="OK",K25=""),"<--- Continuare da qui la compilazione",""))) -> 
F26: Avvio dei processi di aggregazione del gestore unico d'ambito | O26: =+IF(AND(LEFT(O25,2)<>"OK",LEFT(O25,2)<>"<-"),IF(K26<>"","OK, continuare la compilazione",IF(AND(LEFT(O25,2)<>"OK",K25="Schema regolatorio di convergenza"),"<--- Continuare da qui la compilazione",IF(O25="","","OK, continuare la compilazione (il campo non va compilato)"))),"") -> 
F27: Eventuale tipologia di Schema di convergenza | O27: =+IF(OR(K25<>"Schema regolatorio di convergenza",LEFT(O26,4)="<---"),"",IF(AND(K25="Schema regolatorio di convergenza",LEFT(O26,2)="OK",var=""),"<--- Continuare da qui la compilazione",IF(AND(K25="Schema regolatorio di convergenza",LEFT(O26,2)="OK",var<>""),"OK, compilazione completata!",""))) -> 
F28: Aggregazioni o variazioni dei processi tecnici significative (comma 5.1, comma 19.4) | O28: =+IF(LEFT(O25,2)<>"OK","",IF(AND(LEFT(O25,2)="OK",integr=""),"<--- Continuare da qui la compilazione","OK, continuare la compilazione")) -> 
F30: Opnew - da comma 19.2 a comma 19.7 | G30: Compilare i campi delle righe 30-33 a partire dalla colonna K considerando la sola quota di costi afferenti alle nuove attività o al nuovo perimetro gestito a partire dal 2024--> | I30: =+Dati_Anni_precedenti!E33 -> 0 | J30: =+Dati_Anni_precedenti!F33 -> 0 | K30: =+K31*IF(OR(RIGHT($O$31,1)=")",LEFT($O$28,2)<>"OK",$O$31=""),0,1)+K32*IF(OR(RIGHT($O$32,1)=")",LEFT($O$28,2)<>"OK",$O$32=""),0,1)+K33*IF(OR(RIGHT($O$33,1)=")",LEFT($O$28,2)<>"OK",$O$33=""),0,1)+K34*IF(OR(RIGHT($O$34,1)=")",LEFT($O$28,2)<>"OK",$O$34=""),0,1) -> 0 | L30: =+L31*IF(OR(RIGHT($O$31,1)=")",LEFT($O$28,2)<>"OK",$O$31=""),0,1)+L32*IF(OR(RIGHT($O$32,1)=")",LEFT($O$28,2)<>"OK",$O$32=""),0,1)+L33*IF(OR(RIGHT($O$33,1)=")",LEFT($O$28,2)<>"OK",$O$33=""),0,1)+L34*IF(OR(RIGHT($O$34,1)=")",LEFT($O$28,2)<>"OK",$O$34=""),0,1) -> 0 | M30: 0 | N30: 0
F31: di cui per "Integrazione di gestioni significative" comma 19.3 sub a) | O31: =+IF(AND(LEFT(O$28,2)="OK",OR(integr="integrazione territorio",integr="entrambi"),OR(K31="",L31="",M31="",N31="")),"<--- Continuare da qui la compilazione (compilare tutti i campi)",IF(AND(LEFT(O$28,2)="OK",integr<>"integrazione territorio",integr<>"entrambi"),"OK, continuare la compilazione (il campo non va compilato)",IF(AND(K31<>"",L31<>"",M31<>"",N31<>"",LEFT(O$28,2)="OK"),"OK, continuare la compilazione",""))) -> 
F32: di cui per "Integrazione di gestioni d'ambito con corredo informativo completo in ATO diversi" comma 19.3 sub b) | O32: =+IF(AND(LEFT(O$28,2)="OK",OR(integr="integrazione territorio",integr="entrambi"),OR(K32="",L32="",M32="",N32="")),"<--- Continuare da qui la compilazione (compilare tutti i campi)",IF(AND(LEFT(O$28,2)="OK",integr<>"integrazione territorio",integr<>"entrambi"),"OK, continuare la compilazione (il campo non va compilato)",IF(AND(K32<>"",L32<>"",M32<>"",N32<>"",LEFT(O$28,2)="OK"),"OK, continuare la compilazione",""))) -> 
F33: di cui per "Presenza di nuovi processi tecnici gestiti" comma 19.3 sub c) | O33: =+IF(AND(LEFT(O$28,2)="OK",OR(integr="integrazione processi tecnici",integr="entrambi"),OR(K33="",L33="",M33="",N33="")),"<--- Continuare da qui la compilazione (compilare tutti i campi)",IF(AND(LEFT(O$28,2)="OK",integr<>"integrazione processi tecnici",integr<>"entrambi"),"OK, continuare la compilazione (il campo non va compilato)",IF(AND(K33<>"",L33<>"",M33<>"",N33<>"",LEFT(O$28,2)="OK"),"OK, continuare la compilazione",""))) -> 
F34: di cui associati a "impianti non ulteriormente procrastinabili" comma 19.6-bis | O34: =+IF(AND(LEFT(O$28,2)="OK",OR(integr="integrazione processi tecnici",integr="entrambi"),OR(K34="",L34="",M34="",N34="")),"<--- Continuare da qui la compilazione (compilare tutti i campi)",IF(AND(LEFT(O$28,2)="OK",integr<>"integrazione processi tecnici",integr<>"entrambi"),"OK, continuare la compilazione (il campo non va compilato)",IF(AND(K34<>"",L34<>"",M34<>"",N34<>"",LEFT(O$28,2)="OK"),"OK, continuare la compilazione",""))) -> 
F38: VRG2022 (per confronto con VRGPM) | G38: =IF(K38="",IF(Storico_Piano_Tariffario!E6="","",Storico_Piano_Tariffario!E6),K38) -> 
F39: pop + 0,25 popflut | G39: =IF(K39="",IF(Storico_Piano_Tariffario!E7="","",Storico_Piano_Tariffario!E7),K39) ->  | O39: =+IF(LEFT(O33,2)="OK",IF(G40="compilare correttamente i campi","Attenzione: compilare i campi necessari", "OK, continuare la compilazione"),"") -> 
F40: VRGPM,i | G40: =+IFERROR(K38/K39,IFERROR(G38/G39,IF(LEFT(O33,2)="OK","Compilare correttamente i campi",""))) ->  | K40: non compilabile
F43: ∑Ipaexp + CFPaexp 2024-2029 | G43: non compilabile | I43: =+SUM(I44:N44) -> 0
F44: Sviluppo Ipaexp + CFPaexp MTI-4 | I44: =+Dati_Anni_precedenti!E13 -> 0 | J44: =+Dati_Anni_precedenti!F13 -> 0 | K44: ='PdI-riepilogo'!F15 -> 0 | L44: ='PdI-riepilogo'!G15 -> 0 | M44: ='PdI-riepilogo'!H15 -> 0 | N44: ='PdI-riepilogo'!I15 -> 0 | O44: =+IF(LEFT(O39,2)="OK",IF(OR(I44="",J44="",K44="",L44="",M44="",N44=""),"Attenzione: compilare tutti i campi","OK, continuare la compilazione"),"") -> 
F45: Sviluppo CFPaexp MTI-4 | I45: =+Dati_Anni_precedenti!E14 -> 0 | J45: =+Dati_Anni_precedenti!F14 -> 0 | K45: ='PdI-riepilogo'!F21 -> 0 | L45: ='PdI-riepilogo'!G21 -> 0 | M45: ='PdI-riepilogo'!H21 -> 0 | N45: ='PdI-riepilogo'!I21 -> 0 | O45: =+IF(LEFT(O44,2)="OK",IF(OR(I45="",J45="",K45="",L45="",M45="",N45=""),"Attenzione: compilare tutti i campi","OK, continuare la compilazione"),"") -> 
F49: RAB MTI-3 | G49: =+IF(K49="",Dati_Anni_precedenti!G10,K49) -> 0 | O49: =+IF(LEFT(O45,2)="OK",IF(G50<>"","OK, continuare la compilazione",IF(mti_4<>"schema regolatorio","OK, continuare la compilazione","Inserire valore RAB o controllare dati anni precedenti")),"") -> 
F50: di supporto al calcolo per la selezione dello schema | G50: =+IF(mti_4<>"schema regolatorio","",IFERROR(IFERROR(I43/K49,I43/G49),"")) -> 
F51: ψ (0,4-0,8) | G51: Compilare i campi delle righe 48 e 50 in colonna K--> | O51: =+IF(AND(mti_4<>"schema regolatorio",LEFT(O45,2)="OK"),"OK, continuare la compilazione",IF(LEFT(O49,2)="OK",+IF(G49=0,"Inserire valore RAB MTI-2 (cella I48)",IF(G50<=omega,"OK, continuare la compilazione (psi non necessario)",IF(AND(G50>omega,K51=""),"<--- Continuare da qui la compilazione",IF(OR(K51<0.4,K51>0.8),"Attenzione: compilare correttamente i dati","OK, continuare la compilazione")))),"")) -> 
F52: Ammortamento finanziario ammissibile ai sensi del comma 11.8 lettera a) | G52: non compilabile | K52: =+iAF -> 0
F55: output | G55: Tipo di elaborazione tariffaria: | O55: =+IF(LEFT(O51,2)="OK",mti_4,"") -> 
F56: output | G56: Eventuale schema regolatorio | O56: =IF(O55="schema regolatorio",schema,IF(schema="","","verificare coerenza dati inseriti")) -> 
I59: Sezione "Trattamento costi di morosità - Unpaid ratio"
G61: info | I61: 2024 | J61: 2025 | K61: 2026 | L61: 2027 | M61: 2028 | N61: 2029
O62: =+IF(LEFT(O51,2)="OK",+IF(OR(K62<0,L62<0,I62<0,J62<0),"Attenzione: valori fuori dominio",IF(OR(K62="",L62="",I62="",J62=""),"OK, compilare o continuare la compilazione","OK, continuare la compilazione")),"") -> 
O64: =+IF(LEFT(O62,2)="OK",+IF(AND(K64=""),"OK, compilare o continuare la compilazione",IF(AND(K64<>""),IF(OR(K64<K66,K64>100),"Attenzione: valori fuori dominio","OK, continuare la compilazione"),"Attenzione: compilare correttamente tutti i campi")),"") -> 
F66: Comor - art. 30 MTI-4 - valore di zona applicabile | G66: non compilabile | I66: =+Opex!C293 -> 0 | J66: =+Opex!D293 -> 0 | K66: =+Opex!E293 -> 0 | L66: =+Opex!F293 -> 0 | M66: =+Opex!G293 -> 0 | N66: =+Opex!H293 -> 0
F67: Comor - art. 30 MTI-4 - valore effettivo del gestore | I67: =+Opex!C292 -> 0 | J67: =+Opex!D292 -> 0 | K67: =+Opex!E292 -> 0 | L67: =+Opex!F292 -> 0 | M67: =+Opex!G292 -> 0 | N67: =+Opex!H292 -> 0
F68: Comor - Unpaid ratio indicato dal soggetto competente (% compatibile con "costo massimo riconosciuto" come da comma 30.2 e 30.2-bis MTI-4) | G68: Compilare il campo in colonna K--> (valori in %) | O68: =+IF(LEFT(O51,2)="OK","OK, compilare o continuare la compilazione",IF(LEFT(O51,2)="","",IF(AND(K68<=K66,K68>=MIN(K67:K67),K68<>"",K68<L66,K68>=MIN(L67),K68<=I66,K68>=MIN(I67:I67),K68<=J66,K68>=MIN(J67:J67),K68<=M66,K68>=MIN(M67:M67),K68<=N66,K68>=MIN(N67:N67)),"OK, continuare la compilazione","Attenzione: compilare correttamente tutti i campi (diversi da 0, inferiori a quelli di zona, superiori a quelli del gestore)"))) -> 
I75: Sezione "Sviluppo temporale dei conguagli MTI-3 aggiornamento rinviati al futuro"
I77: 2024 | J77: 2025 | K77: 2026 | L77: 2027 | M77: 2028 | N77: 2029
F78: importo conguagli MTI-3 agg. post 2023 (valori a moneta 2023) | G78: =Dati_Anni_precedenti!$G$108 -> 0 | I78: =+Dati_Anni_precedenti!E79/1.13696 -> 0 | J78: =+Dati_Anni_precedenti!F79/1.088 -> 0 | O78: =+IF(LEFT(O68,2)="OK",IF(SUM(K78:N78)>G78,"compilazione non ammissibile","OK compilare o proseguire la compilazione"),"") -> 
G79: area di controllo | I79: =+IF(SUM($K$78:$N$78)>$G$78,"verificare la compilazione",I78) -> 0 | J79: 0 | K79: 0 | L79: 0 | M79: 0 | N79: 0 | O79: =+IF(OR(LEFT(O78,2)="OK"),IF(G78=0,"OK, ricontrollare dati storici o proseguire la compilazione (eventuali compilazioni non avranno impatti)",IF(OR(K79="",L79="",I79="",J79="",M79="",N79=""),"<--- Continuare da qui la compilazione",IF(AND(K79<>"",L79<>"",I79<>"",J79<>"",M79<>"",N79<>"",K79>=0,L79>=0,I79>=0,J79>=0,M79>=0,N79>=0),"OK, continuare la compilazione","Attenzione: compilare correttamente i campi"))),"") -> 
G80: Eventuale rinuncia --> | K80: =+MAX(G78-SUM(I79:N79),0) -> 0
I86: Elaborazioni Iniziali
I88: 2024 | J88: 2025 | K88: 2026 | L88: 2027 | M88: 2028 | N88: 2029
F89: VRGa calcolato | G89: non compilabile | K89: =+IF($O$51<>"",VRG_Teta!E60,"") ->  | L89: =+IF($O$51<>"",VRG_Teta!F60,"") ->  | M89: =+IF($O$51<>"",VRG_Teta!G60,"") ->  | N89: =+IF($O$51<>"",VRG_Teta!H60,"") ->  | O89: =+IF(LEFT($O$78,2)="OK",IF(AND(K93="nei limiti",L93="nei limiti",I93="nei limiti",J93="nei limiti",M93="nei limiti",N93="nei limiti"),"OK, proseguire se necessario la compilazione","ATTENZIONE: proposta sovracap per almeno un'annualità"),"") -> 
F90: ϑa calcolato | G90: non compilabile | K90: =+IF($O$51<>"",VRG_Teta!E61,"") ->  | L90: =+IF($O$51<>"",VRG_Teta!F61,"") ->  | M90: =+IF($O$51<>"",VRG_Teta!G61,"") ->  | N90: =+IF($O$51<>"",VRG_Teta!H61,"") -> 
F91: VRGa al cap | G91: non compilabile | K91: =+IF($O$51<>"",VRG_Teta!E62,"") ->  | L91: =+IF($O$51<>"",VRG_Teta!F62,"") ->  | M91: =+IF($O$51<>"",VRG_Teta!G62,"") ->  | N91: =+IF($O$51<>"",VRG_Teta!H62,"") -> 
F92: ϑa massimo applicabile | G92: non compilabile | K92: =+IF($O$51<>"",VRG_Teta!E63,"") ->  | L92: =+IF($O$51<>"",VRG_Teta!F63,"") ->  | M92: =+IF($O$51<>"",VRG_Teta!G63,"") ->  | N92: =+IF($O$51<>"",VRG_Teta!H63,"") -> 
F93: info predisposizione | G93: non compilabile | K93: =+IF($O$51<>"",VRG_Teta!E64,"") ->  | L93: =+IF($O$51<>"",VRG_Teta!F64,"") ->  | M93: =+IF($O$51<>"",VRG_Teta!G64,"") ->  | N93: =+IF($O$51<>"",VRG_Teta!H64,"") -> 
I99: Sezione "Interventi sulle componenti del Capex"
I101: 2024 | J101: 2025 | K101: 2026 | L101: 2027 | M101: 2028 | N101: 2029
F102: AMM calcolato | G102: non compilabile | K102: =+Capex!E32 -> 0 | L102: =+Capex!F32 -> 0 | M102: =+Capex!G32 -> 0 | N102: =+Capex!H32 -> 0
F103: Detrazione della componente AMM | K103: 0 | L103: 0 | M103: 0 | N103: 0 | O103: =+IF(LEFT(O79,2)="OK",+IF(OR(K102-K103<0,L102-L103<0,M102-M103<0,N102-N103<0),"Attenzione: valori fuori dominio",IF(AND(K103="",L103="",M103="",N103=""),"<--- Continuare da qui la compilazione (compilare tutti i campi)","OK, continuare la compilazione")),"") -> 
K104: =+IFERROR(IF(K102-K103<0,0,K103),0) -> 0 | L104: 0 | M104: 0 | N104: 0
F106: OF calcolato | G106: non compilabile | K106: =Capex!E30 -> 0 | L106: =Capex!F30 -> 0 | M106: =Capex!G30 -> 0 | N106: =Capex!H30 -> 0
F107: Detrazione della componente OF | K107: 0 | L107: 0 | M107: 0 | N107: 0 | O107: =+IF(LEFT(O103,2)="OK",+IF(OR(K106-K107<0,L106-L107<0,M106-M107<0,N106-N107<0),"Attenzione: valori fuori dominio",IF(AND(K107="",L107="",M107="",N107=""),"<--- Continuare da qui la compilazione (compilare tutti i campi)","OK, continuare la compilazione")),"") -> 
K108: =+IFERROR(IF(K106-K107<0,0,K107),0) -> 0 | L108: 0 | M108: 0 | N108: 0
F110: OFisc calcolato | G110: non compilabile | K110: =Capex!E31 -> 0 | L110: =Capex!F31 -> 0 | M110: =Capex!G31 -> 0 | N110: =Capex!H31 -> 0
F111: Detrazione della componente OFisc | K111: 0 | L111: 0 | M111: 0 | N111: 0 | O111: =+IF(LEFT(O107,2)="OK",+IF(OR(K110-K111<0,L110-L111<0,M110-M111<0,N110-N111<0),"Attenzione: valori fuori dominio",IF(AND(K111="",L111="",M111="",N111=""),"<--- Continuare da qui la compilazione (compilare tutti i campi)","OK, continuare la compilazione")),"") -> 
K112: =+IFERROR(IF(K110-K111<0,0,K111),0) -> 0 | L112: 0 | M112: 0 | N112: 0
I119: Sezione "Interventi sulle componenti del FoNI"
I121: 2024 | J121: 2025 | K121: 2026 | L121: 2027 | M121: 2028 | N121: 2029
F122: FNI calcolato | G122: non compilabile | K122: =+FoNI!E77 -> 0 | L122: =+FoNI!F77 -> 0 | M122: =+FoNI!G77 -> 0 | N122: =+FoNI!H77 -> 0
F123: Detrazione della componente FNI | K123: 0 | L123: 0 | M123: 0 | N123: 0 | O123: =+IF(LEFT(O111,2)="OK",+IF(OR(K123<0,L123<0,M123<0,N123<0,K123>K122,L123>L122,M123>M122,N123>N122),"Attenzione: valori fuori dominio",IF(AND(K123="",L123="",M123="",N123=""),"<--- Continuare da qui la compilazione (compilare tutti i campi)","OK, continuare la compilazione")),"") -> 
K124: =+IFERROR(IF(K122-K123<0,0,K123),0) -> 0 | L124: 0 | M124: 0 | N124: 0
F126: AMMcfp calcolato | G126: non compilabile | K126: =+FoNI!E91 -> 0 | L126: =+FoNI!F91 -> 0 | M126: =+FoNI!G91 -> 0 | N126: =+FoNI!H91 -> 0
F127: Detrazione della componente AMMcfp | K127: 0 | L127: 0 | M127: 0 | N127: 0 | O127: =+IF(LEFT(O123,2)="OK",+IF(OR(K127<0,L127<0,M127<0,N127<0,K127>K126,L127>L126,M127>M126,N127>N126),"Attenzione: valori fuori dominio",IF(AND(K127="",L127="",M127="",N127=""),"<--- Continuare da qui la compilazione (compilare tutti i campi)","OK, continuare la compilazione")),"") -> 
K128: =+IFERROR(IF(K126-K127<0,0,K127),0) -> 0 | L128: 0 | M128: 0 | N128: 0
F130: DCUIT massimo nel FoNI | G130: non compilabile | K130: =+FoNI!E105 -> 0 | L130: =+FoNI!F105 -> 0 | M130: =+FoNI!G105 -> 0 | N130: =+FoNI!H105 -> 0 | O130: =+IF(LEFT($O$91,2)="OK","OK, continuare la compilazione","") -> 
F131: Detrazione della componente DCUIT | K131: 0 | L131: 0 | M131: 0 | N131: 0 | O131: =+IF(LEFT(O127,2)="OK",+IF(OR(K131<0,L131<0,M131<0,N131<0,K131>K130,L131>L130,M131>M130,N131>N130),"Attenzione: valori fuori dominio",IF(AND(K131="",L131="",M131="",N131=""),"<--- Continuare da qui la compilazione (compilare tutti i campi)","OK, continuare la compilazione")),"") -> 
K132: =+IFERROR(IF(K130-K131<0,0,K131),0) -> 0 | L132: 0 | M132: 0 | N132: 0
I139: Sezione "Interventi sulle componenti dell'Opex"
I141: 2024 | J141: 2025 | K141: 2026 | L141: 2027 | M141: 2028 | N141: 2029
F142: Opexend calcolato | K142: =+Opex!E30 -> 0 | L142: =+Opex!F30 -> 0 | M142: =+Opex!G30 -> 0 | N142: =+Opex!H30 -> 0
F143: Detrazione della componente Opexend | G143: Detrazione da gara | K143: 0 | L143: 0 | M143: 0 | N143: 0 | O143: =+IF(LEFT(O131,2)="OK",+IF(OR(K142-K143<0,L142-L143<0,M142-M143<0,N142-N143<0),"Attenzione: valori fuori dominio",IF(AND(K143="",L143="",M143="",N143=""),"<--- Continuare da qui la compilazione (compilare tutti i campi)","OK, continuare la compilazione")),"") -> 
G144: Altra detrazione | K144: 0 | L144: 0 | M144: 0 | N144: 0 | O144: =+IF(LEFT(O131,2)="OK",+IF(OR(K142-K144<0,L142-L144<0,M142-M144<0,N142-N144<0),"Attenzione: valori fuori dominio",IF(AND(K144="",L144="",M144="",N144=""),"<--- Continuare da qui la compilazione (compilare tutti i campi)","OK, continuare la compilazione")),"") -> 
K145: =+IFERROR(IF(K142-K143-K144<0,0,K143+K144),0) -> 0 | L145: =+IFERROR(IF(L142-L143-L144<0,0,L143+L144),0) -> 0 | M145: =+IFERROR(IF(M142-M143-M144<0,0,M143+M144),0) -> 0 | N145: =+IFERROR(IF(N142-N143-N144<0,0,N143+N144),0) -> 0
F147: Opexal calcolato | G147: non compilabile | K147: =+Opex!E31 -> 0 | L147: =+Opex!F31 -> 0 | M147: =+Opex!G31 -> 0 | N147: =+Opex!H31 -> 0
F148: Detrazione della componente Opexal | K148: 0 | L148: 0 | M148: 0 | N148: 0 | O148: =+IF(LEFT(O144,2)="OK",+IF(OR(K147-K148<0,L147-L148<0,M147-M148<0,N147-N148<0),"Attenzione: valori fuori dominio",IF(AND(K148="",L148="",M148="",N148=""),"<--- Continuare da qui la compilazione (compilare tutti i campi)","OK, continuare la compilazione")),"") -> 
K149: =+IFERROR(IF(K147-K148<0,0,K148),0) -> 0 | L149: 0 | M149: 0 | N149: 0
I156: Sezione "Interventi sulle componenti dell'ERC"
I158: 2024 | J158: 2025 | K158: 2026 | L158: 2027 | M158: 2028 | N158: 2029
F159: ERCcapex calcolato | G159: non compilabile | K159: =ERC!E30 -> 0 | L159: =ERC!F30 -> 0 | M159: =ERC!G30 -> 0 | N159: =ERC!H30 -> 0
F160: Detrazione della componente ERCcapex | K160: 0 | L160: 0 | M160: 0 | N160: 0 | O160: =+IF(LEFT(O148,2)="OK",+IF(OR(K159-K160<0,L159-L160<0,M159-M160<0,N159-N160<0),"Attenzione: valori fuori dominio",IF(AND(K160="",L160="",M160="",N160=""),"<--- Continuare da qui la compilazione (compilare tutti i campi)","OK, continuare la compilazione")),"") -> 
K161: =+IFERROR(IF(K159-K160<0,0,K160),0) -> 0 | L161: 0 | M161: 0 | N161: 0
F163: ERCopex calcolato | G163: non compilabile | K163: =ERC!E31 -> 0 | L163: =ERC!F31 -> 0 | M163: =ERC!G31 -> 0 | N163: =ERC!H31 -> 0
F164: Detrazione della componente ERCopex | K164: 0 | L164: 0 | M164: 0 | N164: 0 | O164: =+IF(LEFT(O160,2)="OK",+IF(OR(K163-K164<0,L163-L164<0,M163-M164<0,N163-N164<0),"Attenzione: valori fuori dominio",IF(AND(K164="",L164="",M164="",N164=""),"<--- Continuare da qui la compilazione (compilare tutti i campi)","OK, continuare la compilazione")),"") -> 
K165: =+IFERROR(IF(K163-K164<0,0,K164),0) -> 0 | L165: 0 | M165: 0 | N165: 0
I172: Sezione "Interventi sulle componenti dell'RC"
I174: 2024 | J174: 2025 | K174: 2026 | L174: 2027 | M174: 2028 | N174: 2029
F175: RCvol calcolato | G175: non compilabile | K175: ='Rc'!E30 -> 0 | L175: ='Rc'!F30 -> 0 | M175: ='Rc'!G30 -> 0 | N175: ='Rc'!H30 -> 0
F176: Detrazione della componente Rcvol | K176: 0 | L176: 0 | M176: 0 | N176: 0 | O176: =+IF(LEFT(O164,2)="OK",+IF(OR(K175-K176<0,L175-L176<0,M175-M176<0,N175-N176<0),"Attenzione: valori fuori dominio",IF(AND(K176="",L176="",M176="",N176=""),"<--- Continuare da qui la compilazione (compilare tutti i campi)","OK, continuare la compilazione")),"") -> 
K177: =+IFERROR(IF(K175-K176<0,0,K176),0) -> 0 | L177: 0 | M177: 0 | N177: 0
F179: RCEE calcolato | G179: non compilabile | K179: ='Rc'!E31 -> 0 | L179: ='Rc'!F31 -> 0 | M179: ='Rc'!G31 -> 0 | N179: ='Rc'!H31 -> 0
F180: Detrazione della componente RcEE | K180: 0 | L180: 0 | M180: 0 | N180: 0 | O180: =+IF(LEFT(O176,2)="OK",+IF(OR(K179-K180<0,L179-L180<0,M179-M180<0,N179-N180<0),"Attenzione: valori fuori dominio",IF(AND(K180="",L180="",M180="",N180=""),"<--- Continuare da qui la compilazione (compilare tutti i campi)","OK, continuare la compilazione")),"") -> 
K181: =+IFERROR(IF(K179-K180<0,0,K180),0) -> 0 | L181: 0 | M181: 0 | N181: 0
F183: RCws calcolato | G183: non compilabile | K183: ='Rc'!E32 -> 0 | L183: ='Rc'!F32 -> 0 | M183: ='Rc'!G32 -> 0 | N183: ='Rc'!H32 -> 0
F184: Detrazione della componente RCws | K184: 0 | L184: 0 | M184: 0 | N184: 0 | O184: =+IF(LEFT(O180,2)="OK",+IF(OR(K183-K184<0,L183-L184<0,M183-M184<0,N183-N184<0),"Attenzione: valori fuori dominio",IF(AND(K184="",L184="",M184="",N184=""),"<--- Continuare da qui la compilazione (compilare tutti i campi)","OK, continuare la compilazione")),"") -> 
K185: =+IFERROR(IF(K183-K184<0,0,K184),0) -> 0 | L185: 0 | M185: 0 | N185: 0
F187: RCERC calcolato | G187: non compilabile | K187: ='Rc'!E33 -> 0 | L187: ='Rc'!F33 -> 0 | M187: ='Rc'!G33 -> 0 | N187: ='Rc'!H33 -> 0
F188: Detrazione della componente RCERC | K188: 0 | L188: 0 | M188: 0 | N188: 0 | O188: =+IF(LEFT(O184,2)="OK",+IF(OR(K187-K188<0,L187-L188<0,M187-M188<0,N187-N188<0),"Attenzione: valori fuori dominio",IF(AND(K188="",L188="",M188="",N188=""),"<--- Continuare da qui la compilazione (compilare tutti i campi)","OK, continuare la compilazione")),"") -> 
K189: =+IFERROR(IF(K187-K188<0,0,K188),0) -> 0 | L189: 0 | M189: 0 | N189: 0
F191: RCALTRO calcolato | G191: non compilabile | K191: ='Rc'!E34 -> 0 | L191: ='Rc'!F34 -> 0 | M191: ='Rc'!G34 -> 0 | N191: ='Rc'!H34 -> 0
F192: Detrazione della componente RCALTRO | K192: 0 | L192: 0 | M192: 0 | N192: 0 | O192: =+IF(LEFT(O188,2)="OK",+IF(OR(K191-K192<0,L191-L192<0,M191-M192<0,N191-N192<0),"Attenzione: valori fuori dominio",IF(AND(K192="",L192="",M192="",N192=""),"<--- Continuare da qui la compilazione (compilare tutti i campi)","OK, continuare la compilazione")),"") -> 
K193: =+IFERROR(IF(K191-K192<0,0,K192),0) -> 0 | L193: 0 | M193: 0 | N193: 0
I201: Elaborazioni Intermedie
I203: 2024 | J203: 2025 | K203: 2026 | L203: 2027 | M203: 2028 | N203: 2029
F204: VRGa calcolato | G204: non compilabile | I204: =+IF(mti_4<>"",VRG_Teta!C67,"") ->  | J204: =+IF(mti_4<>"",VRG_Teta!D67,"") ->  | K204: =+IF(mti_4<>"",VRG_Teta!E67,"") ->  | L204: =+IF(mti_4<>"",VRG_Teta!F67,"") ->  | M204: =+IF(mti_4<>"",VRG_Teta!G67,"") ->  | N204: =+IF(mti_4<>"",VRG_Teta!H67,"") ->  | O204: =+IF(O131<>"",IF(AND(K208="nei limiti",L208="nei limiti",I208="nei limiti",J208="nei limiti"),"OK, proseguire se necessario la compilazione","ATTENZIONE: proposta sovracap per almeno un'annualità"),"") -> 
F205: ϑa calcolato | G205: non compilabile | I205: =+IF(mti_4<>"",VRG_Teta!C68,"") ->  | J205: =+IF(mti_4<>"",VRG_Teta!D68,"") ->  | K205: =+IF(mti_4<>"",VRG_Teta!E68,"") ->  | L205: =+IF(mti_4<>"",VRG_Teta!F68,"") ->  | M205: =+IF(mti_4<>"",VRG_Teta!G68,"") ->  | N205: =+IF(mti_4<>"",VRG_Teta!H68,"") -> 
F206: VRGa al cap | G206: non compilabile | I206: =+IF(mti_4<>"",VRG_Teta!C69,"") ->  | J206: =+IF(mti_4<>"",VRG_Teta!D69,"") ->  | K206: =+IF(mti_4<>"",VRG_Teta!E69,"") ->  | L206: =+IF(mti_4<>"",VRG_Teta!F69,"") ->  | M206: =+IF(mti_4<>"",VRG_Teta!G69,"") ->  | N206: =+IF(mti_4<>"",VRG_Teta!H69,"") -> 
F207: ϑa massimo applicabile | G207: non compilabile | I207: =+IF(mti_4<>"",VRG_Teta!C70,"") ->  | J207: =+IF(mti_4<>"",VRG_Teta!D70,"") ->  | K207: =+IF(mti_4<>"",VRG_Teta!E70,"") ->  | L207: =+IF(mti_4<>"",VRG_Teta!F70,"") ->  | M207: =+IF(mti_4<>"",VRG_Teta!G70,"") ->  | N207: =+IF(mti_4<>"",VRG_Teta!H70,"") -> 
F208: info predisposizione | G208: non compilabile | I208: =+IF(mti_4<>"",VRG_Teta!C71,"") ->  | J208: =+IF(mti_4<>"",VRG_Teta!D71,"") ->  | K208: =+IF(mti_4<>"",VRG_Teta!E71,"") ->  | L208: =+IF(mti_4<>"",VRG_Teta!F71,"") ->  | M208: =+IF(mti_4<>"",VRG_Teta!G71,"") ->  | N208: =+IF(mti_4<>"",VRG_Teta!H71,"") -> 
I215: Sezione "Rimodulazioni degli RC"
I217: 2024 | J217: 2025 | K217: 2026 | L217: 2027 | M217: 2028 | N217: 2029
F218: RCTOT MTI-4 calcolati (include inflazione) | G218: non compilabile | I218: ='Rc'!C11 -> 0 | J218: ='Rc'!D11 -> 0 | K218: ='Rc'!E11 -> 0 | L218: ='Rc'!F11 -> 0 | M218: ='Rc'!G11 -> 0 | N218: ='Rc'!H11 -> 0
G219: non compilabile | K219: =+IF(ISERR(MAX(K91-K89,0)),0,MAX(K91-K89,0)) -> 0 | L219: =+IF(ISERR(MAX(L91-L89,0)),0,MAX(L91-L89,0)) -> 0
F220: Sviluppo richiesto dei conguagli MTI-4 | G220: non compilabile | O220: =+IF(LEFT(O192,2)="OK", IF(AND(K220>=0,L220>=0,M220>=0,N220>=0), "OK, continuare la compilazione", "OK, riallocare conguagli oppure continuare la compilazione"), "") -> 
F221: eventuale rinuncia a conguagli RC MTI-4 | K221: 0 | O221: =+IF(AND(LEFT(O220,2)="OK",ISNUMBER(K221)=TRUE,K221>0,K221<SUM(K218:N218)), "OK, continuare la compilazione", IF(LEFT(O220,2)="OK", IF(OR(ISNUMBER(K221)=FALSE,K221<0,K221>SUM(K218:N218)), "Attenzione, compilare correttamente il campo", "OK, continuare la compilazione"), "")) -> 
F222: RCTOT in piano tariffario MTI-4 | G222: non compilabile | I222: =+Dati_Anni_precedenti!E90 -> 0 | J222: =+Dati_Anni_precedenti!F90 -> 0 | K222: =+IF(K220="",K218,K220) -> 0 | L222: 0 | M222: 0 | N222: 0
F223: RC MTI-4 post 2029 | G223: non compilabile | K223: =+IF(LEFT(O221,2)="OK",IF(SUM(I218:N218)-(SUM(I222:N222)+K221)<0,IF(SUM(I218:N218)<0,IF(SUM(I218:N218)-(SUM(I222:N222)+K221)<0,"Attenzione, ricontrollare gli addendi",SUM(I218:N218)-(SUM(I222:N222)+K221)),"Attenzione, ricontrollare gli addendi"),SUM(I218:N218)-(SUM(I222:N222)+K221)),"") ->  | O223: =+IF(OR(K223="Attenzione, ricontrollare gli addendi",K223=""),"","OK, continuare la compilazione") -> 
F224: RCTOT - verifica rispetto comma 28.2 MTI-4 | G224: info | K224: =+IF(OR(K223="",K223<1),"","NECESSARIA MOTIVATA ISTANZA EX COMMA 28.2 MTI-4") -> 
F225: verifica scadenza concessione | G225: non compilabile | I225: =+IF(Affidamento!$E$4="","",IF(YEAR(Affidamento!$E$4)<=I217,1,0)) ->  | J225: =+IF(Affidamento!$E$4="","",IF(YEAR(Affidamento!$E$4)<=J217,1,0)) ->  | K225: =+IF(Affidamento!$E$4="","",IF(YEAR(Affidamento!$E$4)<=K217,1,0)) ->  | L225: =+IF(Affidamento!$E$4="","",IF(YEAR(Affidamento!$E$4)<=L217,1,0)) ->  | M225: =+IF(Affidamento!$E$4="","",IF(YEAR(Affidamento!$E$4)<=M217,1,0)) ->  | N225: =+IF(Affidamento!$E$4="","",IF(YEAR(Affidamento!$E$4)<=N217,1,0)) -> 
F226: RCTOT - verifica rispetto comma 28.2-bis MTI-4 | G226: info | K226: =+IF(SUMPRODUCT(I218:N218,I225:N225)-SUM(I222:N222)-K221>0,"Verificare condizioni di cui al commma 28.2-bis del MTI-4","") -> 
I231: Sezione "Rimodulazioni"
F233: Rimodulazioni relative alla componente Capex | G233: non compilabile | O233: =+IF(LEFT(O223,2)="OK","OK, compilare tutti i campi o continuare la compilazione","") -> 
F234: Rimodulazioni relative alla componente Opex | G234: non compilabile | O234: =+IF(LEFT(O233,2)="OK","OK, compilare tutti i campi o continuare la compilazione","") -> 
F235: Rimodulazioni relative alla componente ERC | G235: non compilabile | O235: =+IF(LEFT(O234,2)="OK","OK, compilare tutti i campi o continuare la compilazione","") -> 
I242: Elaborazioni finali
I244: 2024 | J244: 2025 | K244: 2026 | L244: 2027 | M244: 2028 | N244: 2029
F245: VRGa calcolato | G245: non compilabile | I245: =Storico_Piano_Tariffario!E63 -> 0 | J245: =Storico_Piano_Tariffario!F63 -> 0 | K245: =+IF($O$223<>"",VRG_Teta!E74,"") ->  | L245: =+IF($O$223<>"",VRG_Teta!F74,"") ->  | M245: =+IF($O$223<>"",VRG_Teta!G74,"") ->  | N245: =+IF($O$223<>"",VRG_Teta!H74,"") ->  | O245: =+IF(O223="","",IF(AND(K249="nei limiti",L249="nei limiti",I249="nei limiti",J249="nei limiti",M249="nei limiti",N249="nei limiti"),"Compilazione conclusa!",IF(OR(K249<>"nei limiti",L249<>"nei limiti",I249<>"nei limiti",J249<>"nei limiti",M249<>"nei limiti",N249<>"nei limiti"),"ATTENZIONE: proposta sovracap per almeno un'annualità",""))) -> 
F246: ϑa calcolato | G246: non compilabile | I246: =Storico_Piano_Tariffario!E66 -> 0 | J246: =Storico_Piano_Tariffario!F66 -> 0 | K246: =+IF($O$223<>"",VRG_Teta!E75,"") ->  | L246: =+IF($O$223<>"",VRG_Teta!F75,"") ->  | M246: =+IF($O$223<>"",VRG_Teta!G75,"") ->  | N246: =+IF($O$223<>"",VRG_Teta!H75,"") -> 
F247: VRGa al cap | G247: non compilabile | I247: =Storico_Piano_Tariffario!E71 -> 0 | J247: =Storico_Piano_Tariffario!F71 -> 0 | K247: =+IF($O$223<>"",VRG_Teta!E76,"") ->  | L247: =+IF($O$223<>"",VRG_Teta!F76,"") ->  | M247: =+IF($O$223<>"",VRG_Teta!G76,"") ->  | N247: =+IF($O$223<>"",VRG_Teta!H76,"") -> 
F248: ϑa massimo applicabile | G248: non compilabile | I248: =Piano_Tariffario!E72 -> 0 | J248: =Piano_Tariffario!F72 -> 0 | K248: =+IF($O$223<>"",VRG_Teta!E84,"") ->  | L248: =+IF($O$223<>"",VRG_Teta!F84,"") ->  | M248: =+IF($O$223<>"",VRG_Teta!G84,"") ->  | N248: =+IF($O$223<>"",VRG_Teta!H84,"") -> 
F249: info predisposizione | G249: non compilabile | I249: =VRG_Teta!C78 ->  | J249: =VRG_Teta!D78 ->  | K249: =+IF($O$223<>"",VRG_Teta!E85,"") ->  | L249: =+IF($O$223<>"",VRG_Teta!F85,"") ->  | M249: =+IF($O$223<>"",VRG_Teta!G85,"") ->  | N249: =+IF($O$223<>"",VRG_Teta!H85,"") -> 

Sheet VRG_riepilogo
L2: sono presenti errori
A3: Sezione | B3: Voce | C3: 2024 | D3: 2025 | E3: 2026 | F3: 2027 | G3: 2028 | H3: 2029 | I3: 2024-2029 | L3: =+OR(O:U) -> TRUE | O3: =+OR(O5,O11,O13:O79,O81:O92,O96,O98,O107) -> FALSE | P3: =+OR(P5,P11,P13:P80,P81:P88,P91:P96,P98,P107) -> FALSE | Q3: =+OR(Q5,Q11,Q13:Q79,Q81:Q88,Q96,Q98,Q107) -> FALSE | R3: =+OR(R5,R11,R13:R79,R81:R88,R96,R98,R107) -> FALSE | S3: =+OR(S5,S11,S13:S79,S81:S88,S96,S98,S107) -> FALSE | T3: =+OR(T5,T11,T13:T79,T81:T88,T96,T98,T107) -> FALSE | U3: =+OR(U8,U10:U11) -> TRUE
A4: Delibera Autorità | B4: Delibera
A5: Delibera Autorità | B5: J deliberato | C5: =Dati_Anni_precedenti!E5 -> 0 | D5: =Dati_Anni_precedenti!F5 -> 0 | E5: =+MIN(VRG_Teta!E75,VRG_Teta!E82) -> 0 | F5: =+MIN(VRG_Teta!F75,VRG_Teta!F82) -> 0 | G5: =+MIN(VRG_Teta!G75,VRG_Teta!G82) -> 0 | H5: =+MIN(VRG_Teta!H75,VRG_Teta!H82) -> 0 | O5: =+IF(ISNUMBER(C5),FALSE,TRUE) -> FALSE | P5: =+IF(ISNUMBER(D5),FALSE,TRUE) -> FALSE | Q5: FALSE | R5: FALSE | S5: FALSE | T5: FALSE
A6: Delibera Autorità | B6: J medio | C6: =Dati_Anni_precedenti!E6 -> 0 | D6: =Dati_Anni_precedenti!F6 -> 0
A7: Delibera Autorità | B7: RC post | I7: =+IFERROR(VALUE(Input_per_calcoli_finali!K223),0) -> 0
A8: Schema regolatorio | B8: (∑2024-2029 Ipaexp + CFPaexp ) | I8: =+Piano_Tariffario!E10 -> 0 | U8: =+IF(ISNUMBER(I8),FALSE,TRUE) -> FALSE
A9: Schema regolatorio | B9: ψ | I9: =Piano_Tariffario!$E$14 -> 0
A10: Schema regolatorio | B10: RAB MTI-3 | I10: =+Input_per_calcoli_finali!G49 -> 0 | U10: =+IF(ISNUMBER(I10),FALSE,TRUE) -> FALSE
A11: Schema regolatorio | B11: pop + 0,25 popflut | C11: =Dati_Anni_precedenti!E11 -> 0 | D11: =Dati_Anni_precedenti!F11 -> 0 | E11: =+MAX(Dati_tecnici!E15,Dati_tecnici!E23,Dati_tecnici!E29)+0.25*Dati_tecnici!E18 -> 0 | F11: =+MAX(Dati_tecnici!F15,Dati_tecnici!F23,Dati_tecnici!F29)+0.25*Dati_tecnici!F18 -> 0 | G11: =+D11 -> 0 | H11: =+G11 -> 0 | I11: =+Input_per_calcoli_finali!$G$39 ->  | O11: =+IF(ISNUMBER(C11),FALSE,TRUE) -> FALSE | P11: FALSE | Q11: FALSE | R11: FALSE | S11: FALSE | T11: FALSE | U11: =+IF(ISNUMBER(I11),FALSE,TRUE) -> TRUE
A12: Schema regolatorio | B12: Schema regolatorio | I12: =+Piano_Tariffario!E15 -> 0
A13: Totale investimenti pianificati | B13: Iptexp + CFPexp | C13: =Dati_Anni_precedenti!E13 -> 0 | D13: =Dati_Anni_precedenti!F13 -> 0 | E13: =+Piano_Tariffario!G81 -> 0 | F13: =+Piano_Tariffario!H81 -> 0 | G13: =+Piano_Tariffario!I81 -> 0 | H13: =+Piano_Tariffario!J81 -> 0 | O13: =+IF(ISNUMBER(C13),FALSE,TRUE) -> FALSE | P13: =+IF(ISNUMBER(D13),FALSE,TRUE) -> FALSE | Q13: =+IF(ISNUMBER(E13),FALSE,TRUE) -> FALSE | R13: =+IF(ISNUMBER(F13),FALSE,TRUE) -> FALSE | S13: =+IF(ISNUMBER(G13),FALSE,TRUE) -> FALSE | T13: =+IF(ISNUMBER(H13),FALSE,TRUE) -> FALSE
A14: Totale investimenti pianificati | B14: CFPexp | C14: =Dati_Anni_precedenti!E14 -> 0 | D14: =Dati_Anni_precedenti!F14 -> 0 | E14: =+Piano_Tariffario!G82 -> 0 | F14: =+Piano_Tariffario!H82 -> 0 | G14: =+Piano_Tariffario!I82 -> 0 | H14: =+Piano_Tariffario!J82 -> 0 | O14: FALSE | P14: FALSE | Q14: FALSE | R14: FALSE | S14: FALSE | T14: FALSE
A15: Totale investimenti pianificati | B15: Iptexp | C15: =Dati_Anni_precedenti!E15 -> 0 | D15: =Dati_Anni_precedenti!F15 -> 0 | E15: =+Piano_Tariffario!G83 -> 0 | F15: =+Piano_Tariffario!H83 -> 0 | G15: =+Piano_Tariffario!I83 -> 0 | H15: =+Piano_Tariffario!J83 -> 0 | O15: FALSE | P15: FALSE | Q15: FALSE | R15: FALSE | S15: FALSE | T15: FALSE
A16: Moltiplicatore | B16: VRG approvato | C16: =Dati_Anni_precedenti!E16 -> 0 | D16: =Dati_Anni_precedenti!F16 -> 0 | E16: =+Piano_Tariffario!G63 -> 0 | F16: =+Piano_Tariffario!H63 -> 0 | G16: =+Piano_Tariffario!I63 -> 0 | H16: =+Piano_Tariffario!J63 -> 0 | O16: FALSE | P16: FALSE | Q16: FALSE | R16: FALSE | S16: FALSE | T16: FALSE
A17: Moltiplicatore | B17: ∑tarif2023 * vscala-2 | C17: =Dati_Anni_precedenti!E17 -> 0 | D17: =Dati_Anni_precedenti!F17 -> 0 | E17: =+Piano_Tariffario!G65 -> 0 | F17: =+Piano_Tariffario!H65 -> 0 | G17: =+Piano_Tariffario!I65 -> 0 | H17: =+Piano_Tariffario!J65 -> 0 | O17: FALSE | P17: FALSE | Q17: FALSE | R17: FALSE | S17: FALSE | T17: FALSE
A18: Moltiplicatore | B18: di cui: Ricavi ws | C18: =Dati_Anni_precedenti!E18 -> 0 | D18: =Dati_Anni_precedenti!F18 -> 0 | E18: =+SUM(Vendita_Servizi_ingrosso!AI:AI) -> 0 | F18: =+SUM(Vendita_Servizi_ingrosso!AJ:AJ) -> 0 | G18: =+F18 -> 0 | H18: =+G18 -> 0 | O18: FALSE | P18: FALSE | Q18: FALSE | R18: FALSE | S18: FALSE | T18: FALSE
A19: Moltiplicatore | B19: di cui: tarif2023 * vscala-2 | C19: =Dati_Anni_precedenti!E19 -> 0 | D19: =Dati_Anni_precedenti!F19 -> 0 | E19: =+SUM(Ricavi_bacini_tariffari!N:N) -> 0 | F19: =+SUM(Ricavi_bacini_tariffari!O:O) -> 0 | G19: =+F19 -> 0 | H19: 0 | O19: FALSE | P19: FALSE | Q19: FALSE | R19: FALSE | S19: FALSE | T19: FALSE
A20: Moltiplicatore | B20: di cui: tarifindnew,2023vscalindnew,a-2 | C20: =Dati_Anni_precedenti!E20 -> 0 | D20: =Dati_Anni_precedenti!F20 -> 0 | E20: =+Ricavi_Coll_Dep!D19 -> 0 | F20: =+Ricavi_Coll_Dep!E19 -> 0 | G20: =+F20 -> 0 | H20: 0 | O20: FALSE | P20: FALSE | Q20: FALSE | R20: FALSE | S20: FALSE | T20: FALSE
A21: Moltiplicatore | B21: Rba-2 | C21: =Dati_Anni_precedenti!E21 -> 0 | D21: =Dati_Anni_precedenti!F21 -> 0 | E21: =+Piano_Tariffario!G64 -> 0 | F21: =+Piano_Tariffario!H64 -> 0 | G21: =+Piano_Tariffario!I64 -> 0 | H21: =+Piano_Tariffario!J64 -> 0 | O21: FALSE | P21: FALSE | Q21: FALSE | R21: FALSE | S21: FALSE | T21: FALSE
A22: Moltiplicatore | B22: Cba-2 | C22: =Dati_Anni_precedenti!E22 -> 0 | D22: =Dati_Anni_precedenti!F22 -> 0 | E22: =+VRG_Teta!E140+VRG_Teta!E138 -> 0 | F22: =+VRG_Teta!F140+VRG_Teta!F138 -> 0 | G22: =+VRG_Teta!G140+VRG_Teta!G138 -> 0 | H22: =+VRG_Teta!H140+VRG_Teta!H138 -> 0 | O22: FALSE | P22: FALSE | Q22: FALSE | R22: FALSE | S22: FALSE | T22: FALSE
A23: Costi delle immobilizzazioni | B23: AMM | C23: =Dati_Anni_precedenti!E23 -> 0 | D23: =Dati_Anni_precedenti!F23 -> 0 | E23: =+Piano_Tariffario!G30 -> 0 | F23: =+Piano_Tariffario!H30 -> 0 | G23: =+Piano_Tariffario!I30 -> 0 | H23: =+Piano_Tariffario!J30 -> 0 | O23: FALSE | P23: FALSE | Q23: FALSE | R23: FALSE | S23: FALSE | T23: FALSE
A24: Costi delle immobilizzazioni | B24: OF | C24: =Dati_Anni_precedenti!E24 -> 0 | D24: =Dati_Anni_precedenti!F24 -> 0 | E24: =+Piano_Tariffario!G31 -> 0 | F24: =+Piano_Tariffario!H31 -> 0 | G24: =+Piano_Tariffario!I31 -> 0 | H24: =+Piano_Tariffario!J31 -> 0 | O24: FALSE | P24: FALSE | Q24: FALSE | R24: FALSE | S24: FALSE | T24: FALSE
A25: Costi delle immobilizzazioni | B25: OFisc | C25: =Dati_Anni_precedenti!E25 -> 0 | D25: =Dati_Anni_precedenti!F25 -> 0 | E25: =+Piano_Tariffario!G32 -> 0 | F25: =+Piano_Tariffario!H32 -> 0 | G25: =+Piano_Tariffario!I32 -> 0 | H25: =+Piano_Tariffario!J32 -> 0 | O25: FALSE | P25: FALSE | Q25: FALSE | R25: FALSE | S25: FALSE | T25: FALSE
A26: Costi delle immobilizzazioni | B26: ΔCUITcapex | C26: =Dati_Anni_precedenti!E26 -> 0 | D26: =Dati_Anni_precedenti!F26 -> 0 | E26: =+Piano_Tariffario!G33 -> 0 | F26: =+Piano_Tariffario!H33 -> 0 | G26: =+Piano_Tariffario!I33 -> 0 | H26: =+Piano_Tariffario!J33 -> 0 | O26: FALSE | P26: FALSE | Q26: FALSE | R26: FALSE | S26: FALSE | T26: FALSE
A27: Immobilizzazioni | B27: IML | C27: =Dati_Anni_precedenti!E27 -> 0 | D27: =Dati_Anni_precedenti!F27 -> 0 | E27: =+TT_riepilogo_IMN!G6 -> 0 | F27: =+TT_riepilogo_IMN!H6 -> 0 | G27: =+TT_riepilogo_IMN!I6 -> 0 | H27: =+TT_riepilogo_IMN!J6 -> 0 | O27: FALSE | P27: FALSE | Q27: FALSE | R27: FALSE | S27: FALSE | T27: FALSE
A28: Immobilizzazioni | B28: IMN | C28: =Dati_Anni_precedenti!E28 -> 0 | D28: =Dati_Anni_precedenti!F28 -> 0 | E28: =+TT_riepilogo_IMN!G8 -> 0 | F28: =+TT_riepilogo_IMN!H8 -> 0 | G28: =+TT_riepilogo_IMN!I8 -> 0 | H28: =+TT_riepilogo_IMN!J8 -> 0 | O28: FALSE | P28: FALSE | Q28: FALSE | R28: FALSE | S28: FALSE | T28: FALSE
A29: Immobilizzazioni | B29: FA | C29: =Dati_Anni_precedenti!E29 -> 0 | D29: =Dati_Anni_precedenti!F29 -> 0 | E29: =+TT_riepilogo_IMN!G7 -> 0 | F29: =+TT_riepilogo_IMN!H7 -> 0 | G29: =+TT_riepilogo_IMN!I7 -> 0 | H29: =+TT_riepilogo_IMN!J7 -> 0 | O29: FALSE | P29: FALSE | Q29: FALSE | R29: FALSE | S29: FALSE | T29: FALSE
A30: Fondo Nuovi Investimenti | B30: AMMfoni | C30: =Dati_Anni_precedenti!E30 -> 0 | D30: =Dati_Anni_precedenti!F30 -> 0 | E30: =+Piano_Tariffario!G48 -> 0 | F30: =+Piano_Tariffario!H48 -> 0 | G30: =+Piano_Tariffario!I48 -> 0 | H30: =+Piano_Tariffario!J48 -> 0 | O30: FALSE | P30: FALSE | Q30: FALSE | R30: FALSE | S30: FALSE | T30: FALSE
A31: Fondo Nuovi Investimenti | B31: ΔCUITfoni | C31: =Dati_Anni_precedenti!E31 -> 0 | D31: =Dati_Anni_precedenti!F31 -> 0 | E31: =+Piano_Tariffario!G49 -> 0 | F31: =+Piano_Tariffario!H49 -> 0 | G31: =+Piano_Tariffario!I49 -> 0 | H31: =+Piano_Tariffario!J49 -> 0 | O31: FALSE | P31: FALSE | Q31: FALSE | R31: FALSE | S31: FALSE | T31: FALSE
A32: Fondo Nuovi Investimenti | B32: FNIfoni | C32: =Dati_Anni_precedenti!E32 -> 0 | D32: =Dati_Anni_precedenti!F32 -> 0 | E32: =+Piano_Tariffario!G47 -> 0 | F32: =+Piano_Tariffario!H47 -> 0 | G32: =+Piano_Tariffario!I47 -> 0 | H32: =+Piano_Tariffario!J47 -> 0 | O32: FALSE | P32: FALSE | Q32: FALSE | R32: FALSE | S32: FALSE | T32: FALSE
A33: Costi Operativi, specifiche finalità | B33: Opnew,a | C33: =Dati_Anni_precedenti!E33 -> 0 | D33: =Dati_Anni_precedenti!F33 -> 0 | E33: =+Opex!E67 -> 0 | F33: =+Opex!F67 -> 0 | G33: =+Opex!G67 -> 0 | H33: =+Opex!H67 -> 0 | O33: FALSE | P33: FALSE | Q33: FALSE | R33: FALSE | S33: FALSE | T33: FALSE
A34: Costi Operativi, specifiche finalità | B34: OpexQT lett. a) | C34: =Dati_Anni_precedenti!E34 -> 0 | D34: =Dati_Anni_precedenti!F34 -> 0 | E34: =Opex!E95 -> 0 | F34: =Opex!F95 -> 0 | G34: =Opex!G95 -> 0 | H34: =Opex!H95 -> 0 | O34: FALSE | P34: FALSE | Q34: FALSE | R34: FALSE | S34: FALSE | T34: FALSE
A35: Costi Operativi, specifiche finalità | B35: OpexQT lett. b) | C35: =Dati_Anni_precedenti!E35 -> 0 | D35: =Dati_Anni_precedenti!F35 -> 0 | E35: =Opex!E96 -> 0 | F35: =Opex!F96 -> 0 | G35: =Opex!G96 -> 0 | H35: =Opex!H96 -> 0 | O35: FALSE | P35: FALSE | Q35: FALSE | R35: FALSE | S35: FALSE | T35: FALSE
A36: Costi Operativi, specifiche finalità | B36: OpexQT lett. c) 477/2023/R/IDR | C36: =Dati_Anni_precedenti!E36 -> 0 | D36: =Dati_Anni_precedenti!F36 -> 0 | E36: =Opex!E97 -> 0 | F36: =Opex!F97 -> 0 | G36: =Opex!G97 -> 0 | H36: =Opex!H97 -> 0 | O36: FALSE | P36: FALSE | Q36: FALSE | R36: FALSE | S36: FALSE | T36: FALSE
A37: Costi Operativi, specifiche finalità | B37: OpexQT lett. c) 225/2025/R/IDR | E37: =Opex!E98 -> 0 | F37: =Opex!F98 -> 0 | G37: =Opex!G98 -> 0 | H37: =Opex!H98 -> 0 | Q37: FALSE | R37: FALSE | S37: FALSE | T37: FALSE
A38: Costi Operativi, specifiche finalità | B38: OpexaQC - adeguamenti standard 655/2015/R/IDR (comma 19.9 lett. a) | C38: =Dati_Anni_precedenti!E37 -> 0 | D38: =Dati_Anni_precedenti!F37 -> 0 | E38: =Opex!E110 -> 0 | F38: =Opex!F110 -> 0 | G38: =Opex!G110 -> 0 | H38: =Opex!H110 -> 0 | O38: =+IF(ISNUMBER(C38),FALSE,TRUE) -> FALSE | P38: =+IF(ISNUMBER(D38),FALSE,TRUE) -> FALSE | Q38: FALSE | R38: FALSE | S38: FALSE | T38: FALSE
A39: Costi Operativi, specifiche finalità | B39: OpexaQC - adeguamento agli obiettivi 547/2019/R/IDR (comma 19.9 lett. a) | C39: =Dati_Anni_precedenti!E38 -> 0 | D39: =Dati_Anni_precedenti!F38 -> 0 | E39: =Opex!E111 -> 0 | F39: =Opex!F111 -> 0 | G39: =Opex!G111 -> 0 | H39: =Opex!H111 -> 0 | O39: FALSE | P39: FALSE | Q39: FALSE | R39: FALSE | S39: FALSE | T39: FALSE
A40: Costi Operativi, specifiche finalità | B40: OpexaQC - nuovi obiettivi di qualità contrattuale di cui alla deliberazione 579/2025/R/IDR (comma 19.9 lett. a-bis) | E40: =Opex!E112 -> 0 | F40: =Opex!F112 -> 0 | G40: =Opex!G112 -> 0 | H40: =Opex!H112 -> 0 | Q40: FALSE | R40: FALSE | S40: FALSE | T40: FALSE
A41: Costi Operativi, specifiche finalità | B41: OpexQc lett. c) 476/2023/R/IDR | C41: =Dati_Anni_precedenti!E39 -> 0 | D41: =Dati_Anni_precedenti!F39 -> 0 | E41: =Opex!E113 -> 0 | F41: =Opex!F113 -> 0 | G41: =Opex!G113 -> 0 | H41: =Opex!H113 -> 0 | O41: =+IF(ISNUMBER(C41),FALSE,TRUE) -> FALSE | P41: FALSE | Q41: FALSE | R41: FALSE | S41: FALSE | T41: FALSE
A42: Costi Operativi, specifiche finalità | B42: OpexQc lett. c) 277/2025/R/IDR | E42: =Opex!E114 -> 0 | F42: =Opex!F114 -> 0 | G42: =Opex!G114 -> 0 | H42: =Opex!H114 -> 0 | Q42: FALSE | R42: FALSE | S42: FALSE | T42: FALSE
A43: Costi Operativi, specifiche finalità | B43: Opsocial lett.a) | C43: =Dati_Anni_precedenti!E40 -> 0 | D43: =Dati_Anni_precedenti!F40 -> 0 | E43: =Opex!E126 -> 0 | F43: =Opex!F126 -> 0 | G43: =Opex!G126 -> 0 | H43: =Opex!H126 -> 0 | O43: =+IF(ISNUMBER(C43),FALSE,TRUE) -> FALSE | P43: FALSE | Q43: FALSE | R43: FALSE | S43: FALSE | T43: FALSE
A44: Costi Operativi, specifiche finalità | B44: Opasocial - lett. a-bis) | E44: =Opex!E127 -> 0 | F44: =Opex!F127 -> 0 | G44: =Opex!G127 -> 0 | H44: =Opex!H127 -> 0 | Q44: FALSE | R44: FALSE | S44: FALSE | T44: FALSE
A45: Costi Operativi, specifiche finalità | B45: Opsocial lett.b) | C45: =Dati_Anni_precedenti!E41 -> 0 | D45: =Dati_Anni_precedenti!F41 -> 0 | E45: =Opex!E128 -> 0 | F45: =Opex!F128 -> 0 | G45: =Opex!G128 -> 0 | H45: =Opex!H128 -> 0 | O45: =+IF(ISNUMBER(C45),FALSE,TRUE) -> FALSE | P45: =+IF(ISNUMBER(D45),FALSE,TRUE) -> FALSE | Q45: FALSE | R45: FALSE | S45: FALSE | T45: FALSE
A46: Costi Operativi, specifiche finalità | B46: Opmis | C46: =Dati_Anni_precedenti!E42 -> 0 | D46: =Dati_Anni_precedenti!F42 -> 0 | E46: =+Opex!E71 -> 0 | F46: =+Opex!F71 -> 0 | G46: =+Opex!G71 -> 0 | H46: =+Opex!H71 -> 0 | O46: FALSE | P46: FALSE | Q46: FALSE | R46: FALSE | S46: FALSE | T46: FALSE
A47: Costi Operativi, aggiornabili | B47: COee | C47: =Dati_Anni_precedenti!E43 -> 0 | D47: =Dati_Anni_precedenti!F43 -> 0 | E47: =Opex!E179 -> 0 | F47: =Opex!F179 -> 0 | G47: =Opex!G179 -> 0 | H47: =Opex!H179 -> 0 | O47: FALSE | P47: FALSE | Q47: FALSE | R47: FALSE | S47: FALSE | T47: FALSE
A48: Costi Operativi, aggiornabili | B48: Cows | C48: =Dati_Anni_precedenti!E44 -> 0 | D48: =Dati_Anni_precedenti!F44 -> 0 | E48: =Opex!E192 -> 0 | F48: =Opex!F192 -> 0 | G48: =Opex!G192 -> 0 | H48: =Opex!H192 -> 0 | O48: FALSE | P48: FALSE | Q48: FALSE | R48: FALSE | S48: FALSE | T48: FALSE
A49: Costi Operativi, aggiornabili | B49: COws, di cui OPexpws | C49: =Dati_Anni_precedenti!E45 -> 0 | D49: =Dati_Anni_precedenti!F45 -> 0 | E49: =Opex!E190 -> 0 | F49: =Opex!F190 -> 0 | G49: =Opex!G190 -> 0 | H49: =Opex!H190 -> 0 | O49: FALSE | P49: FALSE | Q49: FALSE | R49: FALSE | S49: FALSE | T49: FALSE
A50: Costi Operativi, aggiornabili | B50: CoΔfanghi | C50: =Dati_Anni_precedenti!E46 -> 0 | D50: =Dati_Anni_precedenti!F46 -> 0 | E50: =Opex!E209 -> 0 | F50: =Opex!F209 -> 0 | G50: =Opex!G209 -> 0 | H50: =Opex!H209 -> 0 | O50: FALSE | P50: FALSE | Q50: FALSE | R50: FALSE | S50: FALSE | T50: FALSE
A51: Costi Operativi, aggiornabili | B51: MT | C51: =Dati_Anni_precedenti!E47 -> 0 | D51: =Dati_Anni_precedenti!F47 -> 0 | E51: =Opex!E222 -> 0 | F51: =Opex!F222 -> 0 | G51: =Opex!G222 -> 0 | H51: =Opex!H222 -> 0 | O51: FALSE | P51: FALSE | Q51: FALSE | R51: FALSE | S51: FALSE | T51: FALSE
A52: Costi Operativi, aggiornabili | B52: AC | C52: =Dati_Anni_precedenti!E48 -> 0 | D52: =Dati_Anni_precedenti!F48 -> 0 | E52: =Opex!E223 -> 0 | F52: =Opex!F223 -> 0 | G52: =Opex!G223 -> 0 | H52: =Opex!H223 -> 0 | O52: FALSE | P52: FALSE | Q52: FALSE | R52: FALSE | S52: FALSE | T52: FALSE
A53: Costi Operativi, aggiornabili | B53: COato | C53: =Dati_Anni_precedenti!E49 -> 0 | D53: =Dati_Anni_precedenti!F49 -> 0 | E53: =Opex!E238 -> 0 | F53: =Opex!F238 -> 0 | G53: =Opex!G238 -> 0 | H53: =Opex!H238 -> 0 | O53: FALSE | P53: FALSE | Q53: FALSE | R53: FALSE | S53: FALSE | T53: FALSE
A54: Costi Operativi, aggiornabili | B54: COARERA | C54: =Dati_Anni_precedenti!E50 -> 0 | D54: =Dati_Anni_precedenti!F50 -> 0 | E54: =Opex!E239 -> 0 | F54: =Opex!F239 -> 0 | G54: =Opex!G239 -> 0 | H54: =Opex!H239 -> 0 | O54: FALSE | P54: FALSE | Q54: FALSE | R54: FALSE | S54: FALSE | T54: FALSE
A55: Costi Operativi, aggiornabili | B55: COmor | C55: =Dati_Anni_precedenti!E51 -> 0 | D55: =Dati_Anni_precedenti!F51 -> 0 | E55: =Opex!E240 -> 0 | F55: =Opex!F240 -> 0 | G55: =Opex!G240 -> 0 | H55: =Opex!H240 -> 0 | O55: FALSE | P55: FALSE | Q55: FALSE | R55: FALSE | S55: FALSE | T55: FALSE
A56: Costi Operativi, aggiornabili | B56: COres | C56: =Dati_Anni_precedenti!E52 -> 0 | D56: =Dati_Anni_precedenti!F52 -> 0 | E56: =Opex!E241 -> 0 | F56: =Opex!F241 -> 0 | G56: =Opex!G241 -> 0 | H56: =Opex!H241 -> 0 | O56: FALSE | P56: FALSE | Q56: FALSE | R56: FALSE | S56: FALSE | T56: FALSE
A57: Costi Operativi, aggiornabili | B57: Contributi c/e | C57: =Dati_Anni_precedenti!E53 -> 0 | D57: =Dati_Anni_precedenti!F53 -> 0 | E57: =Opex!E310 -> 0 | F57: =Opex!F310 -> 0 | G57: =Opex!G310 -> 0 | H57: =Opex!H310 -> 0 | O57: FALSE | P57: FALSE | Q57: FALSE | R57: FALSE | S57: FALSE | T57: FALSE
A58: Costi Operativi, endogeni | B58: Opexend | C58: =Dati_Anni_precedenti!E54 -> 0 | D58: =Dati_Anni_precedenti!F54 -> 0 | E58: =+Opex!E11 -> 0 | F58: =+Opex!F11 -> 0 | G58: =+Opex!G11 -> 0 | H58: =+Opex!H11 -> 0 | O58: FALSE | P58: FALSE | Q58: FALSE | R58: FALSE | S58: FALSE | T58: FALSE
A59: Costi ambientali e della risorsa (immobilizzazioni) | B59: ENVcapex | C59: =Dati_Anni_precedenti!E55 -> 0 | D59: =Dati_Anni_precedenti!F55 -> 0 | E59: =ERC!E46 -> 0 | F59: =ERC!F46 -> 0 | G59: =ERC!G46 -> 0 | H59: =ERC!H46 -> 0 | O59: FALSE | P59: FALSE | Q59: FALSE | R59: FALSE | S59: FALSE | T59: FALSE
A60: Costi ambientali e della risorsa (immobilizzazioni) | B60: REScapex | C60: =Dati_Anni_precedenti!E56 -> 0 | D60: =Dati_Anni_precedenti!F56 -> 0 | E60: =ERC!E47 -> 0 | F60: =ERC!F47 -> 0 | G60: =ERC!G47 -> 0 | H60: =ERC!H47 -> 0 | O60: FALSE | P60: FALSE | Q60: FALSE | R60: FALSE | S60: FALSE | T60: FALSE
A61: Costi ambientali e della risorsa (costi operativi) | B61: ENVopex | C61: =Dati_Anni_precedenti!E57 -> 0 | D61: =Dati_Anni_precedenti!F57 -> 0 | E61: =ERC!E221 -> 0 | F61: =ERC!F221 -> 0 | G61: =ERC!G221 -> 0 | H61: =ERC!H221 -> 0 | O61: FALSE | P61: FALSE | Q61: FALSE | R61: FALSE | S61: FALSE | T61: FALSE
A62: Costi ambientali e della risorsa (costi operativi) | B62: RESopex | C62: =Dati_Anni_precedenti!E58 -> 0 | D62: =Dati_Anni_precedenti!F58 -> 0 | E62: =ERC!E222 -> 0 | F62: =ERC!F222 -> 0 | G62: =ERC!G222 -> 0 | H62: =ERC!H222 -> 0 | O62: FALSE | P62: FALSE | Q62: FALSE | R62: FALSE | S62: FALSE | T62: FALSE
A63: Costi ambientali e della risorsa (costi operativi) | B63: ERCend | C63: =Dati_Anni_precedenti!E59 -> 0 | D63: =Dati_Anni_precedenti!F59 -> 0 | E63: =ERC!E144 -> 0 | F63: =ERC!F144 -> 0 | G63: =ERC!G144 -> 0 | H63: =ERC!H144 -> 0 | O63: FALSE | P63: FALSE | Q63: FALSE | R63: FALSE | S63: FALSE | T63: FALSE
A64: Costi ambientali e della risorsa (costi operativi) | B64: ERCal | C64: =Dati_Anni_precedenti!E60 -> 0 | D64: =Dati_Anni_precedenti!F60 -> 0 | E64: =ERC!E145 -> 0 | F64: =ERC!F145 -> 0 | G64: =ERC!G145 -> 0 | H64: =ERC!H145 -> 0 | O64: FALSE | P64: FALSE | Q64: FALSE | R64: FALSE | S64: FALSE | T64: FALSE
A65: Costi ambientali e della risorsa (costi operativi) | B65: ERCQT lett. a) | C65: =Dati_Anni_precedenti!E61 -> 0 | D65: =Dati_Anni_precedenti!F61 -> 0 | E65: =MIN(ERC!E198,ERC!E199) -> 0 | F65: =+E65 -> 0 | G65: =+D65 -> 0 | H65: 0 | O65: FALSE | P65: FALSE | Q65: FALSE | R65: FALSE | S65: FALSE | T65: FALSE
A66: Costi ambientali e della risorsa (costi operativi) | B66: ERCQT lett. b) | C66: =Dati_Anni_precedenti!E62 -> 0 | D66: =Dati_Anni_precedenti!F62 -> 0 | E66: =ERC!E200 -> 0 | F66: =ERC!F200 -> 0 | G66: =ERC!G200 -> 0 | H66: =ERC!H200 -> 0 | O66: FALSE | P66: FALSE | Q66: FALSE | R66: FALSE | S66: FALSE | T66: FALSE
A67: Costi ambientali e della risorsa (costi operativi) | B67: ERCQT comma 19.8 lett. c) 477/2023/R/IDR | C67: =Dati_Anni_precedenti!E63 -> 0 | D67: =Dati_Anni_precedenti!F63 -> 0 | E67: =ERC!E201 -> 0 | F67: =ERC!F201 -> 0 | G67: =ERC!G201 -> 0 | H67: =ERC!H201 -> 0 | O67: FALSE | P67: FALSE | Q67: FALSE | R67: FALSE | S67: FALSE | T67: FALSE
A68: Costi ambientali e della risorsa (costi operativi) | B68: ERCQT comma 19.8 lett. c) 225/2025/R/IDR | E68: =ERC!E202 -> 0 | F68: =ERC!F202 -> 0 | G68: =ERC!G202 -> 0 | H68: =ERC!H202 -> 0 | Q68: FALSE | R68: FALSE | S68: FALSE | T68: FALSE
A69: Costi ambientali e della risorsa (costi operativi) | B69: ERCa tel - di cui Opnew lett. c) | C69: =Dati_Anni_precedenti!E64 -> 0 | D69: =Dati_Anni_precedenti!F64 -> 0 | E69: =ERC!E204 -> 0 | F69: =ERC!F204 -> 0 | G69: =ERC!G204 -> 0 | H69: =ERC!H204 -> 0 | O69: =+IF(ISNUMBER(C69),FALSE,TRUE) -> FALSE | P69: =+IF(ISNUMBER(D69),FALSE,TRUE) -> FALSE | Q69: FALSE | R69: FALSE | S69: FALSE | T69: FALSE
A70: Sezione Conguagli (include inflazione) | B70: RcVOL | C70: =Dati_Anni_precedenti!E65 -> 0 | D70: =Dati_Anni_precedenti!F65 -> 0 | E70: ='Rc'!E20 -> 0 | F70: ='Rc'!F20 -> 0 | G70: ='Rc'!G20 -> 0 | H70: ='Rc'!H20 -> 0 | O70: FALSE | P70: FALSE | Q70: FALSE | R70: FALSE | S70: FALSE | T70: FALSE
A71: Sezione Conguagli (include inflazione) | B71: RcEE | C71: =Dati_Anni_precedenti!E66 -> 0 | D71: =Dati_Anni_precedenti!F66 -> 0 | E71: ='Rc'!E21 -> 0 | F71: ='Rc'!F21 -> 0 | G71: ='Rc'!G21 -> 0 | H71: ='Rc'!H21 -> 0 | O71: FALSE | P71: FALSE | Q71: FALSE | R71: FALSE | S71: FALSE | T71: FALSE
A72: Sezione Conguagli (include inflazione) | B72: RcWS | C72: =Dati_Anni_precedenti!E67 -> 0 | D72: =Dati_Anni_precedenti!F67 -> 0 | E72: ='Rc'!E22 -> 0 | F72: ='Rc'!F22 -> 0 | G72: ='Rc'!G22 -> 0 | H72: ='Rc'!H22 -> 0 | O72: FALSE | P72: FALSE | Q72: FALSE | R72: FALSE | S72: FALSE | T72: FALSE
A73: Sezione Conguagli (include inflazione) | B73: RcERCa | C73: =Dati_Anni_precedenti!E68 -> 0 | D73: =Dati_Anni_precedenti!F68 -> 0 | E73: ='Rc'!E23 -> 0 | F73: ='Rc'!F23 -> 0 | G73: ='Rc'!G23 -> 0 | H73: ='Rc'!H23 -> 0 | O73: FALSE | P73: FALSE | Q73: FALSE | R73: FALSE | S73: FALSE | T73: FALSE
A74: Sezione Conguagli (include inflazione) | B74: Rcab1 | C74: =Dati_Anni_precedenti!E69 -> 0 | D74: =Dati_Anni_precedenti!F69 -> 0 | E74: ='Rc'!E178*VLOOKUP("da t-2 a t",PINF,E$3 - 2011,FALSE) -> 0 | F74: ='Rc'!F178*VLOOKUP("da t-2 a t",PINF,F$3 - 2011,FALSE) -> 0 | G74: ='Rc'!G178*VLOOKUP("da t-2 a t",PINF,G$3 - 2011,FALSE) -> 0 | H74: ='Rc'!H178*VLOOKUP("da t-2 a t",PINF,H$3 - 2011,FALSE) -> 0 | O74: FALSE | P74: FALSE | Q74: FALSE | R74: FALSE | S74: FALSE | T74: FALSE
A75: Sezione Conguagli (include inflazione) | B75: Rcab2 | C75: =Dati_Anni_precedenti!E70 -> 0 | D75: =Dati_Anni_precedenti!F70 -> 0 | E75: ='Rc'!E179*VLOOKUP("da t-2 a t",PINF,E$3 - 2011,FALSE) -> 0 | F75: ='Rc'!F179*VLOOKUP("da t-2 a t",PINF,F$3 - 2011,FALSE) -> 0 | G75: ='Rc'!G179*VLOOKUP("da t-2 a t",PINF,G$3 - 2011,FALSE) -> 0 | H75: ='Rc'!H179*VLOOKUP("da t-2 a t",PINF,H$3 - 2011,FALSE) -> 0 | O75: FALSE | P75: FALSE | Q75: FALSE | R75: FALSE | S75: FALSE | T75: FALSE
A76: Sezione Conguagli (include inflazione) | B76: Rcab | C76: =+C75+C74 -> 0 | D76: =+D75+D74 -> 0 | E76: ='Rc'!E180*VLOOKUP("da t-2 a t",PINF,E$3 - 2011,FALSE) -> 0 | F76: ='Rc'!F180*VLOOKUP("da t-2 a t",PINF,F$3 - 2011,FALSE) -> 0 | G76: ='Rc'!G180*VLOOKUP("da t-2 a t",PINF,G$3 - 2011,FALSE) -> 0 | H76: ='Rc'!H180*VLOOKUP("da t-2 a t",PINF,H$3 - 2011,FALSE) -> 0 | O76: FALSE | P76: FALSE | Q76: FALSE | R76: FALSE | S76: FALSE | T76: FALSE
A77: Sezione Conguagli (include inflazione) | B77: Rcares | C77: =Dati_Anni_precedenti!E71 -> 0 | D77: =Dati_Anni_precedenti!F71 -> 0 | E77: =+'Rc'!E138*VLOOKUP("da t-2 a t",PINF,E$3 - 2011,FALSE) -> 0 | F77: =+'Rc'!F138*VLOOKUP("da t-2 a t",PINF,F$3 - 2011,FALSE) -> 0 | G77: =+'Rc'!G138*VLOOKUP("da t-2 a t",PINF,G$3 - 2011,FALSE) -> 0 | H77: =+'Rc'!H138*VLOOKUP("da t-2 a t",PINF,H$3 - 2011,FALSE) -> 0 | O77: FALSE | P77: FALSE | Q77: =+IF(ISNUMBER(E77),FALSE,TRUE) -> FALSE | R77: =+IF(ISNUMBER(F77),FALSE,TRUE) -> FALSE | S77: =+IF(ISNUMBER(G77),FALSE,TRUE) -> FALSE | T77: =+IF(ISNUMBER(H77),FALSE,TRUE) -> FALSE
A78: Sezione Conguagli (include inflazione) | B78: RcaARERA | C78: =Dati_Anni_precedenti!E72 -> 0 | D78: =Dati_Anni_precedenti!F72 -> 0 | E78: =+'Rc'!E139*VLOOKUP("da t-2 a t",PINF,E$3 - 2011,FALSE) -> 0 | F78: =+'Rc'!F139*VLOOKUP("da t-2 a t",PINF,F$3 - 2011,FALSE) -> 0 | G78: =+'Rc'!G139*VLOOKUP("da t-2 a t",PINF,G$3 - 2011,FALSE) -> 0 | H78: =+'Rc'!H139*VLOOKUP("da t-2 a t",PINF,H$3 - 2011,FALSE) -> 0 | O78: FALSE | P78: FALSE | Q78: FALSE | R78: FALSE | S78: FALSE | T78: FALSE
A79: Sezione Conguagli (include inflazione) | B79: Costo forniture all’ingrosso transfrontaliere | C79: =Dati_Anni_precedenti!E73 -> 0 | D79: =Dati_Anni_precedenti!F73 -> 0 | E79: =+'Rc'!E140*VLOOKUP("da t-2 a t",PINF,E$3 - 2011,FALSE) -> 0 | F79: =+'Rc'!F140*VLOOKUP("da t-2 a t",PINF,F$3 - 2011,FALSE) -> 0 | O79: FALSE | P79: FALSE | Q79: FALSE | R79: FALSE
A80: Sezione Conguagli (include inflazione) | B80: RcIP (valori a moneta a-2, include eventuale FoNInoninv) | C80: =Dati_Anni_precedenti!E74 -> 0 | D80: =Dati_Anni_precedenti!F74 -> 0 | E80: =+'Rc'!E141*VLOOKUP("da t-2 a t",PINF,E$3 - 2011,FALSE) -> 0 | F80: =+'Rc'!F141*VLOOKUP("da t-2 a t",PINF,F$3 - 2011,FALSE) -> 0 | P80: =+IF(ISNUMBER(D80),FALSE,TRUE) -> FALSE | R80: =+IF(ISNUMBER(F80),FALSE,TRUE) -> FALSE
A81: Sezione Conguagli (include inflazione) | B81: Costi per variazioni sistemiche / eventi eccezionali | C81: =Dati_Anni_precedenti!E75 -> 0 | D81: =Dati_Anni_precedenti!F75 -> 0 | E81: =+Altri_dati_eco_fin!E50*VLOOKUP("da t-2 a t",PINF,E$3 - 2011,FALSE) -> 0 | F81: =+Altri_dati_eco_fin!F50*VLOOKUP("da t-2 a t",PINF,F$3 - 2011,FALSE) -> 0 | O81: =+IF(ISNUMBER(C81),FALSE,TRUE) -> FALSE | P81: FALSE | Q81: FALSE | R81: FALSE
A82: Sezione Conguagli (include inflazione) | B82: Variazioni sistemiche, di cui: per eventi eccezionali, energia elettrica | C82: =Dati_Anni_precedenti!E76 -> 0 | D82: =Dati_Anni_precedenti!F76 -> 0 | O82: FALSE | P82: FALSE
A83: Sezione Conguagli (include inflazione) | B83: Variazioni sistemiche, di cui: per eventi eccezionali, altro | C83: =Dati_Anni_precedenti!E77 -> 0 | D83: =Dati_Anni_precedenti!F77 -> 0 | E83: =Altri_dati_eco_fin!E52*VLOOKUP("da t-2 a t",PINF,E$3 - 2011,FALSE) -> 0 | F83: =Altri_dati_eco_fin!F52*VLOOKUP("da t-2 a t",PINF,F$3 - 2011,FALSE) -> 0 | O83: FALSE | P83: FALSE | Q83: =+IF(ISNUMBER(E83),FALSE,TRUE) -> FALSE | R83: =+IF(ISNUMBER(F83),FALSE,TRUE) -> FALSE
A84: Sezione Conguagli (include inflazione) | B84: Rimb335a | C84: =Dati_Anni_precedenti!E78 -> 0 | D84: =Dati_Anni_precedenti!F78 -> 0 | E84: =+'Rc'!E143*VLOOKUP("da t-2 a t",PINF,E$3 - 2011,FALSE) -> 0 | F84: =+'Rc'!F143*VLOOKUP("da t-2 a t",PINF,F$3 - 2011,FALSE) -> 0 | O84: FALSE | P84: FALSE | Q84: FALSE | R84: FALSE
A85: Sezione Conguagli (include inflazione) | B85: Rcaappr | C85: =Dati_Anni_precedenti!E79 -> 0 | D85: =Dati_Anni_precedenti!F79 -> 0 | E85: =+'Rc'!E144*VLOOKUP("da t-2 a t",PINF,E$3 - 2011,FALSE) -> 0 | F85: =+'Rc'!F144*VLOOKUP("da t-2 a t",PINF,F$3 - 2011,FALSE) -> 0 | G85: =+'Rc'!G144*VLOOKUP("da t-2 a t",PINF,G$3 - 2011,FALSE) -> 0 | H85: =+'Rc'!H144*VLOOKUP("da t-2 a t",PINF,H$3 - 2011,FALSE) -> 0 | O85: FALSE | P85: FALSE | Q85: FALSE | R85: FALSE | S85: =+IF(ISNUMBER(G85),FALSE,TRUE) -> FALSE | T85: =+IF(ISNUMBER(H85),FALSE,TRUE) -> FALSE
A86: Sezione Conguagli (include inflazione) | B86: DOpexQC | C86: =Dati_Anni_precedenti!E80 -> 0 | D86: =Dati_Anni_precedenti!F80 -> 0 | E86: =+'Rc'!E145*VLOOKUP("da t-2 a t",PINF,E$3 - 2011,FALSE) -> 0 | F86: =+'Rc'!F145*VLOOKUP("da t-2 a t",PINF,F$3 - 2011,FALSE) -> 0 | G86: =+'Rc'!G145*VLOOKUP("da t-2 a t",PINF,G$3 - 2011,FALSE) -> 0 | H86: =+'Rc'!H145*VLOOKUP("da t-2 a t",PINF,H$3 - 2011,FALSE) -> 0 | O86: FALSE | P86: FALSE | Q86: FALSE | R86: FALSE | S86: FALSE | T86: FALSE
A87: Sezione Conguagli (include inflazione) | B87: DOpexQT | C87: =Dati_Anni_precedenti!E81 -> 0 | D87: =Dati_Anni_precedenti!F81 -> 0 | E87: =+'Rc'!E146*VLOOKUP("da t-2 a t",PINF,E$3 - 2011,FALSE) -> 0 | F87: =+'Rc'!F146*VLOOKUP("da t-2 a t",PINF,F$3 - 2011,FALSE) -> 0 | G87: =+'Rc'!G146*VLOOKUP("da t-2 a t",PINF,G$3 - 2011,FALSE) -> 0 | H87: =+'Rc'!H146*VLOOKUP("da t-2 a t",PINF,H$3 - 2011,FALSE) -> 0 | O87: FALSE | P87: FALSE | Q87: FALSE | R87: FALSE | S87: FALSE | T87: FALSE
A88: Sezione Conguagli (include inflazione) | B88: DOpsocial | C88: =Dati_Anni_precedenti!E82 -> 0 | D88: =Dati_Anni_precedenti!F82 -> 0 | E88: =+'Rc'!E147*VLOOKUP("da t-2 a t",PINF,E$3 - 2011,FALSE) -> 0 | F88: =+'Rc'!F147*VLOOKUP("da t-2 a t",PINF,F$3 - 2011,FALSE) -> 0 | G88: =+'Rc'!G147*VLOOKUP("da t-2 a t",PINF,G$3 - 2011,FALSE) -> 0 | H88: =+'Rc'!H147*VLOOKUP("da t-2 a t",PINF,H$3 - 2011,FALSE) -> 0 | O88: FALSE | P88: FALSE | Q88: FALSE | R88: FALSE | S88: FALSE | T88: FALSE
A89: Sezione Conguagli (include inflazione) | B89: Penalità RQSII - Delibere 476/2023/R/IDR - 277/2025/R/IDR | C89: =Dati_Anni_precedenti!E83 -> 0 | D89: =Dati_Anni_precedenti!F83 -> 0 | E89: ='Rc'!E149*VLOOKUP("da t-2 a t",PINF,E$3 - 2011,FALSE) -> 0 | F89: ='Rc'!F149*VLOOKUP("da t-2 a t",PINF,F$3 - 2011,FALSE) -> 0 | O89: FALSE | P89: FALSE | Q89: FALSE | R89: FALSE
A90: Sezione Conguagli (include inflazione) | B90: Penalità RQTI - Delibere 477/2023/R/IDR - 225/2025/R/IDR | C90: =Dati_Anni_precedenti!E84 -> 0 | D90: =Dati_Anni_precedenti!F84 -> 0 | E90: ='Rc'!E150*VLOOKUP("da t-2 a t",PINF,E$3 - 2011,FALSE) -> 0 | F90: ='Rc'!F150*VLOOKUP("da t-2 a t",PINF,F$3 - 2011,FALSE) -> 0 | O90: FALSE | P90: FALSE | Q90: FALSE | R90: FALSE
A91: Sezione Conguagli (include inflazione) | B91: DOpmis | C91: =Dati_Anni_precedenti!E85 -> 0 | D91: =Dati_Anni_precedenti!F85 -> 0 | E91: =+'Rc'!E273*VLOOKUP("da t-2 a t",PINF,E$3 - 2011,FALSE) -> 0 | F91: =+'Rc'!F273*VLOOKUP("da t-2 a t",PINF,F$3 - 2011,FALSE) -> 0 | G91: =+'Rc'!G273*VLOOKUP("da t-2 a t",PINF,G$3 - 2011,FALSE) -> 0 | H91: =+'Rc'!H273*VLOOKUP("da t-2 a t",PINF,H$3 - 2011,FALSE) -> 0 | O91: FALSE | P91: FALSE | Q91: FALSE | R91: FALSE | S91: =+IF(ISNUMBER(G91),FALSE,TRUE) -> FALSE | T91: FALSE
A92: Sezione Conguagli (include inflazione) | B92: RcARC | C92: =Dati_Anni_precedenti!E86 -> 0 | D92: =Dati_Anni_precedenti!F86 -> 0 | O92: FALSE | P92: FALSE
A93: Sezione Conguagli (include inflazione) | B93: Recupero volumi 2021/2023 | D93: =Dati_Anni_precedenti!F87 -> 0 | F93: =+'Rc'!F151*VLOOKUP("da t-2 a t",PINF,F$3 - 2011,FALSE) -> 0 | P93: FALSE | R93: FALSE
A94: Sezione Conguagli (include inflazione) | B94: Recupero energia elettrica 2021/2023 | D94: =Dati_Anni_precedenti!F88 -> 0 | F94: =+'Rc'!F152*VLOOKUP("da t-2 a t",PINF,F$3 - 2011,FALSE) -> 0 | P94: FALSE | R94: FALSE
A95: Sezione Conguagli (include inflazione) | B95: Recupero straordinario inflazione | D95: =Dati_Anni_precedenti!F89 -> 0 | F95: =+'Rc'!F153*VLOOKUP("da t-2 a t",PINF,F$3 - 2011,FALSE) -> 0 | P95: FALSE | R95: FALSE
A96: Sezione Conguagli (include inflazione) | B96: Rctot | C96: =Dati_Anni_precedenti!E90 -> 0 | D96: =Dati_Anni_precedenti!F90 -> 0 | E96: =+Piano_Tariffario!G57 -> 0 | F96: =+Piano_Tariffario!H57 -> 0 | G96: =+Piano_Tariffario!I57 -> 0 | H96: =+Piano_Tariffario!J57 -> 0 | O96: =+IF(ISNUMBER(C96),FALSE,TRUE) -> FALSE | P96: FALSE | Q96: FALSE | R96: FALSE | S96: FALSE | T96: FALSE
A97: Ammortamento finanziario | B97: AF MTI-4 | C97: =Dati_Anni_precedenti!E91 -> 0 | D97: =Dati_Anni_precedenti!F91 -> 0 | E97: =+Ammortamento_Finanziario!H4 -> NO | F97: =+Ammortamento_Finanziario!I4 -> NO | G97: =+Ammortamento_Finanziario!J4 -> NO | H97: =+Ammortamento_Finanziario!K4 -> NO
A98: Altro | B98: FoNInoninv | C98: =Dati_Anni_precedenti!E92 -> 0 | D98: =Dati_Anni_precedenti!F92 -> 0 | E98: =+FoNI!E122 -> 0 | F98: =+FoNI!F122 -> 0 | G98: =+FoNI!G122 -> 0 | H98: =+FoNI!H122 -> 0 | O98: =+IF(ISNUMBER(C98),FALSE,TRUE) -> FALSE | P98: FALSE | Q98: FALSE | R98: FALSE | S98: FALSE | T98: FALSE
A107: Verifica VRG | B107: VRG calc | C107: =+SUM(C23:C26,C30:C32,C33:C46,C47,C48,C50:C55,C56,C58,C59:C60,C63:C67,C96) -> 0 | D107: 0 | E107: 0 | F107: 0 | G107: 0 | H107: 0 | J107: riga di controllo | O107: =+IF(ABS(E108)<5,FALSE,TRUE) -> FALSE | P107: =+IF(ABS(F108)<5,FALSE,TRUE) -> FALSE | Q107: =+IF(ABS(C108)<5,FALSE,TRUE) -> FALSE | R107: =+IF(ABS(D108)<5,FALSE,TRUE) -> FALSE | S107: =+IF(ABS(G108)<5,FALSE,TRUE) -> FALSE | T107: FALSE
C108: =+C107-C16 -> 0 | D108: 0 | E108: 0 | F108: 0 | G108: 0 | H108: 0

Sheet Piano_Tariffario
C2: PIANO TARIFFARIO
C3: SCHEMI REGOLATORI
D5: UdM | E5: Del. 639/2023/R/IDR | G5: Del. 582/2025/R/IDR
C6: VRG2022 | D6: euro | E6: =Storico_Piano_Tariffario!E6 -> 0 | G6: =IF(Input_per_calcoli_finali!O55<>"Schema regolatorio","",Framework_schemi!$C$76) -> 
C7: pop + 0,25 popflut | D7: n. abitante | E7: =Storico_Piano_Tariffario!E7 -> 0 | G7: =IF(Input_per_calcoli_finali!O55<>"Schema regolatorio","",Framework_schemi!$C$77) -> 
D8: SI/NO | E8: =Storico_Piano_Tariffario!E8 -> 0 | G8: =+IFERROR(IF((E6/E7)<=149,"SI","NO"),"") -> 
C9: Nessuna aggregazione o variazione dei processi tecnici significativa: (NO) oppure Presenza di aggregazioni o variazioni dei processi tecnici significative: (SI) | D9: SI/NO | E9: =Storico_Piano_Tariffario!E9 -> 0 | G9: =IF(Input_per_calcoli_finali!O55<>"Schema regolatorio","",Framework_schemi!C75) -> 
D10: euro | E10: =Storico_Piano_Tariffario!E10 -> 0 | G10: =Framework_schemi!$C$66 -> 0
C11: RABMTI-3 | D11: euro | E11: =Storico_Piano_Tariffario!E11 -> 0 | G11: =+Framework_schemi!C67 -> 0
D12: SI/NO | E12: =Storico_Piano_Tariffario!E12 -> 0 | G12: =+IF(Framework_schemi!C70="","",IF(Framework_schemi!C70=1,"SI","NO")) -> 
C13: SCHEMA REGOLATORIO (A) SCHEMA REGOLATORIO DI CONVERGENZA (B) | D13: A/B | E13: =Storico_Piano_Tariffario!E13 -> 0 | G13: =+IF(mti_4="","",mti_4) -> 
C14: y | D14: (0,4-0,8) | E14: =Storico_Piano_Tariffario!E14 -> 0 | G14: =+IF(Input_per_calcoli_finali!O55<>"Schema regolatorio","",Input_per_calcoli_finali!$K$51) -> 
C15: SCHEMA REGOLATORIO | D15: (I, II, III, IV, V, VI) | E15: =Storico_Piano_Tariffario!E15 -> 0 | G15: =+IF(Input_per_calcoli_finali!O55<>"Schema regolatorio","",IF(OR(schema="I",schema="II",schema="III",schema="IV",schema="V",schema="VI"),schema,"")) -> 
C20: COMPONENTI DI COSTO Opex, Capex , FNInew, ERC
D21: UdM | E21: ANNO 2024 | F21: ANNO 2025 | G21: ANNO 2026 | H21: ANNO 2027 | I21: ANNO 2028 | J21: ANNO 2029 | K21: ANNO 2030 | L21: ANNO 2031 | M21: ANNO 2032 | N21: ANNO 2033 | O21: ANNO 2034 | P21: ANNO 2035 | Q21: ANNO 2036 | R21: ANNO 2037 | S21: ANNO 2038 | T21: ANNO 2039 | U21: ANNO 2040 | V21: ANNO 2041 | W21: ANNO 2042 | X21: ANNO 2043 | Y21: ANNO 2044 | Z21: ANNO 2045 | AA21: ANNO 2046 | AB21: ANNO 2047 | AC21: ANNO 2048 | AD21: ANNO 2049 | AE21: ANNO 2050 | AF21: ANNO 2051 | AG21: ANNO 2052 | AH21: ANNO 2053 | AI21: ANNO 2054 | AJ21: ANNO 2055 | AK21: ANNO 2056 | AL21: ANNO 2057 | AM21: ANNO 2058 | AN21: ANNO 2059 | AO21: ANNO 2060 | AP21: ANNO 2061 | AQ21: ANNO 2062 | AR21: ANNO 2063
C22: Opexaend | D22: euro | E22: =Storico_Piano_Tariffario!E22 -> 0 | F22: =Storico_Piano_Tariffario!F22 -> 0 | G22: =Opex!E11 -> 0 | H22: =Opex!F11 -> 0 | I22: =Opex!G11 -> 0 | J22: =Opex!H11 -> 0
C23: Opexaal | D23: euro | E23: =Storico_Piano_Tariffario!E23 -> 0 | F23: =Storico_Piano_Tariffario!F23 -> 0 | G23: =Opex!E12 -> 0 | H23: =Opex!F12 -> 0 | I23: =Opex!G12 -> 0 | J23: =Opex!H12 -> 0
C24: Opnew,a | D24: euro | E24: =Storico_Piano_Tariffario!E24 -> 0 | F24: =Storico_Piano_Tariffario!F24 -> 0 | G24: =Opex!E67 -> 0 | H24: =Opex!F67 -> 0 | I24: =Opex!G67 -> 0 | J24: =Opex!H67 -> 0
C25: OpexaQT | D25: euro | E25: =Storico_Piano_Tariffario!E25 -> 0 | F25: =Storico_Piano_Tariffario!F25 -> 0 | G25: =Opex!E68 -> 0 | H25: =Opex!F68 -> 0 | I25: =Opex!G68 -> 0 | J25: =Opex!H68 -> 0
C26: OpexaQC | D26: euro | E26: =Storico_Piano_Tariffario!E26 -> 0 | F26: =Storico_Piano_Tariffario!F26 -> 0 | G26: =Opex!E69 -> 0 | H26: =Opex!F69 -> 0 | I26: =Opex!G69 -> 0 | J26: =Opex!H69 -> 0
C27: Opasocial | D27: euro | E27: =Storico_Piano_Tariffario!E27 -> 0 | F27: =Storico_Piano_Tariffario!F27 -> 0 | G27: =Opex!E70 -> 0 | H27: =Opex!F70 -> 0 | I27: =Opex!G70 -> 0 | J27: =Opex!H70 -> 0
C28: Opamis | D28: euro | E28: =Storico_Piano_Tariffario!E28 -> 0 | F28: =Storico_Piano_Tariffario!F28 -> 0 | G28: =Opex!E71 -> 0 | H28: =Opex!F71 -> 0 | I28: =Opex!G71 -> 0 | J28: =Opex!H71 -> 0
C29: Opexa (al netto degli ERC) | D29: euro | E29: =Storico_Piano_Tariffario!E29 -> 0 | F29: =Storico_Piano_Tariffario!F29 -> 0 | G29: =+SUM(G22:G28) -> 0 | H29: 0 | I29: 0 | J29: 0
C30: AMMa | D30: euro | E30: =Storico_Piano_Tariffario!E30 -> 0 | F30: =Storico_Piano_Tariffario!F30 -> 0 | G30: =+Capex!E13 -> 0 | H30: =+Capex!F13 -> 0 | I30: =+Capex!G13 -> 0 | J30: =+Capex!H13 -> 0
C31: OFa | D31: euro | E31: =Storico_Piano_Tariffario!E31 -> 0 | F31: =Storico_Piano_Tariffario!F31 -> 0 | G31: =+Capex!E11 -> 0 | H31: =+Capex!F11 -> 0 | I31: =+Capex!G11 -> 0 | J31: =+Capex!H11 -> 0
C32: OFisca | D32: euro | E32: =Storico_Piano_Tariffario!E32 -> 0 | F32: =Storico_Piano_Tariffario!F32 -> 0 | G32: =+Capex!E12 -> 0 | H32: =+Capex!F12 -> 0 | I32: =+Capex!G12 -> 0 | J32: =+Capex!H12 -> 0
C33: DCUITaCapex | D33: euro | E33: =Storico_Piano_Tariffario!E33 -> 0 | F33: =Storico_Piano_Tariffario!F33 -> 0 | G33: =+Capex!E14 -> 0 | H33: =+Capex!F14 -> 0 | I33: =+Capex!G14 -> 0 | J33: =+Capex!H14 -> 0
C34: Capexa (al netto degli ERC) | D34: euro | E34: =Storico_Piano_Tariffario!E34 -> 0 | F34: =Storico_Piano_Tariffario!F34 -> 0 | G34: =SUM(G30:G33) -> 0 | H34: 0 | I34: 0 | J34: 0
C35: IPtexp | D35: euro | E35: =Storico_Piano_Tariffario!E35 -> 0 | F35: =Storico_Piano_Tariffario!F35 -> 0 | G35: =FoNI!E74 -> 0 | H35: =FoNI!F74 -> 0 | I35: =FoNI!G74 -> 0 | J35: =FoNI!H74 -> 0
C36: Capexa | D36: euro | E36: =Storico_Piano_Tariffario!E36 -> 0 | F36: =Storico_Piano_Tariffario!F36 -> 0 | G36: =FoNI!E75 -> 0 | H36: =FoNI!F75 -> 0 | I36: =FoNI!G75 -> 0 | J36: =FoNI!H75 -> 0
C37: FNInew,a | D37: euro | E37: =Storico_Piano_Tariffario!E37 -> 0 | F37: =Storico_Piano_Tariffario!F37 -> 0 | G37: =+FoNI!E12 -> 0 | H37: =+FoNI!F12 -> 0 | I37: =+FoNI!G12 -> 0 | J37: =+FoNI!H12 -> 0
E38: =Storico_Piano_Tariffario!E38 -> 0 | F38: =Storico_Piano_Tariffario!F38 -> 0
E39: =Storico_Piano_Tariffario!E39 -> 0 | F39: =Storico_Piano_Tariffario!F39 -> 0
E40: =Storico_Piano_Tariffario!E40 -> 0 | F40: =Storico_Piano_Tariffario!F40 -> 0
C41: ERCacapex | D41: euro | E41: =Storico_Piano_Tariffario!E41 -> 0 | F41: =Storico_Piano_Tariffario!F41 -> 0 | G41: =ERC!E11 -> 0 | H41: =ERC!F11 -> 0 | I41: =ERC!G11 -> 0 | J41: =ERC!H11 -> 0
C42: ERCaopex | D42: euro | E42: =Storico_Piano_Tariffario!E42 -> 0 | F42: =Storico_Piano_Tariffario!F42 -> 0 | G42: =ERC!E12 -> 0 | H42: =ERC!F12 -> 0 | I42: =ERC!G12 -> 0 | J42: =ERC!H12 -> 0
C43: ERCa | D43: euro | E43: =Storico_Piano_Tariffario!E43 -> 0 | F43: =Storico_Piano_Tariffario!F43 -> 0 | G43: =+G41+G42 -> 0 | H43: 0 | I43: 0 | J43: 0
C45: FONDO NUOVI INVESTIMENTI
D46: UdM | E46: ANNO 2024 | F46: ANNO 2025 | G46: ANNO 2026 | H46: ANNO 2027 | I46: ANNO 2028 | J46: ANNO 2029 | K46: ANNO 2030 | L46: ANNO 2031 | M46: ANNO 2032 | N46: ANNO 2033 | O46: ANNO 2034 | P46: ANNO 2035 | Q46: ANNO 2036 | R46: ANNO 2037 | S46: ANNO 2038 | T46: ANNO 2039 | U46: ANNO 2040 | V46: ANNO 2041 | W46: ANNO 2042 | X46: ANNO 2043 | Y46: ANNO 2044 | Z46: ANNO 2045 | AA46: ANNO 2046 | AB46: ANNO 2047 | AC46: ANNO 2048 | AD46: ANNO 2049 | AE46: ANNO 2050 | AF46: ANNO 2051 | AG46: ANNO 2052 | AH46: ANNO 2053 | AI46: ANNO 2054 | AJ46: ANNO 2055 | AK46: ANNO 2056 | AL46: ANNO 2057 | AM46: ANNO 2058 | AN46: ANNO 2059 | AO46: ANNO 2060 | AP46: ANNO 2061 | AQ46: ANNO 2062 | AR46: ANNO 2063
C47: FNIaFoNI | D47: euro | E47: =Storico_Piano_Tariffario!E47 -> 0 | F47: =Storico_Piano_Tariffario!F47 -> 0 | G47: =+FoNI!E12 -> 0 | H47: =+FoNI!F12 -> 0 | I47: =+FoNI!G12 -> 0 | J47: =+FoNI!H12 -> 0
C48: AMMaFoNI | D48: euro | E48: =Storico_Piano_Tariffario!E48 -> 0 | F48: =Storico_Piano_Tariffario!F48 -> 0 | G48: =+FoNI!E11 -> 0 | H48: =+FoNI!F11 -> 0 | I48: =+FoNI!G11 -> 0 | J48: =+FoNI!H11 -> 0
C49: DCUITaFoNI | D49: euro | E49: =Storico_Piano_Tariffario!E49 -> 0 | F49: =Storico_Piano_Tariffario!F49 -> 0 | G49: =+FoNI!E13 -> 0 | H49: =+FoNI!F13 -> 0 | I49: =+FoNI!G13 -> 0 | J49: =+FoNI!H13 -> 0
C50: FoNIa | D50: euro | E50: =Storico_Piano_Tariffario!E50 -> 0 | F50: =Storico_Piano_Tariffario!F50 -> 0 | G50: =+SUM(G47:G49) -> 0 | H50: 0 | I50: 0 | J50: 0
C52: SVILUPPO DEL VRG predisposto dal soggetto competente (include eventuali rimodulazioni)
D53: UdM | E53: ANNO 2024 | F53: ANNO 2025 | G53: ANNO 2026 | H53: ANNO 2027 | I53: ANNO 2028 | J53: ANNO 2029 | K53: ANNO 2030 | L53: ANNO 2031 | M53: ANNO 2032 | N53: ANNO 2033 | O53: ANNO 2034 | P53: ANNO 2035 | Q53: ANNO 2036 | R53: ANNO 2037 | S53: ANNO 2038 | T53: ANNO 2039 | U53: ANNO 2040 | V53: ANNO 2041 | W53: ANNO 2042 | X53: ANNO 2043 | Y53: ANNO 2044 | Z53: ANNO 2045 | AA53: ANNO 2046 | AB53: ANNO 2047 | AC53: ANNO 2048 | AD53: ANNO 2049 | AE53: ANNO 2050 | AF53: ANNO 2051 | AG53: ANNO 2052 | AH53: ANNO 2053 | AI53: ANNO 2054 | AJ53: ANNO 2055 | AK53: ANNO 2056 | AL53: ANNO 2057 | AM53: ANNO 2058 | AN53: ANNO 2059 | AO53: ANNO 2060 | AP53: ANNO 2061 | AQ53: ANNO 2062 | AR53: ANNO 2063
C54: Opexa | D54: euro | E54: =Storico_Piano_Tariffario!E54 -> 0 | F54: =Storico_Piano_Tariffario!F54 -> 0 | G54: =+G29+Input_per_calcoli_finali!K234 -> 0 | H54: =+H29+Input_per_calcoli_finali!L234 -> 0 | I54: =+I29+Input_per_calcoli_finali!M234 -> 0 | J54: =+J29+Input_per_calcoli_finali!N234 -> 0
C55: Capexa | D55: euro | E55: =Storico_Piano_Tariffario!E55 -> 0 | F55: =Storico_Piano_Tariffario!F55 -> 0 | G55: =+G34+Input_per_calcoli_finali!K233 -> 0 | H55: =+H34+Input_per_calcoli_finali!L233 -> 0 | I55: =+I34+Input_per_calcoli_finali!M233 -> 0 | J55: =+J34+Input_per_calcoli_finali!N233 -> 0
C56: FoNIa | D56: euro | E56: =Storico_Piano_Tariffario!E56 -> 0 | F56: =Storico_Piano_Tariffario!F56 -> 0 | G56: =+G50 -> 0 | H56: 0 | I56: 0 | J56: 0
